Workbook

Sheet New Gantt (hidden)
AP7: Start Date (Fusion) | AV7: =IF(CR7="Weekly",CN7*1,BG7*1) -> 2016-10-31 | AX7: 8 | BA7: Start Date (Daily) | BG7: =DATE(BZ7,BS7,BN7) -> 2016-10-31 | BI7: 8 | BK7: Day | BM7: 26 | BN7: 31 | BO7: 26 | BP7: Month | BR7: 10 | BS7: 10 | BT7: 10 | BU7: Year | BW7: 7 | BX7: 7 | BY7: 7 | BZ7: =BX7+2009 -> 2016 | CC7: Start Date (Weekly) | CE7: 7 | CI7: =BG7 -> 2016-10-31 | CK7: 8 | CM7: =WEEKDAY(CI7,2) -> 1 | CN7: =CI7-CM7+1 -> 2016-10-31 | CP7: 8 | CR7: Daily | CW7: Red Bookmark | DC7: =DATE(DV7,DO7,DJ7) -> 2016-11-11 | DE7: 8 | DG7: Day | DI7: 7 | DJ7: 11 | DK7: 7 | DL7: Month | DN7: 11 | DO7: 11 | DP7: 11 | DQ7: Year | DS7: 7 | DT7: 7 | DU7: 7 | DV7: =DT7+2009 -> 2016 | DY7: First Day Today | EA7: 7 | EE7: =TODAY() -> 2017-06-06 | EG7: 8 | EI7: =DAY(EE7) -> 6 | EK7: =MONTH(EE7) -> 6 | EM7: =YEAR(EE7) -> 2017 | EP7: First Day Lowest | EV7: 2016-10-31 | EX7: 8 | EZ7: =DAY(EV7) -> 31 | FB7: =MONTH(EV7) -> 10 | FD7: =YEAR(EV7) -> 2016 | FG7: Options Add Tasks | FM7: Below | FP7: FALSE | FS7: 1 | FT7: TRUE | FX7: Work Days Only | GC7: 1 | GD7: 2 | GE7: =IF(GD7=1,1,0) -> 0 | GG7: Weeks Name | GK7: 1 | GL7: 2 | GM7: =OFFSET(HideValues!B51,GL7-1,0) -> W | GP7: First day week | GS7: 1 | GT7: 1 | GU7: 1 | GV7: =OFFSET(HideValues!$J$45,GU7-1,0) -> 21 | GX7: WE days | GZ7: 1 | HA7: 1 | HB7: =OFFSET(HideValues!F45,HA7-1,0) -> 1 | HD7: Budget | HG7: FALSE | HI7: Comment | HL7: FALSE | HV7: Leader's List | IA7: =IF(Tools!D11<>"",Tools!D11,"") -> Gibs | IB7: =IF(Tools!D12<>"",Tools!D12,"") -> Sara | IC7: =IF(Tools!D13<>"",Tools!D13,"") -> Mary | ID7: =IF(Tools!D14<>"",Tools!D14,"") -> Jade | IE7: =IF(Tools!D15<>"",Tools!D15,"") -> Reda | IF7: =IF(Tools!D16<>"",Tools!D16,"") -> Mike | IG7: =IF(Tools!D17<>"",Tools!D17,"") -> Rony | IH7: =IF(Tools!D18<>"",Tools!D18,"") -> Leo | II7: =IF(Tools!D19<>"",Tools!D19,"") ->  | IJ7: =IF(Tools!D20<>"",Tools!D20,"") ->  | IK7: =IF(Tools!D21<>"",Tools!D21,"") ->  | IL7: =IF(Tools!D22<>"",Tools!D22,"") ->  | IM7: =IF(Tools!D23<>"",Tools!D23,"") ->  | IN7: =IF(Tools!D24<>"",Tools!D24,"") ->  | IO7: =IF(Tools!D25<>"",Tools!D25,"") ->  | IP7: =IF(Tools!D26<>"",Tools!D26,"") ->  | IQ7: =IF(Tools!D27<>"",Tools!D27,"") ->  | IR7: =IF(Tools!D28<>"",Tools!D28,"") ->  | IS7: =IF(Tools!D29<>"",Tools!D29,"") ->  | IT7: =IF(Tools!D30<>"",Tools!D30,"") ->  | IU7: =IF(Tools!D31<>"",Tools!D31,"") ->  | IV7: =IF(Tools!D32<>"",Tools!D32,"") ->  | IW7: =IF(Tools!D33<>"",Tools!D33,"") ->  | IX7: =IF(Tools!D34<>"",Tools!D34,"") ->  | IY7: =IF(Tools!D35<>"",Tools!D35,"") ->  | IZ7: =IF(Tools!D36<>"",Tools!D36,"") ->  | JA7: =IF(Tools!D37<>"",Tools!D37,"") ->  | JB7: =IF(Tools!D38<>"",Tools!D38,"") ->  | JC7: =IF(Tools!D39<>"",Tools!D39,"") ->  | JD7: =IF(Tools!D40<>"",Tools!D40,"") ->  | JE7: =IF(Tools!D41<>"",Tools!D41,"") ->  | JF7: =IF(Tools!D42<>"",Tools!D42,"") ->  | JG7: =IF(Tools!D43<>"",Tools!D43,"") ->  | JH7: =IF(Tools!D44<>"",Tools!D44,"") ->  | JI7: =IF(Tools!D45<>"",Tools!D45,"") ->  | JJ7: =IF(Tools!D46<>"",Tools!D46,"") ->  | JK7: =IF(Tools!D47<>"",Tools!D47,"") ->  | JL7: =IF(Tools!D48<>"",Tools!D48,"") ->  | JM7: =IF(Tools!D49<>"",Tools!D49,"") ->  | JN7: =IF(Tools!D50<>"",Tools!D50,"") ->  | JO7: =IF(Tools!D51<>"",Tools!D51,"") ->  | JP7: =IF(Tools!D52<>"",Tools!D52,"") ->  | JQ7: =IF(Tools!D53<>"",Tools!D53,"") ->  | JR7: =IF(Tools!D54<>"",Tools!D54,"") ->  | JS7: =IF(Tools!D55<>"",Tools!D55,"") ->  | JT7: =IF(Tools!D56<>"",Tools!D56,"") ->  | JU7: =IF(Tools!D57<>"",Tools!D57,"") ->  | JW7: Drop List Start Date | KE7: =IF(HideValues!A83<>"",HideValues!A83,"") ->  | KF7: =IF(HideValues!B83<>"",HideValues!B83,"") ->  | KG7: =IF(HideValues!C83<>"",HideValues!C83,"") ->  | KH7: =IF(HideValues!D83<>"",HideValues!D83,"") ->  | KI7: =IF(HideValues!E83<>"",HideValues!E83,"") ->  | KJ7: =IF(HideValues!F83<>"",HideValues!F83,"") ->  | KK7: =IF(HideValues!G83<>"",HideValues!G83,"") ->  | KL7: =IF(HideValues!H83<>"",HideValues!H83,"") ->  | KM7: =IF(HideValues!I83<>"",HideValues!I83,"") ->  | KN7: =IF(HideValues!J83<>"",HideValues!J83,"") ->  | KP7: CF Gantt Engine 1 | KY7: CF Budget | LF7: CF Round F | LM7: CF Flags | LT7: CF Type | LW7: 1 | LX7: 1 | LY7: 1 | LZ7: CF Gantt Engine 6 | MM7: CF Gantt Engine 2 | MV7: CF Gantt Engine 3 | NE7: CF Gantt Engine 4 | NN7: CF Gantt Engine 5 | NW7: CF Start | OD7: CF Duration | OL7: CF Dur. Type | PE7: Target Cell Date Picker User Form | PP7: Start_Date | PW7: Filter | QA7: FALSE | QB7: FALSE | QC7: FALSE | QD7: FALSE | QE7: FALSE | QF7: FALSE | QG7: FALSE | QH7: FALSE | QI7: FALSE | QJ7: FALSE | QK7: FALSE | QL7: FALSE | QM7: FALSE | QN7: FALSE | QO7: FALSE | QP7: FALSE | QQ7: FALSE | QR7: FALSE | QS7: FALSE | RH7: Task Trans. | RL7: Tache | RM7: Sous-tache | RN7: Jalon
Y8: ¶¶¶ Please Hide these rows. Do not delete. ¶¶¶ | AI8: Week-End Flag | AJ8: =IF(Work_D_Only_Bool,NETWORKDAYS.INTL(AJ9,AJ9,WE_Days,Tools!$B$10:$B$55),1) -> 1 | AK8: =IF(Work_D_Only_Bool,NETWORKDAYS.INTL(AK9,AK9,WE_Days,Tools!$B$10:$B$55),1) -> 1 | AL8: =IF(Work_D_Only_Bool,NETWORKDAYS.INTL(AL9,AL9,WE_Days,Tools!$B$10:$B$55),1) -> 1 | AM8: =IF(Work_D_Only_Bool,NETWORKDAYS.INTL(AM9,AM9,WE_Days,Tools!$B$10:$B$55),1) -> 1 | AN8: =IF(Work_D_Only_Bool,NETWORKDAYS.INTL(AN9,AN9,WE_Days,Tools!$B$10:$B$55),1) -> 1 | AO8: =IF(Work_D_Only_Bool,NETWORKDAYS.INTL(AO9,AO9,WE_Days,Tools!$B$10:$B$55),1) -> 1 | AP8: =IF(Work_D_Only_Bool,NETWORKDAYS.INTL(AP9,AP9,WE_Days,Tools!$B$10:$B$55),1) -> 1 | AQ8: =IF(Work_D_Only_Bool,NETWORKDAYS.INTL(AQ9,AQ9,WE_Days,Tools!$B$10:$B$55),1) -> 1 | AR8: =IF(Work_D_Only_Bool,NETWORKDAYS.INTL(AR9,AR9,WE_Days,Tools!$B$10:$B$55),1) -> 1 | AS8: =IF(Work_D_Only_Bool,NETWORKDAYS.INTL(AS9,AS9,WE_Days,Tools!$B$10:$B$55),1) -> 1 | AT8: =IF(Work_D_Only_Bool,NETWORKDAYS.INTL(AT9,AT9,WE_Days,Tools!$B$10:$B$55),1) -> 1 | AU8: =IF(Work_D_Only_Bool,NETWORKDAYS.INTL(AU9,AU9,WE_Days,Tools!$B$10:$B$55),1) -> 1 | AV8: =IF(Work_D_Only_Bool,NETWORKDAYS.INTL(AV9,AV9,WE_Days,Tools!$B$10:$B$55),1) -> 1 | AW8: =IF(Work_D_Only_Bool,NETWORKDAYS.INTL(AW9,AW9,WE_Days,Tools!$B$10:$B$55),1) -> 1 | AX8: =IF(Work_D_Only_Bool,NETWORKDAYS.INTL(AX9,AX9,WE_Days,Tools!$B$10:$B$55),1) -> 1 | AY8: =IF(Work_D_Only_Bool,NETWORKDAYS.INTL(AY9,AY9,WE_Days,Tools!$B$10:$B$55),1) -> 1 | AZ8: =IF(Work_D_Only_Bool,NETWORKDAYS.INTL(AZ9,AZ9,WE_Days,Tools!$B$10:$B$55),1) -> 1 | BA8: =IF(Work_D_Only_Bool,NETWORKDAYS.INTL(BA9,BA9,WE_Days,Tools!$B$10:$B$55),1) -> 1 | BB8: =IF(Work_D_Only_Bool,NETWORKDAYS.INTL(BB9,BB9,WE_Days,Tools!$B$10:$B$55),1) -> 1 | BC8: =IF(Work_D_Only_Bool,NETWORKDAYS.INTL(BC9,BC9,WE_Days,Tools!$B$10:$B$55),1) -> 1 | BD8: =IF(Work_D_Only_Bool,NETWORKDAYS.INTL(BD9,BD9,WE_Days,Tools!$B$10:$B$55),1) -> 1 | BE8: =IF(Work_D_Only_Bool,NETWORKDAYS.INTL(BE9,BE9,WE_Days,Tools!$B$10:$B$55),1) -> 1 | BF8: =IF(Work_D_Only_Bool,NETWORKDAYS.INTL(BF9,BF9,WE_Days,Tools!$B$10:$B$55),1) -> 1 | BG8: =IF(Work_D_Only_Bool,NETWORKDAYS.INTL(BG9,BG9,WE_Days,Tools!$B$10:$B$55),1) -> 1 | BH8: =IF(Work_D_Only_Bool,NETWORKDAYS.INTL(BH9,BH9,WE_Days,Tools!$B$10:$B$55),1) -> 1 | BI8: =IF(Work_D_Only_Bool,NETWORKDAYS.INTL(BI9,BI9,WE_Days,Tools!$B$10:$B$55),1) -> 1 | BJ8: =IF(Work_D_Only_Bool,NETWORKDAYS.INTL(BJ9,BJ9,WE_Days,Tools!$B$10:$B$55),1) -> 1 | BK8: =IF(Work_D_Only_Bool,NETWORKDAYS.INTL(BK9,BK9,WE_Days,Tools!$B$10:$B$55),1) -> 1 | BL8: =IF(Work_D_Only_Bool,NETWORKDAYS.INTL(BL9,BL9,WE_Days,Tools!$B$10:$B$55),1) -> 1 | BM8: =IF(Work_D_Only_Bool,NETWORKDAYS.INTL(BM9,BM9,WE_Days,Tools!$B$10:$B$55),1) -> 1 | BN8: =IF(Work_D_Only_Bool,NETWORKDAYS.INTL(BN9,BN9,WE_Days,Tools!$B$10:$B$55),1) -> 1 | BO8: =IF(Work_D_Only_Bool,NETWORKDAYS.INTL(BO9,BO9,WE_Days,Tools!$B$10:$B$55),1) -> 1 | BP8: =IF(Work_D_Only_Bool,NETWORKDAYS.INTL(BP9,BP9,WE_Days,Tools!$B$10:$B$55),1) -> 1 | BQ8: =IF(Work_D_Only_Bool,NETWORKDAYS.INTL(BQ9,BQ9,WE_Days,Tools!$B$10:$B$55),1) -> 1 | BR8: =IF(Work_D_Only_Bool,NETWORKDAYS.INTL(BR9,BR9,WE_Days,Tools!$B$10:$B$55),1) -> 1 | BS8: =IF(Work_D_Only_Bool,NETWORKDAYS.INTL(BS9,BS9,WE_Days,Tools!$B$10:$B$55),1) -> 1 | BT8: =IF(Work_D_Only_Bool,NETWORKDAYS.INTL(BT9,BT9,WE_Days,Tools!$B$10:$B$55),1) -> 1 | BU8: =IF(Work_D_Only_Bool,NETWORKDAYS.INTL(BU9,BU9,WE_Days,Tools!$B$10:$B$55),1) -> 1 | BV8: =IF(Work_D_Only_Bool,NETWORKDAYS.INTL(BV9,BV9,WE_Days,Tools!$B$10:$B$55),1) -> 1 | BW8: =IF(Work_D_Only_Bool,NETWORKDAYS.INTL(BW9,BW9,WE_Days,Tools!$B$10:$B$55),1) -> 1 | BX8: =IF(Work_D_Only_Bool,NETWORKDAYS.INTL(BX9,BX9,WE_Days,Tools!$B$10:$B$55),1) -> 1 | BY8: =IF(Work_D_Only_Bool,NETWORKDAYS.INTL(BY9,BY9,WE_Days,Tools!$B$10:$B$55),1) -> 1 | BZ8: =IF(Work_D_Only_Bool,NETWORKDAYS.INTL(BZ9,BZ9,WE_Days,Tools!$B$10:$B$55),1) -> 1 | CA8: =IF(Work_D_Only_Bool,NETWORKDAYS.INTL(CA9,CA9,WE_Days,Tools!$B$10:$B$55),1) -> 1 | CB8: =IF(Work_D_Only_Bool,NETWORKDAYS.INTL(CB9,CB9,WE_Days,Tools!$B$10:$B$55),1) -> 1 | CC8: =IF(Work_D_Only_Bool,NETWORKDAYS.INTL(CC9,CC9,WE_Days,Tools!$B$10:$B$55),1) -> 1 | CD8: =IF(Work_D_Only_Bool,NETWORKDAYS.INTL(CD9,CD9,WE_Days,Tools!$B$10:$B$55),1) -> 1 | CE8: =IF(Work_D_Only_Bool,NETWORKDAYS.INTL(CE9,CE9,WE_Days,Tools!$B$10:$B$55),1) -> 1 | CF8: =IF(Work_D_Only_Bool,NETWORKDAYS.INTL(CF9,CF9,WE_Days,Tools!$B$10:$B$55),1) -> 1 | CG8: =IF(Work_D_Only_Bool,NETWORKDAYS.INTL(CG9,CG9,WE_Days,Tools!$B$10:$B$55),1) -> 1 | CH8: =IF(Work_D_Only_Bool,NETWORKDAYS.INTL(CH9,CH9,WE_Days,Tools!$B$10:$B$55),1) -> 1 | CI8: =IF(Work_D_Only_Bool,NETWORKDAYS.INTL(CI9,CI9,WE_Days,Tools!$B$10:$B$55),1) -> 1 | CJ8: =IF(Work_D_Only_Bool,NETWORKDAYS.INTL(CJ9,CJ9,WE_Days,Tools!$B$10:$B$55),1) -> 1 | CK8: =IF(Work_D_Only_Bool,NETWORKDAYS.INTL(CK9,CK9,WE_Days,Tools!$B$10:$B$55),1) -> 1 | CL8: =IF(Work_D_Only_Bool,NETWORKDAYS.INTL(CL9,CL9,WE_Days,Tools!$B$10:$B$55),1) -> 1 | CM8: =IF(Work_D_Only_Bool,NETWORKDAYS.INTL(CM9,CM9,WE_Days,Tools!$B$10:$B$55),1) -> 1 | CN8: =IF(Work_D_Only_Bool,NETWORKDAYS.INTL(CN9,CN9,WE_Days,Tools!$B$10:$B$55),1) -> 1 | CO8: =IF(Work_D_Only_Bool,NETWORKDAYS.INTL(CO9,CO9,WE_Days,Tools!$B$10:$B$55),1) -> 1 | CP8: =IF(Work_D_Only_Bool,NETWORKDAYS.INTL(CP9,CP9,WE_Days,Tools!$B$10:$B$55),1) -> 1 | CQ8: =IF(Work_D_Only_Bool,NETWORKDAYS.INTL(CQ9,CQ9,WE_Days,Tools!$B$10:$B$55),1) -> 1 | CR8: =IF(Work_D_Only_Bool,NETWORKDAYS.INTL(CR9,CR9,WE_Days,Tools!$B$10:$B$55),1) -> 1 | CS8: =IF(Work_D_Only_Bool,NETWORKDAYS.INTL(CS9,CS9,WE_Days,Tools!$B$10:$B$55),1) -> 1 | CT8: =IF(Work_D_Only_Bool,NETWORKDAYS.INTL(CT9,CT9,WE_Days,Tools!$B$10:$B$55),1) -> 1 | CU8: =IF(Work_D_Only_Bool,NETWORKDAYS.INTL(CU9,CU9,WE_Days,Tools!$B$10:$B$55),1) -> 1 | CV8: =IF(Work_D_Only_Bool,NETWORKDAYS.INTL(CV9,CV9,WE_Days,Tools!$B$10:$B$55),1) -> 1 | CW8: =IF(Work_D_Only_Bool,NETWORKDAYS.INTL(CW9,CW9,WE_Days,Tools!$B$10:$B$55),1) -> 1 | CX8: =IF(Work_D_Only_Bool,NETWORKDAYS.INTL(CX9,CX9,WE_Days,Tools!$B$10:$B$55),1) -> 1 | CY8: =IF(Work_D_Only_Bool,NETWORKDAYS.INTL(CY9,CY9,WE_Days,Tools!$B$10:$B$55),1) -> 1 | CZ8: =IF(Work_D_Only_Bool,NETWORKDAYS.INTL(CZ9,CZ9,WE_Days,Tools!$B$10:$B$55),1) -> 1 | DA8: =IF(Work_D_Only_Bool,NETWORKDAYS.INTL(DA9,DA9,WE_Days,Tools!$B$10:$B$55),1) -> 1 | DB8: =IF(Work_D_Only_Bool,NETWORKDAYS.INTL(DB9,DB9,WE_Days,Tools!$B$10:$B$55),1) -> 1 | DC8: =IF(Work_D_Only_Bool,NETWORKDAYS.INTL(DC9,DC9,WE_Days,Tools!$B$10:$B$55),1) -> 1 | DD8: =IF(Work_D_Only_Bool,NETWORKDAYS.INTL(DD9,DD9,WE_Days,Tools!$B$10:$B$55),1) -> 1 | DE8: =IF(Work_D_Only_Bool,NETWORKDAYS.INTL(DE9,DE9,WE_Days,Tools!$B$10:$B$55),1) -> 1 | DF8: =IF(Work_D_Only_Bool,NETWORKDAYS.INTL(DF9,DF9,WE_Days,Tools!$B$10:$B$55),1) -> 1 | DG8: =IF(Work_D_Only_Bool,NETWORKDAYS.INTL(DG9,DG9,WE_Days,Tools!$B$10:$B$55),1) -> 1 | DH8: =IF(Work_D_Only_Bool,NETWORKDAYS.INTL(DH9,DH9,WE_Days,Tools!$B$10:$B$55),1) -> 1 | DI8: =IF(Work_D_Only_Bool,NETWORKDAYS.INTL(DI9,DI9,WE_Days,Tools!$B$10:$B$55),1) -> 1 | DJ8: =IF(Work_D_Only_Bool,NETWORKDAYS.INTL(DJ9,DJ9,WE_Days,Tools!$B$10:$B$55),1) -> 1 | DK8: =IF(Work_D_Only_Bool,NETWORKDAYS.INTL(DK9,DK9,WE_Days,Tools!$B$10:$B$55),1) -> 1 | DL8: =IF(Work_D_Only_Bool,NETWORKDAYS.INTL(DL9,DL9,WE_Days,Tools!$B$10:$B$55),1) -> 1 | DM8: =IF(Work_D_Only_Bool,NETWORKDAYS.INTL(DM9,DM9,WE_Days,Tools!$B$10:$B$55),1) -> 1 | DN8: =IF(Work_D_Only_Bool,NETWORKDAYS.INTL(DN9,DN9,WE_Days,Tools!$B$10:$B$55),1) -> 1 | DO8: =IF(Work_D_Only_Bool,NETWORKDAYS.INTL(DO9,DO9,WE_Days,Tools!$B$10:$B$55),1) -> 1 | DP8: =IF(Work_D_Only_Bool,NETWORKDAYS.INTL(DP9,DP9,WE_Days,Tools!$B$10:$B$55),1) -> 1 | DQ8: =IF(Work_D_Only_Bool,NETWORKDAYS.INTL(DQ9,DQ9,WE_Days,Tools!$B$10:$B$55),1) -> 1 | DR8: =IF(Work_D_Only_Bool,NETWORKDAYS.INTL(DR9,DR9,WE_Days,Tools!$B$10:$B$55),1) -> 1 | DS8: =IF(Work_D_Only_Bool,NETWORKDAYS.INTL(DS9,DS9,WE_Days,Tools!$B$10:$B$55),1) -> 1 | DT8: =IF(Work_D_Only_Bool,NETWORKDAYS.INTL(DT9,DT9,WE_Days,Tools!$B$10:$B$55),1) -> 1 | DU8: =IF(Work_D_Only_Bool,NETWORKDAYS.INTL(DU9,DU9,WE_Days,Tools!$B$10:$B$55),1) -> 1 | DV8: =IF(Work_D_Only_Bool,NETWORKDAYS.INTL(DV9,DV9,WE_Days,Tools!$B$10:$B$55),1) -> 1 | DW8: =IF(Work_D_Only_Bool,NETWORKDAYS.INTL(DW9,DW9,WE_Days,Tools!$B$10:$B$55),1) -> 1 | DX8: =IF(Work_D_Only_Bool,NETWORKDAYS.INTL(DX9,DX9,WE_Days,Tools!$B$10:$B$55),1) -> 1 | DY8: =IF(Work_D_Only_Bool,NETWORKDAYS.INTL(DY9,DY9,WE_Days,Tools!$B$10:$B$55),1) -> 1 | DZ8: =IF(Work_D_Only_Bool,NETWORKDAYS.INTL(DZ9,DZ9,WE_Days,Tools!$B$10:$B$55),1) -> 1 | EA8: =IF(Work_D_Only_Bool,NETWORKDAYS.INTL(EA9,EA9,WE_Days,Tools!$B$10:$B$55),1) -> 1 | EB8: =IF(Work_D_Only_Bool,NETWORKDAYS.INTL(EB9,EB9,WE_Days,Tools!$B$10:$B$55),1) -> 1 | EC8: =IF(Work_D_Only_Bool,NETWORKDAYS.INTL(EC9,EC9,WE_Days,Tools!$B$10:$B$55),1) -> 1 | ED8: =IF(Work_D_Only_Bool,NETWORKDAYS.INTL(ED9,ED9,WE_Days,Tools!$B$10:$B$55),1) -> 1 | EE8: =IF(Work_D_Only_Bool,NETWORKDAYS.INTL(EE9,EE9,WE_Days,Tools!$B$10:$B$55),1) -> 1 | EF8: =IF(Work_D_Only_Bool,NETWORKDAYS.INTL(EF9,EF9,WE_Days,Tools!$B$10:$B$55),1) -> 1 | EG8: =IF(Work_D_Only_Bool,NETWORKDAYS.INTL(EG9,EG9,WE_Days,Tools!$B$10:$B$55),1) -> 1 | EH8: =IF(Work_D_Only_Bool,NETWORKDAYS.INTL(EH9,EH9,WE_Days,Tools!$B$10:$B$55),1) -> 1 | EI8: =IF(Work_D_Only_Bool,NETWORKDAYS.INTL(EI9,EI9,WE_Days,Tools!$B$10:$B$55),1) -> 1 | EJ8: =IF(Work_D_Only_Bool,NETWORKDAYS.INTL(EJ9,EJ9,WE_Days,Tools!$B$10:$B$55),1) -> 1 | EK8: =IF(Work_D_Only_Bool,NETWORKDAYS.INTL(EK9,EK9,WE_Days,Tools!$B$10:$B$55),1) -> 1 | EL8: =IF(Work_D_Only_Bool,NETWORKDAYS.INTL(EL9,EL9,WE_Days,Tools!$B$10:$B$55),1) -> 1 | EM8: =IF(Work_D_Only_Bool,NETWORKDAYS.INTL(EM9,EM9,WE_Days,Tools!$B$10:$B$55),1) -> 1 | EN8: =IF(Work_D_Only_Bool,NETWORKDAYS.INTL(EN9,EN9,WE_Days,Tools!$B$10:$B$55),1) -> 1 | EO8: =IF(Work_D_Only_Bool,NETWORKDAYS.INTL(EO9,EO9,WE_Days,Tools!$B$10:$B$55),1) -> 1 | EP8: =IF(Work_D_Only_Bool,NETWORKDAYS.INTL(EP9,EP9,WE_Days,Tools!$B$10:$B$55),1) -> 1 | EQ8: =IF(Work_D_Only_Bool,NETWORKDAYS.INTL(EQ9,EQ9,WE_Days,Tools!$B$10:$B$55),1) -> 1 | ER8: =IF(Work_D_Only_Bool,NETWORKDAYS.INTL(ER9,ER9,WE_Days,Tools!$B$10:$B$55),1) -> 1 | ES8: =IF(Work_D_Only_Bool,NETWORKDAYS.INTL(ES9,ES9,WE_Days,Tools!$B$10:$B$55),1) -> 1 | ET8: =IF(Work_D_Only_Bool,NETWORKDAYS.INTL(ET9,ET9,WE_Days,Tools!$B$10:$B$55),1) -> 1 | EU8: =IF(Work_D_Only_Bool,NETWORKDAYS.INTL(EU9,EU9,WE_Days,Tools!$B$10:$B$55),1) -> 1 | EV8: =IF(Work_D_Only_Bool,NETWORKDAYS.INTL(EV9,EV9,WE_Days,Tools!$B$10:$B$55),1) -> 1 | EW8: =IF(Work_D_Only_Bool,NETWORKDAYS.INTL(EW9,EW9,WE_Days,Tools!$B$10:$B$55),1) -> 1 | EX8: =IF(Work_D_Only_Bool,NETWORKDAYS.INTL(EX9,EX9,WE_Days,Tools!$B$10:$B$55),1) -> 1 | EY8: =IF(Work_D_Only_Bool,NETWORKDAYS.INTL(EY9,EY9,WE_Days,Tools!$B$10:$B$55),1) -> 1 | EZ8: =IF(Work_D_Only_Bool,NETWORKDAYS.INTL(EZ9,EZ9,WE_Days,Tools!$B$10:$B$55),1) -> 1 | FA8: =IF(Work_D_Only_Bool,NETWORKDAYS.INTL(FA9,FA9,WE_Days,Tools!$B$10:$B$55),1) -> 1 | FB8: =IF(Work_D_Only_Bool,NETWORKDAYS.INTL(FB9,FB9,WE_Days,Tools!$B$10:$B$55),1) -> 1 | FC8: =IF(Work_D_Only_Bool,NETWORKDAYS.INTL(FC9,FC9,WE_Days,Tools!$B$10:$B$55),1) -> 1 | FD8: =IF(Work_D_Only_Bool,NETWORKDAYS.INTL(FD9,FD9,WE_Days,Tools!$B$10:$B$55),1) -> 1 | FE8: =IF(Work_D_Only_Bool,NETWORKDAYS.INTL(FE9,FE9,WE_Days,Tools!$B$10:$B$55),1) -> 1 | FF8: =IF(Work_D_Only_Bool,NETWORKDAYS.INTL(FF9,FF9,WE_Days,Tools!$B$10:$B$55),1) -> 1 | FG8: =IF(Work_D_Only_Bool,NETWORKDAYS.INTL(FG9,FG9,WE_Days,Tools!$B$10:$B$55),1) -> 1 | FH8: =IF(Work_D_Only_Bool,NETWORKDAYS.INTL(FH9,FH9,WE_Days,Tools!$B$10:$B$55),1) -> 1 | FI8: =IF(Work_D_Only_Bool,NETWORKDAYS.INTL(FI9,FI9,WE_Days,Tools!$B$10:$B$55),1) -> 1 | FJ8: =IF(Work_D_Only_Bool,NETWORKDAYS.INTL(FJ9,FJ9,WE_Days,Tools!$B$10:$B$55),1) -> 1 | FK8: =IF(Work_D_Only_Bool,NETWORKDAYS.INTL(FK9,FK9,WE_Days,Tools!$B$10:$B$55),1) -> 1 | FL8: =IF(Work_D_Only_Bool,NETWORKDAYS.INTL(FL9,FL9,WE_Days,Tools!$B$10:$B$55),1) -> 1 | FM8: =IF(Work_D_Only_Bool,NETWORKDAYS.INTL(FM9,FM9,WE_Days,Tools!$B$10:$B$55),1) -> 1 | FN8: =IF(Work_D_Only_Bool,NETWORKDAYS.INTL(FN9,FN9,WE_Days,Tools!$B$10:$B$55),1) -> 1 | FO8: =IF(Work_D_Only_Bool,NETWORKDAYS.INTL(FO9,FO9,WE_Days,Tools!$B$10:$B$55),1) -> 1 | FP8: =IF(Work_D_Only_Bool,NETWORKDAYS.INTL(FP9,FP9,WE_Days,Tools!$B$10:$B$55),1) -> 1 | FQ8: =IF(Work_D_Only_Bool,NETWORKDAYS.INTL(FQ9,FQ9,WE_Days,Tools!$B$10:$B$55),1) -> 1 | FR8: =IF(Work_D_Only_Bool,NETWORKDAYS.INTL(FR9,FR9,WE_Days,Tools!$B$10:$B$55),1) -> 1 | FS8: =IF(Work_D_Only_Bool,NETWORKDAYS.INTL(FS9,FS9,WE_Days,Tools!$B$10:$B$55),1) -> 1 | FT8: =IF(Work_D_Only_Bool,NETWORKDAYS.INTL(FT9,FT9,WE_Days,Tools!$B$10:$B$55),1) -> 1 | FU8: =IF(Work_D_Only_Bool,NETWORKDAYS.INTL(FU9,FU9,WE_Days,Tools!$B$10:$B$55),1) -> 1 | FV8: =IF(Work_D_Only_Bool,NETWORKDAYS.INTL(FV9,FV9,WE_Days,Tools!$B$10:$B$55),1) -> 1 | FW8: =IF(Work_D_Only_Bool,NETWORKDAYS.INTL(FW9,FW9,WE_Days,Tools!$B$10:$B$55),1) -> 1 | FX8: =IF(Work_D_Only_Bool,NETWORKDAYS.INTL(FX9,FX9,WE_Days,Tools!$B$10:$B$55),1) -> 1 | FY8: =IF(Work_D_Only_Bool,NETWORKDAYS.INTL(FY9,FY9,WE_Days,Tools!$B$10:$B$55),1) -> 1 | FZ8: =IF(Work_D_Only_Bool,NETWORKDAYS.INTL(FZ9,FZ9,WE_Days,Tools!$B$10:$B$55),1) -> 1 | GA8: =IF(Work_D_Only_Bool,NETWORKDAYS.INTL(GA9,GA9,WE_Days,Tools!$B$10:$B$55),1) -> 1 | GB8: =IF(Work_D_Only_Bool,NETWORKDAYS.INTL(GB9,GB9,WE_Days,Tools!$B$10:$B$55),1) -> 1 | GC8: =IF(Work_D_Only_Bool,NETWORKDAYS.INTL(GC9,GC9,WE_Days,Tools!$B$10:$B$55),1) -> 1 | GD8: =IF(Work_D_Only_Bool,NETWORKDAYS.INTL(GD9,GD9,WE_Days,Tools!$B$10:$B$55),1) -> 1 | GE8: =IF(Work_D_Only_Bool,NETWORKDAYS.INTL(GE9,GE9,WE_Days,Tools!$B$10:$B$55),1) -> 1 | GF8: =IF(Work_D_Only_Bool,NETWORKDAYS.INTL(GF9,GF9,WE_Days,Tools!$B$10:$B$55),1) -> 1 | GG8: =IF(Work_D_Only_Bool,NETWORKDAYS.INTL(GG9,GG9,WE_Days,Tools!$B$10:$B$55),1) -> 1 | GH8: =IF(Work_D_Only_Bool,NETWORKDAYS.INTL(GH9,GH9,WE_Days,Tools!$B$10:$B$55),1) -> 1 | GI8: =IF(Work_D_Only_Bool,NETWORKDAYS.INTL(GI9,GI9,WE_Days,Tools!$B$10:$B$55),1) -> 1 | GJ8: =IF(Work_D_Only_Bool,NETWORKDAYS.INTL(GJ9,GJ9,WE_Days,Tools!$B$10:$B$55),1) -> 1 | GK8: =IF(Work_D_Only_Bool,NETWORKDAYS.INTL(GK9,GK9,WE_Days,Tools!$B$10:$B$55),1) -> 1 | GL8: =IF(Work_D_Only_Bool,NETWORKDAYS.INTL(GL9,GL9,WE_Days,Tools!$B$10:$B$55),1) -> 1 | GM8: =IF(Work_D_Only_Bool,NETWORKDAYS.INTL(GM9,GM9,WE_Days,Tools!$B$10:$B$55),1) -> 1 | GN8: =IF(Work_D_Only_Bool,NETWORKDAYS.INTL(GN9,GN9,WE_Days,Tools!$B$10:$B$55),1) -> 1 | GO8: =IF(Work_D_Only_Bool,NETWORKDAYS.INTL(GO9,GO9,WE_Days,Tools!$B$10:$B$55),1) -> 1 | GP8: =IF(Work_D_Only_Bool,NETWORKDAYS.INTL(GP9,GP9,WE_Days,Tools!$B$10:$B$55),1) -> 1 | GQ8: =IF(Work_D_Only_Bool,NETWORKDAYS.INTL(GQ9,GQ9,WE_Days,Tools!$B$10:$B$55),1) -> 1 | GR8: =IF(Work_D_Only_Bool,NETWORKDAYS.INTL(GR9,GR9,WE_Days,Tools!$B$10:$B$55),1) -> 1 | GS8: =IF(Work_D_Only_Bool,NETWORKDAYS.INTL(GS9,GS9,WE_Days,Tools!$B$10:$B$55),1) -> 1 | GT8: =IF(Work_D_Only_Bool,NETWORKDAYS.INTL(GT9,GT9,WE_Days,Tools!$B$10:$B$55),1) -> 1 | GU8: =IF(Work_D_Only_Bool,NETWORKDAYS.INTL(GU9,GU9,WE_Days,Tools!$B$10:$B$55),1) -> 1 | GV8: =IF(Work_D_Only_Bool,NETWORKDAYS.INTL(GV9,GV9,WE_Days,Tools!$B$10:$B$55),1) -> 1 | GW8: =IF(Work_D_Only_Bool,NETWORKDAYS.INTL(GW9,GW9,WE_Days,Tools!$B$10:$B$55),1) -> 1 | GX8: =IF(Work_D_Only_Bool,NETWORKDAYS.INTL(GX9,GX9,WE_Days,Tools!$B$10:$B$55),1) -> 1 | GY8: =IF(Work_D_Only_Bool,NETWORKDAYS.INTL(GY9,GY9,WE_Days,Tools!$B$10:$B$55),1) -> 1 | GZ8: =IF(Work_D_Only_Bool,NETWORKDAYS.INTL(GZ9,GZ9,WE_Days,Tools!$B$10:$B$55),1) -> 1 | HA8: =IF(Work_D_Only_Bool,NETWORKDAYS.INTL(HA9,HA9,WE_Days,Tools!$B$10:$B$55),1) -> 1 | HB8: =IF(Work_D_Only_Bool,NETWORKDAYS.INTL(HB9,HB9,WE_Days,Tools!$B$10:$B$55),1) -> 1 | HC8: =IF(Work_D_Only_Bool,NETWORKDAYS.INTL(HC9,HC9,WE_Days,Tools!$B$10:$B$55),1) -> 1 | HD8: =IF(Work_D_Only_Bool,NETWORKDAYS.INTL(HD9,HD9,WE_Days,Tools!$B$10:$B$55),1) -> 1 | HE8: =IF(Work_D_Only_Bool,NETWORKDAYS.INTL(HE9,HE9,WE_Days,Tools!$B$10:$B$55),1) -> 1 | HF8: =IF(Work_D_Only_Bool,NETWORKDAYS.INTL(HF9,HF9,WE_Days,Tools!$B$10:$B$55),1) -> 1 | HG8: =IF(Work_D_Only_Bool,NETWORKDAYS.INTL(HG9,HG9,WE_Days,Tools!$B$10:$B$55),1) -> 1 | HH8: =IF(Work_D_Only_Bool,NETWORKDAYS.INTL(HH9,HH9,WE_Days,Tools!$B$10:$B$55),1) -> 1 | HI8: =IF(Work_D_Only_Bool,NETWORKDAYS.INTL(HI9,HI9,WE_Days,Tools!$B$10:$B$55),1) -> 1 | HJ8: =IF(Work_D_Only_Bool,NETWORKDAYS.INTL(HJ9,HJ9,WE_Days,Tools!$B$10:$B$55),1) -> 1 | HK8: =IF(Work_D_Only_Bool,NETWORKDAYS.INTL(HK9,HK9,WE_Days,Tools!$B$10:$B$55),1) -> 1 | HL8: =IF(Work_D_Only_Bool,NETWORKDAYS.INTL(HL9,HL9,WE_Days,Tools!$B$10:$B$55),1) -> 1 | HM8: =IF(Work_D_Only_Bool,NETWORKDAYS.INTL(HM9,HM9,WE_Days,Tools!$B$10:$B$55),1) -> 1 | HN8: =IF(Work_D_Only_Bool,NETWORKDAYS.INTL(HN9,HN9,WE_Days,Tools!$B$10:$B$55),1) -> 1 | HO8: =IF(Work_D_Only_Bool,NETWORKDAYS.INTL(HO9,HO9,WE_Days,Tools!$B$10:$B$55),1) -> 1 | HP8: =IF(Work_D_Only_Bool,NETWORKDAYS.INTL(HP9,HP9,WE_Days,Tools!$B$10:$B$55),1) -> 1 | HQ8: =IF(Work_D_Only_Bool,NETWORKDAYS.INTL(HQ9,HQ9,WE_Days,Tools!$B$10:$B$55),1) -> 1 | HR8: =IF(Work_D_Only_Bool,NETWORKDAYS.INTL(HR9,HR9,WE_Days,Tools!$B$10:$B$55),1) -> 1 | HS8: =IF(Work_D_Only_Bool,NETWORKDAYS.INTL(HS9,HS9,WE_Days,Tools!$B$10:$B$55),1) -> 1 | HT8: =IF(Work_D_Only_Bool,NETWORKDAYS.INTL(HT9,HT9,WE_Days,Tools!$B$10:$B$55),1) -> 1 | HU8: =IF(Work_D_Only_Bool,NETWORKDAYS.INTL(HU9,HU9,WE_Days,Tools!$B$10:$B$55),1) -> 1 | HV8: =IF(Work_D_Only_Bool,NETWORKDAYS.INTL(HV9,HV9,WE_Days,Tools!$B$10:$B$55),1) -> 1 | HW8: =IF(Work_D_Only_Bool,NETWORKDAYS.INTL(HW9,HW9,WE_Days,Tools!$B$10:$B$55),1) -> 1 | HX8: =IF(Work_D_Only_Bool,NETWORKDAYS.INTL(HX9,HX9,WE_Days,Tools!$B$10:$B$55),1) -> 1 | HY8: =IF(Work_D_Only_Bool,NETWORKDAYS.INTL(HY9,HY9,WE_Days,Tools!$B$10:$B$55),1) -> 1 | HZ8: =IF(Work_D_Only_Bool,NETWORKDAYS.INTL(HZ9,HZ9,WE_Days,Tools!$B$10:$B$55),1) -> 1 | IA8: =IF(Work_D_Only_Bool,NETWORKDAYS.INTL(IA9,IA9,WE_Days,Tools!$B$10:$B$55),1) -> 1 | IB8: =IF(Work_D_Only_Bool,NETWORKDAYS.INTL(IB9,IB9,WE_Days,Tools!$B$10:$B$55),1) -> 1 | IC8: =IF(Work_D_Only_Bool,NETWORKDAYS.INTL(IC9,IC9,WE_Days,Tools!$B$10:$B$55),1) -> 1 | ID8: =IF(Work_D_Only_Bool,NETWORKDAYS.INTL(ID9,ID9,WE_Days,Tools!$B$10:$B$55),1) -> 1 | IE8: =IF(Work_D_Only_Bool,NETWORKDAYS.INTL(IE9,IE9,WE_Days,Tools!$B$10:$B$55),1) -> 1 | IF8: =IF(Work_D_Only_Bool,NETWORKDAYS.INTL(IF9,IF9,WE_Days,Tools!$B$10:$B$55),1) -> 1 | IG8: =IF(Work_D_Only_Bool,NETWORKDAYS.INTL(IG9,IG9,WE_Days,Tools!$B$10:$B$55),1) -> 1 | IH8: =IF(Work_D_Only_Bool,NETWORKDAYS.INTL(IH9,IH9,WE_Days,Tools!$B$10:$B$55),1) -> 1 | II8: =IF(Work_D_Only_Bool,NETWORKDAYS.INTL(II9,II9,WE_Days,Tools!$B$10:$B$55),1) -> 1 | IJ8: =IF(Work_D_Only_Bool,NETWORKDAYS.INTL(IJ9,IJ9,WE_Days,Tools!$B$10:$B$55),1) -> 1 | IK8: =IF(Work_D_Only_Bool,NETWORKDAYS.INTL(IK9,IK9,WE_Days,Tools!$B$10:$B$55),1) -> 1 | IL8: =IF(Work_D_Only_Bool,NETWORKDAYS.INTL(IL9,IL9,WE_Days,Tools!$B$10:$B$55),1) -> 1 | IM8: =IF(Work_D_Only_Bool,NETWORKDAYS.INTL(IM9,IM9,WE_Days,Tools!$B$10:$B$55),1) -> 1 | IN8: =IF(Work_D_Only_Bool,NETWORKDAYS.INTL(IN9,IN9,WE_Days,Tools!$B$10:$B$55),1) -> 1 | IO8: =IF(Work_D_Only_Bool,NETWORKDAYS.INTL(IO9,IO9,WE_Days,Tools!$B$10:$B$55),1) -> 1 | IP8: =IF(Work_D_Only_Bool,NETWORKDAYS.INTL(IP9,IP9,WE_Days,Tools!$B$10:$B$55),1) -> 1 | IQ8: =IF(Work_D_Only_Bool,NETWORKDAYS.INTL(IQ9,IQ9,WE_Days,Tools!$B$10:$B$55),1) -> 1 | IR8: =IF(Work_D_Only_Bool,NETWORKDAYS.INTL(IR9,IR9,WE_Days,Tools!$B$10:$B$55),1) -> 1 | IS8: =IF(Work_D_Only_Bool,NETWORKDAYS.INTL(IS9,IS9,WE_Days,Tools!$B$10:$B$55),1) -> 1 | IT8: =IF(Work_D_Only_Bool,NETWORKDAYS.INTL(IT9,IT9,WE_Days,Tools!$B$10:$B$55),1) -> 1 | IU8: =IF(Work_D_Only_Bool,NETWORKDAYS.INTL(IU9,IU9,WE_Days,Tools!$B$10:$B$55),1) -> 1 | IV8: =IF(Work_D_Only_Bool,NETWORKDAYS.INTL(IV9,IV9,WE_Days,Tools!$B$10:$B$55),1) -> 1 | IW8: =IF(Work_D_Only_Bool,NETWORKDAYS.INTL(IW9,IW9,WE_Days,Tools!$B$10:$B$55),1) -> 1 | IX8: =IF(Work_D_Only_Bool,NETWORKDAYS.INTL(IX9,IX9,WE_Days,Tools!$B$10:$B$55),1) -> 1 | IY8: =IF(Work_D_Only_Bool,NETWORKDAYS.INTL(IY9,IY9,WE_Days,Tools!$B$10:$B$55),1) -> 1 | IZ8: =IF(Work_D_Only_Bool,NETWORKDAYS.INTL(IZ9,IZ9,WE_Days,Tools!$B$10:$B$55),1) -> 1 | JA8: =IF(Work_D_Only_Bool,NETWORKDAYS.INTL(JA9,JA9,WE_Days,Tools!$B$10:$B$55),1) -> 1 | JB8: =IF(Work_D_Only_Bool,NETWORKDAYS.INTL(JB9,JB9,WE_Days,Tools!$B$10:$B$55),1) -> 1 | JC8: =IF(Work_D_Only_Bool,NETWORKDAYS.INTL(JC9,JC9,WE_Days,Tools!$B$10:$B$55),1) -> 1 | JD8: =IF(Work_D_Only_Bool,NETWORKDAYS.INTL(JD9,JD9,WE_Days,Tools!$B$10:$B$55),1) -> 1 | JE8: =IF(Work_D_Only_Bool,NETWORKDAYS.INTL(JE9,JE9,WE_Days,Tools!$B$10:$B$55),1) -> 1 | JF8: =IF(Work_D_Only_Bool,NETWORKDAYS.INTL(JF9,JF9,WE_Days,Tools!$B$10:$B$55),1) -> 1 | JG8: =IF(Work_D_Only_Bool,NETWORKDAYS.INTL(JG9,JG9,WE_Days,Tools!$B$10:$B$55),1) -> 1 | JH8: =IF(Work_D_Only_Bool,NETWORKDAYS.INTL(JH9,JH9,WE_Days,Tools!$B$10:$B$55),1) -> 1 | JI8: =IF(Work_D_Only_Bool,NETWORKDAYS.INTL(JI9,JI9,WE_Days,Tools!$B$10:$B$55),1) -> 1 | JJ8: =IF(Work_D_Only_Bool,NETWORKDAYS.INTL(JJ9,JJ9,WE_Days,Tools!$B$10:$B$55),1) -> 1 | JK8: =IF(Work_D_Only_Bool,NETWORKDAYS.INTL(JK9,JK9,WE_Days,Tools!$B$10:$B$55),1) -> 1 | JL8: =IF(Work_D_Only_Bool,NETWORKDAYS.INTL(JL9,JL9,WE_Days,Tools!$B$10:$B$55),1) -> 1 | JM8: =IF(Work_D_Only_Bool,NETWORKDAYS.INTL(JM9,JM9,WE_Days,Tools!$B$10:$B$55),1) -> 1 | JN8: =IF(Work_D_Only_Bool,NETWORKDAYS.INTL(JN9,JN9,WE_Days,Tools!$B$10:$B$55),1) -> 1 | JO8: =IF(Work_D_Only_Bool,NETWORKDAYS.INTL(JO9,JO9,WE_Days,Tools!$B$10:$B$55),1) -> 1 | JP8: =IF(Work_D_Only_Bool,NETWORKDAYS.INTL(JP9,JP9,WE_Days,Tools!$B$10:$B$55),1) -> 1 | JQ8: =IF(Work_D_Only_Bool,NETWORKDAYS.INTL(JQ9,JQ9,WE_Days,Tools!$B$10:$B$55),1) -> 1 | JR8: =IF(Work_D_Only_Bool,NETWORKDAYS.INTL(JR9,JR9,WE_Days,Tools!$B$10:$B$55),1) -> 1 | JS8: =IF(Work_D_Only_Bool,NETWORKDAYS.INTL(JS9,JS9,WE_Days,Tools!$B$10:$B$55),1) -> 1 | JT8: =IF(Work_D_Only_Bool,NETWORKDAYS.INTL(JT9,JT9,WE_Days,Tools!$B$10:$B$55),1) -> 1 | JU8: =IF(Work_D_Only_Bool,NETWORKDAYS.INTL(JU9,JU9,WE_Days,Tools!$B$10:$B$55),1) -> 1 | JV8: =IF(Work_D_Only_Bool,NETWORKDAYS.INTL(JV9,JV9,WE_Days,Tools!$B$10:$B$55),1) -> 1 | JW8: =IF(Work_D_Only_Bool,NETWORKDAYS.INTL(JW9,JW9,WE_Days,Tools!$B$10:$B$55),1) -> 1 | JX8: =IF(Work_D_Only_Bool,NETWORKDAYS.INTL(JX9,JX9,WE_Days,Tools!$B$10:$B$55),1) -> 1 | JY8: =IF(Work_D_Only_Bool,NETWORKDAYS.INTL(JY9,JY9,WE_Days,Tools!$B$10:$B$55),1) -> 1 | JZ8: =IF(Work_D_Only_Bool,NETWORKDAYS.INTL(JZ9,JZ9,WE_Days,Tools!$B$10:$B$55),1) -> 1 | KA8: =IF(Work_D_Only_Bool,NETWORKDAYS.INTL(KA9,KA9,WE_Days,Tools!$B$10:$B$55),1) -> 1 | KB8: =IF(Work_D_Only_Bool,NETWORKDAYS.INTL(KB9,KB9,WE_Days,Tools!$B$10:$B$55),1) -> 1 | KC8: =IF(Work_D_Only_Bool,NETWORKDAYS.INTL(KC9,KC9,WE_Days,Tools!$B$10:$B$55),1) -> 1 | KD8: =IF(Work_D_Only_Bool,NETWORKDAYS.INTL(KD9,KD9,WE_Days,Tools!$B$10:$B$55),1) -> 1 | KE8: =IF(Work_D_Only_Bool,NETWORKDAYS.INTL(KE9,KE9,WE_Days,Tools!$B$10:$B$55),1) -> 1 | KF8: =IF(Work_D_Only_Bool,NETWORKDAYS.INTL(KF9,KF9,WE_Days,Tools!$B$10:$B$55),1) -> 1 | KG8: =IF(Work_D_Only_Bool,NETWORKDAYS.INTL(KG9,KG9,WE_Days,Tools!$B$10:$B$55),1) -> 1 | KH8: =IF(Work_D_Only_Bool,NETWORKDAYS.INTL(KH9,KH9,WE_Days,Tools!$B$10:$B$55),1) -> 1 | KI8: =IF(Work_D_Only_Bool,NETWORKDAYS.INTL(KI9,KI9,WE_Days,Tools!$B$10:$B$55),1) -> 1 | KJ8: =IF(Work_D_Only_Bool,NETWORKDAYS.INTL(KJ9,KJ9,WE_Days,Tools!$B$10:$B$55),1) -> 1 | KK8: =IF(Work_D_Only_Bool,NETWORKDAYS.INTL(KK9,KK9,WE_Days,Tools!$B$10:$B$55),1) -> 1 | KL8: =IF(Work_D_Only_Bool,NETWORKDAYS.INTL(KL9,KL9,WE_Days,Tools!$B$10:$B$55),1) -> 1 | KM8: =IF(Work_D_Only_Bool,NETWORKDAYS.INTL(KM9,KM9,WE_Days,Tools!$B$10:$B$55),1) -> 1 | KN8: =IF(Work_D_Only_Bool,NETWORKDAYS.INTL(KN9,KN9,WE_Days,Tools!$B$10:$B$55),1) -> 1 | KO8: =IF(Work_D_Only_Bool,NETWORKDAYS.INTL(KO9,KO9,WE_Days,Tools!$B$10:$B$55),1) -> 1 | KP8: =IF(Work_D_Only_Bool,NETWORKDAYS.INTL(KP9,KP9,WE_Days,Tools!$B$10:$B$55),1) -> 1 | KQ8: =IF(Work_D_Only_Bool,NETWORKDAYS.INTL(KQ9,KQ9,WE_Days,Tools!$B$10:$B$55),1) -> 1 | KR8: =IF(Work_D_Only_Bool,NETWORKDAYS.INTL(KR9,KR9,WE_Days,Tools!$B$10:$B$55),1) -> 1 | KS8: =IF(Work_D_Only_Bool,NETWORKDAYS.INTL(KS9,KS9,WE_Days,Tools!$B$10:$B$55),1) -> 1 | KT8: =IF(Work_D_Only_Bool,NETWORKDAYS.INTL(KT9,KT9,WE_Days,Tools!$B$10:$B$55),1) -> 1 | KU8: =IF(Work_D_Only_Bool,NETWORKDAYS.INTL(KU9,KU9,WE_Days,Tools!$B$10:$B$55),1) -> 1 | KV8: =IF(Work_D_Only_Bool,NETWORKDAYS.INTL(KV9,KV9,WE_Days,Tools!$B$10:$B$55),1) -> 1 | KW8: =IF(Work_D_Only_Bool,NETWORKDAYS.INTL(KW9,KW9,WE_Days,Tools!$B$10:$B$55),1) -> 1 | KX8: =IF(Work_D_Only_Bool,NETWORKDAYS.INTL(KX9,KX9,WE_Days,Tools!$B$10:$B$55),1) -> 1 | KY8: =IF(Work_D_Only_Bool,NETWORKDAYS.INTL(KY9,KY9,WE_Days,Tools!$B$10:$B$55),1) -> 1 | KZ8: =IF(Work_D_Only_Bool,NETWORKDAYS.INTL(KZ9,KZ9,WE_Days,Tools!$B$10:$B$55),1) -> 1 | LA8: =IF(Work_D_Only_Bool,NETWORKDAYS.INTL(LA9,LA9,WE_Days,Tools!$B$10:$B$55),1) -> 1 | LB8: =IF(Work_D_Only_Bool,NETWORKDAYS.INTL(LB9,LB9,WE_Days,Tools!$B$10:$B$55),1) -> 1 | LC8: =IF(Work_D_Only_Bool,NETWORKDAYS.INTL(LC9,LC9,WE_Days,Tools!$B$10:$B$55),1) -> 1 | LD8: =IF(Work_D_Only_Bool,NETWORKDAYS.INTL(LD9,LD9,WE_Days,Tools!$B$10:$B$55),1) -> 1 | LE8: =IF(Work_D_Only_Bool,NETWORKDAYS.INTL(LE9,LE9,WE_Days,Tools!$B$10:$B$55),1) -> 1 | LF8: =IF(Work_D_Only_Bool,NETWORKDAYS.INTL(LF9,LF9,WE_Days,Tools!$B$10:$B$55),1) -> 1 | LG8: =IF(Work_D_Only_Bool,NETWORKDAYS.INTL(LG9,LG9,WE_Days,Tools!$B$10:$B$55),1) -> 1 | LH8: =IF(Work_D_Only_Bool,NETWORKDAYS.INTL(LH9,LH9,WE_Days,Tools!$B$10:$B$55),1) -> 1 | LI8: =IF(Work_D_Only_Bool,NETWORKDAYS.INTL(LI9,LI9,WE_Days,Tools!$B$10:$B$55),1) -> 1 | LJ8: =IF(Work_D_Only_Bool,NETWORKDAYS.INTL(LJ9,LJ9,WE_Days,Tools!$B$10:$B$55),1) -> 1 | LK8: =IF(Work_D_Only_Bool,NETWORKDAYS.INTL(LK9,LK9,WE_Days,Tools!$B$10:$B$55),1) -> 1 | LL8: =IF(Work_D_Only_Bool,NETWORKDAYS.INTL(LL9,LL9,WE_Days,Tools!$B$10:$B$55),1) -> 1 | LM8: =IF(Work_D_Only_Bool,NETWORKDAYS.INTL(LM9,LM9,WE_Days,Tools!$B$10:$B$55),1) -> 1 | LN8: =IF(Work_D_Only_Bool,NETWORKDAYS.INTL(LN9,LN9,WE_Days,Tools!$B$10:$B$55),1) -> 1 | LO8: =IF(Work_D_Only_Bool,NETWORKDAYS.INTL(LO9,LO9,WE_Days,Tools!$B$10:$B$55),1) -> 1 | LP8: =IF(Work_D_Only_Bool,NETWORKDAYS.INTL(LP9,LP9,WE_Days,Tools!$B$10:$B$55),1) -> 1 | LQ8: =IF(Work_D_Only_Bool,NETWORKDAYS.INTL(LQ9,LQ9,WE_Days,Tools!$B$10:$B$55),1) -> 1 | LR8: =IF(Work_D_Only_Bool,NETWORKDAYS.INTL(LR9,LR9,WE_Days,Tools!$B$10:$B$55),1) -> 1 | LS8: =IF(Work_D_Only_Bool,NETWORKDAYS.INTL(LS9,LS9,WE_Days,Tools!$B$10:$B$55),1) -> 1 | LT8: =IF(Work_D_Only_Bool,NETWORKDAYS.INTL(LT9,LT9,WE_Days,Tools!$B$10:$B$55),1) -> 1 | LU8: =IF(Work_D_Only_Bool,NETWORKDAYS.INTL(LU9,LU9,WE_Days,Tools!$B$10:$B$55),1) -> 1 | LV8: =IF(Work_D_Only_Bool,NETWORKDAYS.INTL(LV9,LV9,WE_Days,Tools!$B$10:$B$55),1) -> 1 | LW8: =IF(Work_D_Only_Bool,NETWORKDAYS.INTL(LW9,LW9,WE_Days,Tools!$B$10:$B$55),1) -> 1 | LX8: =IF(Work_D_Only_Bool,NETWORKDAYS.INTL(LX9,LX9,WE_Days,Tools!$B$10:$B$55),1) -> 1 | LY8: =IF(Work_D_Only_Bool,NETWORKDAYS.INTL(LY9,LY9,WE_Days,Tools!$B$10:$B$55),1) -> 1 | LZ8: =IF(Work_D_Only_Bool,NETWORKDAYS.INTL(LZ9,LZ9,WE_Days,Tools!$B$10:$B$55),1) -> 1 | MA8: =IF(Work_D_Only_Bool,NETWORKDAYS.INTL(MA9,MA9,WE_Days,Tools!$B$10:$B$55),1) -> 1 | MB8: =IF(Work_D_Only_Bool,NETWORKDAYS.INTL(MB9,MB9,WE_Days,Tools!$B$10:$B$55),1) -> 1 | MC8: =IF(Work_D_Only_Bool,NETWORKDAYS.INTL(MC9,MC9,WE_Days,Tools!$B$10:$B$55),1) -> 1 | MD8: =IF(Work_D_Only_Bool,NETWORKDAYS.INTL(MD9,MD9,WE_Days,Tools!$B$10:$B$55),1) -> 1 | ME8: =IF(Work_D_Only_Bool,NETWORKDAYS.INTL(ME9,ME9,WE_Days,Tools!$B$10:$B$55),1) -> 1 | MF8: =IF(Work_D_Only_Bool,NETWORKDAYS.INTL(MF9,MF9,WE_Days,Tools!$B$10:$B$55),1) -> 1 | MG8: =IF(Work_D_Only_Bool,NETWORKDAYS.INTL(MG9,MG9,WE_Days,Tools!$B$10:$B$55),1) -> 1 | MH8: =IF(Work_D_Only_Bool,NETWORKDAYS.INTL(MH9,MH9,WE_Days,Tools!$B$10:$B$55),1) -> 1 | MI8: =IF(Work_D_Only_Bool,NETWORKDAYS.INTL(MI9,MI9,WE_Days,Tools!$B$10:$B$55),1) -> 1 | MJ8: =IF(Work_D_Only_Bool,NETWORKDAYS.INTL(MJ9,MJ9,WE_Days,Tools!$B$10:$B$55),1) -> 1 | MK8: =IF(Work_D_Only_Bool,NETWORKDAYS.INTL(MK9,MK9,WE_Days,Tools!$B$10:$B$55),1) -> 1 | ML8: =IF(Work_D_Only_Bool,NETWORKDAYS.INTL(ML9,ML9,WE_Days,Tools!$B$10:$B$55),1) -> 1 | MM8: =IF(Work_D_Only_Bool,NETWORKDAYS.INTL(MM9,MM9,WE_Days,Tools!$B$10:$B$55),1) -> 1 | MN8: =IF(Work_D_Only_Bool,NETWORKDAYS.INTL(MN9,MN9,WE_Days,Tools!$B$10:$B$55),1) -> 1 | MO8: =IF(Work_D_Only_Bool,NETWORKDAYS.INTL(MO9,MO9,WE_Days,Tools!$B$10:$B$55),1) -> 1 | MP8: =IF(Work_D_Only_Bool,NETWORKDAYS.INTL(MP9,MP9,WE_Days,Tools!$B$10:$B$55),1) -> 1 | MQ8: =IF(Work_D_Only_Bool,NETWORKDAYS.INTL(MQ9,MQ9,WE_Days,Tools!$B$10:$B$55),1) -> 1 | MR8: =IF(Work_D_Only_Bool,NETWORKDAYS.INTL(MR9,MR9,WE_Days,Tools!$B$10:$B$55),1) -> 1 | MS8: =IF(Work_D_Only_Bool,NETWORKDAYS.INTL(MS9,MS9,WE_Days,Tools!$B$10:$B$55),1) -> 1 | MT8: =IF(Work_D_Only_Bool,NETWORKDAYS.INTL(MT9,MT9,WE_Days,Tools!$B$10:$B$55),1) -> 1 | MU8: =IF(Work_D_Only_Bool,NETWORKDAYS.INTL(MU9,MU9,WE_Days,Tools!$B$10:$B$55),1) -> 1 | MV8: =IF(Work_D_Only_Bool,NETWORKDAYS.INTL(MV9,MV9,WE_Days,Tools!$B$10:$B$55),1) -> 1 | MW8: =IF(Work_D_Only_Bool,NETWORKDAYS.INTL(MW9,MW9,WE_Days,Tools!$B$10:$B$55),1) -> 1 | MX8: =IF(Work_D_Only_Bool,NETWORKDAYS.INTL(MX9,MX9,WE_Days,Tools!$B$10:$B$55),1) -> 1 | MY8: =IF(Work_D_Only_Bool,NETWORKDAYS.INTL(MY9,MY9,WE_Days,Tools!$B$10:$B$55),1) -> 1 | MZ8: =IF(Work_D_Only_Bool,NETWORKDAYS.INTL(MZ9,MZ9,WE_Days,Tools!$B$10:$B$55),1) -> 1 | NA8: =IF(Work_D_Only_Bool,NETWORKDAYS.INTL(NA9,NA9,WE_Days,Tools!$B$10:$B$55),1) -> 1 | NB8: =IF(Work_D_Only_Bool,NETWORKDAYS.INTL(NB9,NB9,WE_Days,Tools!$B$10:$B$55),1) -> 1 | NC8: =IF(Work_D_Only_Bool,NETWORKDAYS.INTL(NC9,NC9,WE_Days,Tools!$B$10:$B$55),1) -> 1 | ND8: =IF(Work_D_Only_Bool,NETWORKDAYS.INTL(ND9,ND9,WE_Days,Tools!$B$10:$B$55),1) -> 1 | NE8: =IF(Work_D_Only_Bool,NETWORKDAYS.INTL(NE9,NE9,WE_Days,Tools!$B$10:$B$55),1) -> 1 | NF8: =IF(Work_D_Only_Bool,NETWORKDAYS.INTL(NF9,NF9,WE_Days,Tools!$B$10:$B$55),1) -> 1 | NG8: =IF(Work_D_Only_Bool,NETWORKDAYS.INTL(NG9,NG9,WE_Days,Tools!$B$10:$B$55),1) -> 1 | NH8: =IF(Work_D_Only_Bool,NETWORKDAYS.INTL(NH9,NH9,WE_Days,Tools!$B$10:$B$55),1) -> 1 | NI8: =IF(Work_D_Only_Bool,NETWORKDAYS.INTL(NI9,NI9,WE_Days,Tools!$B$10:$B$55),1) -> 1 | NJ8: =IF(Work_D_Only_Bool,NETWORKDAYS.INTL(NJ9,NJ9,WE_Days,Tools!$B$10:$B$55),1) -> 1 | NK8: =IF(Work_D_Only_Bool,NETWORKDAYS.INTL(NK9,NK9,WE_Days,Tools!$B$10:$B$55),1) -> 1 | NL8: =IF(Work_D_Only_Bool,NETWORKDAYS.INTL(NL9,NL9,WE_Days,Tools!$B$10:$B$55),1) -> 1 | NM8: =IF(Work_D_Only_Bool,NETWORKDAYS.INTL(NM9,NM9,WE_Days,Tools!$B$10:$B$55),1) -> 1 | NN8: =IF(Work_D_Only_Bool,NETWORKDAYS.INTL(NN9,NN9,WE_Days,Tools!$B$10:$B$55),1) -> 1 | NO8: =IF(Work_D_Only_Bool,NETWORKDAYS.INTL(NO9,NO9,WE_Days,Tools!$B$10:$B$55),1) -> 1 | NP8: =IF(Work_D_Only_Bool,NETWORKDAYS.INTL(NP9,NP9,WE_Days,Tools!$B$10:$B$55),1) -> 1 | NQ8: =IF(Work_D_Only_Bool,NETWORKDAYS.INTL(NQ9,NQ9,WE_Days,Tools!$B$10:$B$55),1) -> 1 | NR8: =IF(Work_D_Only_Bool,NETWORKDAYS.INTL(NR9,NR9,WE_Days,Tools!$B$10:$B$55),1) -> 1 | NS8: =IF(Work_D_Only_Bool,NETWORKDAYS.INTL(NS9,NS9,WE_Days,Tools!$B$10:$B$55),1) -> 1 | NT8: =IF(Work_D_Only_Bool,NETWORKDAYS.INTL(NT9,NT9,WE_Days,Tools!$B$10:$B$55),1) -> 1 | NU8: =IF(Work_D_Only_Bool,NETWORKDAYS.INTL(NU9,NU9,WE_Days,Tools!$B$10:$B$55),1) -> 1 | NV8: =IF(Work_D_Only_Bool,NETWORKDAYS.INTL(NV9,NV9,WE_Days,Tools!$B$10:$B$55),1) -> 1 | NW8: =IF(Work_D_Only_Bool,NETWORKDAYS.INTL(NW9,NW9,WE_Days,Tools!$B$10:$B$55),1) -> 1 | NX8: =IF(Work_D_Only_Bool,NETWORKDAYS.INTL(NX9,NX9,WE_Days,Tools!$B$10:$B$55),1) -> 1 | NY8: =IF(Work_D_Only_Bool,NETWORKDAYS.INTL(NY9,NY9,WE_Days,Tools!$B$10:$B$55),1) -> 1 | NZ8: =IF(Work_D_Only_Bool,NETWORKDAYS.INTL(NZ9,NZ9,WE_Days,Tools!$B$10:$B$55),1) -> 1 | OA8: =IF(Work_D_Only_Bool,NETWORKDAYS.INTL(OA9,OA9,WE_Days,Tools!$B$10:$B$55),1) -> 1 | OB8: =IF(Work_D_Only_Bool,NETWORKDAYS.INTL(OB9,OB9,WE_Days,Tools!$B$10:$B$55),1) -> 1 | OC8: =IF(Work_D_Only_Bool,NETWORKDAYS.INTL(OC9,OC9,WE_Days,Tools!$B$10:$B$55),1) -> 1 | OD8: =IF(Work_D_Only_Bool,NETWORKDAYS.INTL(OD9,OD9,WE_Days,Tools!$B$10:$B$55),1) -> 1 | OE8: =IF(Work_D_Only_Bool,NETWORKDAYS.INTL(OE9,OE9,WE_Days,Tools!$B$10:$B$55),1) -> 1 | OF8: =IF(Work_D_Only_Bool,NETWORKDAYS.INTL(OF9,OF9,WE_Days,Tools!$B$10:$B$55),1) -> 1 | OG8: =IF(Work_D_Only_Bool,NETWORKDAYS.INTL(OG9,OG9,WE_Days,Tools!$B$10:$B$55),1) -> 1 | OH8: =IF(Work_D_Only_Bool,NETWORKDAYS.INTL(OH9,OH9,WE_Days,Tools!$B$10:$B$55),1) -> 1 | OI8: =IF(Work_D_Only_Bool,NETWORKDAYS.INTL(OI9,OI9,WE_Days,Tools!$B$10:$B$55),1) -> 1 | OJ8: =IF(Work_D_Only_Bool,NETWORKDAYS.INTL(OJ9,OJ9,WE_Days,Tools!$B$10:$B$55),1) -> 1 | OK8: =IF(Work_D_Only_Bool,NETWORKDAYS.INTL(OK9,OK9,WE_Days,Tools!$B$10:$B$55),1) -> 1 | OL8: =IF(Work_D_Only_Bool,NETWORKDAYS.INTL(OL9,OL9,WE_Days,Tools!$B$10:$B$55),1) -> 1 | OM8: =IF(Work_D_Only_Bool,NETWORKDAYS.INTL(OM9,OM9,WE_Days,Tools!$B$10:$B$55),1) -> 1 | ON8: =IF(Work_D_Only_Bool,NETWORKDAYS.INTL(ON9,ON9,WE_Days,Tools!$B$10:$B$55),1) -> 1 | OO8: =IF(Work_D_Only_Bool,NETWORKDAYS.INTL(OO9,OO9,WE_Days,Tools!$B$10:$B$55),1) -> 1 | OP8: =IF(Work_D_Only_Bool,NETWORKDAYS.INTL(OP9,OP9,WE_Days,Tools!$B$10:$B$55),1) -> 1 | OQ8: =IF(Work_D_Only_Bool,NETWORKDAYS.INTL(OQ9,OQ9,WE_Days,Tools!$B$10:$B$55),1) -> 1 | OR8: =IF(Work_D_Only_Bool,NETWORKDAYS.INTL(OR9,OR9,WE_Days,Tools!$B$10:$B$55),1) -> 1 | OS8: =IF(Work_D_Only_Bool,NETWORKDAYS.INTL(OS9,OS9,WE_Days,Tools!$B$10:$B$55),1) -> 1 | OT8: =IF(Work_D_Only_Bool,NETWORKDAYS.INTL(OT9,OT9,WE_Days,Tools!$B$10:$B$55),1) -> 1 | OU8: =IF(Work_D_Only_Bool,NETWORKDAYS.INTL(OU9,OU9,WE_Days,Tools!$B$10:$B$55),1) -> 1 | OV8: =IF(Work_D_Only_Bool,NETWORKDAYS.INTL(OV9,OV9,WE_Days,Tools!$B$10:$B$55),1) -> 1 | OW8: =IF(Work_D_Only_Bool,NETWORKDAYS.INTL(OW9,OW9,WE_Days,Tools!$B$10:$B$55),1) -> 1 | OX8: =IF(Work_D_Only_Bool,NETWORKDAYS.INTL(OX9,OX9,WE_Days,Tools!$B$10:$B$55),1) -> 1 | OY8: =IF(Work_D_Only_Bool,NETWORKDAYS.INTL(OY9,OY9,WE_Days,Tools!$B$10:$B$55),1) -> 1 | OZ8: =IF(Work_D_Only_Bool,NETWORKDAYS.INTL(OZ9,OZ9,WE_Days,Tools!$B$10:$B$55),1) -> 1 | PA8: =IF(Work_D_Only_Bool,NETWORKDAYS.INTL(PA9,PA9,WE_Days,Tools!$B$10:$B$55),1) -> 1 | PB8: =IF(Work_D_Only_Bool,NETWORKDAYS.INTL(PB9,PB9,WE_Days,Tools!$B$10:$B$55),1) -> 1 | PC8: =IF(Work_D_Only_Bool,NETWORKDAYS.INTL(PC9,PC9,WE_Days,Tools!$B$10:$B$55),1) -> 1 | PD8: =IF(Work_D_Only_Bool,NETWORKDAYS.INTL(PD9,PD9,WE_Days,Tools!$B$10:$B$55),1) -> 1 | PE8: =IF(Work_D_Only_Bool,NETWORKDAYS.INTL(PE9,PE9,WE_Days,Tools!$B$10:$B$55),1) -> 1 | PF8: =IF(Work_D_Only_Bool,NETWORKDAYS.INTL(PF9,PF9,WE_Days,Tools!$B$10:$B$55),1) -> 1 | PG8: =IF(Work_D_Only_Bool,NETWORKDAYS.INTL(PG9,PG9,WE_Days,Tools!$B$10:$B$55),1) -> 1 | PH8: =IF(Work_D_Only_Bool,NETWORKDAYS.INTL(PH9,PH9,WE_Days,Tools!$B$10:$B$55),1) -> 1 | PI8: =IF(Work_D_Only_Bool,NETWORKDAYS.INTL(PI9,PI9,WE_Days,Tools!$B$10:$B$55),1) -> 1 | PJ8: =IF(Work_D_Only_Bool,NETWORKDAYS.INTL(PJ9,PJ9,WE_Days,Tools!$B$10:$B$55),1) -> 1 | PK8: =IF(Work_D_Only_Bool,NETWORKDAYS.INTL(PK9,PK9,WE_Days,Tools!$B$10:$B$55),1) -> 1 | PL8: =IF(Work_D_Only_Bool,NETWORKDAYS.INTL(PL9,PL9,WE_Days,Tools!$B$10:$B$55),1) -> 1 | PM8: =IF(Work_D_Only_Bool,NETWORKDAYS.INTL(PM9,PM9,WE_Days,Tools!$B$10:$B$55),1) -> 1 | PN8: =IF(Work_D_Only_Bool,NETWORKDAYS.INTL(PN9,PN9,WE_Days,Tools!$B$10:$B$55),1) -> 1 | PO8: =IF(Work_D_Only_Bool,NETWORKDAYS.INTL(PO9,PO9,WE_Days,Tools!$B$10:$B$55),1) -> 1 | PP8: =IF(Work_D_Only_Bool,NETWORKDAYS.INTL(PP9,PP9,WE_Days,Tools!$B$10:$B$55),1) -> 1 | PQ8: =IF(Work_D_Only_Bool,NETWORKDAYS.INTL(PQ9,PQ9,WE_Days,Tools!$B$10:$B$55),1) -> 1 | PR8: =IF(Work_D_Only_Bool,NETWORKDAYS.INTL(PR9,PR9,WE_Days,Tools!$B$10:$B$55),1) -> 1 | PS8: =IF(Work_D_Only_Bool,NETWORKDAYS.INTL(PS9,PS9,WE_Days,Tools!$B$10:$B$55),1) -> 1 | PT8: =IF(Work_D_Only_Bool,NETWORKDAYS.INTL(PT9,PT9,WE_Days,Tools!$B$10:$B$55),1) -> 1 | PU8: =IF(Work_D_Only_Bool,NETWORKDAYS.INTL(PU9,PU9,WE_Days,Tools!$B$10:$B$55),1) -> 1 | PV8: =IF(Work_D_Only_Bool,NETWORKDAYS.INTL(PV9,PV9,WE_Days,Tools!$B$10:$B$55),1) -> 1 | PW8: =IF(Work_D_Only_Bool,NETWORKDAYS.INTL(PW9,PW9,WE_Days,Tools!$B$10:$B$55),1) -> 1 | PX8: =IF(Work_D_Only_Bool,NETWORKDAYS.INTL(PX9,PX9,WE_Days,Tools!$B$10:$B$55),1) -> 1 | PY8: =IF(Work_D_Only_Bool,NETWORKDAYS.INTL(PY9,PY9,WE_Days,Tools!$B$10:$B$55),1) -> 1 | PZ8: =IF(Work_D_Only_Bool,NETWORKDAYS.INTL(PZ9,PZ9,WE_Days,Tools!$B$10:$B$55),1) -> 1 | QA8: =IF(Work_D_Only_Bool,NETWORKDAYS.INTL(QA9,QA9,WE_Days,Tools!$B$10:$B$55),1) -> 1 | QB8: =IF(Work_D_Only_Bool,NETWORKDAYS.INTL(QB9,QB9,WE_Days,Tools!$B$10:$B$55),1) -> 1 | QC8: =IF(Work_D_Only_Bool,NETWORKDAYS.INTL(QC9,QC9,WE_Days,Tools!$B$10:$B$55),1) -> 1 | QD8: =IF(Work_D_Only_Bool,NETWORKDAYS.INTL(QD9,QD9,WE_Days,Tools!$B$10:$B$55),1) -> 1 | QE8: =IF(Work_D_Only_Bool,NETWORKDAYS.INTL(QE9,QE9,WE_Days,Tools!$B$10:$B$55),1) -> 1 | QF8: =IF(Work_D_Only_Bool,NETWORKDAYS.INTL(QF9,QF9,WE_Days,Tools!$B$10:$B$55),1) -> 1 | QG8: =IF(Work_D_Only_Bool,NETWORKDAYS.INTL(QG9,QG9,WE_Days,Tools!$B$10:$B$55),1) -> 1 | QH8: =IF(Work_D_Only_Bool,NETWORKDAYS.INTL(QH9,QH9,WE_Days,Tools!$B$10:$B$55),1) -> 1 | QI8: =IF(Work_D_Only_Bool,NETWORKDAYS.INTL(QI9,QI9,WE_Days,Tools!$B$10:$B$55),1) -> 1 | QJ8: =IF(Work_D_Only_Bool,NETWORKDAYS.INTL(QJ9,QJ9,WE_Days,Tools!$B$10:$B$55),1) -> 1 | QK8: =IF(Work_D_Only_Bool,NETWORKDAYS.INTL(QK9,QK9,WE_Days,Tools!$B$10:$B$55),1) -> 1 | QL8: =IF(Work_D_Only_Bool,NETWORKDAYS.INTL(QL9,QL9,WE_Days,Tools!$B$10:$B$55),1) -> 1 | QM8: =IF(Work_D_Only_Bool,NETWORKDAYS.INTL(QM9,QM9,WE_Days,Tools!$B$10:$B$55),1) -> 1 | QN8: =IF(Work_D_Only_Bool,NETWORKDAYS.INTL(QN9,QN9,WE_Days,Tools!$B$10:$B$55),1) -> 1 | QO8: =IF(Work_D_Only_Bool,NETWORKDAYS.INTL(QO9,QO9,WE_Days,Tools!$B$10:$B$55),1) -> 1 | QP8: =IF(Work_D_Only_Bool,NETWORKDAYS.INTL(QP9,QP9,WE_Days,Tools!$B$10:$B$55),1) -> 1 | QQ8: =IF(Work_D_Only_Bool,NETWORKDAYS.INTL(QQ9,QQ9,WE_Days,Tools!$B$10:$B$55),1) -> 1 | QR8: =IF(Work_D_Only_Bool,NETWORKDAYS.INTL(QR9,QR9,WE_Days,Tools!$B$10:$B$55),1) -> 1 | QS8: =IF(Work_D_Only_Bool,NETWORKDAYS.INTL(QS9,QS9,WE_Days,Tools!$B$10:$B$55),1) -> 1 | QT8: =IF(Work_D_Only_Bool,NETWORKDAYS.INTL(QT9,QT9,WE_Days,Tools!$B$10:$B$55),1) -> 1 | QU8: =IF(Work_D_Only_Bool,NETWORKDAYS.INTL(QU9,QU9,WE_Days,Tools!$B$10:$B$55),1) -> 1 | QV8: =IF(Work_D_Only_Bool,NETWORKDAYS.INTL(QV9,QV9,WE_Days,Tools!$B$10:$B$55),1) -> 1 | QW8: =IF(Work_D_Only_Bool,NETWORKDAYS.INTL(QW9,QW9,WE_Days,Tools!$B$10:$B$55),1) -> 1 | QX8: =IF(Work_D_Only_Bool,NETWORKDAYS.INTL(QX9,QX9,WE_Days,Tools!$B$10:$B$55),1) -> 1 | QY8: =IF(Work_D_Only_Bool,NETWORKDAYS.INTL(QY9,QY9,WE_Days,Tools!$B$10:$B$55),1) -> 1 | QZ8: =IF(Work_D_Only_Bool,NETWORKDAYS.INTL(QZ9,QZ9,WE_Days,Tools!$B$10:$B$55),1) -> 1 | RA8: =IF(Work_D_Only_Bool,NETWORKDAYS.INTL(RA9,RA9,WE_Days,Tools!$B$10:$B$55),1) -> 1 | RB8: =IF(Work_D_Only_Bool,NETWORKDAYS.INTL(RB9,RB9,WE_Days,Tools!$B$10:$B$55),1) -> 1 | RC8: =IF(Work_D_Only_Bool,NETWORKDAYS.INTL(RC9,RC9,WE_Days,Tools!$B$10:$B$55),1) -> 1 | RD8: =IF(Work_D_Only_Bool,NETWORKDAYS.INTL(RD9,RD9,WE_Days,Tools!$B$10:$B$55),1) -> 1 | RE8: =IF(Work_D_Only_Bool,NETWORKDAYS.INTL(RE9,RE9,WE_Days,Tools!$B$10:$B$55),1) -> 1 | RF8: =IF(Work_D_Only_Bool,NETWORKDAYS.INTL(RF9,RF9,WE_Days,Tools!$B$10:$B$55),1) -> 1 | RG8: =IF(Work_D_Only_Bool,NETWORKDAYS.INTL(RG9,RG9,WE_Days,Tools!$B$10:$B$55),1) -> 1 | RH8: =IF(Work_D_Only_Bool,NETWORKDAYS.INTL(RH9,RH9,WE_Days,Tools!$B$10:$B$55),1) -> 1 | RI8: =IF(Work_D_Only_Bool,NETWORKDAYS.INTL(RI9,RI9,WE_Days,Tools!$B$10:$B$55),1) -> 1 | RJ8: =IF(Work_D_Only_Bool,NETWORKDAYS.INTL(RJ9,RJ9,WE_Days,Tools!$B$10:$B$55),1) -> 1 | RK8: =IF(Work_D_Only_Bool,NETWORKDAYS.INTL(RK9,RK9,WE_Days,Tools!$B$10:$B$55),1) -> 1 | RL8: =IF(Work_D_Only_Bool,NETWORKDAYS.INTL(RL9,RL9,WE_Days,Tools!$B$10:$B$55),1) -> 1 | RM8: =IF(Work_D_Only_Bool,NETWORKDAYS.INTL(RM9,RM9,WE_Days,Tools!$B$10:$B$55),1) -> 1 | RN8: =IF(Work_D_Only_Bool,NETWORKDAYS.INTL(RN9,RN9,WE_Days,Tools!$B$10:$B$55),1) -> 1 | RO8: =IF(Work_D_Only_Bool,NETWORKDAYS.INTL(RO9,RO9,WE_Days,Tools!$B$10:$B$55),1) -> 1 | RP8: =IF(Work_D_Only_Bool,NETWORKDAYS.INTL(RP9,RP9,WE_Days,Tools!$B$10:$B$55),1) -> 1 | RQ8: =IF(Work_D_Only_Bool,NETWORKDAYS.INTL(RQ9,RQ9,WE_Days,Tools!$B$10:$B$55),1) -> 1 | RR8: =IF(Work_D_Only_Bool,NETWORKDAYS.INTL(RR9,RR9,WE_Days,Tools!$B$10:$B$55),1) -> 1 | RS8: =IF(Work_D_Only_Bool,NETWORKDAYS.INTL(RS9,RS9,WE_Days,Tools!$B$10:$B$55),1) -> 1 | RT8: =IF(Work_D_Only_Bool,NETWORKDAYS.INTL(RT9,RT9,WE_Days,Tools!$B$10:$B$55),1) -> 1 | RU8: =IF(Work_D_Only_Bool,NETWORKDAYS.INTL(RU9,RU9,WE_Days,Tools!$B$10:$B$55),1) -> 1 | RV8: =IF(Work_D_Only_Bool,NETWORKDAYS.INTL(RV9,RV9,WE_Days,Tools!$B$10:$B$55),1) -> 1 | RW8: =IF(Work_D_Only_Bool,NETWORKDAYS.INTL(RW9,RW9,WE_Days,Tools!$B$10:$B$55),1) -> 1 | RX8: =IF(Work_D_Only_Bool,NETWORKDAYS.INTL(RX9,RX9,WE_Days,Tools!$B$10:$B$55),1) -> 1 | RY8: =IF(Work_D_Only_Bool,NETWORKDAYS.INTL(RY9,RY9,WE_Days,Tools!$B$10:$B$55),1) -> 1 | RZ8: =IF(Work_D_Only_Bool,NETWORKDAYS.INTL(RZ9,RZ9,WE_Days,Tools!$B$10:$B$55),1) -> 1 | SA8: =IF(Work_D_Only_Bool,NETWORKDAYS.INTL(SA9,SA9,WE_Days,Tools!$B$10:$B$55),1) -> 1 | SB8: =IF(Work_D_Only_Bool,NETWORKDAYS.INTL(SB9,SB9,WE_Days,Tools!$B$10:$B$55),1) -> 1 | SC8: =IF(Work_D_Only_Bool,NETWORKDAYS.INTL(SC9,SC9,WE_Days,Tools!$B$10:$B$55),1) -> 1 | SD8: =IF(Work_D_Only_Bool,NETWORKDAYS.INTL(SD9,SD9,WE_Days,Tools!$B$10:$B$55),1) -> 1 | SE8: =IF(Work_D_Only_Bool,NETWORKDAYS.INTL(SE9,SE9,WE_Days,Tools!$B$10:$B$55),1) -> 1 | SF8: =IF(Work_D_Only_Bool,NETWORKDAYS.INTL(SF9,SF9,WE_Days,Tools!$B$10:$B$55),1) -> 1 | SG8: =IF(Work_D_Only_Bool,NETWORKDAYS.INTL(SG9,SG9,WE_Days,Tools!$B$10:$B$55),1) -> 1 | SH8: =IF(Work_D_Only_Bool,NETWORKDAYS.INTL(SH9,SH9,WE_Days,Tools!$B$10:$B$55),1) -> 1 | SI8: =IF(Work_D_Only_Bool,NETWORKDAYS.INTL(SI9,SI9,WE_Days,Tools!$B$10:$B$55),1) -> 1 | SJ8: =IF(Work_D_Only_Bool,NETWORKDAYS.INTL(SJ9,SJ9,WE_Days,Tools!$B$10:$B$55),1) -> 1 | SK8: =IF(Work_D_Only_Bool,NETWORKDAYS.INTL(SK9,SK9,WE_Days,Tools!$B$10:$B$55),1) -> 1 | SL8: =IF(Work_D_Only_Bool,NETWORKDAYS.INTL(SL9,SL9,WE_Days,Tools!$B$10:$B$55),1) -> 1 | SM8: =IF(Work_D_Only_Bool,NETWORKDAYS.INTL(SM9,SM9,WE_Days,Tools!$B$10:$B$55),1) -> 1 | SN8: =IF(Work_D_Only_Bool,NETWORKDAYS.INTL(SN9,SN9,WE_Days,Tools!$B$10:$B$55),1) -> 1 | SO8: =IF(Work_D_Only_Bool,NETWORKDAYS.INTL(SO9,SO9,WE_Days,Tools!$B$10:$B$55),1) -> 1 | SP8: =IF(Work_D_Only_Bool,NETWORKDAYS.INTL(SP9,SP9,WE_Days,Tools!$B$10:$B$55),1) -> 1 | SQ8: =IF(Work_D_Only_Bool,NETWORKDAYS.INTL(SQ9,SQ9,WE_Days,Tools!$B$10:$B$55),1) -> 1 | SR8: =IF(Work_D_Only_Bool,NETWORKDAYS.INTL(SR9,SR9,WE_Days,Tools!$B$10:$B$55),1) -> 1 | SS8: =IF(Work_D_Only_Bool,NETWORKDAYS.INTL(SS9,SS9,WE_Days,Tools!$B$10:$B$55),1) -> 1 | ST8: =IF(Work_D_Only_Bool,NETWORKDAYS.INTL(ST9,ST9,WE_Days,Tools!$B$10:$B$55),1) -> 1 | SU8: =IF(Work_D_Only_Bool,NETWORKDAYS.INTL(SU9,SU9,WE_Days,Tools!$B$10:$B$55),1) -> 1 | SV8: =IF(Work_D_Only_Bool,NETWORKDAYS.INTL(SV9,SV9,WE_Days,Tools!$B$10:$B$55),1) -> 1 | SW8: =IF(Work_D_Only_Bool,NETWORKDAYS.INTL(SW9,SW9,WE_Days,Tools!$B$10:$B$55),1) -> 1 | SX8: =IF(Work_D_Only_Bool,NETWORKDAYS.INTL(SX9,SX9,WE_Days,Tools!$B$10:$B$55),1) -> 1 | SY8: =IF(Work_D_Only_Bool,NETWORKDAYS.INTL(SY9,SY9,WE_Days,Tools!$B$10:$B$55),1) -> 1 | SZ8: =IF(Work_D_Only_Bool,NETWORKDAYS.INTL(SZ9,SZ9,WE_Days,Tools!$B$10:$B$55),1) -> 1 | TA8: =IF(Work_D_Only_Bool,NETWORKDAYS.INTL(TA9,TA9,WE_Days,Tools!$B$10:$B$55),1) -> 1 | TB8: =IF(Work_D_Only_Bool,NETWORKDAYS.INTL(TB9,TB9,WE_Days,Tools!$B$10:$B$55),1) -> 1 | TC8: =IF(Work_D_Only_Bool,NETWORKDAYS.INTL(TC9,TC9,WE_Days,Tools!$B$10:$B$55),1) -> 1 | TD8: =IF(Work_D_Only_Bool,NETWORKDAYS.INTL(TD9,TD9,WE_Days,Tools!$B$10:$B$55),1) -> 1 | TE8: =IF(Work_D_Only_Bool,NETWORKDAYS.INTL(TE9,TE9,WE_Days,Tools!$B$10:$B$55),1) -> 1 | TF8: =IF(Work_D_Only_Bool,NETWORKDAYS.INTL(TF9,TF9,WE_Days,Tools!$B$10:$B$55),1) -> 1 | TG8: =IF(Work_D_Only_Bool,NETWORKDAYS.INTL(TG9,TG9,WE_Days,Tools!$B$10:$B$55),1) -> 1 | TH8: =IF(Work_D_Only_Bool,NETWORKDAYS.INTL(TH9,TH9,WE_Days,Tools!$B$10:$B$55),1) -> 1 | TI8: =IF(Work_D_Only_Bool,NETWORKDAYS.INTL(TI9,TI9,WE_Days,Tools!$B$10:$B$55),1) -> 1 | TJ8: =IF(Work_D_Only_Bool,NETWORKDAYS.INTL(TJ9,TJ9,WE_Days,Tools!$B$10:$B$55),1) -> 1 | TK8: =IF(Work_D_Only_Bool,NETWORKDAYS.INTL(TK9,TK9,WE_Days,Tools!$B$10:$B$55),1) -> 1 | TL8: =IF(Work_D_Only_Bool,NETWORKDAYS.INTL(TL9,TL9,WE_Days,Tools!$B$10:$B$55),1) -> 1 | TM8: =IF(Work_D_Only_Bool,NETWORKDAYS.INTL(TM9,TM9,WE_Days,Tools!$B$10:$B$55),1) -> 1 | TN8: =IF(Work_D_Only_Bool,NETWORKDAYS.INTL(TN9,TN9,WE_Days,Tools!$B$10:$B$55),1) -> 1 | TO8: =IF(Work_D_Only_Bool,NETWORKDAYS.INTL(TO9,TO9,WE_Days,Tools!$B$10:$B$55),1) -> 1 | TP8: =IF(Work_D_Only_Bool,NETWORKDAYS.INTL(TP9,TP9,WE_Days,Tools!$B$10:$B$55),1) -> 1 | TQ8: =IF(Work_D_Only_Bool,NETWORKDAYS.INTL(TQ9,TQ9,WE_Days,Tools!$B$10:$B$55),1) -> 1 | TR8: =IF(Work_D_Only_Bool,NETWORKDAYS.INTL(TR9,TR9,WE_Days,Tools!$B$10:$B$55),1) -> 1 | TS8: =IF(Work_D_Only_Bool,NETWORKDAYS.INTL(TS9,TS9,WE_Days,Tools!$B$10:$B$55),1) -> 1 | TT8: =IF(Work_D_Only_Bool,NETWORKDAYS.INTL(TT9,TT9,WE_Days,Tools!$B$10:$B$55),1) -> 1 | TU8: =IF(Work_D_Only_Bool,NETWORKDAYS.INTL(TU9,TU9,WE_Days,Tools!$B$10:$B$55),1) -> 1 | TV8: =IF(Work_D_Only_Bool,NETWORKDAYS.INTL(TV9,TV9,WE_Days,Tools!$B$10:$B$55),1) -> 1 | TW8: =IF(Work_D_Only_Bool,NETWORKDAYS.INTL(TW9,TW9,WE_Days,Tools!$B$10:$B$55),1) -> 1 | TX8: =IF(Work_D_Only_Bool,NETWORKDAYS.INTL(TX9,TX9,WE_Days,Tools!$B$10:$B$55),1) -> 1 | TY8: =IF(Work_D_Only_Bool,NETWORKDAYS.INTL(TY9,TY9,WE_Days,Tools!$B$10:$B$55),1) -> 1 | TZ8: =IF(Work_D_Only_Bool,NETWORKDAYS.INTL(TZ9,TZ9,WE_Days,Tools!$B$10:$B$55),1) -> 1 | UA8: =IF(Work_D_Only_Bool,NETWORKDAYS.INTL(UA9,UA9,WE_Days,Tools!$B$10:$B$55),1) -> 1 | UB8: =IF(Work_D_Only_Bool,NETWORKDAYS.INTL(UB9,UB9,WE_Days,Tools!$B$10:$B$55),1) -> 1 | UC8: =IF(Work_D_Only_Bool,NETWORKDAYS.INTL(UC9,UC9,WE_Days,Tools!$B$10:$B$55),1) -> 1 | UD8: =IF(Work_D_Only_Bool,NETWORKDAYS.INTL(UD9,UD9,WE_Days,Tools!$B$10:$B$55),1) -> 1 | UE8: =IF(Work_D_Only_Bool,NETWORKDAYS.INTL(UE9,UE9,WE_Days,Tools!$B$10:$B$55),1) -> 1 | UF8: =IF(Work_D_Only_Bool,NETWORKDAYS.INTL(UF9,UF9,WE_Days,Tools!$B$10:$B$55),1) -> 1 | UG8: =IF(Work_D_Only_Bool,NETWORKDAYS.INTL(UG9,UG9,WE_Days,Tools!$B$10:$B$55),1) -> 1 | UH8: =IF(Work_D_Only_Bool,NETWORKDAYS.INTL(UH9,UH9,WE_Days,Tools!$B$10:$B$55),1) -> 1 | UI8: =IF(Work_D_Only_Bool,NETWORKDAYS.INTL(UI9,UI9,WE_Days,Tools!$B$10:$B$55),1) -> 1 | UJ8: =IF(Work_D_Only_Bool,NETWORKDAYS.INTL(UJ9,UJ9,WE_Days,Tools!$B$10:$B$55),1) -> 1 | UK8: =IF(Work_D_Only_Bool,NETWORKDAYS.INTL(UK9,UK9,WE_Days,Tools!$B$10:$B$55),1) -> 1 | UL8: =IF(Work_D_Only_Bool,NETWORKDAYS.INTL(UL9,UL9,WE_Days,Tools!$B$10:$B$55),1) -> 1 | UM8: =IF(Work_D_Only_Bool,NETWORKDAYS.INTL(UM9,UM9,WE_Days,Tools!$B$10:$B$55),1) -> 1
Y9: ¶¶¶ Please Hide these rows. Do not delete. ¶¶¶ | AI9: Date | AJ9: =Start_Date_Fusion -> 2016-10-31 | AK9: =AJ9+1 -> 2016-11-01 | AL9: 2016-11-02 | AM9: 2016-11-03 | AN9: 2016-11-04 | AO9: 2016-11-05 | AP9: 2016-11-06 | AQ9: 2016-11-07 | AR9: 2016-11-08 | AS9: 2016-11-09 | AT9: =AS9+1 -> 2016-11-10 | AU9: 2016-11-11 | AV9: 2016-11-12 | AW9: 2016-11-13 | AX9: 2016-11-14 | AY9: 2016-11-15 | AZ9: 2016-11-16 | BA9: 2016-11-17 | BB9: 2016-11-18 | BC9: 2016-11-19 | BD9: 2016-11-20 | BE9: =BD9+1 -> 2016-11-21 | BF9: =BE9+1 -> 2016-11-22 | BG9: 2016-11-23 | BH9: 2016-11-24 | BI9: 2016-11-25 | BJ9: 2016-11-26 | BK9: 2016-11-27 | BL9: 2016-11-28 | BM9: 2016-11-29 | BN9: 2016-11-30 | BO9: 2016-12-01 | BP9: 2016-12-02 | BQ9: 2016-12-03 | BR9: 2016-12-04 | BS9: 2016-12-05 | BT9: 2016-12-06 | BU9: 2016-12-07 | BV9: 2016-12-08 | BW9: 2016-12-09 | BX9: 2016-12-10 | BY9: 2016-12-11 | BZ9: 2016-12-12 | CA9: 2016-12-13 | CB9: 2016-12-14 | CC9: 2016-12-15 | CD9: 2016-12-16 | CE9: 2016-12-17 | CF9: 2016-12-18 | CG9: 2016-12-19 | CH9: 2016-12-20 | CI9: 2016-12-21 | CJ9: 2016-12-22 | CK9: 2016-12-23 | CL9: 2016-12-24 | CM9: 2016-12-25 | CN9: 2016-12-26 | CO9: 2016-12-27 | CP9: 2016-12-28 | CQ9: 2016-12-29 | CR9: 2016-12-30 | CS9: 2016-12-31 | CT9: 2017-01-01 | CU9: 2017-01-02 | CV9: 2017-01-03 | CW9: =CV9+1 -> 2017-01-04 | CX9: 2017-01-05 | CY9: 2017-01-06 | CZ9: 2017-01-07 | DA9: 2017-01-08 | DB9: 2017-01-09 | DC9: 2017-01-10 | DD9: 2017-01-11 | DE9: 2017-01-12 | DF9: 2017-01-13 | DG9: 2017-01-14 | DH9: 2017-01-15 | DI9: 2017-01-16 | DJ9: 2017-01-17 | DK9: 2017-01-18 | DL9: 2017-01-19 | DM9: 2017-01-20 | DN9: 2017-01-21 | DO9: 2017-01-22 | DP9: 2017-01-23 | DQ9: 2017-01-24 | DR9: 2017-01-25 | DS9: 2017-01-26 | DT9: 2017-01-27 | DU9: 2017-01-28 | DV9: 2017-01-29 | DW9: 2017-01-30 | DX9: 2017-01-31 | DY9: 2017-02-01 | DZ9: 2017-02-02 | EA9: 2017-02-03 | EB9: 2017-02-04 | EC9: 2017-02-05 | ED9: 2017-02-06 | EE9: 2017-02-07 | EF9: 2017-02-08 | EG9: 2017-02-09 | EH9: 2017-02-10 | EI9: 2017-02-11 | EJ9: 2017-02-12 | EK9: 2017-02-13 | EL9: 2017-02-14 | EM9: 2017-02-15 | EN9: 2017-02-16 | EO9: 2017-02-17 | EP9: 2017-02-18 | EQ9: 2017-02-19 | ER9: 2017-02-20 | ES9: 2017-02-21 | ET9: 2017-02-22 | EU9: 2017-02-23 | EV9: 2017-02-24 | EW9: 2017-02-25 | EX9: 2017-02-26 | EY9: 2017-02-27 | EZ9: 2017-02-28 | FA9: 2017-03-01 | FB9: 2017-03-02 | FC9: 2017-03-03 | FD9: 2017-03-04 | FE9: 2017-03-05 | FF9: 2017-03-06 | FG9: 2017-03-07 | FH9: 2017-03-08 | FI9: =FH9+1 -> 2017-03-09 | FJ9: 2017-03-10 | FK9: 2017-03-11 | FL9: 2017-03-12 | FM9: 2017-03-13 | FN9: 2017-03-14 | FO9: 2017-03-15 | FP9: 2017-03-16 | FQ9: 2017-03-17 | FR9: 2017-03-18 | FS9: 2017-03-19 | FT9: 2017-03-20 | FU9: 2017-03-21 | FV9: 2017-03-22 | FW9: 2017-03-23 | FX9: 2017-03-24 | FY9: 2017-03-25 | FZ9: 2017-03-26 | GA9: 2017-03-27 | GB9: 2017-03-28 | GC9: 2017-03-29 | GD9: 2017-03-30 | GE9: 2017-03-31 | GF9: 2017-04-01 | GG9: 2017-04-02 | GH9: 2017-04-03 | GI9: 2017-04-04 | GJ9: 2017-04-05 | GK9: 2017-04-06 | GL9: 2017-04-07 | GM9: 2017-04-08 | GN9: 2017-04-09 | GO9: 2017-04-10 | GP9: 2017-04-11 | GQ9: 2017-04-12 | GR9: 2017-04-13 | GS9: 2017-04-14 | GT9: 2017-04-15 | GU9: 2017-04-16 | GV9: 2017-04-17 | GW9: 2017-04-18 | GX9: 2017-04-19 | GY9: 2017-04-20 | GZ9: 2017-04-21 | HA9: 2017-04-22 | HB9: 2017-04-23 | HC9: 2017-04-24 | HD9: 2017-04-25 | HE9: 2017-04-26 | HF9: 2017-04-27 | HG9: 2017-04-28 | HH9: 2017-04-29 | HI9: 2017-04-30 | HJ9: 2017-05-01 | HK9: 2017-05-02 | HL9: 2017-05-03 | HM9: 2017-05-04 | HN9: 2017-05-05 | HO9: 2017-05-06 | HP9: 2017-05-07 | HQ9: 2017-05-08 | HR9: 2017-05-09 | HS9: 2017-05-10 | HT9: 2017-05-11 | HU9: =HT9+1 -> 2017-05-12 | HV9: 2017-05-13 | HW9: 2017-05-14 | HX9: 2017-05-15 | HY9: 2017-05-16 | HZ9: 2017-05-17 | IA9: 2017-05-18 | IB9: 2017-05-19 | IC9: 2017-05-20 | ID9: 2017-05-21 | IE9: 2017-05-22 | IF9: 2017-05-23 | IG9: 2017-05-24 | IH9: 2017-05-25 | II9: 2017-05-26 | IJ9: 2017-05-27 | IK9: 2017-05-28 | IL9: 2017-05-29 | IM9: 2017-05-30 | IN9: 2017-05-31 | IO9: 2017-06-01 | IP9: 2017-06-02 | IQ9: 2017-06-03 | IR9: 2017-06-04 | IS9: 2017-06-05 | IT9: 2017-06-06 | IU9: 2017-06-07 | IV9: 2017-06-08 | IW9: 2017-06-09 | IX9: 2017-06-10 | IY9: 2017-06-11 | IZ9: 2017-06-12 | JA9: 2017-06-13 | JB9: 2017-06-14 | JC9: 2017-06-15 | JD9: 2017-06-16 | JE9: 2017-06-17 | JF9: 2017-06-18 | JG9: 2017-06-19 | JH9: 2017-06-20 | JI9: 2017-06-21 | JJ9: 2017-06-22 | JK9: 2017-06-23 | JL9: 2017-06-24 | JM9: 2017-06-25 | JN9: 2017-06-26 | JO9: 2017-06-27 | JP9: 2017-06-28 | JQ9: 2017-06-29 | JR9: 2017-06-30 | JS9: 2017-07-01 | JT9: 2017-07-02 | JU9: 2017-07-03 | JV9: 2017-07-04 | JW9: 2017-07-05 | JX9: 2017-07-06 | JY9: 2017-07-07 | JZ9: 2017-07-08 | KA9: 2017-07-09 | KB9: 2017-07-10 | KC9: 2017-07-11 | KD9: 2017-07-12 | KE9: 2017-07-13 | KF9: 2017-07-14 | KG9: =KF9+1 -> 2017-07-15 | KH9: 2017-07-16 | KI9: 2017-07-17 | KJ9: 2017-07-18 | KK9: 2017-07-19 | KL9: 2017-07-20 | KM9: 2017-07-21 | KN9: 2017-07-22 | KO9: 2017-07-23 | KP9: 2017-07-24 | KQ9: 2017-07-25 | KR9: 2017-07-26 | KS9: 2017-07-27 | KT9: 2017-07-28 | KU9: 2017-07-29 | KV9: 2017-07-30 | KW9: 2017-07-31 | KX9: 2017-08-01 | KY9: 2017-08-02 | KZ9: 2017-08-03 | LA9: 2017-08-04 | LB9: 2017-08-05 | LC9: 2017-08-06 | LD9: 2017-08-07 | LE9: 2017-08-08 | LF9: 2017-08-09 | LG9: 2017-08-10 | LH9: 2017-08-11 | LI9: 2017-08-12 | LJ9: 2017-08-13 | LK9: 2017-08-14 | LL9: 2017-08-15 | LM9: 2017-08-16 | LN9: 2017-08-17 | LO9: 2017-08-18 | LP9: 2017-08-19 | LQ9: 2017-08-20 | LR9: 2017-08-21 | LS9: 2017-08-22 | LT9: 2017-08-23 | LU9: 2017-08-24 | LV9: 2017-08-25 | LW9: 2017-08-26 | LX9: 2017-08-27 | LY9: 2017-08-28 | LZ9: 2017-08-29 | MA9: 2017-08-30 | MB9: 2017-08-31 | MC9: 2017-09-01 | MD9: 2017-09-02 | ME9: 2017-09-03 | MF9: 2017-09-04 | MG9: 2017-09-05 | MH9: 2017-09-06 | MI9: 2017-09-07 | MJ9: 2017-09-08 | MK9: 2017-09-09 | ML9: 2017-09-10 | MM9: 2017-09-11 | MN9: 2017-09-12 | MO9: 2017-09-13 | MP9: 2017-09-14 | MQ9: 2017-09-15 | MR9: 2017-09-16 | MS9: =MR9+1 -> 2017-09-17 | MT9: 2017-09-18 | MU9: 2017-09-19 | MV9: 2017-09-20 | MW9: 2017-09-21 | MX9: 2017-09-22 | MY9: 2017-09-23 | MZ9: 2017-09-24 | NA9: 2017-09-25 | NB9: 2017-09-26 | NC9: 2017-09-27 | ND9: 2017-09-28 | NE9: 2017-09-29 | NF9: 2017-09-30 | NG9: 2017-10-01 | NH9: 2017-10-02 | NI9: 2017-10-03 | NJ9: 2017-10-04 | NK9: 2017-10-05 | NL9: 2017-10-06 | NM9: 2017-10-07 | NN9: 2017-10-08 | NO9: 2017-10-09 | NP9: 2017-10-10 | NQ9: 2017-10-11 | NR9: 2017-10-12 | NS9: 2017-10-13 | NT9: 2017-10-14 | NU9: 2017-10-15 | NV9: 2017-10-16 | NW9: 2017-10-17 | NX9: 2017-10-18 | NY9: 2017-10-19 | NZ9: 2017-10-20 | OA9: 2017-10-21 | OB9: 2017-10-22 | OC9: 2017-10-23 | OD9: 2017-10-24 | OE9: 2017-10-25 | OF9: 2017-10-26 | OG9: 2017-10-27 | OH9: 2017-10-28 | OI9: 2017-10-29 | OJ9: 2017-10-30 | OK9: 2017-10-31 | OL9: 2017-11-01 | OM9: 2017-11-02 | ON9: 2017-11-03 | OO9: 2017-11-04 | OP9: 2017-11-05 | OQ9: 2017-11-06 | OR9: 2017-11-07 | OS9: 2017-11-08 | OT9: 2017-11-09 | OU9: 2017-11-10 | OV9: 2017-11-11 | OW9: 2017-11-12 | OX9: 2017-11-13 | OY9: 2017-11-14 | OZ9: 2017-11-15 | PA9: 2017-11-16 | PB9: 2017-11-17 | PC9: 2017-11-18 | PD9: 2017-11-19 | PE9: =PD9+1 -> 2017-11-20 | PF9: 2017-11-21 | PG9: 2017-11-22 | PH9: 2017-11-23 | PI9: 2017-11-24 | PJ9: 2017-11-25 | PK9: 2017-11-26 | PL9: 2017-11-27 | PM9: 2017-11-28 | PN9: 2017-11-29 | PO9: 2017-11-30 | PP9: 2017-12-01 | PQ9: 2017-12-02 | PR9: 2017-12-03 | PS9: 2017-12-04 | PT9: 2017-12-05 | PU9: 2017-12-06 | PV9: 2017-12-07 | PW9: 2017-12-08 | PX9: 2017-12-09 | PY9: 2017-12-10 | PZ9: 2017-12-11 | QA9: 2017-12-12 | QB9: 2017-12-13 | QC9: 2017-12-14 | QD9: 2017-12-15 | QE9: 2017-12-16 | QF9: 2017-12-17 | QG9: 2017-12-18 | QH9: 2017-12-19 | QI9: 2017-12-20 | QJ9: 2017-12-21 | QK9: 2017-12-22 | QL9: 2017-12-23 | QM9: 2017-12-24 | QN9: 2017-12-25 | QO9: 2017-12-26 | QP9: 2017-12-27 | QQ9: 2017-12-28 | QR9: 2017-12-29 | QS9: 2017-12-30 | QT9: 2017-12-31 | QU9: 2018-01-01 | QV9: 2018-01-02 | QW9: 2018-01-03 | QX9: 2018-01-04 | QY9: 2018-01-05 | QZ9: 2018-01-06 | RA9: 2018-01-07 | RB9: 2018-01-08 | RC9: 2018-01-09 | RD9: 2018-01-10 | RE9: 2018-01-11 | RF9: 2018-01-12 | RG9: 2018-01-13 | RH9: 2018-01-14 | RI9: 2018-01-15 | RJ9: 2018-01-16 | RK9: 2018-01-17 | RL9: 2018-01-18 | RM9: 2018-01-19 | RN9: 2018-01-20 | RO9: 2018-01-21 | RP9: 2018-01-22 | RQ9: =RP9+1 -> 2018-01-23 | RR9: 2018-01-24 | RS9: 2018-01-25 | RT9: 2018-01-26 | RU9: 2018-01-27 | RV9: 2018-01-28 | RW9: 2018-01-29 | RX9: 2018-01-30 | RY9: 2018-01-31 | RZ9: 2018-02-01 | SA9: 2018-02-02 | SB9: 2018-02-03 | SC9: 2018-02-04 | SD9: 2018-02-05 | SE9: 2018-02-06 | SF9: 2018-02-07 | SG9: 2018-02-08 | SH9: 2018-02-09 | SI9: 2018-02-10 | SJ9: 2018-02-11 | SK9: 2018-02-12 | SL9: 2018-02-13 | SM9: 2018-02-14 | SN9: 2018-02-15 | SO9: 2018-02-16 | SP9: 2018-02-17 | SQ9: 2018-02-18 | SR9: 2018-02-19 | SS9: 2018-02-20 | ST9: 2018-02-21 | SU9: 2018-02-22 | SV9: 2018-02-23 | SW9: 2018-02-24 | SX9: 2018-02-25 | SY9: 2018-02-26 | SZ9: 2018-02-27 | TA9: 2018-02-28 | TB9: 2018-03-01 | TC9: 2018-03-02 | TD9: 2018-03-03 | TE9: 2018-03-04 | TF9: 2018-03-05 | TG9: 2018-03-06 | TH9: 2018-03-07 | TI9: 2018-03-08 | TJ9: 2018-03-09 | TK9: 2018-03-10 | TL9: 2018-03-11 | TM9: 2018-03-12 | TN9: 2018-03-13 | TO9: 2018-03-14 | TP9: 2018-03-15 | TQ9: 2018-03-16 | TR9: 2018-03-17 | TS9: 2018-03-18 | TT9: 2018-03-19 | TU9: 2018-03-20 | TV9: 2018-03-21 | TW9: 2018-03-22 | TX9: 2018-03-23 | TY9: 2018-03-24 | TZ9: 2018-03-25 | UA9: 2018-03-26 | UB9: 2018-03-27 | UC9: =UB9+1 -> 2018-03-28 | UD9: 2018-03-29 | UE9: 2018-03-30 | UF9: 2018-03-31 | UG9: 2018-04-01 | UH9: 2018-04-02 | UI9: 2018-04-03 | UJ9: 2018-04-04 | UK9: 2018-04-05 | UL9: 2018-04-06 | UM9: 2018-04-07
AJ10: =IF(DAY(AJ18)=1,AJ18,IF(AJ9=Red_Bookmark,"TODAY","")) ->  | AK10: 2016-11-01 | AU10: TODAY | BO10: 2016-12-01 | CT10: 2017-01-01 | CV10: =IF(DAY(CV18)=1,CV18,IF(CV9=Red_Bookmark,"TODAY","")) ->  | DY10: 2017-02-01 | FA10: 2017-03-01 | FH10: =IF(DAY(FH18)=1,FH18,IF(FH9=Red_Bookmark,"TODAY","")) ->  | GF10: 2017-04-01 | HJ10: 2017-05-01 | HT10: =IF(DAY(HT18)=1,HT18,IF(HT9=Red_Bookmark,"TODAY","")) ->  | IO10: 2017-06-01 | JS10: 2017-07-01 | KF10: =IF(DAY(KF18)=1,KF18,IF(KF9=Red_Bookmark,"TODAY","")) ->  | KX10: 2017-08-01 | MC10: 2017-09-01 | MR10: =IF(DAY(MR18)=1,MR18,IF(MR9=Red_Bookmark,"TODAY","")) ->  | NG10: 2017-10-01 | OL10: 2017-11-01 | PD10: =IF(DAY(PD18)=1,PD18,IF(PD9=Red_Bookmark,"TODAY","")) ->  | PP10: 2017-12-01 | QU10: 2018-01-01 | RP10: =IF(DAY(RP18)=1,RP18,IF(RP9=Red_Bookmark,"TODAY","")) ->  | RZ10: 2018-02-01 | TB10: 2018-03-01 | UB10: =IF(DAY(UB18)=1,UB18,IF(UB9=Red_Bookmark,"TODAY","")) ->  | UG10: 2018-04-01
P14: =IF($AG$14="%",P15,"") -> Resp. | Q14: =IF($AG$14="%",Q15,"") -> Couleurs | R14: =IF($AG$14="%",R15,"") -> Niv. Taches | S14: =IF($AG$14="%",S15,"") -> Début | T14: =IF($AG$14="%",T15,"") -> Durée | V14: =IF($AG$14="%",V15,"") -> Recal. Dur. | W14: =IF($AG$14="%",W15,"") -> Jours ouvrés | X14: =IF($AG$14="%",X15,"") -> Normal | Y14: =IF($AG$14="%",Y15,"") -> Échéance | AB14: =IF($AG$14="%",AB15,"") -> Statut | AE14: =IF($AG$14="%",AE15,"") -> Estim. | AF14: =IF($AG$14="%",AF15,"") -> Réel | AG14: % | AI14: =IF($AG$14="%",AI15,"") -> Commentaires | AK14: 11-2016 | BO14: 12-2016 | CT14: 1-2017 | DY14: 2-2017 | FA14: 3-2017 | GF14: 4-2017 | HJ14: 5-2017 | IO14: 6-2017 | JS14: 7-2017 | KX14: 8-2017 | MC14: 9-2017 | NG14: 10-2017 | OL14: 11-2017 | PP14: 12-2017 | QU14: 1-2018 | RZ14: 2-2018 | TB14: 3-2018 | UG14: 4-2018
P15: Resp. | Q15: Couleurs | R15: Niv. Taches | S15: Début | T15: Durée | V15: Recal. Dur. | W15: Jours ouvrés | X15: Normal | Y15: Échéance | AB15: Statut | AE15: Estim. | AF15: Réel | AG15: % | AI15: Commentaires | AJ15: =AJ16 -> W44 | AQ15: =AQ16 -> W45 | AX15: =AX16 -> W46 | BE15: =BE16 -> W47 | BL15: =BL16 -> W48 | BS15: =BS16 -> W49 | BZ15: =BZ16 -> W50 | CG15: =CG16 -> W51 | CN15: =CN16 -> W52 | CU15: =CU16 -> W1 | DB15: =DB16 -> W2 | DI15: =DI16 -> W3 | DP15: =DP16 -> W4 | DW15: =DW16 -> W5 | ED15: =ED16 -> W6 | EK15: =EK16 -> W7 | ER15: =ER16 -> W8 | EY15: =EY16 -> W9 | FF15: =FF16 -> W10 | FM15: =FM16 -> W11 | FT15: =FT16 -> W12 | GA15: =GA16 -> W13 | GH15: =GH16 -> W14 | GO15: =GO16 -> W15 | GV15: =GV16 -> W16 | HC15: =HC16 -> W17 | HJ15: =HJ16 -> W18 | HQ15: =HQ16 -> W19 | HX15: =HX16 -> W20 | IE15: =IE16 -> W21 | IL15: =IL16 -> W22 | IS15: =IS16 -> W23 | IZ15: =IZ16 -> W24 | JG15: =JG16 -> W25 | JN15: =JN16 -> W26 | JU15: =JU16 -> W27 | KB15: =KB16 -> W28 | KI15: =KI16 -> W29 | KP15: =KP16 -> W30 | KW15: =KW16 -> W31 | LD15: =LD16 -> W32 | LK15: =LK16 -> W33 | LR15: =LR16 -> W34 | LY15: =LY16 -> W35 | MF15: =MF16 -> W36 | MM15: =MM16 -> W37 | MT15: =MT16 -> W38 | NA15: =NA16 -> W39 | NH15: =NH16 -> W40 | NO15: =NO16 -> W41 | NV15: =NV16 -> W42 | OC15: =OC16 -> W43 | OJ15: =OJ16 -> W44 | OQ15: =OQ16 -> W45 | OX15: =OX16 -> W46 | PE15: =PE16 -> W47 | PL15: =PL16 -> W48 | PS15: =PS16 -> W49 | PZ15: =PZ16 -> W50 | QG15: =QG16 -> W51 | QN15: =QN16 -> W52 | QU15: =QU16 -> W1 | RB15: =RB16 -> W2 | RI15: =RI16 -> W3 | RP15: =RP16 -> W4 | RW15: =RW16 -> W5 | SD15: =SD16 -> W6 | SK15: =SK16 -> W7 | SR15: =SR16 -> W8 | SY15: =SY16 -> W9 | TF15: =TF16 -> W10 | TM15: =TM16 -> W11 | TT15: =TT16 -> W12 | UA15: =UA16 -> W13 | UH15: =UH16 -> W14
AJ16: =Week_Name&WEEKNUM(AJ9,First_Day_Week2) -> W44 | AK16: W44 | AL16: W44 | AM16: W44 | AN16: W44 | AO16: W44 | AP16: W44 | AQ16: W45 | AR16: W45 | AS16: W45 | AT16: W45 | AU16: W45 | AV16: W45 | AW16: W45 | AX16: W46 | AY16: W46 | AZ16: W46 | BA16: W46 | BB16: W46 | BC16: W46 | BD16: W46 | BE16: W47 | BF16: W47 | BG16: W47 | BH16: W47 | BI16: W47 | BJ16: W47 | BK16: W47 | BL16: W48 | BM16: W48 | BN16: W48 | BO16: W48 | BP16: W48 | BQ16: W48 | BR16: W48 | BS16: W49 | BT16: W49 | BU16: W49 | BV16: W49 | BW16: W49 | BX16: W49 | BY16: W49 | BZ16: W50 | CA16: W50 | CB16: W50 | CC16: W50 | CD16: W50 | CE16: W50 | CF16: W50 | CG16: W51 | CH16: W51 | CI16: W51 | CJ16: W51 | CK16: W51 | CL16: W51 | CM16: W51 | CN16: W52 | CO16: W52 | CP16: W52 | CQ16: W52 | CR16: W52 | CS16: W52 | CT16: W52 | CU16: W1 | CV16: =Week_Name&WEEKNUM(CV9,First_Day_Week2) -> W1 | CW16: W1 | CX16: W1 | CY16: W1 | CZ16: W1 | DA16: W1 | DB16: W2 | DC16: W2 | DD16: W2 | DE16: W2 | DF16: W2 | DG16: W2 | DH16: W2 | DI16: W3 | DJ16: W3 | DK16: W3 | DL16: W3 | DM16: W3 | DN16: W3 | DO16: W3 | DP16: W4 | DQ16: W4 | DR16: W4 | DS16: W4 | DT16: W4 | DU16: W4 | DV16: W4 | DW16: W5 | DX16: W5 | DY16: W5 | DZ16: W5 | EA16: W5 | EB16: W5 | EC16: W5 | ED16: W6 | EE16: W6 | EF16: W6 | EG16: W6 | EH16: W6 | EI16: W6 | EJ16: W6 | EK16: W7 | EL16: W7 | EM16: W7 | EN16: W7 | EO16: W7 | EP16: W7 | EQ16: W7 | ER16: W8 | ES16: W8 | ET16: W8 | EU16: W8 | EV16: W8 | EW16: W8 | EX16: W8 | EY16: W9 | EZ16: W9 | FA16: W9 | FB16: W9 | FC16: W9 | FD16: W9 | FE16: W9 | FF16: W10 | FG16: W10 | FH16: =Week_Name&WEEKNUM(FH9,First_Day_Week2) -> W10 | FI16: W10 | FJ16: W10 | FK16: W10 | FL16: W10 | FM16: W11 | FN16: W11 | FO16: W11 | FP16: W11 | FQ16: W11 | FR16: W11 | FS16: W11 | FT16: W12 | FU16: W12 | FV16: W12 | FW16: W12 | FX16: W12 | FY16: W12 | FZ16: W12 | GA16: W13 | GB16: W13 | GC16: W13 | GD16: W13 | GE16: W13 | GF16: W13 | GG16: W13 | GH16: W14 | GI16: W14 | GJ16: W14 | GK16: W14 | GL16: W14 | GM16: W14 | GN16: W14 | GO16: W15 | GP16: W15 | GQ16: W15 | GR16: W15 | GS16: W15 | GT16: W15 | GU16: W15 | GV16: W16 | GW16: W16 | GX16: W16 | GY16: W16 | GZ16: W16 | HA16: W16 | HB16: W16 | HC16: W17 | HD16: W17 | HE16: W17 | HF16: W17 | HG16: W17 | HH16: W17 | HI16: W17 | HJ16: W18 | HK16: W18 | HL16: W18 | HM16: W18 | HN16: W18 | HO16: W18 | HP16: W18 | HQ16: W19 | HR16: W19 | HS16: W19 | HT16: =Week_Name&WEEKNUM(HT9,First_Day_Week2) -> W19 | HU16: W19 | HV16: W19 | HW16: W19 | HX16: W20 | HY16: W20 | HZ16: W20 | IA16: W20 | IB16: W20 | IC16: W20 | ID16: W20 | IE16: W21 | IF16: W21 | IG16: W21 | IH16: W21 | II16: W21 | IJ16: W21 | IK16: W21 | IL16: W22 | IM16: W22 | IN16: W22 | IO16: W22 | IP16: W22 | IQ16: W22 | IR16: W22 | IS16: W23 | IT16: W23 | IU16: W23 | IV16: W23 | IW16: W23 | IX16: W23 | IY16: W23 | IZ16: W24 | JA16: W24 | JB16: W24 | JC16: W24 | JD16: W24 | JE16: W24 | JF16: W24 | JG16: W25 | JH16: W25 | JI16: W25 | JJ16: W25 | JK16: W25 | JL16: W25 | JM16: W25 | JN16: W26 | JO16: W26 | JP16: W26 | JQ16: W26 | JR16: W26 | JS16: W26 | JT16: W26 | JU16: W27 | JV16: W27 | JW16: W27 | JX16: W27 | JY16: W27 | JZ16: W27 | KA16: W27 | KB16: W28 | KC16: W28 | KD16: W28 | KE16: W28 | KF16: =Week_Name&WEEKNUM(KF9,First_Day_Week2) -> W28 | KG16: W28 | KH16: W28 | KI16: W29 | KJ16: W29 | KK16: W29 | KL16: W29 | KM16: W29 | KN16: W29 | KO16: W29 | KP16: W30 | KQ16: W30 | KR16: W30 | KS16: W30 | KT16: W30 | KU16: W30 | KV16: W30 | KW16: W31 | KX16: W31 | KY16: W31 | KZ16: W31 | LA16: W31 | LB16: W31 | LC16: W31 | LD16: W32 | LE16: W32 | LF16: W32 | LG16: W32 | LH16: W32 | LI16: W32 | LJ16: W32 | LK16: W33 | LL16: W33 | LM16: W33 | LN16: W33 | LO16: W33 | LP16: W33 | LQ16: W33 | LR16: W34 | LS16: W34 | LT16: W34 | LU16: W34 | LV16: W34 | LW16: W34 | LX16: W34 | LY16: W35 | LZ16: W35 | MA16: W35 | MB16: W35 | MC16: W35 | MD16: W35 | ME16: W35 | MF16: W36 | MG16: W36 | MH16: W36 | MI16: W36 | MJ16: W36 | MK16: W36 | ML16: W36 | MM16: W37 | MN16: W37 | MO16: W37 | MP16: W37 | MQ16: W37 | MR16: =Week_Name&WEEKNUM(MR9,First_Day_Week2) -> W37 | MS16: W37 | MT16: W38 | MU16: W38 | MV16: W38 | MW16: W38 | MX16: W38 | MY16: W38 | MZ16: W38 | NA16: W39 | NB16: W39 | NC16: W39 | ND16: W39 | NE16: W39 | NF16: W39 | NG16: W39 | NH16: W40 | NI16: W40 | NJ16: W40 | NK16: W40 | NL16: W40 | NM16: W40 | NN16: W40 | NO16: W41 | NP16: W41 | NQ16: W41 | NR16: W41 | NS16: W41 | NT16: W41 | NU16: W41 | NV16: W42 | NW16: W42 | NX16: W42 | NY16: W42 | NZ16: W42 | OA16: W42 | OB16: W42 | OC16: W43 | OD16: W43 | OE16: W43 | OF16: W43 | OG16: W43 | OH16: W43 | OI16: W43 | OJ16: W44 | OK16: W44 | OL16: W44 | OM16: W44 | ON16: W44 | OO16: W44 | OP16: W44 | OQ16: W45 | OR16: W45 | OS16: W45 | OT16: W45 | OU16: W45 | OV16: W45 | OW16: W45 | OX16: W46 | OY16: W46 | OZ16: W46 | PA16: W46 | PB16: W46 | PC16: W46 | PD16: =Week_Name&WEEKNUM(PD9,First_Day_Week2) -> W46 | PE16: W47 | PF16: W47 | PG16: W47 | PH16: W47 | PI16: W47 | PJ16: W47 | PK16: W47 | PL16: W48 | PM16: W48 | PN16: W48 | PO16: W48 | PP16: W48 | PQ16: W48 | PR16: W48 | PS16: W49 | PT16: W49 | PU16: W49 | PV16: W49 | PW16: W49 | PX16: W49 | PY16: W49 | PZ16: W50 | QA16: W50 | QB16: W50 | QC16: W50 | QD16: W50 | QE16: W50 | QF16: W50 | QG16: W51 | QH16: W51 | QI16: W51 | QJ16: W51 | QK16: W51 | QL16: W51 | QM16: W51 | QN16: W52 | QO16: W52 | QP16: W52 | QQ16: W52 | QR16: W52 | QS16: W52 | QT16: W52 | QU16: W1 | QV16: W1 | QW16: W1 | QX16: W1 | QY16: W1 | QZ16: W1 | RA16: W1 | RB16: W2 | RC16: W2 | RD16: W2 | RE16: W2 | RF16: W2 | RG16: W2 | RH16: W2 | RI16: W3 | RJ16: W3 | RK16: W3 | RL16: W3 | RM16: W3 | RN16: W3 | RO16: W3 | RP16: =Week_Name&WEEKNUM(RP9,First_Day_Week2) -> W4 | RQ16: W4 | RR16: W4 | RS16: W4 | RT16: W4 | RU16: W4 | RV16: W4 | RW16: W5 | RX16: W5 | RY16: W5 | RZ16: W5 | SA16: W5 | SB16: W5 | SC16: W5 | SD16: W6 | SE16: W6 | SF16: W6 | SG16: W6 | SH16: W6 | SI16: W6 | SJ16: W6 | SK16: W7 | SL16: W7 | SM16: W7 | SN16: W7 | SO16: W7 | SP16: W7 | SQ16: W7 | SR16: W8 | SS16: W8 | ST16: W8 | SU16: W8 | SV16: W8 | SW16: W8 | SX16: W8 | SY16: W9 | SZ16: W9 | TA16: W9 | TB16: W9 | TC16: W9 | TD16: W9 | TE16: W9 | TF16: W10 | TG16: W10 | TH16: W10 | TI16: W10 | TJ16: W10 | TK16: W10 | TL16: W10 | TM16: W11 | TN16: W11 | TO16: W11 | TP16: W11 | TQ16: W11 | TR16: W11 | TS16: W11 | TT16: W12 | TU16: W12 | TV16: W12 | TW16: W12 | TX16: W12 | TY16: W12 | TZ16: W12 | UA16: W13 | UB16: =Week_Name&WEEKNUM(UB9,First_Day_Week2) -> W13 | UC16: W13 | UD16: W13 | UE16: W13 | UF16: W13 | UG16: W13 | UH16: W14 | UI16: W14 | UJ16: W14 | UK16: W14 | UL16: W14 | UM16: W14
Q17: Planning | AE17: Budget | AI17: Commentaires | AJ17: =IF(TEXT(AJ9,"ddd")="ddd",UPPER(LEFT(TEXT(AJ9,"jjj"),1)),UPPER(LEFT(TEXT(AJ9,"ddd"),1))) -> L | AK17: M | AL17: M | AM17: J | AN17: V | AO17: S | AP17: D | AQ17: L | AR17: M | AS17: M | AT17: J | AU17: V | AV17: S | AW17: D | AX17: L | AY17: M | AZ17: M | BA17: J | BB17: V | BC17: S | BD17: D | BE17: L | BF17: M | BG17: M | BH17: J | BI17: V | BJ17: S | BK17: D | BL17: L | BM17: M | BN17: M | BO17: J | BP17: V | BQ17: S | BR17: D | BS17: L | BT17: M | BU17: M | BV17: J | BW17: V | BX17: S | BY17: D | BZ17: L | CA17: M | CB17: M | CC17: J | CD17: V | CE17: S | CF17: D | CG17: L | CH17: M | CI17: M | CJ17: J | CK17: V | CL17: S | CM17: D | CN17: L | CO17: M | CP17: M | CQ17: J | CR17: V | CS17: S | CT17: D | CU17: L | CV17: =IF(TEXT(CV9,"ddd")="ddd",UPPER(LEFT(TEXT(CV9,"jjj"),1)),UPPER(LEFT(TEXT(CV9,"ddd"),1))) -> M | CW17: M | CX17: J | CY17: V | CZ17: S | DA17: D | DB17: L | DC17: M | DD17: M | DE17: J | DF17: V | DG17: S | DH17: D | DI17: L | DJ17: M | DK17: M | DL17: J | DM17: V | DN17: S | DO17: D | DP17: L | DQ17: M | DR17: M | DS17: J | DT17: V | DU17: S | DV17: D | DW17: L | DX17: M | DY17: M | DZ17: J | EA17: V | EB17: S | EC17: D | ED17: L | EE17: M | EF17: M | EG17: J | EH17: V | EI17: S | EJ17: D | EK17: L | EL17: M | EM17: M | EN17: J | EO17: V | EP17: S | EQ17: D | ER17: L | ES17: M | ET17: M | EU17: J | EV17: V | EW17: S | EX17: D | EY17: L | EZ17: M | FA17: M | FB17: J | FC17: V | FD17: S | FE17: D | FF17: L | FG17: M | FH17: =IF(TEXT(FH9,"ddd")="ddd",UPPER(LEFT(TEXT(FH9,"jjj"),1)),UPPER(LEFT(TEXT(FH9,"ddd"),1))) -> M | FI17: J | FJ17: V | FK17: S | FL17: D | FM17: L | FN17: M | FO17: M | FP17: J | FQ17: V | FR17: S | FS17: D | FT17: L | FU17: M | FV17: M | FW17: J | FX17: V | FY17: S | FZ17: D | GA17: L | GB17: M | GC17: M | GD17: J | GE17: V | GF17: S | GG17: D | GH17: L | GI17: M | GJ17: M | GK17: J | GL17: V | GM17: S | GN17: D | GO17: L | GP17: M | GQ17: M | GR17: J | GS17: V | GT17: S | GU17: D | GV17: L | GW17: M | GX17: M | GY17: J | GZ17: V | HA17: S | HB17: D | HC17: L | HD17: M | HE17: M | HF17: J | HG17: V | HH17: S | HI17: D | HJ17: L | HK17: M | HL17: M | HM17: J | HN17: V | HO17: S | HP17: D | HQ17: L | HR17: M | HS17: M | HT17: =IF(TEXT(HT9,"ddd")="ddd",UPPER(LEFT(TEXT(HT9,"jjj"),1)),UPPER(LEFT(TEXT(HT9,"ddd"),1))) -> J | HU17: V | HV17: S | HW17: D | HX17: L | HY17: M | HZ17: M | IA17: J | IB17: V | IC17: S | ID17: D | IE17: L | IF17: M | IG17: M | IH17: J | II17: V | IJ17: S | IK17: D | IL17: L | IM17: M | IN17: M | IO17: J | IP17: V | IQ17: S | IR17: D | IS17: L | IT17: M | IU17: M | IV17: J | IW17: V | IX17: S | IY17: D | IZ17: L | JA17: M | JB17: M | JC17: J | JD17: V | JE17: S | JF17: D | JG17: L | JH17: M | JI17: M | JJ17: J | JK17: V | JL17: S | JM17: D | JN17: L | JO17: M | JP17: M | JQ17: J | JR17: V | JS17: S | JT17: D | JU17: L | JV17: M | JW17: M | JX17: J | JY17: V | JZ17: S | KA17: D | KB17: L | KC17: M | KD17: M | KE17: J | KF17: =IF(TEXT(KF9,"ddd")="ddd",UPPER(LEFT(TEXT(KF9,"jjj"),1)),UPPER(LEFT(TEXT(KF9,"ddd"),1))) -> V | KG17: S | KH17: D | KI17: L | KJ17: M | KK17: M | KL17: J | KM17: V | KN17: S | KO17: D | KP17: L | KQ17: M | KR17: M | KS17: J | KT17: V | KU17: S | KV17: D | KW17: L | KX17: M | KY17: M | KZ17: J | LA17: V | LB17: S | LC17: D | LD17: L | LE17: M | LF17: M | LG17: J | LH17: V | LI17: S | LJ17: D | LK17: L | LL17: M | LM17: M | LN17: J | LO17: V | LP17: S | LQ17: D | LR17: L | LS17: M | LT17: M | LU17: J | LV17: V | LW17: S | LX17: D | LY17: L | LZ17: M | MA17: M | MB17: J | MC17: V | MD17: S | ME17: D | MF17: L | MG17: M | MH17: M | MI17: J | MJ17: V | MK17: S | ML17: D | MM17: L | MN17: M | MO17: M | MP17: J | MQ17: V | MR17: =IF(TEXT(MR9,"ddd")="ddd",UPPER(LEFT(TEXT(MR9,"jjj"),1)),UPPER(LEFT(TEXT(MR9,"ddd"),1))) -> S | MS17: D | MT17: L | MU17: M | MV17: M | MW17: J | MX17: V | MY17: S | MZ17: D | NA17: L | NB17: M | NC17: M | ND17: J | NE17: V | NF17: S | NG17: D | NH17: L | NI17: M | NJ17: M | NK17: J | NL17: V | NM17: S | NN17: D | NO17: L | NP17: M | NQ17: M | NR17: J | NS17: V | NT17: S | NU17: D | NV17: L | NW17: M | NX17: M | NY17: J | NZ17: V | OA17: S | OB17: D | OC17: L | OD17: M | OE17: M | OF17: J | OG17: V | OH17: S | OI17: D | OJ17: L | OK17: M | OL17: M | OM17: J | ON17: V | OO17: S | OP17: D | OQ17: L | OR17: M | OS17: M | OT17: J | OU17: V | OV17: S | OW17: D | OX17: L | OY17: M | OZ17: M | PA17: J | PB17: V | PC17: S | PD17: =IF(TEXT(PD9,"ddd")="ddd",UPPER(LEFT(TEXT(PD9,"jjj"),1)),UPPER(LEFT(TEXT(PD9,"ddd"),1))) -> D | PE17: L | PF17: M | PG17: M | PH17: J | PI17: V | PJ17: S | PK17: D | PL17: L | PM17: M | PN17: M | PO17: J | PP17: V | PQ17: S | PR17: D | PS17: L | PT17: M | PU17: M | PV17: J | PW17: V | PX17: S | PY17: D | PZ17: L | QA17: M | QB17: M | QC17: J | QD17: V | QE17: S | QF17: D | QG17: L | QH17: M | QI17: M | QJ17: J | QK17: V | QL17: S | QM17: D | QN17: L | QO17: M | QP17: M | QQ17: J | QR17: V | QS17: S | QT17: D | QU17: L | QV17: M | QW17: M | QX17: J | QY17: V | QZ17: S | RA17: D | RB17: L | RC17: M | RD17: M | RE17: J | RF17: V | RG17: S | RH17: D | RI17: L | RJ17: M | RK17: M | RL17: J | RM17: V | RN17: S | RO17: D | RP17: =IF(TEXT(RP9,"ddd")="ddd",UPPER(LEFT(TEXT(RP9,"jjj"),1)),UPPER(LEFT(TEXT(RP9,"ddd"),1))) -> L | RQ17: M | RR17: M | RS17: J | RT17: V | RU17: S | RV17: D | RW17: L | RX17: M | RY17: M | RZ17: J | SA17: V | SB17: S | SC17: D | SD17: L | SE17: M | SF17: M | SG17: J | SH17: V | SI17: S | SJ17: D | SK17: L | SL17: M | SM17: M | SN17: J | SO17: V | SP17: S | SQ17: D | SR17: L | SS17: M | ST17: M | SU17: J | SV17: V | SW17: S | SX17: D | SY17: L | SZ17: M | TA17: M | TB17: J | TC17: V | TD17: S | TE17: D | TF17: L | TG17: M | TH17: M | TI17: J | TJ17: V | TK17: S | TL17: D | TM17: L | TN17: M | TO17: M | TP17: J | TQ17: V | TR17: S | TS17: D | TT17: L | TU17: M | TV17: M | TW17: J | TX17: V | TY17: S | TZ17: D | UA17: L | UB17: =IF(TEXT(UB9,"ddd")="ddd",UPPER(LEFT(TEXT(UB9,"jjj"),1)),UPPER(LEFT(TEXT(UB9,"ddd"),1))) -> M | UC17: M | UD17: J | UE17: V | UF17: S | UG17: D | UH17: L | UI17: M | UJ17: M | UK17: J | UL17: V | UM17: S
P18: Resp. | Q18: Couleurs | R18: Niv. Taches | S18: Début | T18: Durée | V18: Recal. Dur. | W18: Jours ouvrés | X18: Normal | Y18: Échéance | Z18: Début Recalculé | AA18: Fin Recalculée | AB18: Statut | AE18: Estim. | AF18: Réel | AG18: % | AJ18: =AJ9 -> 2016-10-31 | AK18: 2016-11-01 | AL18: 2016-11-02 | AM18: 2016-11-03 | AN18: 2016-11-04 | AO18: 2016-11-05 | AP18: 2016-11-06 | AQ18: 2016-11-07 | AR18: 2016-11-08 | AS18: 2016-11-09 | AT18: 2016-11-10 | AU18: 2016-11-11 | AV18: 2016-11-12 | AW18: 2016-11-13 | AX18: 2016-11-14 | AY18: 2016-11-15 | AZ18: 2016-11-16 | BA18: 2016-11-17 | BB18: 2016-11-18 | BC18: 2016-11-19 | BD18: 2016-11-20 | BE18: 2016-11-21 | BF18: 2016-11-22 | BG18: 2016-11-23 | BH18: 2016-11-24 | BI18: 2016-11-25 | BJ18: 2016-11-26 | BK18: 2016-11-27 | BL18: 2016-11-28 | BM18: 2016-11-29 | BN18: 2016-11-30 | BO18: 2016-12-01 | BP18: 2016-12-02 | BQ18: 2016-12-03 | BR18: 2016-12-04 | BS18: 2016-12-05 | BT18: 2016-12-06 | BU18: 2016-12-07 | BV18: 2016-12-08 | BW18: 2016-12-09 | BX18: 2016-12-10 | BY18: 2016-12-11 | BZ18: 2016-12-12 | CA18: 2016-12-13 | CB18: 2016-12-14 | CC18: 2016-12-15 | CD18: 2016-12-16 | CE18: 2016-12-17 | CF18: 2016-12-18 | CG18: 2016-12-19 | CH18: 2016-12-20 | CI18: 2016-12-21 | CJ18: 2016-12-22 | CK18: 2016-12-23 | CL18: 2016-12-24 | CM18: 2016-12-25 | CN18: 2016-12-26 | CO18: 2016-12-27 | CP18: 2016-12-28 | CQ18: 2016-12-29 | CR18: 2016-12-30 | CS18: 2016-12-31 | CT18: 2017-01-01 | CU18: 2017-01-02 | CV18: =CV9 -> 2017-01-03 | CW18: 2017-01-04 | CX18: 2017-01-05 | CY18: 2017-01-06 | CZ18: 2017-01-07 | DA18: 2017-01-08 | DB18: 2017-01-09 | DC18: 2017-01-10 | DD18: 2017-01-11 | DE18: 2017-01-12 | DF18: 2017-01-13 | DG18: 2017-01-14 | DH18: 2017-01-15 | DI18: 2017-01-16 | DJ18: 2017-01-17 | DK18: 2017-01-18 | DL18: 2017-01-19 | DM18: 2017-01-20 | DN18: 2017-01-21 | DO18: 2017-01-22 | DP18: 2017-01-23 | DQ18: 2017-01-24 | DR18: 2017-01-25 | DS18: 2017-01-26 | DT18: 2017-01-27 | DU18: 2017-01-28 | DV18: 2017-01-29 | DW18: 2017-01-30 | DX18: 2017-01-31 | DY18: 2017-02-01 | DZ18: 2017-02-02 | EA18: 2017-02-03 | EB18: 2017-02-04 | EC18: 2017-02-05 | ED18: 2017-02-06 | EE18: 2017-02-07 | EF18: 2017-02-08 | EG18: 2017-02-09 | EH18: 2017-02-10 | EI18: 2017-02-11 | EJ18: 2017-02-12 | EK18: 2017-02-13 | EL18: 2017-02-14 | EM18: 2017-02-15 | EN18: 2017-02-16 | EO18: 2017-02-17 | EP18: 2017-02-18 | EQ18: 2017-02-19 | ER18: 2017-02-20 | ES18: 2017-02-21 | ET18: 2017-02-22 | EU18: 2017-02-23 | EV18: 2017-02-24 | EW18: 2017-02-25 | EX18: 2017-02-26 | EY18: 2017-02-27 | EZ18: 2017-02-28 | FA18: 2017-03-01 | FB18: 2017-03-02 | FC18: 2017-03-03 | FD18: 2017-03-04 | FE18: 2017-03-05 | FF18: 2017-03-06 | FG18: 2017-03-07 | FH18: =FH9 -> 2017-03-08 | FI18: 2017-03-09 | FJ18: 2017-03-10 | FK18: 2017-03-11 | FL18: 2017-03-12 | FM18: 2017-03-13 | FN18: 2017-03-14 | FO18: 2017-03-15 | FP18: 2017-03-16 | FQ18: 2017-03-17 | FR18: 2017-03-18 | FS18: 2017-03-19 | FT18: 2017-03-20 | FU18: 2017-03-21 | FV18: 2017-03-22 | FW18: 2017-03-23 | FX18: 2017-03-24 | FY18: 2017-03-25 | FZ18: 2017-03-26 | GA18: 2017-03-27 | GB18: 2017-03-28 | GC18: 2017-03-29 | GD18: 2017-03-30 | GE18: 2017-03-31 | GF18: 2017-04-01 | GG18: 2017-04-02 | GH18: 2017-04-03 | GI18: 2017-04-04 | GJ18: 2017-04-05 | GK18: 2017-04-06 | GL18: 2017-04-07 | GM18: 2017-04-08 | GN18: 2017-04-09 | GO18: 2017-04-10 | GP18: 2017-04-11 | GQ18: 2017-04-12 | GR18: 2017-04-13 | GS18: 2017-04-14 | GT18: 2017-04-15 | GU18: 2017-04-16 | GV18: 2017-04-17 | GW18: 2017-04-18 | GX18: 2017-04-19 | GY18: 2017-04-20 | GZ18: 2017-04-21 | HA18: 2017-04-22 | HB18: 2017-04-23 | HC18: 2017-04-24 | HD18: 2017-04-25 | HE18: 2017-04-26 | HF18: 2017-04-27 | HG18: 2017-04-28 | HH18: 2017-04-29 | HI18: 2017-04-30 | HJ18: 2017-05-01 | HK18: 2017-05-02 | HL18: 2017-05-03 | HM18: 2017-05-04 | HN18: 2017-05-05 | HO18: 2017-05-06 | HP18: 2017-05-07 | HQ18: 2017-05-08 | HR18: 2017-05-09 | HS18: 2017-05-10 | HT18: =HT9 -> 2017-05-11 | HU18: 2017-05-12 | HV18: 2017-05-13 | HW18: 2017-05-14 | HX18: 2017-05-15 | HY18: 2017-05-16 | HZ18: 2017-05-17 | IA18: 2017-05-18 | IB18: 2017-05-19 | IC18: 2017-05-20 | ID18: 2017-05-21 | IE18: 2017-05-22 | IF18: 2017-05-23 | IG18: 2017-05-24 | IH18: 2017-05-25 | II18: 2017-05-26 | IJ18: 2017-05-27 | IK18: 2017-05-28 | IL18: 2017-05-29 | IM18: 2017-05-30 | IN18: 2017-05-31 | IO18: 2017-06-01 | IP18: 2017-06-02 | IQ18: 2017-06-03 | IR18: 2017-06-04 | IS18: 2017-06-05 | IT18: 2017-06-06 | IU18: 2017-06-07 | IV18: 2017-06-08 | IW18: 2017-06-09 | IX18: 2017-06-10 | IY18: 2017-06-11 | IZ18: 2017-06-12 | JA18: 2017-06-13 | JB18: 2017-06-14 | JC18: 2017-06-15 | JD18: 2017-06-16 | JE18: 2017-06-17 | JF18: 2017-06-18 | JG18: 2017-06-19 | JH18: 2017-06-20 | JI18: 2017-06-21 | JJ18: 2017-06-22 | JK18: 2017-06-23 | JL18: 2017-06-24 | JM18: 2017-06-25 | JN18: 2017-06-26 | JO18: 2017-06-27 | JP18: 2017-06-28 | JQ18: 2017-06-29 | JR18: 2017-06-30 | JS18: 2017-07-01 | JT18: 2017-07-02 | JU18: 2017-07-03 | JV18: 2017-07-04 | JW18: 2017-07-05 | JX18: 2017-07-06 | JY18: 2017-07-07 | JZ18: 2017-07-08 | KA18: 2017-07-09 | KB18: 2017-07-10 | KC18: 2017-07-11 | KD18: 2017-07-12 | KE18: 2017-07-13 | KF18: =KF9 -> 2017-07-14 | KG18: 2017-07-15 | KH18: 2017-07-16 | KI18: 2017-07-17 | KJ18: 2017-07-18 | KK18: 2017-07-19 | KL18: 2017-07-20 | KM18: 2017-07-21 | KN18: 2017-07-22 | KO18: 2017-07-23 | KP18: 2017-07-24 | KQ18: 2017-07-25 | KR18: 2017-07-26 | KS18: 2017-07-27 | KT18: 2017-07-28 | KU18: 2017-07-29 | KV18: 2017-07-30 | KW18: 2017-07-31 | KX18: 2017-08-01 | KY18: 2017-08-02 | KZ18: 2017-08-03 | LA18: 2017-08-04 | LB18: 2017-08-05 | LC18: 2017-08-06 | LD18: 2017-08-07 | LE18: 2017-08-08 | LF18: 2017-08-09 | LG18: 2017-08-10 | LH18: 2017-08-11 | LI18: 2017-08-12 | LJ18: 2017-08-13 | LK18: 2017-08-14 | LL18: 2017-08-15 | LM18: 2017-08-16 | LN18: 2017-08-17 | LO18: 2017-08-18 | LP18: 2017-08-19 | LQ18: 2017-08-20 | LR18: 2017-08-21 | LS18: 2017-08-22 | LT18: 2017-08-23 | LU18: 2017-08-24 | LV18: 2017-08-25 | LW18: 2017-08-26 | LX18: 2017-08-27 | LY18: 2017-08-28 | LZ18: 2017-08-29 | MA18: 2017-08-30 | MB18: 2017-08-31 | MC18: 2017-09-01 | MD18: 2017-09-02 | ME18: 2017-09-03 | MF18: 2017-09-04 | MG18: 2017-09-05 | MH18: 2017-09-06 | MI18: 2017-09-07 | MJ18: 2017-09-08 | MK18: 2017-09-09 | ML18: 2017-09-10 | MM18: 2017-09-11 | MN18: 2017-09-12 | MO18: 2017-09-13 | MP18: 2017-09-14 | MQ18: 2017-09-15 | MR18: =MR9 -> 2017-09-16 | MS18: 2017-09-17 | MT18: 2017-09-18 | MU18: 2017-09-19 | MV18: 2017-09-20 | MW18: 2017-09-21 | MX18: 2017-09-22 | MY18: 2017-09-23 | MZ18: 2017-09-24 | NA18: 2017-09-25 | NB18: 2017-09-26 | NC18: 2017-09-27 | ND18: 2017-09-28 | NE18: 2017-09-29 | NF18: 2017-09-30 | NG18: 2017-10-01 | NH18: 2017-10-02 | NI18: 2017-10-03 | NJ18: 2017-10-04 | NK18: 2017-10-05 | NL18: 2017-10-06 | NM18: 2017-10-07 | NN18: 2017-10-08 | NO18: 2017-10-09 | NP18: 2017-10-10 | NQ18: 2017-10-11 | NR18: 2017-10-12 | NS18: 2017-10-13 | NT18: 2017-10-14 | NU18: 2017-10-15 | NV18: 2017-10-16 | NW18: 2017-10-17 | NX18: 2017-10-18 | NY18: 2017-10-19 | NZ18: 2017-10-20 | OA18: 2017-10-21 | OB18: 2017-10-22 | OC18: 2017-10-23 | OD18: 2017-10-24 | OE18: 2017-10-25 | OF18: 2017-10-26 | OG18: 2017-10-27 | OH18: 2017-10-28 | OI18: 2017-10-29 | OJ18: 2017-10-30 | OK18: 2017-10-31 | OL18: 2017-11-01 | OM18: 2017-11-02 | ON18: 2017-11-03 | OO18: 2017-11-04 | OP18: 2017-11-05 | OQ18: 2017-11-06 | OR18: 2017-11-07 | OS18: 2017-11-08 | OT18: 2017-11-09 | OU18: 2017-11-10 | OV18: 2017-11-11 | OW18: 2017-11-12 | OX18: 2017-11-13 | OY18: 2017-11-14 | OZ18: 2017-11-15 | PA18: 2017-11-16 | PB18: 2017-11-17 | PC18: 2017-11-18 | PD18: =PD9 -> 2017-11-19 | PE18: 2017-11-20 | PF18: 2017-11-21 | PG18: 2017-11-22 | PH18: 2017-11-23 | PI18: 2017-11-24 | PJ18: 2017-11-25 | PK18: 2017-11-26 | PL18: 2017-11-27 | PM18: 2017-11-28 | PN18: 2017-11-29 | PO18: 2017-11-30 | PP18: 2017-12-01 | PQ18: 2017-12-02 | PR18: 2017-12-03 | PS18: 2017-12-04 | PT18: 2017-12-05 | PU18: 2017-12-06 | PV18: 2017-12-07 | PW18: 2017-12-08 | PX18: 2017-12-09 | PY18: 2017-12-10 | PZ18: 2017-12-11 | QA18: 2017-12-12 | QB18: 2017-12-13 | QC18: 2017-12-14 | QD18: 2017-12-15 | QE18: 2017-12-16 | QF18: 2017-12-17 | QG18: 2017-12-18 | QH18: 2017-12-19 | QI18: 2017-12-20 | QJ18: 2017-12-21 | QK18: 2017-12-22 | QL18: 2017-12-23 | QM18: 2017-12-24 | QN18: 2017-12-25 | QO18: 2017-12-26 | QP18: 2017-12-27 | QQ18: 2017-12-28 | QR18: 2017-12-29 | QS18: 2017-12-30 | QT18: 2017-12-31 | QU18: 2018-01-01 | QV18: 2018-01-02 | QW18: 2018-01-03 | QX18: 2018-01-04 | QY18: 2018-01-05 | QZ18: 2018-01-06 | RA18: 2018-01-07 | RB18: 2018-01-08 | RC18: 2018-01-09 | RD18: 2018-01-10 | RE18: 2018-01-11 | RF18: 2018-01-12 | RG18: 2018-01-13 | RH18: 2018-01-14 | RI18: 2018-01-15 | RJ18: 2018-01-16 | RK18: 2018-01-17 | RL18: 2018-01-18 | RM18: 2018-01-19 | RN18: 2018-01-20 | RO18: 2018-01-21 | RP18: =RP9 -> 2018-01-22 | RQ18: 2018-01-23 | RR18: 2018-01-24 | RS18: 2018-01-25 | RT18: 2018-01-26 | RU18: 2018-01-27 | RV18: 2018-01-28 | RW18: 2018-01-29 | RX18: 2018-01-30 | RY18: 2018-01-31 | RZ18: 2018-02-01 | SA18: 2018-02-02 | SB18: 2018-02-03 | SC18: 2018-02-04 | SD18: 2018-02-05 | SE18: 2018-02-06 | SF18: 2018-02-07 | SG18: 2018-02-08 | SH18: 2018-02-09 | SI18: 2018-02-10 | SJ18: 2018-02-11 | SK18: 2018-02-12 | SL18: 2018-02-13 | SM18: 2018-02-14 | SN18: 2018-02-15 | SO18: 2018-02-16 | SP18: 2018-02-17 | SQ18: 2018-02-18 | SR18: 2018-02-19 | SS18: 2018-02-20 | ST18: 2018-02-21 | SU18: 2018-02-22 | SV18: 2018-02-23 | SW18: 2018-02-24 | SX18: 2018-02-25 | SY18: 2018-02-26 | SZ18: 2018-02-27 | TA18: 2018-02-28 | TB18: 2018-03-01 | TC18: 2018-03-02 | TD18: 2018-03-03 | TE18: 2018-03-04 | TF18: 2018-03-05 | TG18: 2018-03-06 | TH18: 2018-03-07 | TI18: 2018-03-08 | TJ18: 2018-03-09 | TK18: 2018-03-10 | TL18: 2018-03-11 | TM18: 2018-03-12 | TN18: 2018-03-13 | TO18: 2018-03-14 | TP18: 2018-03-15 | TQ18: 2018-03-16 | TR18: 2018-03-17 | TS18: 2018-03-18 | TT18: 2018-03-19 | TU18: 2018-03-20 | TV18: 2018-03-21 | TW18: 2018-03-22 | TX18: 2018-03-23 | TY18: 2018-03-24 | TZ18: 2018-03-25 | UA18: 2018-03-26 | UB18: =UB9 -> 2018-03-27 | UC18: 2018-03-28 | UD18: 2018-03-29 | UE18: 2018-03-30 | UF18: 2018-03-31 | UG18: 2018-04-01 | UH18: 2018-04-02 | UI18: 2018-04-03 | UJ18: 2018-04-04 | UK18: 2018-04-05 | UL18: 2018-04-06 | UM18: 2018-04-07
K19: 0 | M19: Tache | R19: 1 | S19: =MIN(Z20:Z21) -> 2016-11-08 | T19: =Y19-S19+1 -> 4 | Y19: =MAX(AA20:AA21) -> 2016-11-11 | AB19: =SUMPRODUCT(--(R20:R21=2),ABS(T20:T21),AB20:AB21)/SUM(ABS(T20:T21)) -> 0.2 | AC19: =S19-1+AB19*T19 -> 2016-11-07T19:12:00 | AD19: =IF(AB19<>"",IF(AND(AB19<1,AC19<$DC$7),0,1)) -> 0 | AE19: =SUMIF(R20:R21,2,AE20:AE21) -> 200 | AF19: =SUMIF(R20:R21,2,AF20:AF21) -> 0 | AG19: =IF(AND(AE19<>"",AF19<>"",AE19<>0),AF19/AE19,"") -> 0 | AH19: =AG19 -> 0
K20: 0.1 | M20: Sous-tache | P20: Mary | Q20: =IF(ISERROR(VLOOKUP(P20,Tools!$D$11:$J$57,7,FALSE)),"",VLOOKUP(P20,Tools!$D$11:$J$57,7,FALSE)) -> 5 | R20: 2 | S20: 2016-11-09 | T20: 2 | U20: j | V20: =IF(U20=dur_type_d,T20,IF(U20=dur_type_w,IF(Work_D_Only_Bool,T20*5,T20*7),IF(U20=dur_type_m,IF(Work_D_Only_Bool,NETWORKDAYS.INTL(S20,DATE(YEAR(S20),MONTH(S20)+T20,DAY(S20)-1),WE_Days,Holiday_Days),DATE(YEAR(S20),MONTH(S20)+T20,DAY(S20))-S20),"ERROR"))) -> 2 | W20: =WORKDAY.INTL(S20,IF(V20>0,IF(OR(WEEKDAY(S20,2)>=6,COUNTIF(Holiday_Days,S20)>0),V20,V20-1),IF(OR(WEEKDAY(S20,2)>=6,COUNTIF(Holiday_Days,S20)>0),V20,V20+1)),HB$7,Holiday_Days) -> 2016-11-10 | X20: =IF(V20>0,S20+V20-1,S20+V20+1) -> 2016-11-10 | Y20: =IF(S20<>"",IF($GE$7,W20,X20),"") -> 2016-11-10 | Z20: =IF(T20>0,S20,Y20) -> 2016-11-09 | AA20: =IF(T20>0,Y20,S20) -> 2016-11-10 | AB20: =SUMPRODUCT(AB21:AB22,ABS(T21:T22))/SUM(ABS(T21:T22)) -> 0.2 | AC20: =INT(Z20+AB20*(AA20-Z20)) -> 2016-11-09 | AD20: =IF(AND(AB20<1,AC20<$DC$7),0,1) -> 0 | AE20: =SUM(AE21:AE22) -> 100 | AF20: =SUM(AF21:AF22) -> 0 | AG20: =IF(AND(AE20<>"",AF20<>""),AF20/AE20,"") -> 0 | AH20: 0
K21: 0.2 | M21: Sous-tache | P21: Jade | Q21: =IF(ISERROR(VLOOKUP(P21,Tools!$D$11:$J$57,7,FALSE)),"",VLOOKUP(P21,Tools!$D$11:$J$57,7,FALSE)) -> 6 | R21: 2 | S21: =$Y20+1 -> 2016-11-11 | T21: -4 | U21: j | V21: =IF(U21=dur_type_d,T21,IF(U21=dur_type_w,IF(Work_D_Only_Bool,T21*5,T21*7),IF(U21=dur_type_m,IF(Work_D_Only_Bool,NETWORKDAYS.INTL(S21,DATE(YEAR(S21),MONTH(S21)+T21,DAY(S21)-1),WE_Days,Holiday_Days),DATE(YEAR(S21),MONTH(S21)+T21,DAY(S21))-S21),"ERROR"))) -> -4 | W21: =WORKDAY.INTL(S21,IF(V21>0,IF(OR(WEEKDAY(S21,2)>=6,COUNTIF(Holiday_Days,S21)>0),V21,V21-1),IF(OR(WEEKDAY(S21,2)>=6,COUNTIF(Holiday_Days,S21)>0),V21,V21+1)),HB$7,Holiday_Days) -> 2016-11-08 | X21: =IF(V21>0,S21+V21-1,S21+V21+1) -> 2016-11-08 | Y21: =IF(S21<>"",IF($GE$7,W21,X21),"") -> 2016-11-08 | Z21: =IF(T21>0,S21,Y21) -> 2016-11-08 | AA21: =IF(T21>0,Y21,S21) -> 2016-11-11 | AB21: 0.2 | AC21: =INT(Z21+AB21*(AA21-Z21)) -> 2016-11-08 | AD21: =IF(AND(AB21<1,AC21<$DC$7),0,1) -> 0 | AE21: 100 | AF21: 0 | AG21: =IF(AND(AE21<>"",AF21<>""),AF21/AE21,"") -> 0 | AH21: 0
K22: MS | M22: Jalon | R22: 0 | S22: 2016-11-13
K23: 1 | M23: Tache | R23: 1 | S23: =MIN(Z24:Z26) -> 2016-11-02 | T23: =Y23-S23+1 -> 9 | Y23: =MAX(AA24:AA26) -> 2016-11-10 | AB23: =SUMPRODUCT(AA24:AA26,AB24:AB26)/SUM(AA24:AA26) -> 0.3666494845 | AC23: =S23-1+AB23*T23 -> 2016-11-04T07:11:46.639 | AD23: =IF(AB23<>"",IF(AND(AB23<1,AC23<$DC$7),0,1)) -> 0 | AE23: =SUM(AE24:AE26) -> 300 | AF23: =SUM(AF24:AF26) -> 50 | AG23: =IF(AND(AE23<>"",AF23<>"",AE23<>0),AF23/AE23,"") -> 0.1666666667 | AH23: =AG23 -> 0.1666666667
K24: 1.1 | M24: Sous-tache | P24: Jade | Q24: =IF(ISERROR(VLOOKUP(P24,Tools!$D$11:$J$57,7,FALSE)),"",VLOOKUP(P24,Tools!$D$11:$J$57,7,FALSE)) -> 6 | R24: 2 | S24: =MIN(Z25:Z25) -> 2016-11-02 | T24: =Y24-S24+1 -> 3 | U24: j | V24: =IF(U24=dur_type_d,T24,IF(U24=dur_type_w,IF(Work_D_Only_Bool,T24*5,T24*7),IF(U24=dur_type_m,IF(Work_D_Only_Bool,NETWORKDAYS.INTL(S24,DATE(YEAR(S24),MONTH(S24)+T24,DAY(S24)-1),WE_Days,Holiday_Days),DATE(YEAR(S24),MONTH(S24)+T24,DAY(S24))-S24),"ERROR"))) -> 3 | W24: =WORKDAY.INTL(S24,IF(V24>0,IF(OR(WEEKDAY(S24,2)>=6,COUNTIF(Holiday_Days,S24)>0),V24,V24-1),IF(OR(WEEKDAY(S24,2)>=6,COUNTIF(Holiday_Days,S24)>0),V24,V24+1)),HB$7,Holiday_Days) -> 2016-11-04 | X24: =IF(V24>0,S24+V24-1,S24+V24+1) -> 2016-11-04 | Y24: =MAX(AA25:AA25) -> 2016-11-04 | Z24: =IF(T24>0,S24,Y24) -> 2016-11-02 | AA24: =IF(T24>0,Y24,S24) -> 2016-11-04 | AB24: 0.1 | AC24: =INT(Z24+AB24*(AA24-Z24)) -> 2016-11-02 | AD24: =IF(AND(AB24<1,AC24<$DC$7),0,1) -> 0 | AE24: 100 | AF24: 0 | AG24: =IF(AND(AE24<>"",AF24<>""),AF24/AE24,"") -> 0 | AH24: =AG24 -> 0
K25: 1.1.1 | M25: Sous-tache | P25: Jade | Q25: =IF(ISERROR(VLOOKUP(P25,Tools!$D$11:$J$57,7,FALSE)),"",VLOOKUP(P25,Tools!$D$11:$J$57,7,FALSE)) -> 6 | R25: 3 | S25: 2016-11-02 | T25: 3 | U25: j | V25: =IF(U25=dur_type_d,T25,IF(U25=dur_type_w,IF(Work_D_Only_Bool,T25*5,T25*7),IF(U25=dur_type_m,IF(Work_D_Only_Bool,NETWORKDAYS.INTL(S25,DATE(YEAR(S25),MONTH(S25)+T25,DAY(S25)-1),WE_Days,Holiday_Days),DATE(YEAR(S25),MONTH(S25)+T25,DAY(S25))-S25),"ERROR"))) -> 3 | W25: =WORKDAY.INTL(S25,IF(V25>0,IF(OR(WEEKDAY(S25,2)>=6,COUNTIF(Holiday_Days,S25)>0),V25,V25-1),IF(OR(WEEKDAY(S25,2)>=6,COUNTIF(Holiday_Days,S25)>0),V25,V25+1)),HB$7,Holiday_Days) -> 2016-11-04 | X25: =IF(V25>0,S25+V25-1,S25+V25+1) -> 2016-11-04 | Y25: =IF(S25<>"",IF($GE$7,W25,X25),"") -> 2016-11-04 | Z25: =IF(T25>0,S25,Y25) -> 2016-11-02 | AA25: =IF(T25>0,Y25,S25) -> 2016-11-04 | AB25: 1 | AC25: =INT(Z25+AB25*(AA25-Z25)) -> 2016-11-04 | AD25: =IF(AND(AB25<1,AC25<$DC$7),0,1) -> 1 | AE25: 100 | AF25: 50 | AG25: =IF(AND(AE25<>"",AF25<>""),AF25/AE25,"") -> 0.5 | AH25: 0.5
K26: 1.2 | M26: Sous-tache | P26: Rony | Q26: =IF(ISERROR(VLOOKUP(P26,Tools!$D$11:$J$57,7,FALSE)),"",VLOOKUP(P26,Tools!$D$11:$J$57,7,FALSE)) -> 3 | R26: 2 | S26: 2016-11-06 | T26: 5 | U26: j | V26: =IF(U26=dur_type_d,T26,IF(U26=dur_type_w,IF(Work_D_Only_Bool,T26*5,T26*7),IF(U26=dur_type_m,IF(Work_D_Only_Bool,NETWORKDAYS.INTL(S26,DATE(YEAR(S26),MONTH(S26)+T26,DAY(S26)-1),WE_Days,Holiday_Days),DATE(YEAR(S26),MONTH(S26)+T26,DAY(S26))-S26),"ERROR"))) -> 5 | W26: =WORKDAY.INTL(S26,IF(V26>0,IF(OR(WEEKDAY(S26,2)>=6,COUNTIF(Holiday_Days,S26)>0),V26,V26-1),IF(OR(WEEKDAY(S26,2)>=6,COUNTIF(Holiday_Days,S26)>0),V26,V26+1)),HB$7,Holiday_Days) -> 2016-11-11 | X26: =IF(V26>0,S26+V26-1,S26+V26+1) -> 2016-11-10 | Y26: =IF(S26<>"",IF($GE$7,W26,X26),"") -> 2016-11-10 | Z26: 2016-11-06 | AA26: 2016-11-10 | AB26: 0 | AC26: =INT(Z26+AB26*(AA26-Z26)) -> 2016-11-06 | AD26: 0 | AE26: 100 | AF26: 0 | AG26: =IF(AND(AE26<>"",AF26<>""),AF26/AE26,"") -> 0 | AH26: =AG26 -> 0
K27: 2 | M27: Tache | R27: 1 | S27: =MIN(Z28:Z29) -> 2016-11-01 | T27: =Y27-S27+1 -> 5 | W27: =WORKDAY.INTL(S27,IF(T27>0,IF(OR(WEEKDAY(S27,2)>=6,COUNTIF(Holiday_Days,S27)>0),T27,T27-1),IF(OR(WEEKDAY(S27,2)>=6,COUNTIF(Holiday_Days,S27)>0),T27,T27+1)),HB$7,Holiday_Days) -> 2016-11-07 | X27: =IF(T27>0,S27+T27-1,S27+T27+1) -> 2016-11-05 | Y27: =MAX(AA28:AA29) -> 2016-11-05 | Z27: 2016-11-01 | AA27: 2016-11-05 | AB27: =SUMPRODUCT(AA28:AA29,AB28:AB29)/SUM(AA28:AA29) -> 0 | AC27: =INT(Z27+AB27*(AA27-Z27)) -> 2016-11-01 | AD27: 0 | AE27: =SUM(AE28:AE29) -> 200 | AF27: =SUM(AF28:AF29) -> 0 | AG27: =IF(AND(AE27<>"",AF27<>""),AF27/AE27,"") -> 0 | AH27: =AG27 -> 0
K28: 2.1 | M28: Sous-tache | P28: Sara | Q28: =IF(ISERROR(VLOOKUP(P28,Tools!$D$11:$J$57,7,FALSE)),"",VLOOKUP(P28,Tools!$D$11:$J$57,7,FALSE)) -> 2 | R28: 2 | S28: 2016-11-01 | T28: 2 | U28: j | V28: =IF(U28=dur_type_d,T28,IF(U28=dur_type_w,IF(Work_D_Only_Bool,T28*5,T28*7),IF(U28=dur_type_m,IF(Work_D_Only_Bool,NETWORKDAYS.INTL(S28,DATE(YEAR(S28),MONTH(S28)+T28,DAY(S28)-1),WE_Days,Holiday_Days),DATE(YEAR(S28),MONTH(S28)+T28,DAY(S28))-S28),"ERROR"))) -> 2 | W28: =WORKDAY.INTL(S28,IF(V28>0,IF(OR(WEEKDAY(S28,2)>=6,COUNTIF(Holiday_Days,S28)>0),V28,V28-1),IF(OR(WEEKDAY(S28,2)>=6,COUNTIF(Holiday_Days,S28)>0),V28,V28+1)),HB$7,Holiday_Days) -> 2016-11-02 | X28: =IF(V28>0,S28+V28-1,S28+V28+1) -> 2016-11-02 | Y28: =IF(S28<>"",IF($GE$7,W28,X28),"") -> 2016-11-02 | Z28: 2016-11-01 | AA28: 2016-11-02 | AB28: 0 | AC28: 2016-11-01 | AD28: 0 | AE28: 100 | AF28: 0 | AG28: 0 | AH28: 0
K29: 2.2 | L29: 1 | M29: Sous-tache | P29: Rony | Q29: =IF(ISERROR(VLOOKUP(P29,Tools!$D$11:$J$57,7,FALSE)),"",VLOOKUP(P29,Tools!$D$11:$J$57,7,FALSE)) -> 3 | R29: 2 | S29: =S28 -> 2016-11-01 | T29: 5 | U29: j | V29: =IF(U29=dur_type_d,T29,IF(U29=dur_type_w,IF(Work_D_Only_Bool,T29*5,T29*7),IF(U29=dur_type_m,IF(Work_D_Only_Bool,NETWORKDAYS.INTL(S29,DATE(YEAR(S29),MONTH(S29)+T29,DAY(S29)-1),WE_Days,Holiday_Days),DATE(YEAR(S29),MONTH(S29)+T29,DAY(S29))-S29),"ERROR"))) -> 5 | W29: =WORKDAY.INTL(S29,IF(V29>0,IF(OR(WEEKDAY(S29,2)>=6,COUNTIF(Holiday_Days,S29)>0),V29,V29-1),IF(OR(WEEKDAY(S29,2)>=6,COUNTIF(Holiday_Days,S29)>0),V29,V29+1)),HB$7,Holiday_Days) -> 2016-11-07 | X29: =IF(V29>0,S29+V29-1,S29+V29+1) -> 2016-11-05 | Y29: =IF(S29<>"",IF($GE$7,W29,X29),"") -> 2016-11-05 | Z29: 2016-11-01 | AA29: 2016-11-05 | AB29: 0 | AC29: 2016-11-01 | AD29: 0 | AE29: 100 | AF29: 0 | AG29: 0 | AH29: 0
K30: 3 | M30: Tache | R30: 1 | S30: =MIN(Z31:Z35) -> 2016-11-06 | T30: =Y30-S30+1 -> 10 | Y30: =MAX(AA31:AA35) -> 2016-11-15 | AB30: =SUMPRODUCT(AA31:AA34,AB31:AB34)/SUM(AA31:AA34) -> 0.2500029283 | AC30: =S30-1+AB30*T30 -> 2016-11-07T12:00:02.530 | AD30: =IF(AB30<>"",IF(AND(AB30<1,AC30<$DC$7),0,1)) -> 0 | AE30: =SUM(AE31:AE34) -> 500 | AF30: =SUM(AF31:AF34) -> 0 | AG30: =IF(AND(AE30<>"",AF30<>"",AE30<>0),AF30/AE30,"") -> 0 | AH30: 0
K31: 3.1 | M31: Sous-tache | P31: Mary | Q31: =IF(ISERROR(VLOOKUP(P31,Tools!$D$11:$J$57,7,FALSE)),"",VLOOKUP(P31,Tools!$D$11:$J$57,7,FALSE)) -> 5 | R31: 2 | S31: 2016-11-11 | T31: 3 | U31: j | V31: =IF(U31=dur_type_d,T31,IF(U31=dur_type_w,IF(Work_D_Only_Bool,T31*5,T31*7),IF(U31=dur_type_m,IF(Work_D_Only_Bool,NETWORKDAYS.INTL(S31,DATE(YEAR(S31),MONTH(S31)+T31,DAY(S31)-1),WE_Days,Holiday_Days),DATE(YEAR(S31),MONTH(S31)+T31,DAY(S31))-S31),"ERROR"))) -> 3 | W31: =WORKDAY.INTL(S31,IF(V31>0,IF(OR(WEEKDAY(S31,2)>=6,COUNTIF(Holiday_Days,S31)>0),V31,V31-1),IF(OR(WEEKDAY(S31,2)>=6,COUNTIF(Holiday_Days,S31)>0),V31,V31+1)),HB$7,Holiday_Days) -> 2016-11-15 | X31: =IF(V31>0,S31+V31-1,S31+V31+1) -> 2016-11-13 | Y31: =IF(S31<>"",IF($GE$7,W31,X31),"") -> 2016-11-13 | Z31: =IF(T31>0,S31,Y31) -> 2016-11-11 | AA31: =IF(T31>0,Y31,S31) -> 2016-11-13 | AB31: 1 | AC31: =INT(Z31+AB31*(AA31-Z31)) -> 2016-11-13 | AD31: =IF(AND(AB31<1,AC31<$DC$7),0,1) -> 1 | AE31: 100 | AF31: 0 | AG31: =IF(AND(AE31<>"",AF31<>""),AF31/AE31,"") -> 0 | AH31: 0
K32: 3.2 | M32: Sous-tache | P32: Mary | Q32: =IF(ISERROR(VLOOKUP(P32,Tools!$D$11:$J$57,7,FALSE)),"",VLOOKUP(P32,Tools!$D$11:$J$57,7,FALSE)) -> 5 | R32: 2 | S32: =MIN(Z33:Z34) -> 2016-11-06 | T32: =Y32-S32+1 -> 10 | U32: j | V32: =IF(U32=dur_type_d,T32,IF(U32=dur_type_w,IF(Work_D_Only_Bool,T32*5,T32*7),IF(U32=dur_type_m,IF(Work_D_Only_Bool,NETWORKDAYS.INTL(S32,DATE(YEAR(S32),MONTH(S32)+T32,DAY(S32)-1),WE_Days,Holiday_Days),DATE(YEAR(S32),MONTH(S32)+T32,DAY(S32))-S32),"ERROR"))) -> 10 | W32: =WORKDAY.INTL(S32,IF(V32>0,IF(OR(WEEKDAY(S32,2)>=6,COUNTIF(Holiday_Days,S32)>0),V32,V32-1),IF(OR(WEEKDAY(S32,2)>=6,COUNTIF(Holiday_Days,S32)>0),V32,V32+1)),HB$7,Holiday_Days) -> 2016-11-18 | X32: 2016-11-15 | Y32: =MAX(AA33:AA34) -> 2016-11-15 | Z32: 2016-11-06 | AA32: 2016-11-15 | AB32: =SUMPRODUCT(AA33:AA34,AB33:AB34)/SUM(AA33:AA34) -> 0 | AC32: 2016-11-06 | AD32: 0 | AE32: =SUM(AE33:AE34) -> 200 | AF32: =SUM(AF33:AF34) -> 0 | AG32: 0 | AH32: 0
K33: 3.2.1 | M33: Sous-tache | P33: Mike | Q33: =IF(ISERROR(VLOOKUP(P33,Tools!$D$11:$J$57,7,FALSE)),"",VLOOKUP(P33,Tools!$D$11:$J$57,7,FALSE)) -> 0 | R33: 3 | S33: 2016-11-09 | T33: 7 | U33: j | V33: =IF(U33=dur_type_d,T33,IF(U33=dur_type_w,IF(Work_D_Only_Bool,T33*5,T33*7),IF(U33=dur_type_m,IF(Work_D_Only_Bool,NETWORKDAYS.INTL(S33,DATE(YEAR(S33),MONTH(S33)+T33,DAY(S33)-1),WE_Days,Holiday_Days),DATE(YEAR(S33),MONTH(S33)+T33,DAY(S33))-S33),"ERROR"))) -> 7 | W33: =WORKDAY.INTL(S33,IF(V33>0,IF(OR(WEEKDAY(S33,2)>=6,COUNTIF(Holiday_Days,S33)>0),V33,V33-1),IF(OR(WEEKDAY(S33,2)>=6,COUNTIF(Holiday_Days,S33)>0),V33,V33+1)),HB$7,Holiday_Days) -> 2016-11-17 | X33: 2016-11-15 | Y33: =IF(S33<>"",IF($GE$7,W33,X33),"") -> 2016-11-15 | Z33: 2016-11-09 | AA33: 2016-11-15 | AB33: 0 | AC33: 2016-11-09 | AD33: 0 | AE33: 100 | AF33: 0 | AG33: 0 | AH33: 0
K34: 3.2.2 | M34: Sous-tache | P34: Mary | Q34: =IF(ISERROR(VLOOKUP(P34,Tools!$D$11:$J$57,7,FALSE)),"",VLOOKUP(P34,Tools!$D$11:$J$57,7,FALSE)) -> 5 | R34: 3 | S34: 2016-11-06 | T34: 2 | U34: j | V34: =IF(U34=dur_type_d,T34,IF(U34=dur_type_w,IF(Work_D_Only_Bool,T34*5,T34*7),IF(U34=dur_type_m,IF(Work_D_Only_Bool,NETWORKDAYS.INTL(S34,DATE(YEAR(S34),MONTH(S34)+T34,DAY(S34)-1),WE_Days,Holiday_Days),DATE(YEAR(S34),MONTH(S34)+T34,DAY(S34))-S34),"ERROR"))) -> 2 | W34: =WORKDAY.INTL(S34,IF(V34>0,IF(OR(WEEKDAY(S34,2)>=6,COUNTIF(Holiday_Days,S34)>0),V34,V34-1),IF(OR(WEEKDAY(S34,2)>=6,COUNTIF(Holiday_Days,S34)>0),V34,V34+1)),HB$7,Holiday_Days) -> 2016-11-08 | X34: 2016-11-07 | Y34: =IF(S34<>"",IF($GE$7,W34,X34),"") -> 2016-11-07 | Z34: 2016-11-06 | AA34: 2016-11-07 | AB34: 0 | AC34: =INT(Z34+AB34*(AA34-Z34)) -> 2016-11-06 | AD34: 0 | AE34: 100 | AF34: 0 | AG34: =IF(AND(AE34<>"",AF34<>""),AF34/AE34,"") -> 0 | AH34: 0
K35: MS | M35: Jalon | R35: 0 | S35: 2016-11-10
K36: 4 | M36: Tache | R36: 1 | S36: =MIN(Z37:Z41) -> 2016-11-09 | T36: =Y36-S36+1 -> 5 | Y36: =MAX(AA37:AA41) -> 2016-11-13 | AB36: =SUMPRODUCT(AA37:AA41,AB37:AB41)/SUM(AA37:AA41) -> 0 | AC36: =S36-1+AB36*T36 -> 2016-11-08 | AD36: =IF(AB36<>"",IF(AND(AB36<1,AC36<$DC$7),0,1)) -> 0 | AE36: =SUM(AE37:AE41) -> 400 | AF36: =SUM(AF37:AF41) -> 0 | AG36: =IF(AND(AE36<>"",AF36<>"",AE36<>0),AF36/AE36,"") -> 0 | AH36: 0
K37: 4.1 | M37: Sous-tache | P37: Mary | Q37: =IF(ISERROR(VLOOKUP(P37,Tools!$D$11:$J$57,7,FALSE)),"",VLOOKUP(P37,Tools!$D$11:$J$57,7,FALSE)) -> 5 | R37: 2 | S37: 2016-11-09 | T37: 5 | U37: j | V37: =IF(U37=dur_type_d,T37,IF(U37=dur_type_w,IF(Work_D_Only_Bool,T37*5,T37*7),IF(U37=dur_type_m,IF(Work_D_Only_Bool,NETWORKDAYS.INTL(S37,DATE(YEAR(S37),MONTH(S37)+T37,DAY(S37)-1),WE_Days,Holiday_Days),DATE(YEAR(S37),MONTH(S37)+T37,DAY(S37))-S37),"ERROR"))) -> 5 | W37: =WORKDAY.INTL(S37,IF(V37>0,IF(OR(WEEKDAY(S37,2)>=6,COUNTIF(Holiday_Days,S37)>0),V37,V37-1),IF(OR(WEEKDAY(S37,2)>=6,COUNTIF(Holiday_Days,S37)>0),V37,V37+1)),HB$7,Holiday_Days) -> 2016-11-15 | X37: =IF(V37>0,S37+V37-1,S37+V37+1) -> 2016-11-13 | Y37: =IF(S37<>"",IF($GE$7,W37,X37),"") -> 2016-11-13 | Z37: =IF(T37>0,S37,Y37) -> 2016-11-09 | AA37: =IF(T37>0,Y37,S37) -> 2016-11-13 | AB37: 0 | AC37: =INT(Z37+AB37*(AA37-Z37)) -> 2016-11-09 | AD37: =IF(AND(AB37<1,AC37<$DC$7),0,1) -> 0 | AE37: 100 | AF37: 0 | AG37: =IF(AND(AE37<>"",AF37<>""),AF37/AE37,"") -> 0 | AH37: 0
K38: MS | M38: Jalon | R38: 0 | S38: 2016-11-01
K39: 4.2 | M39: Sous-tache | P39: Mary | Q39: =IF(ISERROR(VLOOKUP(P39,Tools!$D$11:$J$57,7,FALSE)),"",VLOOKUP(P39,Tools!$D$11:$J$57,7,FALSE)) -> 5 | R39: 2 | S39: 2016-11-09 | T39: 5 | U39: j | V39: =IF(U39=dur_type_d,T39,IF(U39=dur_type_w,IF(Work_D_Only_Bool,T39*5,T39*7),IF(U39=dur_type_m,IF(Work_D_Only_Bool,NETWORKDAYS.INTL(S39,DATE(YEAR(S39),MONTH(S39)+T39,DAY(S39)-1),WE_Days,Holiday_Days),DATE(YEAR(S39),MONTH(S39)+T39,DAY(S39))-S39),"ERROR"))) -> 5 | W39: =WORKDAY.INTL(S39,IF(V39>0,IF(OR(WEEKDAY(S39,2)>=6,COUNTIF(Holiday_Days,S39)>0),V39,V39-1),IF(OR(WEEKDAY(S39,2)>=6,COUNTIF(Holiday_Days,S39)>0),V39,V39+1)),HB$7,Holiday_Days) -> 2016-11-15 | X39: =IF(V39>0,S39+V39-1,S39+V39+1) -> 2016-11-13 | Y39: =IF(S39<>"",IF($GE$7,W39,X39),"") -> 2016-11-13 | Z39: =IF(T39>0,S39,Y39) -> 2016-11-09 | AA39: =IF(T39>0,Y39,S39) -> 2016-11-13 | AB39: 0 | AC39: 2016-11-09 | AD39: =IF(AND(AB39<1,AC39<$DC$7),0,1) -> 0 | AE39: 100 | AF39: 0 | AG39: 0 | AH39: 0
K40: 4.3 | M40: Sous-tache | P40: Mary | Q40: =IF(ISERROR(VLOOKUP(P40,Tools!$D$11:$J$57,7,FALSE)),"",VLOOKUP(P40,Tools!$D$11:$J$57,7,FALSE)) -> 5 | R40: 2 | S40: =MIN(Z41:Z41) -> 2016-11-09 | T40: =Y40-S40+1 -> 2 | U40: j | V40: =IF(U40=dur_type_d,T40,IF(U40=dur_type_w,IF(Work_D_Only_Bool,T40*5,T40*7),IF(U40=dur_type_m,IF(Work_D_Only_Bool,NETWORKDAYS.INTL(S40,DATE(YEAR(S40),MONTH(S40)+T40,DAY(S40)-1),WE_Days,Holiday_Days),DATE(YEAR(S40),MONTH(S40)+T40,DAY(S40))-S40),"ERROR"))) -> 2 | W40: =WORKDAY.INTL(S40,IF(V40>0,IF(OR(WEEKDAY(S40,2)>=6,COUNTIF(Holiday_Days,S40)>0),V40,V40-1),IF(OR(WEEKDAY(S40,2)>=6,COUNTIF(Holiday_Days,S40)>0),V40,V40+1)),HB$7,Holiday_Days) -> 2016-11-10 | X40: =IF(V40>0,S40+V40-1,S40+V40+1) -> 2016-11-10 | Y40: =MAX(AA41:AA41) -> 2016-11-10 | Z40: =IF(T40>0,S40,Y40) -> 2016-11-09 | AA40: =IF(T40>0,Y40,S40) -> 2016-11-10 | AB40: 0 | AC40: 2016-11-09 | AD40: =IF(AND(AB40<1,AC40<$DC$7),0,1) -> 0 | AE40: 100 | AF40: 0 | AG40: 0 | AH40: 0
K41: 4.3.1 | M41: Sous-tache | P41: Mary | Q41: =IF(ISERROR(VLOOKUP(P41,Tools!$D$11:$J$57,7,FALSE)),"",VLOOKUP(P41,Tools!$D$11:$J$57,7,FALSE)) -> 5 | R41: 3 | S41: 2016-11-09 | T41: 2 | U41: j | V41: =IF(U41=dur_type_d,T41,IF(U41=dur_type_w,IF(Work_D_Only_Bool,T41*5,T41*7),IF(U41=dur_type_m,IF(Work_D_Only_Bool,NETWORKDAYS.INTL(S41,DATE(YEAR(S41),MONTH(S41)+T41,DAY(S41)-1),WE_Days,Holiday_Days),DATE(YEAR(S41),MONTH(S41)+T41,DAY(S41))-S41),"ERROR"))) -> 2 | W41: =WORKDAY.INTL(S41,IF(V41>0,IF(OR(WEEKDAY(S41,2)>=6,COUNTIF(Holiday_Days,S41)>0),V41,V41-1),IF(OR(WEEKDAY(S41,2)>=6,COUNTIF(Holiday_Days,S41)>0),V41,V41+1)),HB$7,Holiday_Days) -> 2016-11-10 | X41: =IF(V41>0,S41+V41-1,S41+V41+1) -> 2016-11-10 | Y41: =IF(S41<>"",IF($GE$7,W41,X41),"") -> 2016-11-10 | Z41: =IF(T41>0,S41,Y41) -> 2016-11-09 | AA41: =IF(T41>0,Y41,S41) -> 2016-11-10 | AB41: 0 | AC41: =INT(Z41+AB41*(AA41-Z41)) -> 2016-11-09 | AD41: =IF(AND(AB41<1,AC41<$DC$7),0,1) -> 0 | AE41: 100 | AF41: 0 | AG41: =IF(AND(AE41<>"",AF41<>""),AF41/AE41,"") -> 0 | AH41: =AG41 -> 0
K42: 5 | M42: Tache | R42: 1 | S42: =MIN(Z43:Z45) -> 2016-11-09 | T42: =Y42-S42+1 -> 5 | Y42: =MAX(AA43:AA45) -> 2016-11-13 | AB42: =SUMPRODUCT(AA43:AA45,AB43:AB45)/SUM(AA43:AA45) -> 0 | AC42: =S42-1+AB42*T42 -> 2016-11-08 | AD42: =IF(AB42<>"",IF(AND(AB42<1,AC42<$DC$7),0,1)) -> 0 | AE42: =SUM(AE43:AE45) -> 300 | AF42: =SUM(AF43:AF45) -> 0 | AG42: =IF(AND(AE42<>"",AF42<>"",AE42<>0),AF42/AE42,"") -> 0 | AH42: 0
K43: 5.1 | M43: Sous-tache | P43: Mary | Q43: =IF(ISERROR(VLOOKUP(P43,Tools!$D$11:$J$57,7,FALSE)),"",VLOOKUP(P43,Tools!$D$11:$J$57,7,FALSE)) -> 5 | R43: 2 | S43: 2016-11-09 | T43: 5 | U43: j | V43: =IF(U43=dur_type_d,T43,IF(U43=dur_type_w,IF(Work_D_Only_Bool,T43*5,T43*7),IF(U43=dur_type_m,IF(Work_D_Only_Bool,NETWORKDAYS.INTL(S43,DATE(YEAR(S43),MONTH(S43)+T43,DAY(S43)-1),WE_Days,Holiday_Days),DATE(YEAR(S43),MONTH(S43)+T43,DAY(S43))-S43),"ERROR"))) -> 5 | W43: =WORKDAY.INTL(S43,IF(V43>0,IF(OR(WEEKDAY(S43,2)>=6,COUNTIF(Holiday_Days,S43)>0),V43,V43-1),IF(OR(WEEKDAY(S43,2)>=6,COUNTIF(Holiday_Days,S43)>0),V43,V43+1)),HB$7,Holiday_Days) -> 2016-11-15 | X43: =IF(V43>0,S43+V43-1,S43+V43+1) -> 2016-11-13 | Y43: =IF(S43<>"",IF($GE$7,W43,X43),"") -> 2016-11-13 | Z43: =IF(T43>0,S43,Y43) -> 2016-11-09 | AA43: =IF(T43>0,Y43,S43) -> 2016-11-13 | AB43: 0 | AC43: =INT(Z43+AB43*(AA43-Z43)) -> 2016-11-09 | AD43: =IF(AND(AB43<1,AC43<$DC$7),0,1) -> 0 | AE43: 100 | AF43: 0 | AG43: =IF(AND(AE43<>"",AF43<>""),AF43/AE43,"") -> 0 | AH43: 0
K44: 5.2 | M44: Sous-tache | P44: Mary | Q44: =IF(ISERROR(VLOOKUP(P44,Tools!$D$11:$J$57,7,FALSE)),"",VLOOKUP(P44,Tools!$D$11:$J$57,7,FALSE)) -> 5 | R44: 2 | S44: 2016-11-09 | T44: 5 | U44: j | V44: =IF(U44=dur_type_d,T44,IF(U44=dur_type_w,IF(Work_D_Only_Bool,T44*5,T44*7),IF(U44=dur_type_m,IF(Work_D_Only_Bool,NETWORKDAYS.INTL(S44,DATE(YEAR(S44),MONTH(S44)+T44,DAY(S44)-1),WE_Days,Holiday_Days),DATE(YEAR(S44),MONTH(S44)+T44,DAY(S44))-S44),"ERROR"))) -> 5 | W44: =WORKDAY.INTL(S44,IF(V44>0,IF(OR(WEEKDAY(S44,2)>=6,COUNTIF(Holiday_Days,S44)>0),V44,V44-1),IF(OR(WEEKDAY(S44,2)>=6,COUNTIF(Holiday_Days,S44)>0),V44,V44+1)),HB$7,Holiday_Days) -> 2016-11-15 | X44: =IF(V44>0,S44+V44-1,S44+V44+1) -> 2016-11-13 | Y44: =IF(S44<>"",IF($GE$7,W44,X44),"") -> 2016-11-13 | Z44: =IF(T44>0,S44,Y44) -> 2016-11-09 | AA44: =IF(T44>0,Y44,S44) -> 2016-11-13 | AB44: 0 | AC44: 2016-11-09 | AD44: =IF(AND(AB44<1,AC44<$DC$7),0,1) -> 0 | AE44: 100 | AF44: 0 | AG44: 0 | AH44: 0
K45: 5.3 | M45: Sous-tache | P45: Mary | Q45: =IF(ISERROR(VLOOKUP(P45,Tools!$D$11:$J$57,7,FALSE)),"",VLOOKUP(P45,Tools!$D$11:$J$57,7,FALSE)) -> 5 | R45: 2 | S45: 2016-11-09 | T45: 5 | U45: j | V45: =IF(U45=dur_type_d,T45,IF(U45=dur_type_w,IF(Work_D_Only_Bool,T45*5,T45*7),IF(U45=dur_type_m,IF(Work_D_Only_Bool,NETWORKDAYS.INTL(S45,DATE(YEAR(S45),MONTH(S45)+T45,DAY(S45)-1),WE_Days,Holiday_Days),DATE(YEAR(S45),MONTH(S45)+T45,DAY(S45))-S45),"ERROR"))) -> 5 | W45: =WORKDAY.INTL(S45,IF(V45>0,IF(OR(WEEKDAY(S45,2)>=6,COUNTIF(Holiday_Days,S45)>0),V45,V45-1),IF(OR(WEEKDAY(S45,2)>=6,COUNTIF(Holiday_Days,S45)>0),V45,V45+1)),HB$7,Holiday_Days) -> 2016-11-15 | X45: =IF(V45>0,S45+V45-1,S45+V45+1) -> 2016-11-13 | Y45: =IF(S45<>"",IF($GE$7,W45,X45),"") -> 2016-11-13 | Z45: =IF(T45>0,S45,Y45) -> 2016-11-09 | AA45: =IF(T45>0,Y45,S45) -> 2016-11-13 | AB45: 0 | AC45: 2016-11-09 | AD45: =IF(AND(AB45<1,AC45<$DC$7),0,1) -> 0 | AE45: 100 | AF45: 0 | AG45: 0 | AH45: 0

Sheet Gantt
AP7: Start Date (Fusion) | AV7: =IF(CR7="Weekly",CN7*1,BG7*1) -> 2016-10-31 | AX7: 8 | BA7: Start Date (Daily) | BG7: =DATE(BZ7,BS7,BN7) -> 2016-10-31 | BI7: 8 | BK7: Day | BM7: 26 | BN7: 31 | BO7: 26 | BP7: Month | BR7: 10 | BS7: 10 | BT7: 10 | BU7: Year | BW7: 7 | BX7: 7 | BY7: 7 | BZ7: =BX7+2009 -> 2016 | CC7: Start Date (Weekly) | CE7: 7 | CI7: =BG7 -> 2016-10-31 | CK7: 8 | CM7: =WEEKDAY(CI7,2) -> 1 | CN7: =CI7-CM7+1 -> 2016-10-31 | CP7: 8 | CR7: Daily | CW7: Red Bookmark | DC7: =DATE(DV7,DO7,DJ7) -> 2016-11-11 | DE7: 8 | DG7: Day | DI7: 7 | DJ7: 11 | DK7: 7 | DL7: Month | DN7: 11 | DO7: 11 | DP7: 11 | DQ7: Year | DS7: 7 | DT7: 7 | DU7: 7 | DV7: =DT7+2009 -> 2016 | DY7: First Day Today | EA7: 7 | EE7: =TODAY() -> 2017-06-06 | EG7: 8 | EI7: =DAY(EE7) -> 6 | EK7: =MONTH(EE7) -> 6 | EM7: =YEAR(EE7) -> 2017 | EP7: First Day Lowest | EV7: 2016-10-31 | EX7: 8 | EZ7: =DAY(EV7) -> 31 | FB7: =MONTH(EV7) -> 10 | FD7: =YEAR(EV7) -> 2016 | FG7: Options Add Tasks | FM7: Below | FP7: FALSE | FS7: 1 | FT7: TRUE | FX7: Work Days Only | GC7: 1 | GD7: 1 | GE7: =IF(GD7=1,1,0) -> 1 | GG7: Weeks Name | GK7: 1 | GL7: 2 | GM7: =OFFSET(HideValues!B51,GL7-1,0) -> W | GP7: First day week | GS7: 1 | GT7: 1 | GU7: 1 | GV7: =OFFSET(HideValues!$J$45,GU7-1,0) -> 21 | GX7: WE days | GZ7: 1 | HA7: 1 | HB7: =OFFSET(HideValues!F45,HA7-1,0) -> 1 | HD7: Budget | HG7: FALSE | HI7: Comment | HL7: FALSE | HV7: Leader's List | IA7: =IF(Tools!D11<>"",Tools!D11,"") -> Gibs | IB7: =IF(Tools!D12<>"",Tools!D12,"") -> Sara | IC7: =IF(Tools!D13<>"",Tools!D13,"") -> Mary | ID7: =IF(Tools!D14<>"",Tools!D14,"") -> Jade | IE7: =IF(Tools!D15<>"",Tools!D15,"") -> Reda | IF7: =IF(Tools!D16<>"",Tools!D16,"") -> Mike | IG7: =IF(Tools!D17<>"",Tools!D17,"") -> Rony | IH7: =IF(Tools!D18<>"",Tools!D18,"") -> Leo | II7: =IF(Tools!D19<>"",Tools!D19,"") ->  | IJ7: =IF(Tools!D20<>"",Tools!D20,"") ->  | IK7: =IF(Tools!D21<>"",Tools!D21,"") ->  | IL7: =IF(Tools!D22<>"",Tools!D22,"") ->  | IM7: =IF(Tools!D23<>"",Tools!D23,"") ->  | IN7: =IF(Tools!D24<>"",Tools!D24,"") ->  | IO7: =IF(Tools!D25<>"",Tools!D25,"") ->  | IP7: =IF(Tools!D26<>"",Tools!D26,"") ->  | IQ7: =IF(Tools!D27<>"",Tools!D27,"") ->  | IR7: =IF(Tools!D28<>"",Tools!D28,"") ->  | IS7: =IF(Tools!D29<>"",Tools!D29,"") ->  | IT7: =IF(Tools!D30<>"",Tools!D30,"") ->  | IU7: =IF(Tools!D31<>"",Tools!D31,"") ->  | IV7: =IF(Tools!D32<>"",Tools!D32,"") ->  | IW7: =IF(Tools!D33<>"",Tools!D33,"") ->  | IX7: =IF(Tools!D34<>"",Tools!D34,"") ->  | IY7: =IF(Tools!D35<>"",Tools!D35,"") ->  | IZ7: =IF(Tools!D36<>"",Tools!D36,"") ->  | JA7: =IF(Tools!D37<>"",Tools!D37,"") ->  | JB7: =IF(Tools!D38<>"",Tools!D38,"") ->  | JC7: =IF(Tools!D39<>"",Tools!D39,"") ->  | JD7: =IF(Tools!D40<>"",Tools!D40,"") ->  | JE7: =IF(Tools!D41<>"",Tools!D41,"") ->  | JF7: =IF(Tools!D42<>"",Tools!D42,"") ->  | JG7: =IF(Tools!D43<>"",Tools!D43,"") ->  | JH7: =IF(Tools!D44<>"",Tools!D44,"") ->  | JI7: =IF(Tools!D45<>"",Tools!D45,"") ->  | JJ7: =IF(Tools!D46<>"",Tools!D46,"") ->  | JK7: =IF(Tools!D47<>"",Tools!D47,"") ->  | JL7: =IF(Tools!D48<>"",Tools!D48,"") ->  | JM7: =IF(Tools!D49<>"",Tools!D49,"") ->  | JN7: =IF(Tools!D50<>"",Tools!D50,"") ->  | JO7: =IF(Tools!D51<>"",Tools!D51,"") ->  | JP7: =IF(Tools!D52<>"",Tools!D52,"") ->  | JQ7: =IF(Tools!D53<>"",Tools!D53,"") ->  | JR7: =IF(Tools!D54<>"",Tools!D54,"") ->  | JS7: =IF(Tools!D55<>"",Tools!D55,"") ->  | JT7: =IF(Tools!D56<>"",Tools!D56,"") ->  | JU7: =IF(Tools!D57<>"",Tools!D57,"") ->  | JW7: Drop List Start Date | KE7: =IF(HideValues!A83<>"",HideValues!A83,"") ->  | KF7: =IF(HideValues!B83<>"",HideValues!B83,"") ->  | KG7: =IF(HideValues!C83<>"",HideValues!C83,"") ->  | KH7: =IF(HideValues!D83<>"",HideValues!D83,"") ->  | KI7: =IF(HideValues!E83<>"",HideValues!E83,"") ->  | KJ7: =IF(HideValues!F83<>"",HideValues!F83,"") ->  | KK7: =IF(HideValues!G83<>"",HideValues!G83,"") ->  | KL7: =IF(HideValues!H83<>"",HideValues!H83,"") ->  | KM7: =IF(HideValues!I83<>"",HideValues!I83,"") ->  | KN7: =IF(HideValues!J83<>"",HideValues!J83,"") ->  | KP7: CF Gantt Engine 1 | KY7: CF Budget | LF7: CF Round F | LM7: CF Flags | LT7: CF Type | LW7: 1 | LX7: 1 | LY7: 1 | LZ7: CF Gantt Engine 6 | MM7: CF Gantt Engine 2 | MV7: CF Gantt Engine 3 | NE7: CF Gantt Engine 4 | NN7: CF Gantt Engine 5 | NW7: CF Start | OD7: CF Duration | OL7: CF Dur. Type | PE7: Target Cell Date Picker User Form | PP7: Red_Bookmark | PW7: Filter | QA7: FALSE | QB7: FALSE | QC7: FALSE | QD7: FALSE | QE7: FALSE | QF7: FALSE | QG7: FALSE | QH7: FALSE | QI7: FALSE | QJ7: FALSE | QK7: FALSE | QL7: FALSE | QM7: FALSE | QN7: FALSE | QO7: FALSE | QP7: FALSE | QQ7: FALSE | QR7: FALSE | QS7: FALSE | RH7: Task Trans. | RL7: Tache | RM7: Sous-tache | RN7: Jalon
Y8: ¶¶¶ Please Hide these rows. Do not delete. ¶¶¶ | AI8: Week-End Flag | AJ8: =IF(Work_D_Only_Bool,NETWORKDAYS.INTL(AJ9,AJ9,WE_Days,Tools!$B$10:$B$55),1) -> 1 | AK8: =IF(Work_D_Only_Bool,NETWORKDAYS.INTL(AK9,AK9,WE_Days,Tools!$B$10:$B$55),1) -> 1 | AL8: =IF(Work_D_Only_Bool,NETWORKDAYS.INTL(AL9,AL9,WE_Days,Tools!$B$10:$B$55),1) -> 1 | AM8: =IF(Work_D_Only_Bool,NETWORKDAYS.INTL(AM9,AM9,WE_Days,Tools!$B$10:$B$55),1) -> 1 | AN8: =IF(Work_D_Only_Bool,NETWORKDAYS.INTL(AN9,AN9,WE_Days,Tools!$B$10:$B$55),1) -> 1 | AO8: =IF(Work_D_Only_Bool,NETWORKDAYS.INTL(AO9,AO9,WE_Days,Tools!$B$10:$B$55),1) -> 0 | AP8: =IF(Work_D_Only_Bool,NETWORKDAYS.INTL(AP9,AP9,WE_Days,Tools!$B$10:$B$55),1) -> 0 | AQ8: =IF(Work_D_Only_Bool,NETWORKDAYS.INTL(AQ9,AQ9,WE_Days,Tools!$B$10:$B$55),1) -> 1 | AR8: =IF(Work_D_Only_Bool,NETWORKDAYS.INTL(AR9,AR9,WE_Days,Tools!$B$10:$B$55),1) -> 1 | AS8: =IF(Work_D_Only_Bool,NETWORKDAYS.INTL(AS9,AS9,WE_Days,Tools!$B$10:$B$55),1) -> 1 | AT8: =IF(Work_D_Only_Bool,NETWORKDAYS.INTL(AT9,AT9,WE_Days,Tools!$B$10:$B$55),1) -> 1 | AU8: =IF(Work_D_Only_Bool,NETWORKDAYS.INTL(AU9,AU9,WE_Days,Tools!$B$10:$B$55),1) -> 1 | AV8: =IF(Work_D_Only_Bool,NETWORKDAYS.INTL(AV9,AV9,WE_Days,Tools!$B$10:$B$55),1) -> 0 | AW8: =IF(Work_D_Only_Bool,NETWORKDAYS.INTL(AW9,AW9,WE_Days,Tools!$B$10:$B$55),1) -> 0 | AX8: =IF(Work_D_Only_Bool,NETWORKDAYS.INTL(AX9,AX9,WE_Days,Tools!$B$10:$B$55),1) -> 1 | AY8: =IF(Work_D_Only_Bool,NETWORKDAYS.INTL(AY9,AY9,WE_Days,Tools!$B$10:$B$55),1) -> 1 | AZ8: =IF(Work_D_Only_Bool,NETWORKDAYS.INTL(AZ9,AZ9,WE_Days,Tools!$B$10:$B$55),1) -> 1 | BA8: =IF(Work_D_Only_Bool,NETWORKDAYS.INTL(BA9,BA9,WE_Days,Tools!$B$10:$B$55),1) -> 1 | BB8: =IF(Work_D_Only_Bool,NETWORKDAYS.INTL(BB9,BB9,WE_Days,Tools!$B$10:$B$55),1) -> 1 | BC8: =IF(Work_D_Only_Bool,NETWORKDAYS.INTL(BC9,BC9,WE_Days,Tools!$B$10:$B$55),1) -> 0 | BD8: =IF(Work_D_Only_Bool,NETWORKDAYS.INTL(BD9,BD9,WE_Days,Tools!$B$10:$B$55),1) -> 0 | BE8: =IF(Work_D_Only_Bool,NETWORKDAYS.INTL(BE9,BE9,WE_Days,Tools!$B$10:$B$55),1) -> 1 | BF8: =IF(Work_D_Only_Bool,NETWORKDAYS.INTL(BF9,BF9,WE_Days,Tools!$B$10:$B$55),1) -> 1 | BG8: =IF(Work_D_Only_Bool,NETWORKDAYS.INTL(BG9,BG9,WE_Days,Tools!$B$10:$B$55),1) -> 1 | BH8: =IF(Work_D_Only_Bool,NETWORKDAYS.INTL(BH9,BH9,WE_Days,Tools!$B$10:$B$55),1) -> 1 | BI8: =IF(Work_D_Only_Bool,NETWORKDAYS.INTL(BI9,BI9,WE_Days,Tools!$B$10:$B$55),1) -> 1 | BJ8: =IF(Work_D_Only_Bool,NETWORKDAYS.INTL(BJ9,BJ9,WE_Days,Tools!$B$10:$B$55),1) -> 0 | BK8: =IF(Work_D_Only_Bool,NETWORKDAYS.INTL(BK9,BK9,WE_Days,Tools!$B$10:$B$55),1) -> 0 | BL8: =IF(Work_D_Only_Bool,NETWORKDAYS.INTL(BL9,BL9,WE_Days,Tools!$B$10:$B$55),1) -> 1 | BM8: =IF(Work_D_Only_Bool,NETWORKDAYS.INTL(BM9,BM9,WE_Days,Tools!$B$10:$B$55),1) -> 1 | BN8: =IF(Work_D_Only_Bool,NETWORKDAYS.INTL(BN9,BN9,WE_Days,Tools!$B$10:$B$55),1) -> 1 | BO8: =IF(Work_D_Only_Bool,NETWORKDAYS.INTL(BO9,BO9,WE_Days,Tools!$B$10:$B$55),1) -> 1 | BP8: =IF(Work_D_Only_Bool,NETWORKDAYS.INTL(BP9,BP9,WE_Days,Tools!$B$10:$B$55),1) -> 1 | BQ8: =IF(Work_D_Only_Bool,NETWORKDAYS.INTL(BQ9,BQ9,WE_Days,Tools!$B$10:$B$55),1) -> 0 | BR8: =IF(Work_D_Only_Bool,NETWORKDAYS.INTL(BR9,BR9,WE_Days,Tools!$B$10:$B$55),1) -> 0 | BS8: =IF(Work_D_Only_Bool,NETWORKDAYS.INTL(BS9,BS9,WE_Days,Tools!$B$10:$B$55),1) -> 1 | BT8: =IF(Work_D_Only_Bool,NETWORKDAYS.INTL(BT9,BT9,WE_Days,Tools!$B$10:$B$55),1) -> 1 | BU8: =IF(Work_D_Only_Bool,NETWORKDAYS.INTL(BU9,BU9,WE_Days,Tools!$B$10:$B$55),1) -> 1 | BV8: =IF(Work_D_Only_Bool,NETWORKDAYS.INTL(BV9,BV9,WE_Days,Tools!$B$10:$B$55),1) -> 1 | BW8: =IF(Work_D_Only_Bool,NETWORKDAYS.INTL(BW9,BW9,WE_Days,Tools!$B$10:$B$55),1) -> 1 | BX8: =IF(Work_D_Only_Bool,NETWORKDAYS.INTL(BX9,BX9,WE_Days,Tools!$B$10:$B$55),1) -> 0 | BY8: =IF(Work_D_Only_Bool,NETWORKDAYS.INTL(BY9,BY9,WE_Days,Tools!$B$10:$B$55),1) -> 0 | BZ8: =IF(Work_D_Only_Bool,NETWORKDAYS.INTL(BZ9,BZ9,WE_Days,Tools!$B$10:$B$55),1) -> 1 | CA8: =IF(Work_D_Only_Bool,NETWORKDAYS.INTL(CA9,CA9,WE_Days,Tools!$B$10:$B$55),1) -> 1 | CB8: =IF(Work_D_Only_Bool,NETWORKDAYS.INTL(CB9,CB9,WE_Days,Tools!$B$10:$B$55),1) -> 1 | CC8: =IF(Work_D_Only_Bool,NETWORKDAYS.INTL(CC9,CC9,WE_Days,Tools!$B$10:$B$55),1) -> 1 | CD8: =IF(Work_D_Only_Bool,NETWORKDAYS.INTL(CD9,CD9,WE_Days,Tools!$B$10:$B$55),1) -> 1 | CE8: =IF(Work_D_Only_Bool,NETWORKDAYS.INTL(CE9,CE9,WE_Days,Tools!$B$10:$B$55),1) -> 0 | CF8: =IF(Work_D_Only_Bool,NETWORKDAYS.INTL(CF9,CF9,WE_Days,Tools!$B$10:$B$55),1) -> 0 | CG8: =IF(Work_D_Only_Bool,NETWORKDAYS.INTL(CG9,CG9,WE_Days,Tools!$B$10:$B$55),1) -> 1 | CH8: =IF(Work_D_Only_Bool,NETWORKDAYS.INTL(CH9,CH9,WE_Days,Tools!$B$10:$B$55),1) -> 1 | CI8: =IF(Work_D_Only_Bool,NETWORKDAYS.INTL(CI9,CI9,WE_Days,Tools!$B$10:$B$55),1) -> 1 | CJ8: =IF(Work_D_Only_Bool,NETWORKDAYS.INTL(CJ9,CJ9,WE_Days,Tools!$B$10:$B$55),1) -> 1 | CK8: =IF(Work_D_Only_Bool,NETWORKDAYS.INTL(CK9,CK9,WE_Days,Tools!$B$10:$B$55),1) -> 1 | CL8: =IF(Work_D_Only_Bool,NETWORKDAYS.INTL(CL9,CL9,WE_Days,Tools!$B$10:$B$55),1) -> 0 | CM8: =IF(Work_D_Only_Bool,NETWORKDAYS.INTL(CM9,CM9,WE_Days,Tools!$B$10:$B$55),1) -> 0 | CN8: =IF(Work_D_Only_Bool,NETWORKDAYS.INTL(CN9,CN9,WE_Days,Tools!$B$10:$B$55),1) -> 1 | CO8: =IF(Work_D_Only_Bool,NETWORKDAYS.INTL(CO9,CO9,WE_Days,Tools!$B$10:$B$55),1) -> 1 | CP8: =IF(Work_D_Only_Bool,NETWORKDAYS.INTL(CP9,CP9,WE_Days,Tools!$B$10:$B$55),1) -> 1 | CQ8: =IF(Work_D_Only_Bool,NETWORKDAYS.INTL(CQ9,CQ9,WE_Days,Tools!$B$10:$B$55),1) -> 1 | CR8: =IF(Work_D_Only_Bool,NETWORKDAYS.INTL(CR9,CR9,WE_Days,Tools!$B$10:$B$55),1) -> 1 | CS8: =IF(Work_D_Only_Bool,NETWORKDAYS.INTL(CS9,CS9,WE_Days,Tools!$B$10:$B$55),1) -> 0 | CT8: =IF(Work_D_Only_Bool,NETWORKDAYS.INTL(CT9,CT9,WE_Days,Tools!$B$10:$B$55),1) -> 0 | CU8: =IF(Work_D_Only_Bool,NETWORKDAYS.INTL(CU9,CU9,WE_Days,Tools!$B$10:$B$55),1) -> 1 | CV8: =IF(Work_D_Only_Bool,NETWORKDAYS.INTL(CV9,CV9,WE_Days,Tools!$B$10:$B$55),1) -> 1 | CW8: =IF(Work_D_Only_Bool,NETWORKDAYS.INTL(CW9,CW9,WE_Days,Tools!$B$10:$B$55),1) -> 1 | CX8: =IF(Work_D_Only_Bool,NETWORKDAYS.INTL(CX9,CX9,WE_Days,Tools!$B$10:$B$55),1) -> 1 | CY8: =IF(Work_D_Only_Bool,NETWORKDAYS.INTL(CY9,CY9,WE_Days,Tools!$B$10:$B$55),1) -> 1 | CZ8: =IF(Work_D_Only_Bool,NETWORKDAYS.INTL(CZ9,CZ9,WE_Days,Tools!$B$10:$B$55),1) -> 0 | DA8: =IF(Work_D_Only_Bool,NETWORKDAYS.INTL(DA9,DA9,WE_Days,Tools!$B$10:$B$55),1) -> 0 | DB8: =IF(Work_D_Only_Bool,NETWORKDAYS.INTL(DB9,DB9,WE_Days,Tools!$B$10:$B$55),1) -> 1 | DC8: =IF(Work_D_Only_Bool,NETWORKDAYS.INTL(DC9,DC9,WE_Days,Tools!$B$10:$B$55),1) -> 1 | DD8: =IF(Work_D_Only_Bool,NETWORKDAYS.INTL(DD9,DD9,WE_Days,Tools!$B$10:$B$55),1) -> 1 | DE8: =IF(Work_D_Only_Bool,NETWORKDAYS.INTL(DE9,DE9,WE_Days,Tools!$B$10:$B$55),1) -> 1 | DF8: =IF(Work_D_Only_Bool,NETWORKDAYS.INTL(DF9,DF9,WE_Days,Tools!$B$10:$B$55),1) -> 1 | DG8: =IF(Work_D_Only_Bool,NETWORKDAYS.INTL(DG9,DG9,WE_Days,Tools!$B$10:$B$55),1) -> 0 | DH8: =IF(Work_D_Only_Bool,NETWORKDAYS.INTL(DH9,DH9,WE_Days,Tools!$B$10:$B$55),1) -> 0 | DI8: =IF(Work_D_Only_Bool,NETWORKDAYS.INTL(DI9,DI9,WE_Days,Tools!$B$10:$B$55),1) -> 1 | DJ8: =IF(Work_D_Only_Bool,NETWORKDAYS.INTL(DJ9,DJ9,WE_Days,Tools!$B$10:$B$55),1) -> 1 | DK8: =IF(Work_D_Only_Bool,NETWORKDAYS.INTL(DK9,DK9,WE_Days,Tools!$B$10:$B$55),1) -> 1 | DL8: =IF(Work_D_Only_Bool,NETWORKDAYS.INTL(DL9,DL9,WE_Days,Tools!$B$10:$B$55),1) -> 1 | DM8: =IF(Work_D_Only_Bool,NETWORKDAYS.INTL(DM9,DM9,WE_Days,Tools!$B$10:$B$55),1) -> 1 | DN8: =IF(Work_D_Only_Bool,NETWORKDAYS.INTL(DN9,DN9,WE_Days,Tools!$B$10:$B$55),1) -> 0 | DO8: =IF(Work_D_Only_Bool,NETWORKDAYS.INTL(DO9,DO9,WE_Days,Tools!$B$10:$B$55),1) -> 0 | DP8: =IF(Work_D_Only_Bool,NETWORKDAYS.INTL(DP9,DP9,WE_Days,Tools!$B$10:$B$55),1) -> 1 | DQ8: =IF(Work_D_Only_Bool,NETWORKDAYS.INTL(DQ9,DQ9,WE_Days,Tools!$B$10:$B$55),1) -> 1 | DR8: =IF(Work_D_Only_Bool,NETWORKDAYS.INTL(DR9,DR9,WE_Days,Tools!$B$10:$B$55),1) -> 1 | DS8: =IF(Work_D_Only_Bool,NETWORKDAYS.INTL(DS9,DS9,WE_Days,Tools!$B$10:$B$55),1) -> 1 | DT8: =IF(Work_D_Only_Bool,NETWORKDAYS.INTL(DT9,DT9,WE_Days,Tools!$B$10:$B$55),1) -> 1 | DU8: =IF(Work_D_Only_Bool,NETWORKDAYS.INTL(DU9,DU9,WE_Days,Tools!$B$10:$B$55),1) -> 0 | DV8: =IF(Work_D_Only_Bool,NETWORKDAYS.INTL(DV9,DV9,WE_Days,Tools!$B$10:$B$55),1) -> 0 | DW8: =IF(Work_D_Only_Bool,NETWORKDAYS.INTL(DW9,DW9,WE_Days,Tools!$B$10:$B$55),1) -> 1 | DX8: =IF(Work_D_Only_Bool,NETWORKDAYS.INTL(DX9,DX9,WE_Days,Tools!$B$10:$B$55),1) -> 1 | DY8: =IF(Work_D_Only_Bool,NETWORKDAYS.INTL(DY9,DY9,WE_Days,Tools!$B$10:$B$55),1) -> 1 | DZ8: =IF(Work_D_Only_Bool,NETWORKDAYS.INTL(DZ9,DZ9,WE_Days,Tools!$B$10:$B$55),1) -> 1 | EA8: =IF(Work_D_Only_Bool,NETWORKDAYS.INTL(EA9,EA9,WE_Days,Tools!$B$10:$B$55),1) -> 1 | EB8: =IF(Work_D_Only_Bool,NETWORKDAYS.INTL(EB9,EB9,WE_Days,Tools!$B$10:$B$55),1) -> 0 | EC8: =IF(Work_D_Only_Bool,NETWORKDAYS.INTL(EC9,EC9,WE_Days,Tools!$B$10:$B$55),1) -> 0 | ED8: =IF(Work_D_Only_Bool,NETWORKDAYS.INTL(ED9,ED9,WE_Days,Tools!$B$10:$B$55),1) -> 1 | EE8: =IF(Work_D_Only_Bool,NETWORKDAYS.INTL(EE9,EE9,WE_Days,Tools!$B$10:$B$55),1) -> 1 | EF8: =IF(Work_D_Only_Bool,NETWORKDAYS.INTL(EF9,EF9,WE_Days,Tools!$B$10:$B$55),1) -> 1 | EG8: =IF(Work_D_Only_Bool,NETWORKDAYS.INTL(EG9,EG9,WE_Days,Tools!$B$10:$B$55),1) -> 1 | EH8: =IF(Work_D_Only_Bool,NETWORKDAYS.INTL(EH9,EH9,WE_Days,Tools!$B$10:$B$55),1) -> 1 | EI8: =IF(Work_D_Only_Bool,NETWORKDAYS.INTL(EI9,EI9,WE_Days,Tools!$B$10:$B$55),1) -> 0 | EJ8: =IF(Work_D_Only_Bool,NETWORKDAYS.INTL(EJ9,EJ9,WE_Days,Tools!$B$10:$B$55),1) -> 0 | EK8: =IF(Work_D_Only_Bool,NETWORKDAYS.INTL(EK9,EK9,WE_Days,Tools!$B$10:$B$55),1) -> 1 | EL8: =IF(Work_D_Only_Bool,NETWORKDAYS.INTL(EL9,EL9,WE_Days,Tools!$B$10:$B$55),1) -> 1 | EM8: =IF(Work_D_Only_Bool,NETWORKDAYS.INTL(EM9,EM9,WE_Days,Tools!$B$10:$B$55),1) -> 1 | EN8: =IF(Work_D_Only_Bool,NETWORKDAYS.INTL(EN9,EN9,WE_Days,Tools!$B$10:$B$55),1) -> 1 | EO8: =IF(Work_D_Only_Bool,NETWORKDAYS.INTL(EO9,EO9,WE_Days,Tools!$B$10:$B$55),1) -> 1 | EP8: =IF(Work_D_Only_Bool,NETWORKDAYS.INTL(EP9,EP9,WE_Days,Tools!$B$10:$B$55),1) -> 0 | EQ8: =IF(Work_D_Only_Bool,NETWORKDAYS.INTL(EQ9,EQ9,WE_Days,Tools!$B$10:$B$55),1) -> 0 | ER8: =IF(Work_D_Only_Bool,NETWORKDAYS.INTL(ER9,ER9,WE_Days,Tools!$B$10:$B$55),1) -> 1 | ES8: =IF(Work_D_Only_Bool,NETWORKDAYS.INTL(ES9,ES9,WE_Days,Tools!$B$10:$B$55),1) -> 1 | ET8: =IF(Work_D_Only_Bool,NETWORKDAYS.INTL(ET9,ET9,WE_Days,Tools!$B$10:$B$55),1) -> 1 | EU8: =IF(Work_D_Only_Bool,NETWORKDAYS.INTL(EU9,EU9,WE_Days,Tools!$B$10:$B$55),1) -> 1 | EV8: =IF(Work_D_Only_Bool,NETWORKDAYS.INTL(EV9,EV9,WE_Days,Tools!$B$10:$B$55),1) -> 1 | EW8: =IF(Work_D_Only_Bool,NETWORKDAYS.INTL(EW9,EW9,WE_Days,Tools!$B$10:$B$55),1) -> 0 | EX8: =IF(Work_D_Only_Bool,NETWORKDAYS.INTL(EX9,EX9,WE_Days,Tools!$B$10:$B$55),1) -> 0 | EY8: =IF(Work_D_Only_Bool,NETWORKDAYS.INTL(EY9,EY9,WE_Days,Tools!$B$10:$B$55),1) -> 1 | EZ8: =IF(Work_D_Only_Bool,NETWORKDAYS.INTL(EZ9,EZ9,WE_Days,Tools!$B$10:$B$55),1) -> 1 | FA8: =IF(Work_D_Only_Bool,NETWORKDAYS.INTL(FA9,FA9,WE_Days,Tools!$B$10:$B$55),1) -> 1 | FB8: =IF(Work_D_Only_Bool,NETWORKDAYS.INTL(FB9,FB9,WE_Days,Tools!$B$10:$B$55),1) -> 1 | FC8: =IF(Work_D_Only_Bool,NETWORKDAYS.INTL(FC9,FC9,WE_Days,Tools!$B$10:$B$55),1) -> 1 | FD8: =IF(Work_D_Only_Bool,NETWORKDAYS.INTL(FD9,FD9,WE_Days,Tools!$B$10:$B$55),1) -> 0 | FE8: =IF(Work_D_Only_Bool,NETWORKDAYS.INTL(FE9,FE9,WE_Days,Tools!$B$10:$B$55),1) -> 0 | FF8: =IF(Work_D_Only_Bool,NETWORKDAYS.INTL(FF9,FF9,WE_Days,Tools!$B$10:$B$55),1) -> 1 | FG8: =IF(Work_D_Only_Bool,NETWORKDAYS.INTL(FG9,FG9,WE_Days,Tools!$B$10:$B$55),1) -> 1 | FH8: =IF(Work_D_Only_Bool,NETWORKDAYS.INTL(FH9,FH9,WE_Days,Tools!$B$10:$B$55),1) -> 1 | FI8: =IF(Work_D_Only_Bool,NETWORKDAYS.INTL(FI9,FI9,WE_Days,Tools!$B$10:$B$55),1) -> 1 | FJ8: =IF(Work_D_Only_Bool,NETWORKDAYS.INTL(FJ9,FJ9,WE_Days,Tools!$B$10:$B$55),1) -> 1 | FK8: =IF(Work_D_Only_Bool,NETWORKDAYS.INTL(FK9,FK9,WE_Days,Tools!$B$10:$B$55),1) -> 0 | FL8: =IF(Work_D_Only_Bool,NETWORKDAYS.INTL(FL9,FL9,WE_Days,Tools!$B$10:$B$55),1) -> 0 | FM8: =IF(Work_D_Only_Bool,NETWORKDAYS.INTL(FM9,FM9,WE_Days,Tools!$B$10:$B$55),1) -> 1 | FN8: =IF(Work_D_Only_Bool,NETWORKDAYS.INTL(FN9,FN9,WE_Days,Tools!$B$10:$B$55),1) -> 1 | FO8: =IF(Work_D_Only_Bool,NETWORKDAYS.INTL(FO9,FO9,WE_Days,Tools!$B$10:$B$55),1) -> 1 | FP8: =IF(Work_D_Only_Bool,NETWORKDAYS.INTL(FP9,FP9,WE_Days,Tools!$B$10:$B$55),1) -> 1 | FQ8: =IF(Work_D_Only_Bool,NETWORKDAYS.INTL(FQ9,FQ9,WE_Days,Tools!$B$10:$B$55),1) -> 1 | FR8: =IF(Work_D_Only_Bool,NETWORKDAYS.INTL(FR9,FR9,WE_Days,Tools!$B$10:$B$55),1) -> 0 | FS8: =IF(Work_D_Only_Bool,NETWORKDAYS.INTL(FS9,FS9,WE_Days,Tools!$B$10:$B$55),1) -> 0 | FT8: =IF(Work_D_Only_Bool,NETWORKDAYS.INTL(FT9,FT9,WE_Days,Tools!$B$10:$B$55),1) -> 1 | FU8: =IF(Work_D_Only_Bool,NETWORKDAYS.INTL(FU9,FU9,WE_Days,Tools!$B$10:$B$55),1) -> 1 | FV8: =IF(Work_D_Only_Bool,NETWORKDAYS.INTL(FV9,FV9,WE_Days,Tools!$B$10:$B$55),1) -> 1 | FW8: =IF(Work_D_Only_Bool,NETWORKDAYS.INTL(FW9,FW9,WE_Days,Tools!$B$10:$B$55),1) -> 1 | FX8: =IF(Work_D_Only_Bool,NETWORKDAYS.INTL(FX9,FX9,WE_Days,Tools!$B$10:$B$55),1) -> 1 | FY8: =IF(Work_D_Only_Bool,NETWORKDAYS.INTL(FY9,FY9,WE_Days,Tools!$B$10:$B$55),1) -> 0 | FZ8: =IF(Work_D_Only_Bool,NETWORKDAYS.INTL(FZ9,FZ9,WE_Days,Tools!$B$10:$B$55),1) -> 0 | GA8: =IF(Work_D_Only_Bool,NETWORKDAYS.INTL(GA9,GA9,WE_Days,Tools!$B$10:$B$55),1) -> 1 | GB8: =IF(Work_D_Only_Bool,NETWORKDAYS.INTL(GB9,GB9,WE_Days,Tools!$B$10:$B$55),1) -> 1 | GC8: =IF(Work_D_Only_Bool,NETWORKDAYS.INTL(GC9,GC9,WE_Days,Tools!$B$10:$B$55),1) -> 1 | GD8: =IF(Work_D_Only_Bool,NETWORKDAYS.INTL(GD9,GD9,WE_Days,Tools!$B$10:$B$55),1) -> 1 | GE8: =IF(Work_D_Only_Bool,NETWORKDAYS.INTL(GE9,GE9,WE_Days,Tools!$B$10:$B$55),1) -> 1 | GF8: =IF(Work_D_Only_Bool,NETWORKDAYS.INTL(GF9,GF9,WE_Days,Tools!$B$10:$B$55),1) -> 0 | GG8: =IF(Work_D_Only_Bool,NETWORKDAYS.INTL(GG9,GG9,WE_Days,Tools!$B$10:$B$55),1) -> 0 | GH8: =IF(Work_D_Only_Bool,NETWORKDAYS.INTL(GH9,GH9,WE_Days,Tools!$B$10:$B$55),1) -> 1 | GI8: =IF(Work_D_Only_Bool,NETWORKDAYS.INTL(GI9,GI9,WE_Days,Tools!$B$10:$B$55),1) -> 1 | GJ8: =IF(Work_D_Only_Bool,NETWORKDAYS.INTL(GJ9,GJ9,WE_Days,Tools!$B$10:$B$55),1) -> 1 | GK8: =IF(Work_D_Only_Bool,NETWORKDAYS.INTL(GK9,GK9,WE_Days,Tools!$B$10:$B$55),1) -> 1 | GL8: =IF(Work_D_Only_Bool,NETWORKDAYS.INTL(GL9,GL9,WE_Days,Tools!$B$10:$B$55),1) -> 1 | GM8: =IF(Work_D_Only_Bool,NETWORKDAYS.INTL(GM9,GM9,WE_Days,Tools!$B$10:$B$55),1) -> 0 | GN8: =IF(Work_D_Only_Bool,NETWORKDAYS.INTL(GN9,GN9,WE_Days,Tools!$B$10:$B$55),1) -> 0 | GO8: =IF(Work_D_Only_Bool,NETWORKDAYS.INTL(GO9,GO9,WE_Days,Tools!$B$10:$B$55),1) -> 1 | GP8: =IF(Work_D_Only_Bool,NETWORKDAYS.INTL(GP9,GP9,WE_Days,Tools!$B$10:$B$55),1) -> 1 | GQ8: =IF(Work_D_Only_Bool,NETWORKDAYS.INTL(GQ9,GQ9,WE_Days,Tools!$B$10:$B$55),1) -> 1 | GR8: =IF(Work_D_Only_Bool,NETWORKDAYS.INTL(GR9,GR9,WE_Days,Tools!$B$10:$B$55),1) -> 1 | GS8: =IF(Work_D_Only_Bool,NETWORKDAYS.INTL(GS9,GS9,WE_Days,Tools!$B$10:$B$55),1) -> 1 | GT8: =IF(Work_D_Only_Bool,NETWORKDAYS.INTL(GT9,GT9,WE_Days,Tools!$B$10:$B$55),1) -> 0 | GU8: =IF(Work_D_Only_Bool,NETWORKDAYS.INTL(GU9,GU9,WE_Days,Tools!$B$10:$B$55),1) -> 0 | GV8: =IF(Work_D_Only_Bool,NETWORKDAYS.INTL(GV9,GV9,WE_Days,Tools!$B$10:$B$55),1) -> 1 | GW8: =IF(Work_D_Only_Bool,NETWORKDAYS.INTL(GW9,GW9,WE_Days,Tools!$B$10:$B$55),1) -> 1 | GX8: =IF(Work_D_Only_Bool,NETWORKDAYS.INTL(GX9,GX9,WE_Days,Tools!$B$10:$B$55),1) -> 1 | GY8: =IF(Work_D_Only_Bool,NETWORKDAYS.INTL(GY9,GY9,WE_Days,Tools!$B$10:$B$55),1) -> 1 | GZ8: =IF(Work_D_Only_Bool,NETWORKDAYS.INTL(GZ9,GZ9,WE_Days,Tools!$B$10:$B$55),1) -> 1 | HA8: =IF(Work_D_Only_Bool,NETWORKDAYS.INTL(HA9,HA9,WE_Days,Tools!$B$10:$B$55),1) -> 0 | HB8: =IF(Work_D_Only_Bool,NETWORKDAYS.INTL(HB9,HB9,WE_Days,Tools!$B$10:$B$55),1) -> 0 | HC8: =IF(Work_D_Only_Bool,NETWORKDAYS.INTL(HC9,HC9,WE_Days,Tools!$B$10:$B$55),1) -> 1 | HD8: =IF(Work_D_Only_Bool,NETWORKDAYS.INTL(HD9,HD9,WE_Days,Tools!$B$10:$B$55),1) -> 1 | HE8: =IF(Work_D_Only_Bool,NETWORKDAYS.INTL(HE9,HE9,WE_Days,Tools!$B$10:$B$55),1) -> 1 | HF8: =IF(Work_D_Only_Bool,NETWORKDAYS.INTL(HF9,HF9,WE_Days,Tools!$B$10:$B$55),1) -> 1 | HG8: =IF(Work_D_Only_Bool,NETWORKDAYS.INTL(HG9,HG9,WE_Days,Tools!$B$10:$B$55),1) -> 1 | HH8: =IF(Work_D_Only_Bool,NETWORKDAYS.INTL(HH9,HH9,WE_Days,Tools!$B$10:$B$55),1) -> 0 | HI8: =IF(Work_D_Only_Bool,NETWORKDAYS.INTL(HI9,HI9,WE_Days,Tools!$B$10:$B$55),1) -> 0 | HJ8: =IF(Work_D_Only_Bool,NETWORKDAYS.INTL(HJ9,HJ9,WE_Days,Tools!$B$10:$B$55),1) -> 1 | HK8: =IF(Work_D_Only_Bool,NETWORKDAYS.INTL(HK9,HK9,WE_Days,Tools!$B$10:$B$55),1) -> 1 | HL8: =IF(Work_D_Only_Bool,NETWORKDAYS.INTL(HL9,HL9,WE_Days,Tools!$B$10:$B$55),1) -> 1 | HM8: =IF(Work_D_Only_Bool,NETWORKDAYS.INTL(HM9,HM9,WE_Days,Tools!$B$10:$B$55),1) -> 1 | HN8: =IF(Work_D_Only_Bool,NETWORKDAYS.INTL(HN9,HN9,WE_Days,Tools!$B$10:$B$55),1) -> 1 | HO8: =IF(Work_D_Only_Bool,NETWORKDAYS.INTL(HO9,HO9,WE_Days,Tools!$B$10:$B$55),1) -> 0 | HP8: =IF(Work_D_Only_Bool,NETWORKDAYS.INTL(HP9,HP9,WE_Days,Tools!$B$10:$B$55),1) -> 0 | HQ8: =IF(Work_D_Only_Bool,NETWORKDAYS.INTL(HQ9,HQ9,WE_Days,Tools!$B$10:$B$55),1) -> 1 | HR8: =IF(Work_D_Only_Bool,NETWORKDAYS.INTL(HR9,HR9,WE_Days,Tools!$B$10:$B$55),1) -> 1 | HS8: =IF(Work_D_Only_Bool,NETWORKDAYS.INTL(HS9,HS9,WE_Days,Tools!$B$10:$B$55),1) -> 1 | HT8: =IF(Work_D_Only_Bool,NETWORKDAYS.INTL(HT9,HT9,WE_Days,Tools!$B$10:$B$55),1) -> 1 | HU8: =IF(Work_D_Only_Bool,NETWORKDAYS.INTL(HU9,HU9,WE_Days,Tools!$B$10:$B$55),1) -> 1 | HV8: =IF(Work_D_Only_Bool,NETWORKDAYS.INTL(HV9,HV9,WE_Days,Tools!$B$10:$B$55),1) -> 0 | HW8: =IF(Work_D_Only_Bool,NETWORKDAYS.INTL(HW9,HW9,WE_Days,Tools!$B$10:$B$55),1) -> 0 | HX8: =IF(Work_D_Only_Bool,NETWORKDAYS.INTL(HX9,HX9,WE_Days,Tools!$B$10:$B$55),1) -> 1 | HY8: =IF(Work_D_Only_Bool,NETWORKDAYS.INTL(HY9,HY9,WE_Days,Tools!$B$10:$B$55),1) -> 1 | HZ8: =IF(Work_D_Only_Bool,NETWORKDAYS.INTL(HZ9,HZ9,WE_Days,Tools!$B$10:$B$55),1) -> 1 | IA8: =IF(Work_D_Only_Bool,NETWORKDAYS.INTL(IA9,IA9,WE_Days,Tools!$B$10:$B$55),1) -> 1 | IB8: =IF(Work_D_Only_Bool,NETWORKDAYS.INTL(IB9,IB9,WE_Days,Tools!$B$10:$B$55),1) -> 1 | IC8: =IF(Work_D_Only_Bool,NETWORKDAYS.INTL(IC9,IC9,WE_Days,Tools!$B$10:$B$55),1) -> 0 | ID8: =IF(Work_D_Only_Bool,NETWORKDAYS.INTL(ID9,ID9,WE_Days,Tools!$B$10:$B$55),1) -> 0 | IE8: =IF(Work_D_Only_Bool,NETWORKDAYS.INTL(IE9,IE9,WE_Days,Tools!$B$10:$B$55),1) -> 1 | IF8: =IF(Work_D_Only_Bool,NETWORKDAYS.INTL(IF9,IF9,WE_Days,Tools!$B$10:$B$55),1) -> 1 | IG8: =IF(Work_D_Only_Bool,NETWORKDAYS.INTL(IG9,IG9,WE_Days,Tools!$B$10:$B$55),1) -> 1 | IH8: =IF(Work_D_Only_Bool,NETWORKDAYS.INTL(IH9,IH9,WE_Days,Tools!$B$10:$B$55),1) -> 1 | II8: =IF(Work_D_Only_Bool,NETWORKDAYS.INTL(II9,II9,WE_Days,Tools!$B$10:$B$55),1) -> 1 | IJ8: =IF(Work_D_Only_Bool,NETWORKDAYS.INTL(IJ9,IJ9,WE_Days,Tools!$B$10:$B$55),1) -> 0 | IK8: =IF(Work_D_Only_Bool,NETWORKDAYS.INTL(IK9,IK9,WE_Days,Tools!$B$10:$B$55),1) -> 0 | IL8: =IF(Work_D_Only_Bool,NETWORKDAYS.INTL(IL9,IL9,WE_Days,Tools!$B$10:$B$55),1) -> 1 | IM8: =IF(Work_D_Only_Bool,NETWORKDAYS.INTL(IM9,IM9,WE_Days,Tools!$B$10:$B$55),1) -> 1 | IN8: =IF(Work_D_Only_Bool,NETWORKDAYS.INTL(IN9,IN9,WE_Days,Tools!$B$10:$B$55),1) -> 1 | IO8: =IF(Work_D_Only_Bool,NETWORKDAYS.INTL(IO9,IO9,WE_Days,Tools!$B$10:$B$55),1) -> 1 | IP8: =IF(Work_D_Only_Bool,NETWORKDAYS.INTL(IP9,IP9,WE_Days,Tools!$B$10:$B$55),1) -> 1 | IQ8: =IF(Work_D_Only_Bool,NETWORKDAYS.INTL(IQ9,IQ9,WE_Days,Tools!$B$10:$B$55),1) -> 0 | IR8: =IF(Work_D_Only_Bool,NETWORKDAYS.INTL(IR9,IR9,WE_Days,Tools!$B$10:$B$55),1) -> 0 | IS8: =IF(Work_D_Only_Bool,NETWORKDAYS.INTL(IS9,IS9,WE_Days,Tools!$B$10:$B$55),1) -> 1 | IT8: =IF(Work_D_Only_Bool,NETWORKDAYS.INTL(IT9,IT9,WE_Days,Tools!$B$10:$B$55),1) -> 1 | IU8: =IF(Work_D_Only_Bool,NETWORKDAYS.INTL(IU9,IU9,WE_Days,Tools!$B$10:$B$55),1) -> 1 | IV8: =IF(Work_D_Only_Bool,NETWORKDAYS.INTL(IV9,IV9,WE_Days,Tools!$B$10:$B$55),1) -> 1 | IW8: =IF(Work_D_Only_Bool,NETWORKDAYS.INTL(IW9,IW9,WE_Days,Tools!$B$10:$B$55),1) -> 1 | IX8: =IF(Work_D_Only_Bool,NETWORKDAYS.INTL(IX9,IX9,WE_Days,Tools!$B$10:$B$55),1) -> 0 | IY8: =IF(Work_D_Only_Bool,NETWORKDAYS.INTL(IY9,IY9,WE_Days,Tools!$B$10:$B$55),1) -> 0 | IZ8: =IF(Work_D_Only_Bool,NETWORKDAYS.INTL(IZ9,IZ9,WE_Days,Tools!$B$10:$B$55),1) -> 1 | JA8: =IF(Work_D_Only_Bool,NETWORKDAYS.INTL(JA9,JA9,WE_Days,Tools!$B$10:$B$55),1) -> 1 | JB8: =IF(Work_D_Only_Bool,NETWORKDAYS.INTL(JB9,JB9,WE_Days,Tools!$B$10:$B$55),1) -> 1 | JC8: =IF(Work_D_Only_Bool,NETWORKDAYS.INTL(JC9,JC9,WE_Days,Tools!$B$10:$B$55),1) -> 1 | JD8: =IF(Work_D_Only_Bool,NETWORKDAYS.INTL(JD9,JD9,WE_Days,Tools!$B$10:$B$55),1) -> 1 | JE8: =IF(Work_D_Only_Bool,NETWORKDAYS.INTL(JE9,JE9,WE_Days,Tools!$B$10:$B$55),1) -> 0 | JF8: =IF(Work_D_Only_Bool,NETWORKDAYS.INTL(JF9,JF9,WE_Days,Tools!$B$10:$B$55),1) -> 0 | JG8: =IF(Work_D_Only_Bool,NETWORKDAYS.INTL(JG9,JG9,WE_Days,Tools!$B$10:$B$55),1) -> 1 | JH8: =IF(Work_D_Only_Bool,NETWORKDAYS.INTL(JH9,JH9,WE_Days,Tools!$B$10:$B$55),1) -> 1 | JI8: =IF(Work_D_Only_Bool,NETWORKDAYS.INTL(JI9,JI9,WE_Days,Tools!$B$10:$B$55),1) -> 1 | JJ8: =IF(Work_D_Only_Bool,NETWORKDAYS.INTL(JJ9,JJ9,WE_Days,Tools!$B$10:$B$55),1) -> 1 | JK8: =IF(Work_D_Only_Bool,NETWORKDAYS.INTL(JK9,JK9,WE_Days,Tools!$B$10:$B$55),1) -> 1 | JL8: =IF(Work_D_Only_Bool,NETWORKDAYS.INTL(JL9,JL9,WE_Days,Tools!$B$10:$B$55),1) -> 0 | JM8: =IF(Work_D_Only_Bool,NETWORKDAYS.INTL(JM9,JM9,WE_Days,Tools!$B$10:$B$55),1) -> 0 | JN8: =IF(Work_D_Only_Bool,NETWORKDAYS.INTL(JN9,JN9,WE_Days,Tools!$B$10:$B$55),1) -> 1 | JO8: =IF(Work_D_Only_Bool,NETWORKDAYS.INTL(JO9,JO9,WE_Days,Tools!$B$10:$B$55),1) -> 1 | JP8: =IF(Work_D_Only_Bool,NETWORKDAYS.INTL(JP9,JP9,WE_Days,Tools!$B$10:$B$55),1) -> 1 | JQ8: =IF(Work_D_Only_Bool,NETWORKDAYS.INTL(JQ9,JQ9,WE_Days,Tools!$B$10:$B$55),1) -> 1 | JR8: =IF(Work_D_Only_Bool,NETWORKDAYS.INTL(JR9,JR9,WE_Days,Tools!$B$10:$B$55),1) -> 1 | JS8: =IF(Work_D_Only_Bool,NETWORKDAYS.INTL(JS9,JS9,WE_Days,Tools!$B$10:$B$55),1) -> 0 | JT8: =IF(Work_D_Only_Bool,NETWORKDAYS.INTL(JT9,JT9,WE_Days,Tools!$B$10:$B$55),1) -> 0 | JU8: =IF(Work_D_Only_Bool,NETWORKDAYS.INTL(JU9,JU9,WE_Days,Tools!$B$10:$B$55),1) -> 1 | JV8: =IF(Work_D_Only_Bool,NETWORKDAYS.INTL(JV9,JV9,WE_Days,Tools!$B$10:$B$55),1) -> 1 | JW8: =IF(Work_D_Only_Bool,NETWORKDAYS.INTL(JW9,JW9,WE_Days,Tools!$B$10:$B$55),1) -> 1 | JX8: =IF(Work_D_Only_Bool,NETWORKDAYS.INTL(JX9,JX9,WE_Days,Tools!$B$10:$B$55),1) -> 1 | JY8: =IF(Work_D_Only_Bool,NETWORKDAYS.INTL(JY9,JY9,WE_Days,Tools!$B$10:$B$55),1) -> 1 | JZ8: =IF(Work_D_Only_Bool,NETWORKDAYS.INTL(JZ9,JZ9,WE_Days,Tools!$B$10:$B$55),1) -> 0 | KA8: =IF(Work_D_Only_Bool,NETWORKDAYS.INTL(KA9,KA9,WE_Days,Tools!$B$10:$B$55),1) -> 0 | KB8: =IF(Work_D_Only_Bool,NETWORKDAYS.INTL(KB9,KB9,WE_Days,Tools!$B$10:$B$55),1) -> 1 | KC8: =IF(Work_D_Only_Bool,NETWORKDAYS.INTL(KC9,KC9,WE_Days,Tools!$B$10:$B$55),1) -> 1 | KD8: =IF(Work_D_Only_Bool,NETWORKDAYS.INTL(KD9,KD9,WE_Days,Tools!$B$10:$B$55),1) -> 1 | KE8: =IF(Work_D_Only_Bool,NETWORKDAYS.INTL(KE9,KE9,WE_Days,Tools!$B$10:$B$55),1) -> 1 | KF8: =IF(Work_D_Only_Bool,NETWORKDAYS.INTL(KF9,KF9,WE_Days,Tools!$B$10:$B$55),1) -> 1 | KG8: =IF(Work_D_Only_Bool,NETWORKDAYS.INTL(KG9,KG9,WE_Days,Tools!$B$10:$B$55),1) -> 0 | KH8: =IF(Work_D_Only_Bool,NETWORKDAYS.INTL(KH9,KH9,WE_Days,Tools!$B$10:$B$55),1) -> 0 | KI8: =IF(Work_D_Only_Bool,NETWORKDAYS.INTL(KI9,KI9,WE_Days,Tools!$B$10:$B$55),1) -> 1 | KJ8: =IF(Work_D_Only_Bool,NETWORKDAYS.INTL(KJ9,KJ9,WE_Days,Tools!$B$10:$B$55),1) -> 1 | KK8: =IF(Work_D_Only_Bool,NETWORKDAYS.INTL(KK9,KK9,WE_Days,Tools!$B$10:$B$55),1) -> 1 | KL8: =IF(Work_D_Only_Bool,NETWORKDAYS.INTL(KL9,KL9,WE_Days,Tools!$B$10:$B$55),1) -> 1 | KM8: =IF(Work_D_Only_Bool,NETWORKDAYS.INTL(KM9,KM9,WE_Days,Tools!$B$10:$B$55),1) -> 1 | KN8: =IF(Work_D_Only_Bool,NETWORKDAYS.INTL(KN9,KN9,WE_Days,Tools!$B$10:$B$55),1) -> 0 | KO8: =IF(Work_D_Only_Bool,NETWORKDAYS.INTL(KO9,KO9,WE_Days,Tools!$B$10:$B$55),1) -> 0 | KP8: =IF(Work_D_Only_Bool,NETWORKDAYS.INTL(KP9,KP9,WE_Days,Tools!$B$10:$B$55),1) -> 1 | KQ8: =IF(Work_D_Only_Bool,NETWORKDAYS.INTL(KQ9,KQ9,WE_Days,Tools!$B$10:$B$55),1) -> 1 | KR8: =IF(Work_D_Only_Bool,NETWORKDAYS.INTL(KR9,KR9,WE_Days,Tools!$B$10:$B$55),1) -> 1 | KS8: =IF(Work_D_Only_Bool,NETWORKDAYS.INTL(KS9,KS9,WE_Days,Tools!$B$10:$B$55),1) -> 1 | KT8: =IF(Work_D_Only_Bool,NETWORKDAYS.INTL(KT9,KT9,WE_Days,Tools!$B$10:$B$55),1) -> 1 | KU8: =IF(Work_D_Only_Bool,NETWORKDAYS.INTL(KU9,KU9,WE_Days,Tools!$B$10:$B$55),1) -> 0 | KV8: =IF(Work_D_Only_Bool,NETWORKDAYS.INTL(KV9,KV9,WE_Days,Tools!$B$10:$B$55),1) -> 0 | KW8: =IF(Work_D_Only_Bool,NETWORKDAYS.INTL(KW9,KW9,WE_Days,Tools!$B$10:$B$55),1) -> 1 | KX8: =IF(Work_D_Only_Bool,NETWORKDAYS.INTL(KX9,KX9,WE_Days,Tools!$B$10:$B$55),1) -> 1 | KY8: =IF(Work_D_Only_Bool,NETWORKDAYS.INTL(KY9,KY9,WE_Days,Tools!$B$10:$B$55),1) -> 1 | KZ8: =IF(Work_D_Only_Bool,NETWORKDAYS.INTL(KZ9,KZ9,WE_Days,Tools!$B$10:$B$55),1) -> 1 | LA8: =IF(Work_D_Only_Bool,NETWORKDAYS.INTL(LA9,LA9,WE_Days,Tools!$B$10:$B$55),1) -> 1 | LB8: =IF(Work_D_Only_Bool,NETWORKDAYS.INTL(LB9,LB9,WE_Days,Tools!$B$10:$B$55),1) -> 0 | LC8: =IF(Work_D_Only_Bool,NETWORKDAYS.INTL(LC9,LC9,WE_Days,Tools!$B$10:$B$55),1) -> 0 | LD8: =IF(Work_D_Only_Bool,NETWORKDAYS.INTL(LD9,LD9,WE_Days,Tools!$B$10:$B$55),1) -> 1 | LE8: =IF(Work_D_Only_Bool,NETWORKDAYS.INTL(LE9,LE9,WE_Days,Tools!$B$10:$B$55),1) -> 1 | LF8: =IF(Work_D_Only_Bool,NETWORKDAYS.INTL(LF9,LF9,WE_Days,Tools!$B$10:$B$55),1) -> 1 | LG8: =IF(Work_D_Only_Bool,NETWORKDAYS.INTL(LG9,LG9,WE_Days,Tools!$B$10:$B$55),1) -> 1 | LH8: =IF(Work_D_Only_Bool,NETWORKDAYS.INTL(LH9,LH9,WE_Days,Tools!$B$10:$B$55),1) -> 1 | LI8: =IF(Work_D_Only_Bool,NETWORKDAYS.INTL(LI9,LI9,WE_Days,Tools!$B$10:$B$55),1) -> 0 | LJ8: =IF(Work_D_Only_Bool,NETWORKDAYS.INTL(LJ9,LJ9,WE_Days,Tools!$B$10:$B$55),1) -> 0 | LK8: =IF(Work_D_Only_Bool,NETWORKDAYS.INTL(LK9,LK9,WE_Days,Tools!$B$10:$B$55),1) -> 1 | LL8: =IF(Work_D_Only_Bool,NETWORKDAYS.INTL(LL9,LL9,WE_Days,Tools!$B$10:$B$55),1) -> 1 | LM8: =IF(Work_D_Only_Bool,NETWORKDAYS.INTL(LM9,LM9,WE_Days,Tools!$B$10:$B$55),1) -> 1 | LN8: =IF(Work_D_Only_Bool,NETWORKDAYS.INTL(LN9,LN9,WE_Days,Tools!$B$10:$B$55),1) -> 1 | LO8: =IF(Work_D_Only_Bool,NETWORKDAYS.INTL(LO9,LO9,WE_Days,Tools!$B$10:$B$55),1) -> 1 | LP8: =IF(Work_D_Only_Bool,NETWORKDAYS.INTL(LP9,LP9,WE_Days,Tools!$B$10:$B$55),1) -> 0 | LQ8: =IF(Work_D_Only_Bool,NETWORKDAYS.INTL(LQ9,LQ9,WE_Days,Tools!$B$10:$B$55),1) -> 0 | LR8: =IF(Work_D_Only_Bool,NETWORKDAYS.INTL(LR9,LR9,WE_Days,Tools!$B$10:$B$55),1) -> 1 | LS8: =IF(Work_D_Only_Bool,NETWORKDAYS.INTL(LS9,LS9,WE_Days,Tools!$B$10:$B$55),1) -> 1 | LT8: =IF(Work_D_Only_Bool,NETWORKDAYS.INTL(LT9,LT9,WE_Days,Tools!$B$10:$B$55),1) -> 1 | LU8: =IF(Work_D_Only_Bool,NETWORKDAYS.INTL(LU9,LU9,WE_Days,Tools!$B$10:$B$55),1) -> 1 | LV8: =IF(Work_D_Only_Bool,NETWORKDAYS.INTL(LV9,LV9,WE_Days,Tools!$B$10:$B$55),1) -> 1 | LW8: =IF(Work_D_Only_Bool,NETWORKDAYS.INTL(LW9,LW9,WE_Days,Tools!$B$10:$B$55),1) -> 0 | LX8: =IF(Work_D_Only_Bool,NETWORKDAYS.INTL(LX9,LX9,WE_Days,Tools!$B$10:$B$55),1) -> 0 | LY8: =IF(Work_D_Only_Bool,NETWORKDAYS.INTL(LY9,LY9,WE_Days,Tools!$B$10:$B$55),1) -> 1 | LZ8: =IF(Work_D_Only_Bool,NETWORKDAYS.INTL(LZ9,LZ9,WE_Days,Tools!$B$10:$B$55),1) -> 1 | MA8: =IF(Work_D_Only_Bool,NETWORKDAYS.INTL(MA9,MA9,WE_Days,Tools!$B$10:$B$55),1) -> 1 | MB8: =IF(Work_D_Only_Bool,NETWORKDAYS.INTL(MB9,MB9,WE_Days,Tools!$B$10:$B$55),1) -> 1 | MC8: =IF(Work_D_Only_Bool,NETWORKDAYS.INTL(MC9,MC9,WE_Days,Tools!$B$10:$B$55),1) -> 1 | MD8: =IF(Work_D_Only_Bool,NETWORKDAYS.INTL(MD9,MD9,WE_Days,Tools!$B$10:$B$55),1) -> 0 | ME8: =IF(Work_D_Only_Bool,NETWORKDAYS.INTL(ME9,ME9,WE_Days,Tools!$B$10:$B$55),1) -> 0 | MF8: =IF(Work_D_Only_Bool,NETWORKDAYS.INTL(MF9,MF9,WE_Days,Tools!$B$10:$B$55),1) -> 1 | MG8: =IF(Work_D_Only_Bool,NETWORKDAYS.INTL(MG9,MG9,WE_Days,Tools!$B$10:$B$55),1) -> 1 | MH8: =IF(Work_D_Only_Bool,NETWORKDAYS.INTL(MH9,MH9,WE_Days,Tools!$B$10:$B$55),1) -> 1 | MI8: =IF(Work_D_Only_Bool,NETWORKDAYS.INTL(MI9,MI9,WE_Days,Tools!$B$10:$B$55),1) -> 1 | MJ8: =IF(Work_D_Only_Bool,NETWORKDAYS.INTL(MJ9,MJ9,WE_Days,Tools!$B$10:$B$55),1) -> 1 | MK8: =IF(Work_D_Only_Bool,NETWORKDAYS.INTL(MK9,MK9,WE_Days,Tools!$B$10:$B$55),1) -> 0 | ML8: =IF(Work_D_Only_Bool,NETWORKDAYS.INTL(ML9,ML9,WE_Days,Tools!$B$10:$B$55),1) -> 0 | MM8: =IF(Work_D_Only_Bool,NETWORKDAYS.INTL(MM9,MM9,WE_Days,Tools!$B$10:$B$55),1) -> 1 | MN8: =IF(Work_D_Only_Bool,NETWORKDAYS.INTL(MN9,MN9,WE_Days,Tools!$B$10:$B$55),1) -> 1 | MO8: =IF(Work_D_Only_Bool,NETWORKDAYS.INTL(MO9,MO9,WE_Days,Tools!$B$10:$B$55),1) -> 1 | MP8: =IF(Work_D_Only_Bool,NETWORKDAYS.INTL(MP9,MP9,WE_Days,Tools!$B$10:$B$55),1) -> 1 | MQ8: =IF(Work_D_Only_Bool,NETWORKDAYS.INTL(MQ9,MQ9,WE_Days,Tools!$B$10:$B$55),1) -> 1 | MR8: =IF(Work_D_Only_Bool,NETWORKDAYS.INTL(MR9,MR9,WE_Days,Tools!$B$10:$B$55),1) -> 0 | MS8: =IF(Work_D_Only_Bool,NETWORKDAYS.INTL(MS9,MS9,WE_Days,Tools!$B$10:$B$55),1) -> 0 | MT8: =IF(Work_D_Only_Bool,NETWORKDAYS.INTL(MT9,MT9,WE_Days,Tools!$B$10:$B$55),1) -> 1 | MU8: =IF(Work_D_Only_Bool,NETWORKDAYS.INTL(MU9,MU9,WE_Days,Tools!$B$10:$B$55),1) -> 1 | MV8: =IF(Work_D_Only_Bool,NETWORKDAYS.INTL(MV9,MV9,WE_Days,Tools!$B$10:$B$55),1) -> 1 | MW8: =IF(Work_D_Only_Bool,NETWORKDAYS.INTL(MW9,MW9,WE_Days,Tools!$B$10:$B$55),1) -> 1 | MX8: =IF(Work_D_Only_Bool,NETWORKDAYS.INTL(MX9,MX9,WE_Days,Tools!$B$10:$B$55),1) -> 1 | MY8: =IF(Work_D_Only_Bool,NETWORKDAYS.INTL(MY9,MY9,WE_Days,Tools!$B$10:$B$55),1) -> 0 | MZ8: =IF(Work_D_Only_Bool,NETWORKDAYS.INTL(MZ9,MZ9,WE_Days,Tools!$B$10:$B$55),1) -> 0 | NA8: =IF(Work_D_Only_Bool,NETWORKDAYS.INTL(NA9,NA9,WE_Days,Tools!$B$10:$B$55),1) -> 1 | NB8: =IF(Work_D_Only_Bool,NETWORKDAYS.INTL(NB9,NB9,WE_Days,Tools!$B$10:$B$55),1) -> 1 | NC8: =IF(Work_D_Only_Bool,NETWORKDAYS.INTL(NC9,NC9,WE_Days,Tools!$B$10:$B$55),1) -> 1 | ND8: =IF(Work_D_Only_Bool,NETWORKDAYS.INTL(ND9,ND9,WE_Days,Tools!$B$10:$B$55),1) -> 1 | NE8: =IF(Work_D_Only_Bool,NETWORKDAYS.INTL(NE9,NE9,WE_Days,Tools!$B$10:$B$55),1) -> 1 | NF8: =IF(Work_D_Only_Bool,NETWORKDAYS.INTL(NF9,NF9,WE_Days,Tools!$B$10:$B$55),1) -> 0 | NG8: =IF(Work_D_Only_Bool,NETWORKDAYS.INTL(NG9,NG9,WE_Days,Tools!$B$10:$B$55),1) -> 0 | NH8: =IF(Work_D_Only_Bool,NETWORKDAYS.INTL(NH9,NH9,WE_Days,Tools!$B$10:$B$55),1) -> 1 | NI8: =IF(Work_D_Only_Bool,NETWORKDAYS.INTL(NI9,NI9,WE_Days,Tools!$B$10:$B$55),1) -> 1 | NJ8: =IF(Work_D_Only_Bool,NETWORKDAYS.INTL(NJ9,NJ9,WE_Days,Tools!$B$10:$B$55),1) -> 1 | NK8: =IF(Work_D_Only_Bool,NETWORKDAYS.INTL(NK9,NK9,WE_Days,Tools!$B$10:$B$55),1) -> 1 | NL8: =IF(Work_D_Only_Bool,NETWORKDAYS.INTL(NL9,NL9,WE_Days,Tools!$B$10:$B$55),1) -> 1 | NM8: =IF(Work_D_Only_Bool,NETWORKDAYS.INTL(NM9,NM9,WE_Days,Tools!$B$10:$B$55),1) -> 0 | NN8: =IF(Work_D_Only_Bool,NETWORKDAYS.INTL(NN9,NN9,WE_Days,Tools!$B$10:$B$55),1) -> 0 | NO8: =IF(Work_D_Only_Bool,NETWORKDAYS.INTL(NO9,NO9,WE_Days,Tools!$B$10:$B$55),1) -> 1 | NP8: =IF(Work_D_Only_Bool,NETWORKDAYS.INTL(NP9,NP9,WE_Days,Tools!$B$10:$B$55),1) -> 1 | NQ8: =IF(Work_D_Only_Bool,NETWORKDAYS.INTL(NQ9,NQ9,WE_Days,Tools!$B$10:$B$55),1) -> 1 | NR8: =IF(Work_D_Only_Bool,NETWORKDAYS.INTL(NR9,NR9,WE_Days,Tools!$B$10:$B$55),1) -> 1 | NS8: =IF(Work_D_Only_Bool,NETWORKDAYS.INTL(NS9,NS9,WE_Days,Tools!$B$10:$B$55),1) -> 1 | NT8: =IF(Work_D_Only_Bool,NETWORKDAYS.INTL(NT9,NT9,WE_Days,Tools!$B$10:$B$55),1) -> 0 | NU8: =IF(Work_D_Only_Bool,NETWORKDAYS.INTL(NU9,NU9,WE_Days,Tools!$B$10:$B$55),1) -> 0 | NV8: =IF(Work_D_Only_Bool,NETWORKDAYS.INTL(NV9,NV9,WE_Days,Tools!$B$10:$B$55),1) -> 1 | NW8: =IF(Work_D_Only_Bool,NETWORKDAYS.INTL(NW9,NW9,WE_Days,Tools!$B$10:$B$55),1) -> 1 | NX8: =IF(Work_D_Only_Bool,NETWORKDAYS.INTL(NX9,NX9,WE_Days,Tools!$B$10:$B$55),1) -> 1 | NY8: =IF(Work_D_Only_Bool,NETWORKDAYS.INTL(NY9,NY9,WE_Days,Tools!$B$10:$B$55),1) -> 1 | NZ8: =IF(Work_D_Only_Bool,NETWORKDAYS.INTL(NZ9,NZ9,WE_Days,Tools!$B$10:$B$55),1) -> 1 | OA8: =IF(Work_D_Only_Bool,NETWORKDAYS.INTL(OA9,OA9,WE_Days,Tools!$B$10:$B$55),1) -> 0 | OB8: =IF(Work_D_Only_Bool,NETWORKDAYS.INTL(OB9,OB9,WE_Days,Tools!$B$10:$B$55),1) -> 0 | OC8: =IF(Work_D_Only_Bool,NETWORKDAYS.INTL(OC9,OC9,WE_Days,Tools!$B$10:$B$55),1) -> 1 | OD8: =IF(Work_D_Only_Bool,NETWORKDAYS.INTL(OD9,OD9,WE_Days,Tools!$B$10:$B$55),1) -> 1 | OE8: =IF(Work_D_Only_Bool,NETWORKDAYS.INTL(OE9,OE9,WE_Days,Tools!$B$10:$B$55),1) -> 1 | OF8: =IF(Work_D_Only_Bool,NETWORKDAYS.INTL(OF9,OF9,WE_Days,Tools!$B$10:$B$55),1) -> 1 | OG8: =IF(Work_D_Only_Bool,NETWORKDAYS.INTL(OG9,OG9,WE_Days,Tools!$B$10:$B$55),1) -> 1 | OH8: =IF(Work_D_Only_Bool,NETWORKDAYS.INTL(OH9,OH9,WE_Days,Tools!$B$10:$B$55),1) -> 0 | OI8: =IF(Work_D_Only_Bool,NETWORKDAYS.INTL(OI9,OI9,WE_Days,Tools!$B$10:$B$55),1) -> 0 | OJ8: =IF(Work_D_Only_Bool,NETWORKDAYS.INTL(OJ9,OJ9,WE_Days,Tools!$B$10:$B$55),1) -> 1 | OK8: =IF(Work_D_Only_Bool,NETWORKDAYS.INTL(OK9,OK9,WE_Days,Tools!$B$10:$B$55),1) -> 1 | OL8: =IF(Work_D_Only_Bool,NETWORKDAYS.INTL(OL9,OL9,WE_Days,Tools!$B$10:$B$55),1) -> 1 | OM8: =IF(Work_D_Only_Bool,NETWORKDAYS.INTL(OM9,OM9,WE_Days,Tools!$B$10:$B$55),1) -> 1 | ON8: =IF(Work_D_Only_Bool,NETWORKDAYS.INTL(ON9,ON9,WE_Days,Tools!$B$10:$B$55),1) -> 1 | OO8: =IF(Work_D_Only_Bool,NETWORKDAYS.INTL(OO9,OO9,WE_Days,Tools!$B$10:$B$55),1) -> 0 | OP8: =IF(Work_D_Only_Bool,NETWORKDAYS.INTL(OP9,OP9,WE_Days,Tools!$B$10:$B$55),1) -> 0 | OQ8: =IF(Work_D_Only_Bool,NETWORKDAYS.INTL(OQ9,OQ9,WE_Days,Tools!$B$10:$B$55),1) -> 1 | OR8: =IF(Work_D_Only_Bool,NETWORKDAYS.INTL(OR9,OR9,WE_Days,Tools!$B$10:$B$55),1) -> 1 | OS8: =IF(Work_D_Only_Bool,NETWORKDAYS.INTL(OS9,OS9,WE_Days,Tools!$B$10:$B$55),1) -> 1 | OT8: =IF(Work_D_Only_Bool,NETWORKDAYS.INTL(OT9,OT9,WE_Days,Tools!$B$10:$B$55),1) -> 1 | OU8: =IF(Work_D_Only_Bool,NETWORKDAYS.INTL(OU9,OU9,WE_Days,Tools!$B$10:$B$55),1) -> 1 | OV8: =IF(Work_D_Only_Bool,NETWORKDAYS.INTL(OV9,OV9,WE_Days,Tools!$B$10:$B$55),1) -> 0 | OW8: =IF(Work_D_Only_Bool,NETWORKDAYS.INTL(OW9,OW9,WE_Days,Tools!$B$10:$B$55),1) -> 0 | OX8: =IF(Work_D_Only_Bool,NETWORKDAYS.INTL(OX9,OX9,WE_Days,Tools!$B$10:$B$55),1) -> 1 | OY8: =IF(Work_D_Only_Bool,NETWORKDAYS.INTL(OY9,OY9,WE_Days,Tools!$B$10:$B$55),1) -> 1 | OZ8: =IF(Work_D_Only_Bool,NETWORKDAYS.INTL(OZ9,OZ9,WE_Days,Tools!$B$10:$B$55),1) -> 1 | PA8: =IF(Work_D_Only_Bool,NETWORKDAYS.INTL(PA9,PA9,WE_Days,Tools!$B$10:$B$55),1) -> 1 | PB8: =IF(Work_D_Only_Bool,NETWORKDAYS.INTL(PB9,PB9,WE_Days,Tools!$B$10:$B$55),1) -> 1 | PC8: =IF(Work_D_Only_Bool,NETWORKDAYS.INTL(PC9,PC9,WE_Days,Tools!$B$10:$B$55),1) -> 0 | PD8: =IF(Work_D_Only_Bool,NETWORKDAYS.INTL(PD9,PD9,WE_Days,Tools!$B$10:$B$55),1) -> 0 | PE8: =IF(Work_D_Only_Bool,NETWORKDAYS.INTL(PE9,PE9,WE_Days,Tools!$B$10:$B$55),1) -> 1 | PF8: =IF(Work_D_Only_Bool,NETWORKDAYS.INTL(PF9,PF9,WE_Days,Tools!$B$10:$B$55),1) -> 1 | PG8: =IF(Work_D_Only_Bool,NETWORKDAYS.INTL(PG9,PG9,WE_Days,Tools!$B$10:$B$55),1) -> 1 | PH8: =IF(Work_D_Only_Bool,NETWORKDAYS.INTL(PH9,PH9,WE_Days,Tools!$B$10:$B$55),1) -> 1 | PI8: =IF(Work_D_Only_Bool,NETWORKDAYS.INTL(PI9,PI9,WE_Days,Tools!$B$10:$B$55),1) -> 1 | PJ8: =IF(Work_D_Only_Bool,NETWORKDAYS.INTL(PJ9,PJ9,WE_Days,Tools!$B$10:$B$55),1) -> 0 | PK8: =IF(Work_D_Only_Bool,NETWORKDAYS.INTL(PK9,PK9,WE_Days,Tools!$B$10:$B$55),1) -> 0 | PL8: =IF(Work_D_Only_Bool,NETWORKDAYS.INTL(PL9,PL9,WE_Days,Tools!$B$10:$B$55),1) -> 1 | PM8: =IF(Work_D_Only_Bool,NETWORKDAYS.INTL(PM9,PM9,WE_Days,Tools!$B$10:$B$55),1) -> 1 | PN8: =IF(Work_D_Only_Bool,NETWORKDAYS.INTL(PN9,PN9,WE_Days,Tools!$B$10:$B$55),1) -> 1 | PO8: =IF(Work_D_Only_Bool,NETWORKDAYS.INTL(PO9,PO9,WE_Days,Tools!$B$10:$B$55),1) -> 1 | PP8: =IF(Work_D_Only_Bool,NETWORKDAYS.INTL(PP9,PP9,WE_Days,Tools!$B$10:$B$55),1) -> 1 | PQ8: =IF(Work_D_Only_Bool,NETWORKDAYS.INTL(PQ9,PQ9,WE_Days,Tools!$B$10:$B$55),1) -> 0 | PR8: =IF(Work_D_Only_Bool,NETWORKDAYS.INTL(PR9,PR9,WE_Days,Tools!$B$10:$B$55),1) -> 0 | PS8: =IF(Work_D_Only_Bool,NETWORKDAYS.INTL(PS9,PS9,WE_Days,Tools!$B$10:$B$55),1) -> 1 | PT8: =IF(Work_D_Only_Bool,NETWORKDAYS.INTL(PT9,PT9,WE_Days,Tools!$B$10:$B$55),1) -> 1 | PU8: =IF(Work_D_Only_Bool,NETWORKDAYS.INTL(PU9,PU9,WE_Days,Tools!$B$10:$B$55),1) -> 1 | PV8: =IF(Work_D_Only_Bool,NETWORKDAYS.INTL(PV9,PV9,WE_Days,Tools!$B$10:$B$55),1) -> 1 | PW8: =IF(Work_D_Only_Bool,NETWORKDAYS.INTL(PW9,PW9,WE_Days,Tools!$B$10:$B$55),1) -> 1 | PX8: =IF(Work_D_Only_Bool,NETWORKDAYS.INTL(PX9,PX9,WE_Days,Tools!$B$10:$B$55),1) -> 0 | PY8: =IF(Work_D_Only_Bool,NETWORKDAYS.INTL(PY9,PY9,WE_Days,Tools!$B$10:$B$55),1) -> 0 | PZ8: =IF(Work_D_Only_Bool,NETWORKDAYS.INTL(PZ9,PZ9,WE_Days,Tools!$B$10:$B$55),1) -> 1 | QA8: =IF(Work_D_Only_Bool,NETWORKDAYS.INTL(QA9,QA9,WE_Days,Tools!$B$10:$B$55),1) -> 1 | QB8: =IF(Work_D_Only_Bool,NETWORKDAYS.INTL(QB9,QB9,WE_Days,Tools!$B$10:$B$55),1) -> 1 | QC8: =IF(Work_D_Only_Bool,NETWORKDAYS.INTL(QC9,QC9,WE_Days,Tools!$B$10:$B$55),1) -> 1 | QD8: =IF(Work_D_Only_Bool,NETWORKDAYS.INTL(QD9,QD9,WE_Days,Tools!$B$10:$B$55),1) -> 1 | QE8: =IF(Work_D_Only_Bool,NETWORKDAYS.INTL(QE9,QE9,WE_Days,Tools!$B$10:$B$55),1) -> 0 | QF8: =IF(Work_D_Only_Bool,NETWORKDAYS.INTL(QF9,QF9,WE_Days,Tools!$B$10:$B$55),1) -> 0 | QG8: =IF(Work_D_Only_Bool,NETWORKDAYS.INTL(QG9,QG9,WE_Days,Tools!$B$10:$B$55),1) -> 1 | QH8: =IF(Work_D_Only_Bool,NETWORKDAYS.INTL(QH9,QH9,WE_Days,Tools!$B$10:$B$55),1) -> 1 | QI8: =IF(Work_D_Only_Bool,NETWORKDAYS.INTL(QI9,QI9,WE_Days,Tools!$B$10:$B$55),1) -> 1 | QJ8: =IF(Work_D_Only_Bool,NETWORKDAYS.INTL(QJ9,QJ9,WE_Days,Tools!$B$10:$B$55),1) -> 1 | QK8: =IF(Work_D_Only_Bool,NETWORKDAYS.INTL(QK9,QK9,WE_Days,Tools!$B$10:$B$55),1) -> 1 | QL8: =IF(Work_D_Only_Bool,NETWORKDAYS.INTL(QL9,QL9,WE_Days,Tools!$B$10:$B$55),1) -> 0 | QM8: =IF(Work_D_Only_Bool,NETWORKDAYS.INTL(QM9,QM9,WE_Days,Tools!$B$10:$B$55),1) -> 0 | QN8: =IF(Work_D_Only_Bool,NETWORKDAYS.INTL(QN9,QN9,WE_Days,Tools!$B$10:$B$55),1) -> 1 | QO8: =IF(Work_D_Only_Bool,NETWORKDAYS.INTL(QO9,QO9,WE_Days,Tools!$B$10:$B$55),1) -> 1 | QP8: =IF(Work_D_Only_Bool,NETWORKDAYS.INTL(QP9,QP9,WE_Days,Tools!$B$10:$B$55),1) -> 1 | QQ8: =IF(Work_D_Only_Bool,NETWORKDAYS.INTL(QQ9,QQ9,WE_Days,Tools!$B$10:$B$55),1) -> 1 | QR8: =IF(Work_D_Only_Bool,NETWORKDAYS.INTL(QR9,QR9,WE_Days,Tools!$B$10:$B$55),1) -> 1 | QS8: =IF(Work_D_Only_Bool,NETWORKDAYS.INTL(QS9,QS9,WE_Days,Tools!$B$10:$B$55),1) -> 0 | QT8: =IF(Work_D_Only_Bool,NETWORKDAYS.INTL(QT9,QT9,WE_Days,Tools!$B$10:$B$55),1) -> 0 | QU8: =IF(Work_D_Only_Bool,NETWORKDAYS.INTL(QU9,QU9,WE_Days,Tools!$B$10:$B$55),1) -> 1 | QV8: =IF(Work_D_Only_Bool,NETWORKDAYS.INTL(QV9,QV9,WE_Days,Tools!$B$10:$B$55),1) -> 1 | QW8: =IF(Work_D_Only_Bool,NETWORKDAYS.INTL(QW9,QW9,WE_Days,Tools!$B$10:$B$55),1) -> 1 | QX8: =IF(Work_D_Only_Bool,NETWORKDAYS.INTL(QX9,QX9,WE_Days,Tools!$B$10:$B$55),1) -> 1 | QY8: =IF(Work_D_Only_Bool,NETWORKDAYS.INTL(QY9,QY9,WE_Days,Tools!$B$10:$B$55),1) -> 1 | QZ8: =IF(Work_D_Only_Bool,NETWORKDAYS.INTL(QZ9,QZ9,WE_Days,Tools!$B$10:$B$55),1) -> 0 | RA8: =IF(Work_D_Only_Bool,NETWORKDAYS.INTL(RA9,RA9,WE_Days,Tools!$B$10:$B$55),1) -> 0 | RB8: =IF(Work_D_Only_Bool,NETWORKDAYS.INTL(RB9,RB9,WE_Days,Tools!$B$10:$B$55),1) -> 1 | RC8: =IF(Work_D_Only_Bool,NETWORKDAYS.INTL(RC9,RC9,WE_Days,Tools!$B$10:$B$55),1) -> 1 | RD8: =IF(Work_D_Only_Bool,NETWORKDAYS.INTL(RD9,RD9,WE_Days,Tools!$B$10:$B$55),1) -> 1 | RE8: =IF(Work_D_Only_Bool,NETWORKDAYS.INTL(RE9,RE9,WE_Days,Tools!$B$10:$B$55),1) -> 1 | RF8: =IF(Work_D_Only_Bool,NETWORKDAYS.INTL(RF9,RF9,WE_Days,Tools!$B$10:$B$55),1) -> 1 | RG8: =IF(Work_D_Only_Bool,NETWORKDAYS.INTL(RG9,RG9,WE_Days,Tools!$B$10:$B$55),1) -> 0 | RH8: =IF(Work_D_Only_Bool,NETWORKDAYS.INTL(RH9,RH9,WE_Days,Tools!$B$10:$B$55),1) -> 0 | RI8: =IF(Work_D_Only_Bool,NETWORKDAYS.INTL(RI9,RI9,WE_Days,Tools!$B$10:$B$55),1) -> 1 | RJ8: =IF(Work_D_Only_Bool,NETWORKDAYS.INTL(RJ9,RJ9,WE_Days,Tools!$B$10:$B$55),1) -> 1 | RK8: =IF(Work_D_Only_Bool,NETWORKDAYS.INTL(RK9,RK9,WE_Days,Tools!$B$10:$B$55),1) -> 1 | RL8: =IF(Work_D_Only_Bool,NETWORKDAYS.INTL(RL9,RL9,WE_Days,Tools!$B$10:$B$55),1) -> 1 | RM8: =IF(Work_D_Only_Bool,NETWORKDAYS.INTL(RM9,RM9,WE_Days,Tools!$B$10:$B$55),1) -> 1 | RN8: =IF(Work_D_Only_Bool,NETWORKDAYS.INTL(RN9,RN9,WE_Days,Tools!$B$10:$B$55),1) -> 0 | RO8: =IF(Work_D_Only_Bool,NETWORKDAYS.INTL(RO9,RO9,WE_Days,Tools!$B$10:$B$55),1) -> 0 | RP8: =IF(Work_D_Only_Bool,NETWORKDAYS.INTL(RP9,RP9,WE_Days,Tools!$B$10:$B$55),1) -> 1 | RQ8: =IF(Work_D_Only_Bool,NETWORKDAYS.INTL(RQ9,RQ9,WE_Days,Tools!$B$10:$B$55),1) -> 1 | RR8: =IF(Work_D_Only_Bool,NETWORKDAYS.INTL(RR9,RR9,WE_Days,Tools!$B$10:$B$55),1) -> 1 | RS8: =IF(Work_D_Only_Bool,NETWORKDAYS.INTL(RS9,RS9,WE_Days,Tools!$B$10:$B$55),1) -> 1 | RT8: =IF(Work_D_Only_Bool,NETWORKDAYS.INTL(RT9,RT9,WE_Days,Tools!$B$10:$B$55),1) -> 1 | RU8: =IF(Work_D_Only_Bool,NETWORKDAYS.INTL(RU9,RU9,WE_Days,Tools!$B$10:$B$55),1) -> 0 | RV8: =IF(Work_D_Only_Bool,NETWORKDAYS.INTL(RV9,RV9,WE_Days,Tools!$B$10:$B$55),1) -> 0 | RW8: =IF(Work_D_Only_Bool,NETWORKDAYS.INTL(RW9,RW9,WE_Days,Tools!$B$10:$B$55),1) -> 1 | RX8: =IF(Work_D_Only_Bool,NETWORKDAYS.INTL(RX9,RX9,WE_Days,Tools!$B$10:$B$55),1) -> 1 | RY8: =IF(Work_D_Only_Bool,NETWORKDAYS.INTL(RY9,RY9,WE_Days,Tools!$B$10:$B$55),1) -> 1 | RZ8: =IF(Work_D_Only_Bool,NETWORKDAYS.INTL(RZ9,RZ9,WE_Days,Tools!$B$10:$B$55),1) -> 1 | SA8: =IF(Work_D_Only_Bool,NETWORKDAYS.INTL(SA9,SA9,WE_Days,Tools!$B$10:$B$55),1) -> 1 | SB8: =IF(Work_D_Only_Bool,NETWORKDAYS.INTL(SB9,SB9,WE_Days,Tools!$B$10:$B$55),1) -> 0 | SC8: =IF(Work_D_Only_Bool,NETWORKDAYS.INTL(SC9,SC9,WE_Days,Tools!$B$10:$B$55),1) -> 0 | SD8: =IF(Work_D_Only_Bool,NETWORKDAYS.INTL(SD9,SD9,WE_Days,Tools!$B$10:$B$55),1) -> 1 | SE8: =IF(Work_D_Only_Bool,NETWORKDAYS.INTL(SE9,SE9,WE_Days,Tools!$B$10:$B$55),1) -> 1 | SF8: =IF(Work_D_Only_Bool,NETWORKDAYS.INTL(SF9,SF9,WE_Days,Tools!$B$10:$B$55),1) -> 1 | SG8: =IF(Work_D_Only_Bool,NETWORKDAYS.INTL(SG9,SG9,WE_Days,Tools!$B$10:$B$55),1) -> 1 | SH8: =IF(Work_D_Only_Bool,NETWORKDAYS.INTL(SH9,SH9,WE_Days,Tools!$B$10:$B$55),1) -> 1 | SI8: =IF(Work_D_Only_Bool,NETWORKDAYS.INTL(SI9,SI9,WE_Days,Tools!$B$10:$B$55),1) -> 0 | SJ8: =IF(Work_D_Only_Bool,NETWORKDAYS.INTL(SJ9,SJ9,WE_Days,Tools!$B$10:$B$55),1) -> 0 | SK8: =IF(Work_D_Only_Bool,NETWORKDAYS.INTL(SK9,SK9,WE_Days,Tools!$B$10:$B$55),1) -> 1 | SL8: =IF(Work_D_Only_Bool,NETWORKDAYS.INTL(SL9,SL9,WE_Days,Tools!$B$10:$B$55),1) -> 1 | SM8: =IF(Work_D_Only_Bool,NETWORKDAYS.INTL(SM9,SM9,WE_Days,Tools!$B$10:$B$55),1) -> 1 | SN8: =IF(Work_D_Only_Bool,NETWORKDAYS.INTL(SN9,SN9,WE_Days,Tools!$B$10:$B$55),1) -> 1 | SO8: =IF(Work_D_Only_Bool,NETWORKDAYS.INTL(SO9,SO9,WE_Days,Tools!$B$10:$B$55),1) -> 1 | SP8: =IF(Work_D_Only_Bool,NETWORKDAYS.INTL(SP9,SP9,WE_Days,Tools!$B$10:$B$55),1) -> 0 | SQ8: =IF(Work_D_Only_Bool,NETWORKDAYS.INTL(SQ9,SQ9,WE_Days,Tools!$B$10:$B$55),1) -> 0 | SR8: =IF(Work_D_Only_Bool,NETWORKDAYS.INTL(SR9,SR9,WE_Days,Tools!$B$10:$B$55),1) -> 1 | SS8: =IF(Work_D_Only_Bool,NETWORKDAYS.INTL(SS9,SS9,WE_Days,Tools!$B$10:$B$55),1) -> 1 | ST8: =IF(Work_D_Only_Bool,NETWORKDAYS.INTL(ST9,ST9,WE_Days,Tools!$B$10:$B$55),1) -> 1 | SU8: =IF(Work_D_Only_Bool,NETWORKDAYS.INTL(SU9,SU9,WE_Days,Tools!$B$10:$B$55),1) -> 1 | SV8: =IF(Work_D_Only_Bool,NETWORKDAYS.INTL(SV9,SV9,WE_Days,Tools!$B$10:$B$55),1) -> 1 | SW8: =IF(Work_D_Only_Bool,NETWORKDAYS.INTL(SW9,SW9,WE_Days,Tools!$B$10:$B$55),1) -> 0 | SX8: =IF(Work_D_Only_Bool,NETWORKDAYS.INTL(SX9,SX9,WE_Days,Tools!$B$10:$B$55),1) -> 0 | SY8: =IF(Work_D_Only_Bool,NETWORKDAYS.INTL(SY9,SY9,WE_Days,Tools!$B$10:$B$55),1) -> 1 | SZ8: =IF(Work_D_Only_Bool,NETWORKDAYS.INTL(SZ9,SZ9,WE_Days,Tools!$B$10:$B$55),1) -> 1 | TA8: =IF(Work_D_Only_Bool,NETWORKDAYS.INTL(TA9,TA9,WE_Days,Tools!$B$10:$B$55),1) -> 1 | TB8: =IF(Work_D_Only_Bool,NETWORKDAYS.INTL(TB9,TB9,WE_Days,Tools!$B$10:$B$55),1) -> 1 | TC8: =IF(Work_D_Only_Bool,NETWORKDAYS.INTL(TC9,TC9,WE_Days,Tools!$B$10:$B$55),1) -> 1 | TD8: =IF(Work_D_Only_Bool,NETWORKDAYS.INTL(TD9,TD9,WE_Days,Tools!$B$10:$B$55),1) -> 0 | TE8: =IF(Work_D_Only_Bool,NETWORKDAYS.INTL(TE9,TE9,WE_Days,Tools!$B$10:$B$55),1) -> 0 | TF8: =IF(Work_D_Only_Bool,NETWORKDAYS.INTL(TF9,TF9,WE_Days,Tools!$B$10:$B$55),1) -> 1 | TG8: =IF(Work_D_Only_Bool,NETWORKDAYS.INTL(TG9,TG9,WE_Days,Tools!$B$10:$B$55),1) -> 1 | TH8: =IF(Work_D_Only_Bool,NETWORKDAYS.INTL(TH9,TH9,WE_Days,Tools!$B$10:$B$55),1) -> 1 | TI8: =IF(Work_D_Only_Bool,NETWORKDAYS.INTL(TI9,TI9,WE_Days,Tools!$B$10:$B$55),1) -> 1 | TJ8: =IF(Work_D_Only_Bool,NETWORKDAYS.INTL(TJ9,TJ9,WE_Days,Tools!$B$10:$B$55),1) -> 1 | TK8: =IF(Work_D_Only_Bool,NETWORKDAYS.INTL(TK9,TK9,WE_Days,Tools!$B$10:$B$55),1) -> 0 | TL8: =IF(Work_D_Only_Bool,NETWORKDAYS.INTL(TL9,TL9,WE_Days,Tools!$B$10:$B$55),1) -> 0 | TM8: =IF(Work_D_Only_Bool,NETWORKDAYS.INTL(TM9,TM9,WE_Days,Tools!$B$10:$B$55),1) -> 1 | TN8: =IF(Work_D_Only_Bool,NETWORKDAYS.INTL(TN9,TN9,WE_Days,Tools!$B$10:$B$55),1) -> 1 | TO8: =IF(Work_D_Only_Bool,NETWORKDAYS.INTL(TO9,TO9,WE_Days,Tools!$B$10:$B$55),1) -> 1 | TP8: =IF(Work_D_Only_Bool,NETWORKDAYS.INTL(TP9,TP9,WE_Days,Tools!$B$10:$B$55),1) -> 1 | TQ8: =IF(Work_D_Only_Bool,NETWORKDAYS.INTL(TQ9,TQ9,WE_Days,Tools!$B$10:$B$55),1) -> 1 | TR8: =IF(Work_D_Only_Bool,NETWORKDAYS.INTL(TR9,TR9,WE_Days,Tools!$B$10:$B$55),1) -> 0 | TS8: =IF(Work_D_Only_Bool,NETWORKDAYS.INTL(TS9,TS9,WE_Days,Tools!$B$10:$B$55),1) -> 0 | TT8: =IF(Work_D_Only_Bool,NETWORKDAYS.INTL(TT9,TT9,WE_Days,Tools!$B$10:$B$55),1) -> 1 | TU8: =IF(Work_D_Only_Bool,NETWORKDAYS.INTL(TU9,TU9,WE_Days,Tools!$B$10:$B$55),1) -> 1 | TV8: =IF(Work_D_Only_Bool,NETWORKDAYS.INTL(TV9,TV9,WE_Days,Tools!$B$10:$B$55),1) -> 1 | TW8: =IF(Work_D_Only_Bool,NETWORKDAYS.INTL(TW9,TW9,WE_Days,Tools!$B$10:$B$55),1) -> 1 | TX8: =IF(Work_D_Only_Bool,NETWORKDAYS.INTL(TX9,TX9,WE_Days,Tools!$B$10:$B$55),1) -> 1 | TY8: =IF(Work_D_Only_Bool,NETWORKDAYS.INTL(TY9,TY9,WE_Days,Tools!$B$10:$B$55),1) -> 0 | TZ8: =IF(Work_D_Only_Bool,NETWORKDAYS.INTL(TZ9,TZ9,WE_Days,Tools!$B$10:$B$55),1) -> 0 | UA8: =IF(Work_D_Only_Bool,NETWORKDAYS.INTL(UA9,UA9,WE_Days,Tools!$B$10:$B$55),1) -> 1 | UB8: =IF(Work_D_Only_Bool,NETWORKDAYS.INTL(UB9,UB9,WE_Days,Tools!$B$10:$B$55),1) -> 1 | UC8: =IF(Work_D_Only_Bool,NETWORKDAYS.INTL(UC9,UC9,WE_Days,Tools!$B$10:$B$55),1) -> 1 | UD8: =IF(Work_D_Only_Bool,NETWORKDAYS.INTL(UD9,UD9,WE_Days,Tools!$B$10:$B$55),1) -> 1 | UE8: =IF(Work_D_Only_Bool,NETWORKDAYS.INTL(UE9,UE9,WE_Days,Tools!$B$10:$B$55),1) -> 1 | UF8: =IF(Work_D_Only_Bool,NETWORKDAYS.INTL(UF9,UF9,WE_Days,Tools!$B$10:$B$55),1) -> 0 | UG8: =IF(Work_D_Only_Bool,NETWORKDAYS.INTL(UG9,UG9,WE_Days,Tools!$B$10:$B$55),1) -> 0 | UH8: =IF(Work_D_Only_Bool,NETWORKDAYS.INTL(UH9,UH9,WE_Days,Tools!$B$10:$B$55),1) -> 1 | UI8: =IF(Work_D_Only_Bool,NETWORKDAYS.INTL(UI9,UI9,WE_Days,Tools!$B$10:$B$55),1) -> 1 | UJ8: =IF(Work_D_Only_Bool,NETWORKDAYS.INTL(UJ9,UJ9,WE_Days,Tools!$B$10:$B$55),1) -> 1 | UK8: =IF(Work_D_Only_Bool,NETWORKDAYS.INTL(UK9,UK9,WE_Days,Tools!$B$10:$B$55),1) -> 1 | UL8: =IF(Work_D_Only_Bool,NETWORKDAYS.INTL(UL9,UL9,WE_Days,Tools!$B$10:$B$55),1) -> 1 | UM8: =IF(Work_D_Only_Bool,NETWORKDAYS.INTL(UM9,UM9,WE_Days,Tools!$B$10:$B$55),1) -> 0
Y9: ¶¶¶ Please Hide these rows. Do not delete. ¶¶¶ | AI9: Date | AJ9: =Start_Date_Fusion -> 2016-10-31 | AK9: =AJ9+1 -> 2016-11-01 | AL9: 2016-11-02 | AM9: 2016-11-03 | AN9: 2016-11-04 | AO9: 2016-11-05 | AP9: 2016-11-06 | AQ9: 2016-11-07 | AR9: 2016-11-08 | AS9: 2016-11-09 | AT9: =AS9+1 -> 2016-11-10 | AU9: 2016-11-11 | AV9: 2016-11-12 | AW9: 2016-11-13 | AX9: 2016-11-14 | AY9: 2016-11-15 | AZ9: 2016-11-16 | BA9: 2016-11-17 | BB9: 2016-11-18 | BC9: 2016-11-19 | BD9: 2016-11-20 | BE9: =BD9+1 -> 2016-11-21 | BF9: =BE9+1 -> 2016-11-22 | BG9: 2016-11-23 | BH9: 2016-11-24 | BI9: 2016-11-25 | BJ9: 2016-11-26 | BK9: 2016-11-27 | BL9: 2016-11-28 | BM9: 2016-11-29 | BN9: 2016-11-30 | BO9: 2016-12-01 | BP9: 2016-12-02 | BQ9: 2016-12-03 | BR9: 2016-12-04 | BS9: 2016-12-05 | BT9: 2016-12-06 | BU9: 2016-12-07 | BV9: 2016-12-08 | BW9: 2016-12-09 | BX9: 2016-12-10 | BY9: 2016-12-11 | BZ9: 2016-12-12 | CA9: 2016-12-13 | CB9: 2016-12-14 | CC9: 2016-12-15 | CD9: 2016-12-16 | CE9: 2016-12-17 | CF9: 2016-12-18 | CG9: 2016-12-19 | CH9: 2016-12-20 | CI9: 2016-12-21 | CJ9: 2016-12-22 | CK9: 2016-12-23 | CL9: 2016-12-24 | CM9: 2016-12-25 | CN9: 2016-12-26 | CO9: 2016-12-27 | CP9: 2016-12-28 | CQ9: 2016-12-29 | CR9: 2016-12-30 | CS9: 2016-12-31 | CT9: 2017-01-01 | CU9: 2017-01-02 | CV9: 2017-01-03 | CW9: =CV9+1 -> 2017-01-04 | CX9: 2017-01-05 | CY9: 2017-01-06 | CZ9: 2017-01-07 | DA9: 2017-01-08 | DB9: 2017-01-09 | DC9: 2017-01-10 | DD9: 2017-01-11 | DE9: 2017-01-12 | DF9: 2017-01-13 | DG9: 2017-01-14 | DH9: 2017-01-15 | DI9: 2017-01-16 | DJ9: 2017-01-17 | DK9: 2017-01-18 | DL9: 2017-01-19 | DM9: 2017-01-20 | DN9: 2017-01-21 | DO9: 2017-01-22 | DP9: 2017-01-23 | DQ9: 2017-01-24 | DR9: 2017-01-25 | DS9: 2017-01-26 | DT9: 2017-01-27 | DU9: 2017-01-28 | DV9: 2017-01-29 | DW9: 2017-01-30 | DX9: 2017-01-31 | DY9: 2017-02-01 | DZ9: 2017-02-02 | EA9: 2017-02-03 | EB9: 2017-02-04 | EC9: 2017-02-05 | ED9: 2017-02-06 | EE9: 2017-02-07 | EF9: 2017-02-08 | EG9: 2017-02-09 | EH9: 2017-02-10 | EI9: 2017-02-11 | EJ9: 2017-02-12 | EK9: 2017-02-13 | EL9: 2017-02-14 | EM9: 2017-02-15 | EN9: 2017-02-16 | EO9: 2017-02-17 | EP9: 2017-02-18 | EQ9: 2017-02-19 | ER9: 2017-02-20 | ES9: 2017-02-21 | ET9: 2017-02-22 | EU9: 2017-02-23 | EV9: 2017-02-24 | EW9: 2017-02-25 | EX9: 2017-02-26 | EY9: 2017-02-27 | EZ9: 2017-02-28 | FA9: 2017-03-01 | FB9: 2017-03-02 | FC9: 2017-03-03 | FD9: 2017-03-04 | FE9: 2017-03-05 | FF9: 2017-03-06 | FG9: 2017-03-07 | FH9: 2017-03-08 | FI9: =FH9+1 -> 2017-03-09 | FJ9: 2017-03-10 | FK9: 2017-03-11 | FL9: 2017-03-12 | FM9: 2017-03-13 | FN9: 2017-03-14 | FO9: 2017-03-15 | FP9: 2017-03-16 | FQ9: 2017-03-17 | FR9: 2017-03-18 | FS9: 2017-03-19 | FT9: 2017-03-20 | FU9: 2017-03-21 | FV9: 2017-03-22 | FW9: 2017-03-23 | FX9: 2017-03-24 | FY9: 2017-03-25 | FZ9: 2017-03-26 | GA9: 2017-03-27 | GB9: 2017-03-28 | GC9: 2017-03-29 | GD9: 2017-03-30 | GE9: 2017-03-31 | GF9: 2017-04-01 | GG9: 2017-04-02 | GH9: 2017-04-03 | GI9: 2017-04-04 | GJ9: 2017-04-05 | GK9: 2017-04-06 | GL9: 2017-04-07 | GM9: 2017-04-08 | GN9: 2017-04-09 | GO9: 2017-04-10 | GP9: 2017-04-11 | GQ9: 2017-04-12 | GR9: 2017-04-13 | GS9: 2017-04-14 | GT9: 2017-04-15 | GU9: 2017-04-16 | GV9: 2017-04-17 | GW9: 2017-04-18 | GX9: 2017-04-19 | GY9: 2017-04-20 | GZ9: 2017-04-21 | HA9: 2017-04-22 | HB9: 2017-04-23 | HC9: 2017-04-24 | HD9: 2017-04-25 | HE9: 2017-04-26 | HF9: 2017-04-27 | HG9: 2017-04-28 | HH9: 2017-04-29 | HI9: 2017-04-30 | HJ9: 2017-05-01 | HK9: 2017-05-02 | HL9: 2017-05-03 | HM9: 2017-05-04 | HN9: 2017-05-05 | HO9: 2017-05-06 | HP9: 2017-05-07 | HQ9: 2017-05-08 | HR9: 2017-05-09 | HS9: 2017-05-10 | HT9: 2017-05-11 | HU9: =HT9+1 -> 2017-05-12 | HV9: 2017-05-13 | HW9: 2017-05-14 | HX9: 2017-05-15 | HY9: 2017-05-16 | HZ9: 2017-05-17 | IA9: 2017-05-18 | IB9: 2017-05-19 | IC9: 2017-05-20 | ID9: 2017-05-21 | IE9: 2017-05-22 | IF9: 2017-05-23 | IG9: 2017-05-24 | IH9: 2017-05-25 | II9: 2017-05-26 | IJ9: 2017-05-27 | IK9: 2017-05-28 | IL9: 2017-05-29 | IM9: 2017-05-30 | IN9: 2017-05-31 | IO9: 2017-06-01 | IP9: 2017-06-02 | IQ9: 2017-06-03 | IR9: 2017-06-04 | IS9: 2017-06-05 | IT9: 2017-06-06 | IU9: 2017-06-07 | IV9: 2017-06-08 | IW9: 2017-06-09 | IX9: 2017-06-10 | IY9: 2017-06-11 | IZ9: 2017-06-12 | JA9: 2017-06-13 | JB9: 2017-06-14 | JC9: 2017-06-15 | JD9: 2017-06-16 | JE9: 2017-06-17 | JF9: 2017-06-18 | JG9: 2017-06-19 | JH9: 2017-06-20 | JI9: 2017-06-21 | JJ9: 2017-06-22 | JK9: 2017-06-23 | JL9: 2017-06-24 | JM9: 2017-06-25 | JN9: 2017-06-26 | JO9: 2017-06-27 | JP9: 2017-06-28 | JQ9: 2017-06-29 | JR9: 2017-06-30 | JS9: 2017-07-01 | JT9: 2017-07-02 | JU9: 2017-07-03 | JV9: 2017-07-04 | JW9: 2017-07-05 | JX9: 2017-07-06 | JY9: 2017-07-07 | JZ9: 2017-07-08 | KA9: 2017-07-09 | KB9: 2017-07-10 | KC9: 2017-07-11 | KD9: 2017-07-12 | KE9: 2017-07-13 | KF9: 2017-07-14 | KG9: =KF9+1 -> 2017-07-15 | KH9: 2017-07-16 | KI9: 2017-07-17 | KJ9: 2017-07-18 | KK9: 2017-07-19 | KL9: 2017-07-20 | KM9: 2017-07-21 | KN9: 2017-07-22 | KO9: 2017-07-23 | KP9: 2017-07-24 | KQ9: 2017-07-25 | KR9: 2017-07-26 | KS9: 2017-07-27 | KT9: 2017-07-28 | KU9: 2017-07-29 | KV9: 2017-07-30 | KW9: 2017-07-31 | KX9: 2017-08-01 | KY9: 2017-08-02 | KZ9: 2017-08-03 | LA9: 2017-08-04 | LB9: 2017-08-05 | LC9: 2017-08-06 | LD9: 2017-08-07 | LE9: 2017-08-08 | LF9: 2017-08-09 | LG9: 2017-08-10 | LH9: 2017-08-11 | LI9: 2017-08-12 | LJ9: 2017-08-13 | LK9: 2017-08-14 | LL9: 2017-08-15 | LM9: 2017-08-16 | LN9: 2017-08-17 | LO9: 2017-08-18 | LP9: 2017-08-19 | LQ9: 2017-08-20 | LR9: 2017-08-21 | LS9: 2017-08-22 | LT9: 2017-08-23 | LU9: 2017-08-24 | LV9: 2017-08-25 | LW9: 2017-08-26 | LX9: 2017-08-27 | LY9: 2017-08-28 | LZ9: 2017-08-29 | MA9: 2017-08-30 | MB9: 2017-08-31 | MC9: 2017-09-01 | MD9: 2017-09-02 | ME9: 2017-09-03 | MF9: 2017-09-04 | MG9: 2017-09-05 | MH9: 2017-09-06 | MI9: 2017-09-07 | MJ9: 2017-09-08 | MK9: 2017-09-09 | ML9: 2017-09-10 | MM9: 2017-09-11 | MN9: 2017-09-12 | MO9: 2017-09-13 | MP9: 2017-09-14 | MQ9: 2017-09-15 | MR9: 2017-09-16 | MS9: =MR9+1 -> 2017-09-17 | MT9: 2017-09-18 | MU9: 2017-09-19 | MV9: 2017-09-20 | MW9: 2017-09-21 | MX9: 2017-09-22 | MY9: 2017-09-23 | MZ9: 2017-09-24 | NA9: 2017-09-25 | NB9: 2017-09-26 | NC9: 2017-09-27 | ND9: 2017-09-28 | NE9: 2017-09-29 | NF9: 2017-09-30 | NG9: 2017-10-01 | NH9: 2017-10-02 | NI9: 2017-10-03 | NJ9: 2017-10-04 | NK9: 2017-10-05 | NL9: 2017-10-06 | NM9: 2017-10-07 | NN9: 2017-10-08 | NO9: 2017-10-09 | NP9: 2017-10-10 | NQ9: 2017-10-11 | NR9: 2017-10-12 | NS9: 2017-10-13 | NT9: 2017-10-14 | NU9: 2017-10-15 | NV9: 2017-10-16 | NW9: 2017-10-17 | NX9: 2017-10-18 | NY9: 2017-10-19 | NZ9: 2017-10-20 | OA9: 2017-10-21 | OB9: 2017-10-22 | OC9: 2017-10-23 | OD9: 2017-10-24 | OE9: 2017-10-25 | OF9: 2017-10-26 | OG9: 2017-10-27 | OH9: 2017-10-28 | OI9: 2017-10-29 | OJ9: 2017-10-30 | OK9: 2017-10-31 | OL9: 2017-11-01 | OM9: 2017-11-02 | ON9: 2017-11-03 | OO9: 2017-11-04 | OP9: 2017-11-05 | OQ9: 2017-11-06 | OR9: 2017-11-07 | OS9: 2017-11-08 | OT9: 2017-11-09 | OU9: 2017-11-10 | OV9: 2017-11-11 | OW9: 2017-11-12 | OX9: 2017-11-13 | OY9: 2017-11-14 | OZ9: 2017-11-15 | PA9: 2017-11-16 | PB9: 2017-11-17 | PC9: 2017-11-18 | PD9: 2017-11-19 | PE9: =PD9+1 -> 2017-11-20 | PF9: 2017-11-21 | PG9: 2017-11-22 | PH9: 2017-11-23 | PI9: 2017-11-24 | PJ9: 2017-11-25 | PK9: 2017-11-26 | PL9: 2017-11-27 | PM9: 2017-11-28 | PN9: 2017-11-29 | PO9: 2017-11-30 | PP9: 2017-12-01 | PQ9: 2017-12-02 | PR9: 2017-12-03 | PS9: 2017-12-04 | PT9: 2017-12-05 | PU9: 2017-12-06 | PV9: 2017-12-07 | PW9: 2017-12-08 | PX9: 2017-12-09 | PY9: 2017-12-10 | PZ9: 2017-12-11 | QA9: 2017-12-12 | QB9: 2017-12-13 | QC9: 2017-12-14 | QD9: 2017-12-15 | QE9: 2017-12-16 | QF9: 2017-12-17 | QG9: 2017-12-18 | QH9: 2017-12-19 | QI9: 2017-12-20 | QJ9: 2017-12-21 | QK9: 2017-12-22 | QL9: 2017-12-23 | QM9: 2017-12-24 | QN9: 2017-12-25 | QO9: 2017-12-26 | QP9: 2017-12-27 | QQ9: 2017-12-28 | QR9: 2017-12-29 | QS9: 2017-12-30 | QT9: 2017-12-31 | QU9: 2018-01-01 | QV9: 2018-01-02 | QW9: 2018-01-03 | QX9: 2018-01-04 | QY9: 2018-01-05 | QZ9: 2018-01-06 | RA9: 2018-01-07 | RB9: 2018-01-08 | RC9: 2018-01-09 | RD9: 2018-01-10 | RE9: 2018-01-11 | RF9: 2018-01-12 | RG9: 2018-01-13 | RH9: 2018-01-14 | RI9: 2018-01-15 | RJ9: 2018-01-16 | RK9: 2018-01-17 | RL9: 2018-01-18 | RM9: 2018-01-19 | RN9: 2018-01-20 | RO9: 2018-01-21 | RP9: 2018-01-22 | RQ9: =RP9+1 -> 2018-01-23 | RR9: 2018-01-24 | RS9: 2018-01-25 | RT9: 2018-01-26 | RU9: 2018-01-27 | RV9: 2018-01-28 | RW9: 2018-01-29 | RX9: 2018-01-30 | RY9: 2018-01-31 | RZ9: 2018-02-01 | SA9: 2018-02-02 | SB9: 2018-02-03 | SC9: 2018-02-04 | SD9: 2018-02-05 | SE9: 2018-02-06 | SF9: 2018-02-07 | SG9: 2018-02-08 | SH9: 2018-02-09 | SI9: 2018-02-10 | SJ9: 2018-02-11 | SK9: 2018-02-12 | SL9: 2018-02-13 | SM9: 2018-02-14 | SN9: 2018-02-15 | SO9: 2018-02-16 | SP9: 2018-02-17 | SQ9: 2018-02-18 | SR9: 2018-02-19 | SS9: 2018-02-20 | ST9: 2018-02-21 | SU9: 2018-02-22 | SV9: 2018-02-23 | SW9: 2018-02-24 | SX9: 2018-02-25 | SY9: 2018-02-26 | SZ9: 2018-02-27 | TA9: 2018-02-28 | TB9: 2018-03-01 | TC9: 2018-03-02 | TD9: 2018-03-03 | TE9: 2018-03-04 | TF9: 2018-03-05 | TG9: 2018-03-06 | TH9: 2018-03-07 | TI9: 2018-03-08 | TJ9: 2018-03-09 | TK9: 2018-03-10 | TL9: 2018-03-11 | TM9: 2018-03-12 | TN9: 2018-03-13 | TO9: 2018-03-14 | TP9: 2018-03-15 | TQ9: 2018-03-16 | TR9: 2018-03-17 | TS9: 2018-03-18 | TT9: 2018-03-19 | TU9: 2018-03-20 | TV9: 2018-03-21 | TW9: 2018-03-22 | TX9: 2018-03-23 | TY9: 2018-03-24 | TZ9: 2018-03-25 | UA9: 2018-03-26 | UB9: 2018-03-27 | UC9: =UB9+1 -> 2018-03-28 | UD9: 2018-03-29 | UE9: 2018-03-30 | UF9: 2018-03-31 | UG9: 2018-04-01 | UH9: 2018-04-02 | UI9: 2018-04-03 | UJ9: 2018-04-04 | UK9: 2018-04-05 | UL9: 2018-04-06 | UM9: 2018-04-07
AJ10: =IF(DAY(AJ18)=1,AJ18,IF(AJ9=Red_Bookmark,"TODAY","")) ->  | AK10: 2016-11-01 | AU10: TODAY | BO10: 2016-12-01 | CT10: 2017-01-01 | CV10: =IF(DAY(CV18)=1,CV18,IF(CV9=Red_Bookmark,"TODAY","")) ->  | DY10: 2017-02-01 | FA10: 2017-03-01 | FH10: =IF(DAY(FH18)=1,FH18,IF(FH9=Red_Bookmark,"TODAY","")) ->  | GF10: 2017-04-01 | HJ10: 2017-05-01 | HT10: =IF(DAY(HT18)=1,HT18,IF(HT9=Red_Bookmark,"TODAY","")) ->  | IO10: 2017-06-01 | JS10: 2017-07-01 | KF10: =IF(DAY(KF18)=1,KF18,IF(KF9=Red_Bookmark,"TODAY","")) ->  | KX10: 2017-08-01 | MC10: 2017-09-01 | MR10: =IF(DAY(MR18)=1,MR18,IF(MR9=Red_Bookmark,"TODAY","")) ->  | NG10: 2017-10-01 | OL10: 2017-11-01 | PD10: =IF(DAY(PD18)=1,PD18,IF(PD9=Red_Bookmark,"TODAY","")) ->  | PP10: 2017-12-01 | QU10: 2018-01-01 | RP10: =IF(DAY(RP18)=1,RP18,IF(RP9=Red_Bookmark,"TODAY","")) ->  | RZ10: 2018-02-01 | TB10: 2018-03-01 | UB10: =IF(DAY(UB18)=1,UB18,IF(UB9=Red_Bookmark,"TODAY","")) ->  | UG10: 2018-04-01
P14: =IF($AG$14="%",P15,"") -> Resp. | Q14: =IF($AG$14="%",Q15,"") -> Couleurs | R14: =IF($AG$14="%",R15,"") -> Niv. Taches | S14: =IF($AG$14="%",S15,"") -> Début | T14: =IF($AG$14="%",T15,"") -> Durée | V14: =IF($AG$14="%",V15,"") -> Recal. Dur. | W14: =IF($AG$14="%",W15,"") -> Jours ouvrés | X14: =IF($AG$14="%",X15,"") -> Normal | Y14: =IF($AG$14="%",Y15,"") -> Échéance | AB14: =IF($AG$14="%",AB15,"") -> Statut | AE14: =IF($AG$14="%",AE15,"") -> Estim. | AF14: =IF($AG$14="%",AF15,"") -> Réel | AG14: % | AI14: =IF($AG$14="%",AI15,"") -> Commentaires | AK14: 11-2016 | DY14: 2-2017 | HJ14: 5-2017 | KX14: 8-2017 | OL14: 11-2017 | RZ14: 2-2018
P15: Resp. | Q15: Couleurs | R15: Niv. Taches | S15: Début | T15: Durée | V15: Recal. Dur. | W15: Jours ouvrés | X15: Normal | Y15: Échéance | AB15: Statut | AE15: Estim. | AF15: Réel | AG15: % | AI15: Commentaires | AJ15: =AJ16 -> W44 | AQ15: =AQ16 -> W45 | AX15: =AX16 -> W46 | BE15: =BE16 -> W47 | BL15: =BL16 -> W48 | BS15: =BS16 -> W49 | BZ15: =BZ16 -> W50 | CG15: =CG16 -> W51 | CN15: =CN16 -> W52 | CU15: =CU16 -> W1 | DB15: =DB16 -> W2 | DI15: =DI16 -> W3 | DP15: =DP16 -> W4 | DW15: =DW16 -> W5 | ED15: =ED16 -> W6 | EK15: =EK16 -> W7 | ER15: =ER16 -> W8 | EY15: =EY16 -> W9 | FF15: =FF16 -> W10 | FM15: =FM16 -> W11 | FT15: =FT16 -> W12 | GA15: =GA16 -> W13 | GH15: =GH16 -> W14 | GO15: =GO16 -> W15 | GV15: =GV16 -> W16 | HC15: =HC16 -> W17 | HJ15: =HJ16 -> W18 | HQ15: =HQ16 -> W19 | HX15: =HX16 -> W20 | IE15: =IE16 -> W21 | IL15: =IL16 -> W22 | IS15: =IS16 -> W23 | IZ15: =IZ16 -> W24 | JG15: =JG16 -> W25 | JN15: =JN16 -> W26 | JU15: =JU16 -> W27 | KB15: =KB16 -> W28 | KI15: =KI16 -> W29 | KP15: =KP16 -> W30 | KW15: =KW16 -> W31 | LD15: =LD16 -> W32 | LK15: =LK16 -> W33 | LR15: =LR16 -> W34 | LY15: =LY16 -> W35 | MF15: =MF16 -> W36 | MM15: =MM16 -> W37 | MT15: =MT16 -> W38 | NA15: =NA16 -> W39 | NH15: =NH16 -> W40 | NO15: =NO16 -> W41 | NV15: =NV16 -> W42 | OC15: =OC16 -> W43 | OJ15: =OJ16 -> W44 | OQ15: =OQ16 -> W45 | OX15: =OX16 -> W46 | PE15: =PE16 -> W47 | PL15: =PL16 -> W48 | PS15: =PS16 -> W49 | PZ15: =PZ16 -> W50 | QG15: =QG16 -> W51 | QN15: =QN16 -> W52 | QU15: =QU16 -> W1 | RB15: =RB16 -> W2 | RI15: =RI16 -> W3 | RP15: =RP16 -> W4 | RW15: =RW16 -> W5 | SD15: =SD16 -> W6 | SK15: =SK16 -> W7 | SR15: =SR16 -> W8 | SY15: =SY16 -> W9 | TF15: =TF16 -> W10 | TM15: =TM16 -> W11 | TT15: =TT16 -> W12 | UA15: =UA16 -> W13 | UH15: =UH16 -> W14
AJ16: =Week_Name&WEEKNUM(AJ9,First_Day_Week2) -> W44 | AK16: W44 | AL16: W44 | AM16: W44 | AN16: W44 | AO16: W44 | AP16: W44 | AQ16: W45 | AR16: W45 | AS16: W45 | AT16: W45 | AU16: W45 | AV16: W45 | AW16: W45 | AX16: W46 | AY16: W46 | AZ16: W46 | BA16: W46 | BB16: W46 | BC16: W46 | BD16: W46 | BE16: W47 | BF16: W47 | BG16: W47 | BH16: W47 | BI16: W47 | BJ16: W47 | BK16: W47 | BL16: W48 | BM16: W48 | BN16: W48 | BO16: W48 | BP16: W48 | BQ16: W48 | BR16: W48 | BS16: W49 | BT16: W49 | BU16: W49 | BV16: W49 | BW16: W49 | BX16: W49 | BY16: W49 | BZ16: W50 | CA16: W50 | CB16: W50 | CC16: W50 | CD16: W50 | CE16: W50 | CF16: W50 | CG16: W51 | CH16: W51 | CI16: W51 | CJ16: W51 | CK16: W51 | CL16: W51 | CM16: W51 | CN16: W52 | CO16: W52 | CP16: W52 | CQ16: W52 | CR16: W52 | CS16: W52 | CT16: W52 | CU16: W1 | CV16: =Week_Name&WEEKNUM(CV9,First_Day_Week2) -> W1 | CW16: W1 | CX16: W1 | CY16: W1 | CZ16: W1 | DA16: W1 | DB16: W2 | DC16: W2 | DD16: W2 | DE16: W2 | DF16: W2 | DG16: W2 | DH16: W2 | DI16: W3 | DJ16: W3 | DK16: W3 | DL16: W3 | DM16: W3 | DN16: W3 | DO16: W3 | DP16: W4 | DQ16: W4 | DR16: W4 | DS16: W4 | DT16: W4 | DU16: W4 | DV16: W4 | DW16: W5 | DX16: W5 | DY16: W5 | DZ16: W5 | EA16: W5 | EB16: W5 | EC16: W5 | ED16: W6 | EE16: W6 | EF16: W6 | EG16: W6 | EH16: W6 | EI16: W6 | EJ16: W6 | EK16: W7 | EL16: W7 | EM16: W7 | EN16: W7 | EO16: W7 | EP16: W7 | EQ16: W7 | ER16: W8 | ES16: W8 | ET16: W8 | EU16: W8 | EV16: W8 | EW16: W8 | EX16: W8 | EY16: W9 | EZ16: W9 | FA16: W9 | FB16: W9 | FC16: W9 | FD16: W9 | FE16: W9 | FF16: W10 | FG16: W10 | FH16: =Week_Name&WEEKNUM(FH9,First_Day_Week2) -> W10 | FI16: W10 | FJ16: W10 | FK16: W10 | FL16: W10 | FM16: W11 | FN16: W11 | FO16: W11 | FP16: W11 | FQ16: W11 | FR16: W11 | FS16: W11 | FT16: W12 | FU16: W12 | FV16: W12 | FW16: W12 | FX16: W12 | FY16: W12 | FZ16: W12 | GA16: W13 | GB16: W13 | GC16: W13 | GD16: W13 | GE16: W13 | GF16: W13 | GG16: W13 | GH16: W14 | GI16: W14 | GJ16: W14 | GK16: W14 | GL16: W14 | GM16: W14 | GN16: W14 | GO16: W15 | GP16: W15 | GQ16: W15 | GR16: W15 | GS16: W15 | GT16: W15 | GU16: W15 | GV16: W16 | GW16: W16 | GX16: W16 | GY16: W16 | GZ16: W16 | HA16: W16 | HB16: W16 | HC16: W17 | HD16: W17 | HE16: W17 | HF16: W17 | HG16: W17 | HH16: W17 | HI16: W17 | HJ16: W18 | HK16: W18 | HL16: W18 | HM16: W18 | HN16: W18 | HO16: W18 | HP16: W18 | HQ16: W19 | HR16: W19 | HS16: W19 | HT16: =Week_Name&WEEKNUM(HT9,First_Day_Week2) -> W19 | HU16: W19 | HV16: W19 | HW16: W19 | HX16: W20 | HY16: W20 | HZ16: W20 | IA16: W20 | IB16: W20 | IC16: W20 | ID16: W20 | IE16: W21 | IF16: W21 | IG16: W21 | IH16: W21 | II16: W21 | IJ16: W21 | IK16: W21 | IL16: W22 | IM16: W22 | IN16: W22 | IO16: W22 | IP16: W22 | IQ16: W22 | IR16: W22 | IS16: W23 | IT16: W23 | IU16: W23 | IV16: W23 | IW16: W23 | IX16: W23 | IY16: W23 | IZ16: W24 | JA16: W24 | JB16: W24 | JC16: W24 | JD16: W24 | JE16: W24 | JF16: W24 | JG16: W25 | JH16: W25 | JI16: W25 | JJ16: W25 | JK16: W25 | JL16: W25 | JM16: W25 | JN16: W26 | JO16: W26 | JP16: W26 | JQ16: W26 | JR16: W26 | JS16: W26 | JT16: W26 | JU16: W27 | JV16: W27 | JW16: W27 | JX16: W27 | JY16: W27 | JZ16: W27 | KA16: W27 | KB16: W28 | KC16: W28 | KD16: W28 | KE16: W28 | KF16: =Week_Name&WEEKNUM(KF9,First_Day_Week2) -> W28 | KG16: W28 | KH16: W28 | KI16: W29 | KJ16: W29 | KK16: W29 | KL16: W29 | KM16: W29 | KN16: W29 | KO16: W29 | KP16: W30 | KQ16: W30 | KR16: W30 | KS16: W30 | KT16: W30 | KU16: W30 | KV16: W30 | KW16: W31 | KX16: W31 | KY16: W31 | KZ16: W31 | LA16: W31 | LB16: W31 | LC16: W31 | LD16: W32 | LE16: W32 | LF16: W32 | LG16: W32 | LH16: W32 | LI16: W32 | LJ16: W32 | LK16: W33 | LL16: W33 | LM16: W33 | LN16: W33 | LO16: W33 | LP16: W33 | LQ16: W33 | LR16: W34 | LS16: W34 | LT16: W34 | LU16: W34 | LV16: W34 | LW16: W34 | LX16: W34 | LY16: W35 | LZ16: W35 | MA16: W35 | MB16: W35 | MC16: W35 | MD16: W35 | ME16: W35 | MF16: W36 | MG16: W36 | MH16: W36 | MI16: W36 | MJ16: W36 | MK16: W36 | ML16: W36 | MM16: W37 | MN16: W37 | MO16: W37 | MP16: W37 | MQ16: W37 | MR16: =Week_Name&WEEKNUM(MR9,First_Day_Week2) -> W37 | MS16: W37 | MT16: W38 | MU16: W38 | MV16: W38 | MW16: W38 | MX16: W38 | MY16: W38 | MZ16: W38 | NA16: W39 | NB16: W39 | NC16: W39 | ND16: W39 | NE16: W39 | NF16: W39 | NG16: W39 | NH16: W40 | NI16: W40 | NJ16: W40 | NK16: W40 | NL16: W40 | NM16: W40 | NN16: W40 | NO16: W41 | NP16: W41 | NQ16: W41 | NR16: W41 | NS16: W41 | NT16: W41 | NU16: W41 | NV16: W42 | NW16: W42 | NX16: W42 | NY16: W42 | NZ16: W42 | OA16: W42 | OB16: W42 | OC16: W43 | OD16: W43 | OE16: W43 | OF16: W43 | OG16: W43 | OH16: W43 | OI16: W43 | OJ16: W44 | OK16: W44 | OL16: W44 | OM16: W44 | ON16: W44 | OO16: W44 | OP16: W44 | OQ16: W45 | OR16: W45 | OS16: W45 | OT16: W45 | OU16: W45 | OV16: W45 | OW16: W45 | OX16: W46 | OY16: W46 | OZ16: W46 | PA16: W46 | PB16: W46 | PC16: W46 | PD16: =Week_Name&WEEKNUM(PD9,First_Day_Week2) -> W46 | PE16: W47 | PF16: W47 | PG16: W47 | PH16: W47 | PI16: W47 | PJ16: W47 | PK16: W47 | PL16: W48 | PM16: W48 | PN16: W48 | PO16: W48 | PP16: W48 | PQ16: W48 | PR16: W48 | PS16: W49 | PT16: W49 | PU16: W49 | PV16: W49 | PW16: W49 | PX16: W49 | PY16: W49 | PZ16: W50 | QA16: W50 | QB16: W50 | QC16: W50 | QD16: W50 | QE16: W50 | QF16: W50 | QG16: W51 | QH16: W51 | QI16: W51 | QJ16: W51 | QK16: W51 | QL16: W51 | QM16: W51 | QN16: W52 | QO16: W52 | QP16: W52 | QQ16: W52 | QR16: W52 | QS16: W52 | QT16: W52 | QU16: W1 | QV16: W1 | QW16: W1 | QX16: W1 | QY16: W1 | QZ16: W1 | RA16: W1 | RB16: W2 | RC16: W2 | RD16: W2 | RE16: W2 | RF16: W2 | RG16: W2 | RH16: W2 | RI16: W3 | RJ16: W3 | RK16: W3 | RL16: W3 | RM16: W3 | RN16: W3 | RO16: W3 | RP16: =Week_Name&WEEKNUM(RP9,First_Day_Week2) -> W4 | RQ16: W4 | RR16: W4 | RS16: W4 | RT16: W4 | RU16: W4 | RV16: W4 | RW16: W5 | RX16: W5 | RY16: W5 | RZ16: W5 | SA16: W5 | SB16: W5 | SC16: W5 | SD16: W6 | SE16: W6 | SF16: W6 | SG16: W6 | SH16: W6 | SI16: W6 | SJ16: W6 | SK16: W7 | SL16: W7 | SM16: W7 | SN16: W7 | SO16: W7 | SP16: W7 | SQ16: W7 | SR16: W8 | SS16: W8 | ST16: W8 | SU16: W8 | SV16: W8 | SW16: W8 | SX16: W8 | SY16: W9 | SZ16: W9 | TA16: W9 | TB16: W9 | TC16: W9 | TD16: W9 | TE16: W9 | TF16: W10 | TG16: W10 | TH16: W10 | TI16: W10 | TJ16: W10 | TK16: W10 | TL16: W10 | TM16: W11 | TN16: W11 | TO16: W11 | TP16: W11 | TQ16: W11 | TR16: W11 | TS16: W11 | TT16: W12 | TU16: W12 | TV16: W12 | TW16: W12 | TX16: W12 | TY16: W12 | TZ16: W12 | UA16: W13 | UB16: =Week_Name&WEEKNUM(UB9,First_Day_Week2) -> W13 | UC16: W13 | UD16: W13 | UE16: W13 | UF16: W13 | UG16: W13 | UH16: W14 | UI16: W14 | UJ16: W14 | UK16: W14 | UL16: W14 | UM16: W14
Q17: Planning | AE17: Budget | AI17: Commentaires | AJ17: =IF(TEXT(AJ9,"ddd")="ddd",UPPER(LEFT(TEXT(AJ9,"jjj"),1)),UPPER(LEFT(TEXT(AJ9,"ddd"),1))) -> L | AK17: M | AL17: M | AM17: J | AN17: V | AO17: S | AP17: D | AQ17: L | AR17: M | AS17: M | AT17: J | AU17: V | AV17: S | AW17: D | AX17: L | AY17: M | AZ17: M | BA17: J | BB17: V | BC17: S | BD17: D | BE17: L | BF17: M | BG17: M | BH17: J | BI17: V | BJ17: S | BK17: D | BL17: L | BM17: M | BN17: M | BO17: J | BP17: V | BQ17: S | BR17: D | BS17: L | BT17: M | BU17: M | BV17: J | BW17: V | BX17: S | BY17: D | BZ17: L | CA17: M | CB17: M | CC17: J | CD17: V | CE17: S | CF17: D | CG17: L | CH17: M | CI17: M | CJ17: J | CK17: V | CL17: S | CM17: D | CN17: L | CO17: M | CP17: M | CQ17: J | CR17: V | CS17: S | CT17: D | CU17: L | CV17: =IF(TEXT(CV9,"ddd")="ddd",UPPER(LEFT(TEXT(CV9,"jjj"),1)),UPPER(LEFT(TEXT(CV9,"ddd"),1))) -> M | CW17: M | CX17: J | CY17: V | CZ17: S | DA17: D | DB17: L | DC17: M | DD17: M | DE17: J | DF17: V | DG17: S | DH17: D | DI17: L | DJ17: M | DK17: M | DL17: J | DM17: V | DN17: S | DO17: D | DP17: L | DQ17: M | DR17: M | DS17: J | DT17: V | DU17: S | DV17: D | DW17: L | DX17: M | DY17: M | DZ17: J | EA17: V | EB17: S | EC17: D | ED17: L | EE17: M | EF17: M | EG17: J | EH17: V | EI17: S | EJ17: D | EK17: L | EL17: M | EM17: M | EN17: J | EO17: V | EP17: S | EQ17: D | ER17: L | ES17: M | ET17: M | EU17: J | EV17: V | EW17: S | EX17: D | EY17: L | EZ17: M | FA17: M | FB17: J | FC17: V | FD17: S | FE17: D | FF17: L | FG17: M | FH17: =IF(TEXT(FH9,"ddd")="ddd",UPPER(LEFT(TEXT(FH9,"jjj"),1)),UPPER(LEFT(TEXT(FH9,"ddd"),1))) -> M | FI17: J | FJ17: V | FK17: S | FL17: D | FM17: L | FN17: M | FO17: M | FP17: J | FQ17: V | FR17: S | FS17: D | FT17: L | FU17: M | FV17: M | FW17: J | FX17: V | FY17: S | FZ17: D | GA17: L | GB17: M | GC17: M | GD17: J | GE17: V | GF17: S | GG17: D | GH17: L | GI17: M | GJ17: M | GK17: J | GL17: V | GM17: S | GN17: D | GO17: L | GP17: M | GQ17: M | GR17: J | GS17: V | GT17: S | GU17: D | GV17: L | GW17: M | GX17: M | GY17: J | GZ17: V | HA17: S | HB17: D | HC17: L | HD17: M | HE17: M | HF17: J | HG17: V | HH17: S | HI17: D | HJ17: L | HK17: M | HL17: M | HM17: J | HN17: V | HO17: S | HP17: D | HQ17: L | HR17: M | HS17: M | HT17: =IF(TEXT(HT9,"ddd")="ddd",UPPER(LEFT(TEXT(HT9,"jjj"),1)),UPPER(LEFT(TEXT(HT9,"ddd"),1))) -> J | HU17: V | HV17: S | HW17: D | HX17: L | HY17: M | HZ17: M | IA17: J | IB17: V | IC17: S | ID17: D | IE17: L | IF17: M | IG17: M | IH17: J | II17: V | IJ17: S | IK17: D | IL17: L | IM17: M | IN17: M | IO17: J | IP17: V | IQ17: S | IR17: D | IS17: L | IT17: M | IU17: M | IV17: J | IW17: V | IX17: S | IY17: D | IZ17: L | JA17: M | JB17: M | JC17: J | JD17: V | JE17: S | JF17: D | JG17: L | JH17: M | JI17: M | JJ17: J | JK17: V | JL17: S | JM17: D | JN17: L | JO17: M | JP17: M | JQ17: J | JR17: V | JS17: S | JT17: D | JU17: L | JV17: M | JW17: M | JX17: J | JY17: V | JZ17: S | KA17: D | KB17: L | KC17: M | KD17: M | KE17: J | KF17: =IF(TEXT(KF9,"ddd")="ddd",UPPER(LEFT(TEXT(KF9,"jjj"),1)),UPPER(LEFT(TEXT(KF9,"ddd"),1))) -> V | KG17: S | KH17: D | KI17: L | KJ17: M | KK17: M | KL17: J | KM17: V | KN17: S | KO17: D | KP17: L | KQ17: M | KR17: M | KS17: J | KT17: V | KU17: S | KV17: D | KW17: L | KX17: M | KY17: M | KZ17: J | LA17: V | LB17: S | LC17: D | LD17: L | LE17: M | LF17: M | LG17: J | LH17: V | LI17: S | LJ17: D | LK17: L | LL17: M | LM17: M | LN17: J | LO17: V | LP17: S | LQ17: D | LR17: L | LS17: M | LT17: M | LU17: J | LV17: V | LW17: S | LX17: D | LY17: L | LZ17: M | MA17: M | MB17: J | MC17: V | MD17: S | ME17: D | MF17: L | MG17: M | MH17: M | MI17: J | MJ17: V | MK17: S | ML17: D | MM17: L | MN17: M | MO17: M | MP17: J | MQ17: V | MR17: =IF(TEXT(MR9,"ddd")="ddd",UPPER(LEFT(TEXT(MR9,"jjj"),1)),UPPER(LEFT(TEXT(MR9,"ddd"),1))) -> S | MS17: D | MT17: L | MU17: M | MV17: M | MW17: J | MX17: V | MY17: S | MZ17: D | NA17: L | NB17: M | NC17: M | ND17: J | NE17: V | NF17: S | NG17: D | NH17: L | NI17: M | NJ17: M | NK17: J | NL17: V | NM17: S | NN17: D | NO17: L | NP17: M | NQ17: M | NR17: J | NS17: V | NT17: S | NU17: D | NV17: L | NW17: M | NX17: M | NY17: J | NZ17: V | OA17: S | OB17: D | OC17: L | OD17: M | OE17: M | OF17: J | OG17: V | OH17: S | OI17: D | OJ17: L | OK17: M | OL17: M | OM17: J | ON17: V | OO17: S | OP17: D | OQ17: L | OR17: M | OS17: M | OT17: J | OU17: V | OV17: S | OW17: D | OX17: L | OY17: M | OZ17: M | PA17: J | PB17: V | PC17: S | PD17: =IF(TEXT(PD9,"ddd")="ddd",UPPER(LEFT(TEXT(PD9,"jjj"),1)),UPPER(LEFT(TEXT(PD9,"ddd"),1))) -> D | PE17: L | PF17: M | PG17: M | PH17: J | PI17: V | PJ17: S | PK17: D | PL17: L | PM17: M | PN17: M | PO17: J | PP17: V | PQ17: S | PR17: D | PS17: L | PT17: M | PU17: M | PV17: J | PW17: V | PX17: S | PY17: D | PZ17: L | QA17: M | QB17: M | QC17: J | QD17: V | QE17: S | QF17: D | QG17: L | QH17: M | QI17: M | QJ17: J | QK17: V | QL17: S | QM17: D | QN17: L | QO17: M | QP17: M | QQ17: J | QR17: V | QS17: S | QT17: D | QU17: L | QV17: M | QW17: M | QX17: J | QY17: V | QZ17: S | RA17: D | RB17: L | RC17: M | RD17: M | RE17: J | RF17: V | RG17: S | RH17: D | RI17: L | RJ17: M | RK17: M | RL17: J | RM17: V | RN17: S | RO17: D | RP17: =IF(TEXT(RP9,"ddd")="ddd",UPPER(LEFT(TEXT(RP9,"jjj"),1)),UPPER(LEFT(TEXT(RP9,"ddd"),1))) -> L | RQ17: M | RR17: M | RS17: J | RT17: V | RU17: S | RV17: D | RW17: L | RX17: M | RY17: M | RZ17: J | SA17: V | SB17: S | SC17: D | SD17: L | SE17: M | SF17: M | SG17: J | SH17: V | SI17: S | SJ17: D | SK17: L | SL17: M | SM17: M | SN17: J | SO17: V | SP17: S | SQ17: D | SR17: L | SS17: M | ST17: M | SU17: J | SV17: V | SW17: S | SX17: D | SY17: L | SZ17: M | TA17: M | TB17: J | TC17: V | TD17: S | TE17: D | TF17: L | TG17: M | TH17: M | TI17: J | TJ17: V | TK17: S | TL17: D | TM17: L | TN17: M | TO17: M | TP17: J | TQ17: V | TR17: S | TS17: D | TT17: L | TU17: M | TV17: M | TW17: J | TX17: V | TY17: S | TZ17: D | UA17: L | UB17: =IF(TEXT(UB9,"ddd")="ddd",UPPER(LEFT(TEXT(UB9,"jjj"),1)),UPPER(LEFT(TEXT(UB9,"ddd"),1))) -> M | UC17: M | UD17: J | UE17: V | UF17: S | UG17: D | UH17: L | UI17: M | UJ17: M | UK17: J | UL17: V | UM17: S
P18: Resp. | Q18: Couleurs | R18: Niv. Taches | S18: Début | T18: Durée | V18: Recal. Dur. | W18: Jours ouvrés | X18: Normal | Y18: Échéance | Z18: Début Recalculé | AA18: Fin Recalculée | AB18: Statut | AE18: Estim. | AF18: Réel | AG18: % | AJ18: =AJ9 -> 2016-10-31 | AK18: 2016-11-01 | AL18: 2016-11-02 | AM18: 2016-11-03 | AN18: 2016-11-04 | AO18: 2016-11-05 | AP18: 2016-11-06 | AQ18: 2016-11-07 | AR18: 2016-11-08 | AS18: 2016-11-09 | AT18: 2016-11-10 | AU18: 2016-11-11 | AV18: 2016-11-12 | AW18: 2016-11-13 | AX18: 2016-11-14 | AY18: 2016-11-15 | AZ18: 2016-11-16 | BA18: 2016-11-17 | BB18: 2016-11-18 | BC18: 2016-11-19 | BD18: 2016-11-20 | BE18: 2016-11-21 | BF18: 2016-11-22 | BG18: 2016-11-23 | BH18: 2016-11-24 | BI18: 2016-11-25 | BJ18: 2016-11-26 | BK18: 2016-11-27 | BL18: 2016-11-28 | BM18: 2016-11-29 | BN18: 2016-11-30 | BO18: 2016-12-01 | BP18: 2016-12-02 | BQ18: 2016-12-03 | BR18: 2016-12-04 | BS18: 2016-12-05 | BT18: 2016-12-06 | BU18: 2016-12-07 | BV18: 2016-12-08 | BW18: 2016-12-09 | BX18: 2016-12-10 | BY18: 2016-12-11 | BZ18: 2016-12-12 | CA18: 2016-12-13 | CB18: 2016-12-14 | CC18: 2016-12-15 | CD18: 2016-12-16 | CE18: 2016-12-17 | CF18: 2016-12-18 | CG18: 2016-12-19 | CH18: 2016-12-20 | CI18: 2016-12-21 | CJ18: 2016-12-22 | CK18: 2016-12-23 | CL18: 2016-12-24 | CM18: 2016-12-25 | CN18: 2016-12-26 | CO18: 2016-12-27 | CP18: 2016-12-28 | CQ18: 2016-12-29 | CR18: 2016-12-30 | CS18: 2016-12-31 | CT18: 2017-01-01 | CU18: 2017-01-02 | CV18: =CV9 -> 2017-01-03 | CW18: 2017-01-04 | CX18: 2017-01-05 | CY18: 2017-01-06 | CZ18: 2017-01-07 | DA18: 2017-01-08 | DB18: 2017-01-09 | DC18: 2017-01-10 | DD18: 2017-01-11 | DE18: 2017-01-12 | DF18: 2017-01-13 | DG18: 2017-01-14 | DH18: 2017-01-15 | DI18: 2017-01-16 | DJ18: 2017-01-17 | DK18: 2017-01-18 | DL18: 2017-01-19 | DM18: 2017-01-20 | DN18: 2017-01-21 | DO18: 2017-01-22 | DP18: 2017-01-23 | DQ18: 2017-01-24 | DR18: 2017-01-25 | DS18: 2017-01-26 | DT18: 2017-01-27 | DU18: 2017-01-28 | DV18: 2017-01-29 | DW18: 2017-01-30 | DX18: 2017-01-31 | DY18: 2017-02-01 | DZ18: 2017-02-02 | EA18: 2017-02-03 | EB18: 2017-02-04 | EC18: 2017-02-05 | ED18: 2017-02-06 | EE18: 2017-02-07 | EF18: 2017-02-08 | EG18: 2017-02-09 | EH18: 2017-02-10 | EI18: 2017-02-11 | EJ18: 2017-02-12 | EK18: 2017-02-13 | EL18: 2017-02-14 | EM18: 2017-02-15 | EN18: 2017-02-16 | EO18: 2017-02-17 | EP18: 2017-02-18 | EQ18: 2017-02-19 | ER18: 2017-02-20 | ES18: 2017-02-21 | ET18: 2017-02-22 | EU18: 2017-02-23 | EV18: 2017-02-24 | EW18: 2017-02-25 | EX18: 2017-02-26 | EY18: 2017-02-27 | EZ18: 2017-02-28 | FA18: 2017-03-01 | FB18: 2017-03-02 | FC18: 2017-03-03 | FD18: 2017-03-04 | FE18: 2017-03-05 | FF18: 2017-03-06 | FG18: 2017-03-07 | FH18: =FH9 -> 2017-03-08 | FI18: 2017-03-09 | FJ18: 2017-03-10 | FK18: 2017-03-11 | FL18: 2017-03-12 | FM18: 2017-03-13 | FN18: 2017-03-14 | FO18: 2017-03-15 | FP18: 2017-03-16 | FQ18: 2017-03-17 | FR18: 2017-03-18 | FS18: 2017-03-19 | FT18: 2017-03-20 | FU18: 2017-03-21 | FV18: 2017-03-22 | FW18: 2017-03-23 | FX18: 2017-03-24 | FY18: 2017-03-25 | FZ18: 2017-03-26 | GA18: 2017-03-27 | GB18: 2017-03-28 | GC18: 2017-03-29 | GD18: 2017-03-30 | GE18: 2017-03-31 | GF18: 2017-04-01 | GG18: 2017-04-02 | GH18: 2017-04-03 | GI18: 2017-04-04 | GJ18: 2017-04-05 | GK18: 2017-04-06 | GL18: 2017-04-07 | GM18: 2017-04-08 | GN18: 2017-04-09 | GO18: 2017-04-10 | GP18: 2017-04-11 | GQ18: 2017-04-12 | GR18: 2017-04-13 | GS18: 2017-04-14 | GT18: 2017-04-15 | GU18: 2017-04-16 | GV18: 2017-04-17 | GW18: 2017-04-18 | GX18: 2017-04-19 | GY18: 2017-04-20 | GZ18: 2017-04-21 | HA18: 2017-04-22 | HB18: 2017-04-23 | HC18: 2017-04-24 | HD18: 2017-04-25 | HE18: 2017-04-26 | HF18: 2017-04-27 | HG18: 2017-04-28 | HH18: 2017-04-29 | HI18: 2017-04-30 | HJ18: 2017-05-01 | HK18: 2017-05-02 | HL18: 2017-05-03 | HM18: 2017-05-04 | HN18: 2017-05-05 | HO18: 2017-05-06 | HP18: 2017-05-07 | HQ18: 2017-05-08 | HR18: 2017-05-09 | HS18: 2017-05-10 | HT18: =HT9 -> 2017-05-11 | HU18: 2017-05-12 | HV18: 2017-05-13 | HW18: 2017-05-14 | HX18: 2017-05-15 | HY18: 2017-05-16 | HZ18: 2017-05-17 | IA18: 2017-05-18 | IB18: 2017-05-19 | IC18: 2017-05-20 | ID18: 2017-05-21 | IE18: 2017-05-22 | IF18: 2017-05-23 | IG18: 2017-05-24 | IH18: 2017-05-25 | II18: 2017-05-26 | IJ18: 2017-05-27 | IK18: 2017-05-28 | IL18: 2017-05-29 | IM18: 2017-05-30 | IN18: 2017-05-31 | IO18: 2017-06-01 | IP18: 2017-06-02 | IQ18: 2017-06-03 | IR18: 2017-06-04 | IS18: 2017-06-05 | IT18: 2017-06-06 | IU18: 2017-06-07 | IV18: 2017-06-08 | IW18: 2017-06-09 | IX18: 2017-06-10 | IY18: 2017-06-11 | IZ18: 2017-06-12 | JA18: 2017-06-13 | JB18: 2017-06-14 | JC18: 2017-06-15 | JD18: 2017-06-16 | JE18: 2017-06-17 | JF18: 2017-06-18 | JG18: 2017-06-19 | JH18: 2017-06-20 | JI18: 2017-06-21 | JJ18: 2017-06-22 | JK18: 2017-06-23 | JL18: 2017-06-24 | JM18: 2017-06-25 | JN18: 2017-06-26 | JO18: 2017-06-27 | JP18: 2017-06-28 | JQ18: 2017-06-29 | JR18: 2017-06-30 | JS18: 2017-07-01 | JT18: 2017-07-02 | JU18: 2017-07-03 | JV18: 2017-07-04 | JW18: 2017-07-05 | JX18: 2017-07-06 | JY18: 2017-07-07 | JZ18: 2017-07-08 | KA18: 2017-07-09 | KB18: 2017-07-10 | KC18: 2017-07-11 | KD18: 2017-07-12 | KE18: 2017-07-13 | KF18: =KF9 -> 2017-07-14 | KG18: 2017-07-15 | KH18: 2017-07-16 | KI18: 2017-07-17 | KJ18: 2017-07-18 | KK18: 2017-07-19 | KL18: 2017-07-20 | KM18: 2017-07-21 | KN18: 2017-07-22 | KO18: 2017-07-23 | KP18: 2017-07-24 | KQ18: 2017-07-25 | KR18: 2017-07-26 | KS18: 2017-07-27 | KT18: 2017-07-28 | KU18: 2017-07-29 | KV18: 2017-07-30 | KW18: 2017-07-31 | KX18: 2017-08-01 | KY18: 2017-08-02 | KZ18: 2017-08-03 | LA18: 2017-08-04 | LB18: 2017-08-05 | LC18: 2017-08-06 | LD18: 2017-08-07 | LE18: 2017-08-08 | LF18: 2017-08-09 | LG18: 2017-08-10 | LH18: 2017-08-11 | LI18: 2017-08-12 | LJ18: 2017-08-13 | LK18: 2017-08-14 | LL18: 2017-08-15 | LM18: 2017-08-16 | LN18: 2017-08-17 | LO18: 2017-08-18 | LP18: 2017-08-19 | LQ18: 2017-08-20 | LR18: 2017-08-21 | LS18: 2017-08-22 | LT18: 2017-08-23 | LU18: 2017-08-24 | LV18: 2017-08-25 | LW18: 2017-08-26 | LX18: 2017-08-27 | LY18: 2017-08-28 | LZ18: 2017-08-29 | MA18: 2017-08-30 | MB18: 2017-08-31 | MC18: 2017-09-01 | MD18: 2017-09-02 | ME18: 2017-09-03 | MF18: 2017-09-04 | MG18: 2017-09-05 | MH18: 2017-09-06 | MI18: 2017-09-07 | MJ18: 2017-09-08 | MK18: 2017-09-09 | ML18: 2017-09-10 | MM18: 2017-09-11 | MN18: 2017-09-12 | MO18: 2017-09-13 | MP18: 2017-09-14 | MQ18: 2017-09-15 | MR18: =MR9 -> 2017-09-16 | MS18: 2017-09-17 | MT18: 2017-09-18 | MU18: 2017-09-19 | MV18: 2017-09-20 | MW18: 2017-09-21 | MX18: 2017-09-22 | MY18: 2017-09-23 | MZ18: 2017-09-24 | NA18: 2017-09-25 | NB18: 2017-09-26 | NC18: 2017-09-27 | ND18: 2017-09-28 | NE18: 2017-09-29 | NF18: 2017-09-30 | NG18: 2017-10-01 | NH18: 2017-10-02 | NI18: 2017-10-03 | NJ18: 2017-10-04 | NK18: 2017-10-05 | NL18: 2017-10-06 | NM18: 2017-10-07 | NN18: 2017-10-08 | NO18: 2017-10-09 | NP18: 2017-10-10 | NQ18: 2017-10-11 | NR18: 2017-10-12 | NS18: 2017-10-13 | NT18: 2017-10-14 | NU18: 2017-10-15 | NV18: 2017-10-16 | NW18: 2017-10-17 | NX18: 2017-10-18 | NY18: 2017-10-19 | NZ18: 2017-10-20 | OA18: 2017-10-21 | OB18: 2017-10-22 | OC18: 2017-10-23 | OD18: 2017-10-24 | OE18: 2017-10-25 | OF18: 2017-10-26 | OG18: 2017-10-27 | OH18: 2017-10-28 | OI18: 2017-10-29 | OJ18: 2017-10-30 | OK18: 2017-10-31 | OL18: 2017-11-01 | OM18: 2017-11-02 | ON18: 2017-11-03 | OO18: 2017-11-04 | OP18: 2017-11-05 | OQ18: 2017-11-06 | OR18: 2017-11-07 | OS18: 2017-11-08 | OT18: 2017-11-09 | OU18: 2017-11-10 | OV18: 2017-11-11 | OW18: 2017-11-12 | OX18: 2017-11-13 | OY18: 2017-11-14 | OZ18: 2017-11-15 | PA18: 2017-11-16 | PB18: 2017-11-17 | PC18: 2017-11-18 | PD18: =PD9 -> 2017-11-19 | PE18: 2017-11-20 | PF18: 2017-11-21 | PG18: 2017-11-22 | PH18: 2017-11-23 | PI18: 2017-11-24 | PJ18: 2017-11-25 | PK18: 2017-11-26 | PL18: 2017-11-27 | PM18: 2017-11-28 | PN18: 2017-11-29 | PO18: 2017-11-30 | PP18: 2017-12-01 | PQ18: 2017-12-02 | PR18: 2017-12-03 | PS18: 2017-12-04 | PT18: 2017-12-05 | PU18: 2017-12-06 | PV18: 2017-12-07 | PW18: 2017-12-08 | PX18: 2017-12-09 | PY18: 2017-12-10 | PZ18: 2017-12-11 | QA18: 2017-12-12 | QB18: 2017-12-13 | QC18: 2017-12-14 | QD18: 2017-12-15 | QE18: 2017-12-16 | QF18: 2017-12-17 | QG18: 2017-12-18 | QH18: 2017-12-19 | QI18: 2017-12-20 | QJ18: 2017-12-21 | QK18: 2017-12-22 | QL18: 2017-12-23 | QM18: 2017-12-24 | QN18: 2017-12-25 | QO18: 2017-12-26 | QP18: 2017-12-27 | QQ18: 2017-12-28 | QR18: 2017-12-29 | QS18: 2017-12-30 | QT18: 2017-12-31 | QU18: 2018-01-01 | QV18: 2018-01-02 | QW18: 2018-01-03 | QX18: 2018-01-04 | QY18: 2018-01-05 | QZ18: 2018-01-06 | RA18: 2018-01-07 | RB18: 2018-01-08 | RC18: 2018-01-09 | RD18: 2018-01-10 | RE18: 2018-01-11 | RF18: 2018-01-12 | RG18: 2018-01-13 | RH18: 2018-01-14 | RI18: 2018-01-15 | RJ18: 2018-01-16 | RK18: 2018-01-17 | RL18: 2018-01-18 | RM18: 2018-01-19 | RN18: 2018-01-20 | RO18: 2018-01-21 | RP18: =RP9 -> 2018-01-22 | RQ18: 2018-01-23 | RR18: 2018-01-24 | RS18: 2018-01-25 | RT18: 2018-01-26 | RU18: 2018-01-27 | RV18: 2018-01-28 | RW18: 2018-01-29 | RX18: 2018-01-30 | RY18: 2018-01-31 | RZ18: 2018-02-01 | SA18: 2018-02-02 | SB18: 2018-02-03 | SC18: 2018-02-04 | SD18: 2018-02-05 | SE18: 2018-02-06 | SF18: 2018-02-07 | SG18: 2018-02-08 | SH18: 2018-02-09 | SI18: 2018-02-10 | SJ18: 2018-02-11 | SK18: 2018-02-12 | SL18: 2018-02-13 | SM18: 2018-02-14 | SN18: 2018-02-15 | SO18: 2018-02-16 | SP18: 2018-02-17 | SQ18: 2018-02-18 | SR18: 2018-02-19 | SS18: 2018-02-20 | ST18: 2018-02-21 | SU18: 2018-02-22 | SV18: 2018-02-23 | SW18: 2018-02-24 | SX18: 2018-02-25 | SY18: 2018-02-26 | SZ18: 2018-02-27 | TA18: 2018-02-28 | TB18: 2018-03-01 | TC18: 2018-03-02 | TD18: 2018-03-03 | TE18: 2018-03-04 | TF18: 2018-03-05 | TG18: 2018-03-06 | TH18: 2018-03-07 | TI18: 2018-03-08 | TJ18: 2018-03-09 | TK18: 2018-03-10 | TL18: 2018-03-11 | TM18: 2018-03-12 | TN18: 2018-03-13 | TO18: 2018-03-14 | TP18: 2018-03-15 | TQ18: 2018-03-16 | TR18: 2018-03-17 | TS18: 2018-03-18 | TT18: 2018-03-19 | TU18: 2018-03-20 | TV18: 2018-03-21 | TW18: 2018-03-22 | TX18: 2018-03-23 | TY18: 2018-03-24 | TZ18: 2018-03-25 | UA18: 2018-03-26 | UB18: =UB9 -> 2018-03-27 | UC18: 2018-03-28 | UD18: 2018-03-29 | UE18: 2018-03-30 | UF18: 2018-03-31 | UG18: 2018-04-01 | UH18: 2018-04-02 | UI18: 2018-04-03 | UJ18: 2018-04-04 | UK18: 2018-04-05 | UL18: 2018-04-06 | UM18: 2018-04-07
K19: 0 | M19: Tache | R19: 1 | S19: =MIN(Z20:Z21) -> 2016-11-08 | T19: =Y19-S19+1 -> 4 | Y19: =MAX(AA20:AA21) -> 2016-11-11 | AB19: =SUMPRODUCT(--(R20:R21=2),ABS(T20:T21),AB20:AB21)/SUM(ABS(T20:T21)) -> 0.2 | AC19: =S19-1+AB19*T19 -> 2016-11-07T19:12:00 | AD19: =IF(AB19<>"",IF(AND(AB19<1,AC19<$DC$7),0,1)) -> 0 | AE19: =SUMIF(R20:R21,2,AE20:AE21) -> 200 | AF19: =SUMIF(R20:R21,2,AF20:AF21) -> 0 | AG19: =IF(AND(AE19<>"",AF19<>"",AE19<>0),AF19/AE19,"") -> 0 | AH19: =AG19 -> 0
K20: 0.1 | M20: Sous-tache | P20: Mary | Q20: =IF(ISERROR(VLOOKUP(P20,Tools!$D$11:$J$57,7,FALSE)),"",VLOOKUP(P20,Tools!$D$11:$J$57,7,FALSE)) -> 5 | R20: 2 | S20: 2016-11-09 | T20: 2 | U20: j | V20: =IF(U20=dur_type_d,T20,IF(U20=dur_type_w,IF(Work_D_Only_Bool,T20*5,T20*7),IF(U20=dur_type_m,IF(Work_D_Only_Bool,NETWORKDAYS.INTL(S20,DATE(YEAR(S20),MONTH(S20)+T20,DAY(S20)-1),WE_Days,Holiday_Days),DATE(YEAR(S20),MONTH(S20)+T20,DAY(S20))-S20),"ERROR"))) -> 2 | W20: =WORKDAY.INTL(S20,IF(V20>0,IF(OR(WEEKDAY(S20,2)>=6,COUNTIF(Holiday_Days,S20)>0),V20,V20-1),IF(OR(WEEKDAY(S20,2)>=6,COUNTIF(Holiday_Days,S20)>0),V20,V20+1)),HB$7,Holiday_Days) -> 2016-11-10 | X20: =IF(V20>0,S20+V20-1,S20+V20+1) -> 2016-11-10 | Y20: =IF(S20<>"",IF($GE$7,W20,X20),"") -> 2016-11-10 | Z20: =IF(T20>0,S20,Y20) -> 2016-11-09 | AA20: =IF(T20>0,Y20,S20) -> 2016-11-10 | AB20: =SUMPRODUCT(AB21:AB22,ABS(T21:T22))/SUM(ABS(T21:T22)) -> 0.2 | AC20: =INT(Z20+AB20*(AA20-Z20)) -> 2016-11-09 | AD20: =IF(AND(AB20<1,AC20<$DC$7),0,1) -> 0 | AE20: =SUM(AE21:AE22) -> 100 | AF20: =SUM(AF21:AF22) -> 0 | AG20: =IF(AND(AE20<>"",AF20<>""),AF20/AE20,"") -> 0 | AH20: 0
K21: 0.2 | M21: Sous-tache | P21: Jade | Q21: =IF(ISERROR(VLOOKUP(P21,Tools!$D$11:$J$57,7,FALSE)),"",VLOOKUP(P21,Tools!$D$11:$J$57,7,FALSE)) -> 6 | R21: 2 | S21: =$Y20+1 -> 2016-11-11 | T21: -4 | U21: j | V21: =IF(U21=dur_type_d,T21,IF(U21=dur_type_w,IF(Work_D_Only_Bool,T21*5,T21*7),IF(U21=dur_type_m,IF(Work_D_Only_Bool,NETWORKDAYS.INTL(S21,DATE(YEAR(S21),MONTH(S21)+T21,DAY(S21)-1),WE_Days,Holiday_Days),DATE(YEAR(S21),MONTH(S21)+T21,DAY(S21))-S21),"ERROR"))) -> -4 | W21: =WORKDAY.INTL(S21,IF(V21>0,IF(OR(WEEKDAY(S21,2)>=6,COUNTIF(Holiday_Days,S21)>0),V21,V21-1),IF(OR(WEEKDAY(S21,2)>=6,COUNTIF(Holiday_Days,S21)>0),V21,V21+1)),HB$7,Holiday_Days) -> 2016-11-08 | X21: =IF(V21>0,S21+V21-1,S21+V21+1) -> 2016-11-08 | Y21: =IF(S21<>"",IF($GE$7,W21,X21),"") -> 2016-11-08 | Z21: =IF(T21>0,S21,Y21) -> 2016-11-08 | AA21: =IF(T21>0,Y21,S21) -> 2016-11-11 | AB21: 0.2 | AC21: =INT(Z21+AB21*(AA21-Z21)) -> 2016-11-08 | AD21: =IF(AND(AB21<1,AC21<$DC$7),0,1) -> 0 | AE21: 100 | AF21: 0 | AG21: =IF(AND(AE21<>"",AF21<>""),AF21/AE21,"") -> 0 | AH21: 0
K22: MS | M22: Jalon | R22: 0 | S22: 2016-11-13
K23: 1 | M23: Tache | R23: 1 | S23: =MIN(Z24:Z25) -> 2016-11-06 | T23: =Y23-S23+1 -> 6 | Y23: =MAX(AA24:AA25) -> 2016-11-11 | AB23: =SUMPRODUCT(AA24:AA25,AB24:AB25)/SUM(AA24:AA25) -> 0 | AC23: =S23-1+AB23*T23 -> 2016-11-05 | AD23: =IF(AB23<>"",IF(AND(AB23<1,AC23<$DC$7),0,1)) -> 0 | AE23: =SUM(AE24:AE25) -> 200 | AF23: =SUM(AF24:AF25) -> 0 | AG23: =IF(AND(AE23<>"",AF23<>"",AE23<>0),AF23/AE23,"") -> 0 | AH23: =AG23 -> 0
K24: 1.1 | M24: Sous-tache | P24: Rony | Q24: =IF(ISERROR(VLOOKUP(P24,Tools!$D$11:$J$57,7,FALSE)),"",VLOOKUP(P24,Tools!$D$11:$J$57,7,FALSE)) -> 3 | R24: 2 | S24: 2016-11-06 | T24: 3 | U24: j | V24: =IF(U24=dur_type_d,T24,IF(U24=dur_type_w,IF(Work_D_Only_Bool,T24*5,T24*7),IF(U24=dur_type_m,IF(Work_D_Only_Bool,NETWORKDAYS.INTL(S24,DATE(YEAR(S24),MONTH(S24)+T24,DAY(S24)-1),WE_Days,Holiday_Days),DATE(YEAR(S24),MONTH(S24)+T24,DAY(S24))-S24),"ERROR"))) -> 3 | W24: =WORKDAY.INTL(S24,IF(V24>0,IF(OR(WEEKDAY(S24,2)>=6,COUNTIF(Holiday_Days,S24)>0),V24,V24-1),IF(OR(WEEKDAY(S24,2)>=6,COUNTIF(Holiday_Days,S24)>0),V24,V24+1)),HB$7,Holiday_Days) -> 2016-11-09 | X24: =IF(V24>0,S24+V24-1,S24+V24+1) -> 2016-11-08 | Y24: =IF(S24<>"",IF($GE$7,W24,X24),"") -> 2016-11-09 | Z24: =IF(T24>0,S24,Y24) -> 2016-11-06 | AA24: =IF(T24>0,Y24,S24) -> 2016-11-09 | AB24: 0 | AC24: =INT(Z24+AB24*(AA24-Z24)) -> 2016-11-06 | AD24: =IF(AND(AB24<1,AC24<$DC$7),0,1) -> 0 | AE24: 100 | AF24: 0 | AG24: =IF(AND(AE24<>"",AF24<>""),AF24/AE24,"") -> 0 | AH24: =AG24 -> 0
K25: 1.2 | M25: Sous-tache | P25: Rony | Q25: =IF(ISERROR(VLOOKUP(P25,Tools!$D$11:$J$57,7,FALSE)),"",VLOOKUP(P25,Tools!$D$11:$J$57,7,FALSE)) -> 3 | R25: 2 | S25: 2016-11-06 | T25: 5 | U25: j | V25: =IF(U25=dur_type_d,T25,IF(U25=dur_type_w,IF(Work_D_Only_Bool,T25*5,T25*7),IF(U25=dur_type_m,IF(Work_D_Only_Bool,NETWORKDAYS.INTL(S25,DATE(YEAR(S25),MONTH(S25)+T25,DAY(S25)-1),WE_Days,Holiday_Days),DATE(YEAR(S25),MONTH(S25)+T25,DAY(S25))-S25),"ERROR"))) -> 5 | W25: =WORKDAY.INTL(S25,IF(V25>0,IF(OR(WEEKDAY(S25,2)>=6,COUNTIF(Holiday_Days,S25)>0),V25,V25-1),IF(OR(WEEKDAY(S25,2)>=6,COUNTIF(Holiday_Days,S25)>0),V25,V25+1)),HB$7,Holiday_Days) -> 2016-11-11 | X25: =IF(V25>0,S25+V25-1,S25+V25+1) -> 2016-11-10 | Y25: =IF(S25<>"",IF($GE$7,W25,X25),"") -> 2016-11-11 | Z25: =IF(T25>0,S25,Y25) -> 2016-11-06 | AA25: =IF(T25>0,Y25,S25) -> 2016-11-11 | AB25: 0 | AC25: =INT(Z25+AB25*(AA25-Z25)) -> 2016-11-06 | AD25: =IF(AND(AB25<1,AC25<$DC$7),0,1) -> 0 | AE25: 100 | AF25: 0 | AG25: =IF(AND(AE25<>"",AF25<>""),AF25/AE25,"") -> 0 | AH25: =AG25 -> 0
K26: 2 | M26: Tache | R26: 1 | S26: =MIN(Z27:Z32) -> 2016-11-01 | T26: =Y26-S26+1 -> 10 | W26: =WORKDAY.INTL(S26,IF(T26>0,IF(OR(WEEKDAY(S26,2)>=6,COUNTIF(Holiday_Days,S26)>0),T26,T26-1),IF(OR(WEEKDAY(S26,2)>=6,COUNTIF(Holiday_Days,S26)>0),T26,T26+1)),HB$7,Holiday_Days) -> 2016-11-14 | X26: =IF(T26>0,S26+T26-1,S26+T26+1) -> 2016-11-10 | Y26: =MAX(AA27:AA32) -> 2016-11-10 | Z26: 2016-11-01 | AA26: 2016-11-10 | AB26: =SUMPRODUCT(--(R27:R32=2),ABS(T27:T32),AB27:AB32)/SUM(ABS(T27:T32)) -> 0.05587308095 | AC26: =INT(Z26+AB26*(AA26-Z26)) -> 2016-11-01 | AD26: 0 | AE26: =SUMIF(R27:R32,2,AE27:AE32) -> 7800 | AF26: =SUMIF(R27:R32,2,AF27:AF32) -> 80 | AG26: =IF(AND(AE26<>"",AF26<>""),AF26/AE26,"") -> 0.01025641026 | AH26: =AG26 -> 0.01025641026
K27: 2.1 | M27: Sous-tache | P27: Sara | Q27: =IF(ISERROR(VLOOKUP(P27,Tools!$D$11:$J$57,7,FALSE)),"",VLOOKUP(P27,Tools!$D$11:$J$57,7,FALSE)) -> 2 | R27: 2 | S27: 2016-11-01 | T27: 2 | U27: j | V27: =IF(U27=dur_type_d,T27,IF(U27=dur_type_w,IF(Work_D_Only_Bool,T27*5,T27*7),IF(U27=dur_type_m,IF(Work_D_Only_Bool,NETWORKDAYS.INTL(S27,DATE(YEAR(S27),MONTH(S27)+T27,DAY(S27)-1),WE_Days,Holiday_Days),DATE(YEAR(S27),MONTH(S27)+T27,DAY(S27))-S27),"ERROR"))) -> 2 | W27: =WORKDAY.INTL(S27,IF(V27>0,IF(OR(WEEKDAY(S27,2)>=6,COUNTIF(Holiday_Days,S27)>0),V27,V27-1),IF(OR(WEEKDAY(S27,2)>=6,COUNTIF(Holiday_Days,S27)>0),V27,V27+1)),HB$7,Holiday_Days) -> 2016-11-02 | X27: =IF(V27>0,S27+V27-1,S27+V27+1) -> 2016-11-02 | Y27: =IF(S27<>"",IF($GE$7,W27,X27),"") -> 2016-11-02 | Z27: 2016-11-01 | AA27: 2016-11-02 | AB27: 0 | AC27: =INT(Z27+AB27*(AA27-Z27)) -> 2016-11-01 | AD27: 0 | AE27: 100 | AF27: 80 | AG27: =IF(AND(AE27<>"",AF27<>""),AF27/AE27,"") -> 0.8 | AH27: 0.8
K28: 2.2 | L28: 1 | M28: Sous-tache | P28: Rony | Q28: =IF(ISERROR(VLOOKUP(P28,Tools!$D$11:$J$57,7,FALSE)),"",VLOOKUP(P28,Tools!$D$11:$J$57,7,FALSE)) -> 3 | R28: 2 | S28: =S27 -> 2016-11-01 | T28: 5 | U28: j | V28: 5 | W28: 2016-11-07 | X28: 2016-11-05 | Y28: 2016-11-07 | Z28: 2016-11-01 | AA28: 2016-11-07 | AB28: 0 | AC28: 2016-11-01 | AD28: 0 | AE28: 100 | AF28: 0 | AG28: 0 | AH28: 0
K29: 2.3 | M29: Sous-tache | P29: Mary | Q29: =IF(ISERROR(VLOOKUP(P29,Tools!$D$11:$J$57,7,FALSE)),"",VLOOKUP(P29,Tools!$D$11:$J$57,7,FALSE)) -> 5 | R29: 2 | S29: 2016-11-09 | T29: 2 | U29: j | V29: 2 | W29: 2016-11-10 | X29: 2016-11-10 | Y29: 2016-11-10 | Z29: =IF(T29>0,S29,Y29) -> 2016-11-09 | AA29: =IF(T29>0,Y29,S29) -> 2016-11-10 | AB29: 0 | AC29: =INT(Z29+AB29*(AA29-Z29)) -> 2016-11-09 | AD29: =IF(AND(AB29<1,AC29<$DC$7),0,1) -> 0 | AE29: =SUM(AE33:AE34) -> 1900 | AF29: =SUM(AF33:AF34) -> 0 | AG29: =IF(AND(AE29<>"",AF29<>""),AF29/AE29,"") -> 0 | AH29: 0
K30: 2.4 | M30: Sous-tache | P30: Mary | Q30: =IF(ISERROR(VLOOKUP(P30,Tools!$D$11:$J$57,7,FALSE)),"",VLOOKUP(P30,Tools!$D$11:$J$57,7,FALSE)) -> 5 | R30: 2 | S30: 2016-11-09 | T30: 2 | U30: j | V30: 2 | W30: 2016-11-10 | X30: 2016-11-10 | Y30: 2016-11-10 | Z30: =IF(T30>0,S30,Y30) -> 2016-11-09 | AA30: =IF(T30>0,Y30,S30) -> 2016-11-10 | AB30: 0 | AC30: =INT(Z30+AB30*(AA30-Z30)) -> 2016-11-09 | AD30: =IF(AND(AB30<1,AC30<$DC$7),0,1) -> 0 | AE30: =SUM(AE33:AE34) -> 1900 | AF30: =SUM(AF33:AF34) -> 0 | AG30: =IF(AND(AE30<>"",AF30<>""),AF30/AE30,"") -> 0 | AH30: 0
K31: 2.5 | M31: Sous-tache | P31: Mary | Q31: =IF(ISERROR(VLOOKUP(P31,Tools!$D$11:$J$57,7,FALSE)),"",VLOOKUP(P31,Tools!$D$11:$J$57,7,FALSE)) -> 5 | R31: 2 | S31: 2016-11-09 | T31: 2 | U31: j | V31: 2 | W31: 2016-11-10 | X31: 2016-11-10 | Y31: 2016-11-10 | Z31: =IF(T31>0,S31,Y31) -> 2016-11-09 | AA31: =IF(T31>0,Y31,S31) -> 2016-11-10 | AB31: =SUMPRODUCT(AB33:AB34,ABS(T33:T34))/SUM(ABS(T33:T34)) -> 0.2095240536 | AC31: =INT(Z31+AB31*(AA31-Z31)) -> 2016-11-09 | AD31: =IF(AND(AB31<1,AC31<$DC$7),0,1) -> 0 | AE31: =SUM(AE33:AE34) -> 1900 | AF31: =SUM(AF33:AF34) -> 0 | AG31: =IF(AND(AE31<>"",AF31<>""),AF31/AE31,"") -> 0 | AH31: 0
K32: 2.6 | M32: Sous-tache | P32: Mary | Q32: =IF(ISERROR(VLOOKUP(P32,Tools!$D$11:$J$57,7,FALSE)),"",VLOOKUP(P32,Tools!$D$11:$J$57,7,FALSE)) -> 5 | R32: 2 | S32: 2016-11-09 | T32: 2 | U32: j | V32: 2 | W32: 2016-11-10 | X32: 2016-11-10 | Y32: 2016-11-10 | Z32: =IF(T32>0,S32,Y32) -> 2016-11-09 | AA32: =IF(T32>0,Y32,S32) -> 2016-11-10 | AB32: =SUMPRODUCT(AB33:AB34,ABS(T33:T34))/SUM(ABS(T33:T34)) -> 0.2095240536 | AC32: =INT(Z32+AB32*(AA32-Z32)) -> 2016-11-09 | AD32: =IF(AND(AB32<1,AC32<$DC$7),0,1) -> 0 | AE32: =SUM(AE33:AE34) -> 1900 | AF32: =SUM(AF33:AF34) -> 0 | AG32: =IF(AND(AE32<>"",AF32<>""),AF32/AE32,"") -> 0 | AH32: 0
K33: 3 | M33: Tache | R33: 1 | S33: =MIN(Z34:Z41) -> 2016-11-06 | T33: =Y33-S33+1 -> 18 | Y33: =MAX(AA34:AA41) -> 2016-11-23 | AB33: =SUMPRODUCT(--(R34:R41=2),ABS(T34:T41),AB34:AB41)/SUM(ABS(T34:T41)) -> 0.09444472914 | AC33: =S33-1+AB33*T33 -> 2016-11-06T16:48:00.443 | AD33: =IF(AB33<>"",IF(AND(AB33<1,AC33<$DC$7),0,1)) -> 0 | AE33: =SUMIF(R34:R41,2,AE34:AE41) -> 1800 | AF33: =SUM(AF34:AF37) -> 0 | AG33: =IF(AND(AE33<>"",AF33<>"",AE33<>0),AF33/AE33,"") -> 0 | AH33: 0
K34: 3.1 | M34: Sous-tache | P34: Mary | Q34: =IF(ISERROR(VLOOKUP(P34,Tools!$D$11:$J$57,7,FALSE)),"",VLOOKUP(P34,Tools!$D$11:$J$57,7,FALSE)) -> 5 | R34: 2 | S34: 2016-11-11 | T34: 3 | U34: j | V34: =IF(U34=dur_type_d,T34,IF(U34=dur_type_w,IF(Work_D_Only_Bool,T34*5,T34*7),IF(U34=dur_type_m,IF(Work_D_Only_Bool,NETWORKDAYS.INTL(S34,DATE(YEAR(S34),MONTH(S34)+T34,DAY(S34)-1),WE_Days,Holiday_Days),DATE(YEAR(S34),MONTH(S34)+T34,DAY(S34))-S34),"ERROR"))) -> 3 | W34: =WORKDAY.INTL(S34,IF(V34>0,IF(OR(WEEKDAY(S34,2)>=6,COUNTIF(Holiday_Days,S34)>0),V34,V34-1),IF(OR(WEEKDAY(S34,2)>=6,COUNTIF(Holiday_Days,S34)>0),V34,V34+1)),HB$7,Holiday_Days) -> 2016-11-15 | X34: =IF(V34>0,S34+V34-1,S34+V34+1) -> 2016-11-13 | Y34: =IF(S34<>"",IF($GE$7,W34,X34),"") -> 2016-11-15 | Z34: =IF(T34>0,S34,Y34) -> 2016-11-11 | AA34: =IF(T34>0,Y34,S34) -> 2016-11-15 | AB34: 0.9 | AC34: =INT(Z34+AB34*(AA34-Z34)) -> 2016-11-14 | AD34: =IF(AND(AB34<1,AC34<$DC$7),0,1) -> 1 | AE34: 100 | AF34: 0 | AG34: =IF(AND(AE34<>"",AF34<>""),AF34/AE34,"") -> 0 | AH34: 0
K35: 3.2 | M35: Sous-tache | P35: Mary | Q35: =IF(ISERROR(VLOOKUP(P35,Tools!$D$11:$J$57,7,FALSE)),"",VLOOKUP(P35,Tools!$D$11:$J$57,7,FALSE)) -> 5 | R35: 2 | S35: =MIN(Z36:Z37) -> 2016-11-06 | T35: =Y35-S35+1 -> 18 | U35: j | V35: =IF(U35=dur_type_d,T35,IF(U35=dur_type_w,IF(Work_D_Only_Bool,T35*5,T35*7),IF(U35=dur_type_m,IF(Work_D_Only_Bool,NETWORKDAYS.INTL(S35,DATE(YEAR(S35),MONTH(S35)+T35,DAY(S35)-1),WE_Days,Holiday_Days),DATE(YEAR(S35),MONTH(S35)+T35,DAY(S35))-S35),"ERROR"))) -> 18 | W35: =WORKDAY.INTL(S35,IF(V35>0,IF(OR(WEEKDAY(S35,2)>=6,COUNTIF(Holiday_Days,S35)>0),V35,V35-1),IF(OR(WEEKDAY(S35,2)>=6,COUNTIF(Holiday_Days,S35)>0),V35,V35+1)),HB$7,Holiday_Days) -> 2016-11-30 | X35: 2016-11-23 | Y35: =MAX(AA36:AA37) -> 2016-11-23 | Z35: 2016-11-06 | AA35: 2016-11-23 | AB35: =SUMPRODUCT(AA36:AA37,AB36:AB37)/SUM(AA36:AA37) -> 0 | AC35: 2016-11-06 | AD35: 0 | AE35: =SUM(AE36:AE37) -> 200 | AF35: =SUM(AF36:AF37) -> 0 | AG35: 0 | AH35: 0
K36: 3.3 | M36: Sous-tache | P36: Mike | Q36: =IF(ISERROR(VLOOKUP(P36,Tools!$D$11:$J$57,7,FALSE)),"",VLOOKUP(P36,Tools!$D$11:$J$57,7,FALSE)) -> 0 | R36: 3 | S36: 2016-11-15 | T36: 7 | U36: j | V36: =IF(U36=dur_type_d,T36,IF(U36=dur_type_w,IF(Work_D_Only_Bool,T36*5,T36*7),IF(U36=dur_type_m,IF(Work_D_Only_Bool,NETWORKDAYS.INTL(S36,DATE(YEAR(S36),MONTH(S36)+T36,DAY(S36)-1),WE_Days,Holiday_Days),DATE(YEAR(S36),MONTH(S36)+T36,DAY(S36))-S36),"ERROR"))) -> 7 | W36: =WORKDAY.INTL(S36,IF(V36>0,IF(OR(WEEKDAY(S36,2)>=6,COUNTIF(Holiday_Days,S36)>0),V36,V36-1),IF(OR(WEEKDAY(S36,2)>=6,COUNTIF(Holiday_Days,S36)>0),V36,V36+1)),HB$7,Holiday_Days) -> 2016-11-23 | X36: 2016-11-21 | Y36: =IF(S36<>"",IF($GE$7,W36,X36),"") -> 2016-11-23 | Z36: 2016-11-15 | AA36: 2016-11-23 | AB36: 0 | AC36: 2016-11-15 | AD36: 1 | AE36: 100 | AF36: 0 | AG36: 0 | AH36: 0
K37: 3.4 | M37: Sous-tache | P37: Mary | Q37: =IF(ISERROR(VLOOKUP(P37,Tools!$D$11:$J$57,7,FALSE)),"",VLOOKUP(P37,Tools!$D$11:$J$57,7,FALSE)) -> 5 | R37: 3 | S37: 2016-11-06 | T37: 2 | U37: j | V37: =IF(U37=dur_type_d,T37,IF(U37=dur_type_w,IF(Work_D_Only_Bool,T37*5,T37*7),IF(U37=dur_type_m,IF(Work_D_Only_Bool,NETWORKDAYS.INTL(S37,DATE(YEAR(S37),MONTH(S37)+T37,DAY(S37)-1),WE_Days,Holiday_Days),DATE(YEAR(S37),MONTH(S37)+T37,DAY(S37))-S37),"ERROR"))) -> 2 | W37: =WORKDAY.INTL(S37,IF(V37>0,IF(OR(WEEKDAY(S37,2)>=6,COUNTIF(Holiday_Days,S37)>0),V37,V37-1),IF(OR(WEEKDAY(S37,2)>=6,COUNTIF(Holiday_Days,S37)>0),V37,V37+1)),HB$7,Holiday_Days) -> 2016-11-08 | X37: 2016-11-07 | Y37: =IF(S37<>"",IF($GE$7,W37,X37),"") -> 2016-11-08 | Z37: 2016-11-06 | AA37: 2016-11-08 | AB37: 0 | AC37: =INT(Z37+AB37*(AA37-Z37)) -> 2016-11-06 | AD37: 0 | AE37: 100 | AF37: 0 | AG37: =IF(AND(AE37<>"",AF37<>""),AF37/AE37,"") -> 0 | AH37: 0
K38: 3.5 | M38: Jalon | R38: 0 | S38: 2016-11-10
K39: 3.6 | M39: Sous-tache | P39: Mary | Q39: =IF(ISERROR(VLOOKUP(P39,Tools!$D$11:$J$57,7,FALSE)),"",VLOOKUP(P39,Tools!$D$11:$J$57,7,FALSE)) -> 5 | R39: 2 | S39: 2016-11-09 | T39: 2 | U39: j | V39: =IF(U39=dur_type_d,T39,IF(U39=dur_type_w,IF(Work_D_Only_Bool,T39*5,T39*7),IF(U39=dur_type_m,IF(Work_D_Only_Bool,NETWORKDAYS.INTL(S39,DATE(YEAR(S39),MONTH(S39)+T39,DAY(S39)-1),WE_Days,Holiday_Days),DATE(YEAR(S39),MONTH(S39)+T39,DAY(S39))-S39),"ERROR"))) -> 2 | W39: =WORKDAY.INTL(S39,IF(V39>0,IF(OR(WEEKDAY(S39,2)>=6,COUNTIF(Holiday_Days,S39)>0),V39,V39-1),IF(OR(WEEKDAY(S39,2)>=6,COUNTIF(Holiday_Days,S39)>0),V39,V39+1)),HB$7,Holiday_Days) -> 2016-11-10 | X39: =IF(V39>0,S39+V39-1,S39+V39+1) -> 2016-11-10 | Y39: =IF(S39<>"",IF($GE$7,W39,X39),"") -> 2016-11-10 | Z39: =IF(T39>0,S39,Y39) -> 2016-11-09 | AA39: =IF(T39>0,Y39,S39) -> 2016-11-10 | AB39: =SUMPRODUCT(AB42:AB43,ABS(T42:T43))/SUM(ABS(T42:T43)) -> 0.1166683749 | AC39: =INT(Z39+AB39*(AA39-Z39)) -> 2016-11-09 | AD39: =IF(AND(AB39<1,AC39<$DC$7),0,1) -> 0 | AE39: =SUM(AE42:AE43) -> 500 | AF39: =SUM(AF42:AF43) -> 0 | AG39: =IF(AND(AE39<>"",AF39<>""),AF39/AE39,"") -> 0 | AH39: =AG39 -> 0
K40: 3.7 | M40: Sous-tache | P40: Mary | Q40: =IF(ISERROR(VLOOKUP(P40,Tools!$D$11:$J$57,7,FALSE)),"",VLOOKUP(P40,Tools!$D$11:$J$57,7,FALSE)) -> 5 | R40: 2 | S40: 2016-11-09 | T40: 2 | U40: j | V40: =IF(U40=dur_type_d,T40,IF(U40=dur_type_w,IF(Work_D_Only_Bool,T40*5,T40*7),IF(U40=dur_type_m,IF(Work_D_Only_Bool,NETWORKDAYS.INTL(S40,DATE(YEAR(S40),MONTH(S40)+T40,DAY(S40)-1),WE_Days,Holiday_Days),DATE(YEAR(S40),MONTH(S40)+T40,DAY(S40))-S40),"ERROR"))) -> 2 | W40: =WORKDAY.INTL(S40,IF(V40>0,IF(OR(WEEKDAY(S40,2)>=6,COUNTIF(Holiday_Days,S40)>0),V40,V40-1),IF(OR(WEEKDAY(S40,2)>=6,COUNTIF(Holiday_Days,S40)>0),V40,V40+1)),HB$7,Holiday_Days) -> 2016-11-10 | X40: =IF(V40>0,S40+V40-1,S40+V40+1) -> 2016-11-10 | Y40: =IF(S40<>"",IF($GE$7,W40,X40),"") -> 2016-11-10 | Z40: =IF(T40>0,S40,Y40) -> 2016-11-09 | AA40: =IF(T40>0,Y40,S40) -> 2016-11-10 | AB40: =SUMPRODUCT(AB42:AB43,ABS(T42:T43))/SUM(ABS(T42:T43)) -> 0.1166683749 | AC40: =INT(Z40+AB40*(AA40-Z40)) -> 2016-11-09 | AD40: =IF(AND(AB40<1,AC40<$DC$7),0,1) -> 0 | AE40: =SUM(AE42:AE43) -> 500 | AF40: =SUM(AF42:AF43) -> 0 | AG40: =IF(AND(AE40<>"",AF40<>""),AF40/AE40,"") -> 0 | AH40: 0
K41: 3.8 | M41: Sous-tache | P41: Mary | Q41: =IF(ISERROR(VLOOKUP(P41,Tools!$D$11:$J$57,7,FALSE)),"",VLOOKUP(P41,Tools!$D$11:$J$57,7,FALSE)) -> 5 | R41: 2 | S41: 2016-11-09 | T41: 2 | U41: j | V41: =IF(U41=dur_type_d,T41,IF(U41=dur_type_w,IF(Work_D_Only_Bool,T41*5,T41*7),IF(U41=dur_type_m,IF(Work_D_Only_Bool,NETWORKDAYS.INTL(S41,DATE(YEAR(S41),MONTH(S41)+T41,DAY(S41)-1),WE_Days,Holiday_Days),DATE(YEAR(S41),MONTH(S41)+T41,DAY(S41))-S41),"ERROR"))) -> 2 | W41: =WORKDAY.INTL(S41,IF(V41>0,IF(OR(WEEKDAY(S41,2)>=6,COUNTIF(Holiday_Days,S41)>0),V41,V41-1),IF(OR(WEEKDAY(S41,2)>=6,COUNTIF(Holiday_Days,S41)>0),V41,V41+1)),HB$7,Holiday_Days) -> 2016-11-10 | X41: =IF(V41>0,S41+V41-1,S41+V41+1) -> 2016-11-10 | Y41: =IF(S41<>"",IF($GE$7,W41,X41),"") -> 2016-11-10 | Z41: =IF(T41>0,S41,Y41) -> 2016-11-09 | AA41: =IF(T41>0,Y41,S41) -> 2016-11-10 | AB41: =SUMPRODUCT(AB42:AB43,ABS(T42:T43))/SUM(ABS(T42:T43)) -> 0.1166683749 | AC41: =INT(Z41+AB41*(AA41-Z41)) -> 2016-11-09 | AD41: =IF(AND(AB41<1,AC41<$DC$7),0,1) -> 0 | AE41: =SUM(AE42:AE43) -> 500 | AF41: =SUM(AF42:AF43) -> 0 | AG41: =IF(AND(AE41<>"",AF41<>""),AF41/AE41,"") -> 0 | AH41: 0
K42: 4 | M42: Tache | R42: 1 | S42: =MIN(Z43:Z47) -> 2016-11-09 | T42: =Y42-S42+1 -> 7 | Y42: =MAX(AA43:AA47) -> 2016-11-15 | AB42: =SUMPRODUCT(AA43:AA47,AB43:AB47)/SUM(AA43:AA47) -> 0.2000029283 | AC42: =S42-1+AB42*T42 -> 2016-11-09T09:36:01.771 | AD42: =IF(AB42<>"",IF(AND(AB42<1,AC42<$DC$7),0,1)) -> 0 | AE42: =SUM(AE43:AE47) -> 400 | AF42: =SUM(AF43:AF47) -> 0 | AG42: =IF(AND(AE42<>"",AF42<>"",AE42<>0),AF42/AE42,"") -> 0 | AH42: 0
K43: 4.1 | M43: Sous-tache | P43: Mary | Q43: =IF(ISERROR(VLOOKUP(P43,Tools!$D$11:$J$57,7,FALSE)),"",VLOOKUP(P43,Tools!$D$11:$J$57,7,FALSE)) -> 5 | R43: 2 | S43: 2016-11-09 | T43: 5 | U43: j | V43: =IF(U43=dur_type_d,T43,IF(U43=dur_type_w,IF(Work_D_Only_Bool,T43*5,T43*7),IF(U43=dur_type_m,IF(Work_D_Only_Bool,NETWORKDAYS.INTL(S43,DATE(YEAR(S43),MONTH(S43)+T43,DAY(S43)-1),WE_Days,Holiday_Days),DATE(YEAR(S43),MONTH(S43)+T43,DAY(S43))-S43),"ERROR"))) -> 5 | W43: =WORKDAY.INTL(S43,IF(V43>0,IF(OR(WEEKDAY(S43,2)>=6,COUNTIF(Holiday_Days,S43)>0),V43,V43-1),IF(OR(WEEKDAY(S43,2)>=6,COUNTIF(Holiday_Days,S43)>0),V43,V43+1)),HB$7,Holiday_Days) -> 2016-11-15 | X43: =IF(V43>0,S43+V43-1,S43+V43+1) -> 2016-11-13 | Y43: =IF(S43<>"",IF($GE$7,W43,X43),"") -> 2016-11-15 | Z43: =IF(T43>0,S43,Y43) -> 2016-11-09 | AA43: =IF(T43>0,Y43,S43) -> 2016-11-15 | AB43: 0 | AC43: =INT(Z43+AB43*(AA43-Z43)) -> 2016-11-09 | AD43: =IF(AND(AB43<1,AC43<$DC$7),0,1) -> 0 | AE43: 100 | AF43: 0 | AG43: =IF(AND(AE43<>"",AF43<>""),AF43/AE43,"") -> 0 | AH43: 0
K44: MS | M44: Jalon | R44: 0 | S44: 2016-11-01
K45: 4.2 | M45: Sous-tache | P45: Mary | Q45: =IF(ISERROR(VLOOKUP(P45,Tools!$D$11:$J$57,7,FALSE)),"",VLOOKUP(P45,Tools!$D$11:$J$57,7,FALSE)) -> 5 | R45: 2 | S45: 2016-11-09 | T45: 5 | U45: j | V45: =IF(U45=dur_type_d,T45,IF(U45=dur_type_w,IF(Work_D_Only_Bool,T45*5,T45*7),IF(U45=dur_type_m,IF(Work_D_Only_Bool,NETWORKDAYS.INTL(S45,DATE(YEAR(S45),MONTH(S45)+T45,DAY(S45)-1),WE_Days,Holiday_Days),DATE(YEAR(S45),MONTH(S45)+T45,DAY(S45))-S45),"ERROR"))) -> 5 | W45: =WORKDAY.INTL(S45,IF(V45>0,IF(OR(WEEKDAY(S45,2)>=6,COUNTIF(Holiday_Days,S45)>0),V45,V45-1),IF(OR(WEEKDAY(S45,2)>=6,COUNTIF(Holiday_Days,S45)>0),V45,V45+1)),HB$7,Holiday_Days) -> 2016-11-15 | X45: =IF(V45>0,S45+V45-1,S45+V45+1) -> 2016-11-13 | Y45: =IF(S45<>"",IF($GE$7,W45,X45),"") -> 2016-11-15 | Z45: =IF(T45>0,S45,Y45) -> 2016-11-09 | AA45: =IF(T45>0,Y45,S45) -> 2016-11-15 | AB45: 0.5 | AC45: 2016-11-12 | AD45: =IF(AND(AB45<1,AC45<$DC$7),0,1) -> 1 | AE45: 100 | AF45: 0 | AG45: 0 | AH45: 0
K46: 4.3 | M46: Sous-tache | P46: Mary | Q46: =IF(ISERROR(VLOOKUP(P46,Tools!$D$11:$J$57,7,FALSE)),"",VLOOKUP(P46,Tools!$D$11:$J$57,7,FALSE)) -> 5 | R46: 2 | S46: =MIN(Z47:Z47) -> 2016-11-09 | T46: =Y46-S46+1 -> 2 | U46: j | V46: =IF(U46=dur_type_d,T46,IF(U46=dur_type_w,IF(Work_D_Only_Bool,T46*5,T46*7),IF(U46=dur_type_m,IF(Work_D_Only_Bool,NETWORKDAYS.INTL(S46,DATE(YEAR(S46),MONTH(S46)+T46,DAY(S46)-1),WE_Days,Holiday_Days),DATE(YEAR(S46),MONTH(S46)+T46,DAY(S46))-S46),"ERROR"))) -> 2 | W46: =WORKDAY.INTL(S46,IF(V46>0,IF(OR(WEEKDAY(S46,2)>=6,COUNTIF(Holiday_Days,S46)>0),V46,V46-1),IF(OR(WEEKDAY(S46,2)>=6,COUNTIF(Holiday_Days,S46)>0),V46,V46+1)),HB$7,Holiday_Days) -> 2016-11-10 | X46: =IF(V46>0,S46+V46-1,S46+V46+1) -> 2016-11-10 | Y46: =MAX(AA47:AA47) -> 2016-11-10 | Z46: =IF(T46>0,S46,Y46) -> 2016-11-09 | AA46: =IF(T46>0,Y46,S46) -> 2016-11-10 | AB46: 0.3 | AC46: 2016-11-09 | AD46: =IF(AND(AB46<1,AC46<$DC$7),0,1) -> 0 | AE46: 100 | AF46: 0 | AG46: 0 | AH46: 0
K47: 4.3.1 | M47: Sub-Task 2 | P47: Mary | Q47: =IF(ISERROR(VLOOKUP(P47,Tools!$D$11:$J$57,7,FALSE)),"",VLOOKUP(P47,Tools!$D$11:$J$57,7,FALSE)) -> 5 | R47: 3 | S47: 2016-11-09 | T47: 2 | U47: j | V47: =IF(U47=dur_type_d,T47,IF(U47=dur_type_w,IF(Work_D_Only_Bool,T47*5,T47*7),IF(U47=dur_type_m,IF(Work_D_Only_Bool,NETWORKDAYS.INTL(S47,DATE(YEAR(S47),MONTH(S47)+T47,DAY(S47)-1),WE_Days,Holiday_Days),DATE(YEAR(S47),MONTH(S47)+T47,DAY(S47))-S47),"ERROR"))) -> 2 | W47: =WORKDAY.INTL(S47,IF(V47>0,IF(OR(WEEKDAY(S47,2)>=6,COUNTIF(Holiday_Days,S47)>0),V47,V47-1),IF(OR(WEEKDAY(S47,2)>=6,COUNTIF(Holiday_Days,S47)>0),V47,V47+1)),HB$7,Holiday_Days) -> 2016-11-10 | X47: =IF(V47>0,S47+V47-1,S47+V47+1) -> 2016-11-10 | Y47: =IF(S47<>"",IF($GE$7,W47,X47),"") -> 2016-11-10 | Z47: =IF(T47>0,S47,Y47) -> 2016-11-09 | AA47: =IF(T47>0,Y47,S47) -> 2016-11-10 | AB47: 0 | AC47: =INT(Z47+AB47*(AA47-Z47)) -> 2016-11-09 | AD47: =IF(AND(AB47<1,AC47<$DC$7),0,1) -> 0 | AE47: 100 | AF47: 0 | AG47: =IF(AND(AE47<>"",AF47<>""),AF47/AE47,"") -> 0 | AH47: 0
K48: 5 | M48: Tache | R48: 1 | S48: =MIN(Z49:Z51) -> 2016-11-09 | T48: =Y48-S48+1 -> 7 | Y48: =MAX(AA49:AA51) -> 2016-11-15 | AB48: =SUMPRODUCT(AA49:AA51,AB49:AB51)/SUM(AA49:AA51) -> 0 | AC48: =S48-1+AB48*T48 -> 2016-11-08 | AD48: =IF(AB48<>"",IF(AND(AB48<1,AC48<$DC$7),0,1)) -> 0 | AE48: =SUM(AE49:AE51) -> 300 | AF48: =SUM(AF49:AF51) -> 0 | AG48: =IF(AND(AE48<>"",AF48<>"",AE48<>0),AF48/AE48,"") -> 0 | AH48: 0
K49: 5.1 | M49: Sous-tache | P49: Mary | Q49: =IF(ISERROR(VLOOKUP(P49,Tools!$D$11:$J$57,7,FALSE)),"",VLOOKUP(P49,Tools!$D$11:$J$57,7,FALSE)) -> 5 | R49: 2 | S49: 2016-11-09 | T49: 5 | U49: j | V49: =IF(U49=dur_type_d,T49,IF(U49=dur_type_w,IF(Work_D_Only_Bool,T49*5,T49*7),IF(U49=dur_type_m,IF(Work_D_Only_Bool,NETWORKDAYS.INTL(S49,DATE(YEAR(S49),MONTH(S49)+T49,DAY(S49)-1),WE_Days,Holiday_Days),DATE(YEAR(S49),MONTH(S49)+T49,DAY(S49))-S49),"ERROR"))) -> 5 | W49: =WORKDAY.INTL(S49,IF(V49>0,IF(OR(WEEKDAY(S49,2)>=6,COUNTIF(Holiday_Days,S49)>0),V49,V49-1),IF(OR(WEEKDAY(S49,2)>=6,COUNTIF(Holiday_Days,S49)>0),V49,V49+1)),HB$7,Holiday_Days) -> 2016-11-15 | X49: =IF(V49>0,S49+V49-1,S49+V49+1) -> 2016-11-13 | Y49: =IF(S49<>"",IF($GE$7,W49,X49),"") -> 2016-11-15 | Z49: =IF(T49>0,S49,Y49) -> 2016-11-09 | AA49: =IF(T49>0,Y49,S49) -> 2016-11-15 | AB49: 0 | AC49: =INT(Z49+AB49*(AA49-Z49)) -> 2016-11-09 | AD49: =IF(AND(AB49<1,AC49<$DC$7),0,1) -> 0 | AE49: 100 | AF49: 0 | AG49: =IF(AND(AE49<>"",AF49<>""),AF49/AE49,"") -> 0 | AH49: 0
K50: 5.2 | M50: Sous-tache | P50: Mary | Q50: =IF(ISERROR(VLOOKUP(P50,Tools!$D$11:$J$57,7,FALSE)),"",VLOOKUP(P50,Tools!$D$11:$J$57,7,FALSE)) -> 5 | R50: 2 | S50: 2016-11-09 | T50: 5 | U50: j | V50: =IF(U50=dur_type_d,T50,IF(U50=dur_type_w,IF(Work_D_Only_Bool,T50*5,T50*7),IF(U50=dur_type_m,IF(Work_D_Only_Bool,NETWORKDAYS.INTL(S50,DATE(YEAR(S50),MONTH(S50)+T50,DAY(S50)-1),WE_Days,Holiday_Days),DATE(YEAR(S50),MONTH(S50)+T50,DAY(S50))-S50),"ERROR"))) -> 5 | W50: =WORKDAY.INTL(S50,IF(V50>0,IF(OR(WEEKDAY(S50,2)>=6,COUNTIF(Holiday_Days,S50)>0),V50,V50-1),IF(OR(WEEKDAY(S50,2)>=6,COUNTIF(Holiday_Days,S50)>0),V50,V50+1)),HB$7,Holiday_Days) -> 2016-11-15 | X50: =IF(V50>0,S50+V50-1,S50+V50+1) -> 2016-11-13 | Y50: =IF(S50<>"",IF($GE$7,W50,X50),"") -> 2016-11-15 | Z50: =IF(T50>0,S50,Y50) -> 2016-11-09 | AA50: =IF(T50>0,Y50,S50) -> 2016-11-15 | AB50: 0 | AC50: 2016-11-09 | AD50: =IF(AND(AB50<1,AC50<$DC$7),0,1) -> 0 | AE50: 100 | AF50: 0 | AG50: 0 | AH50: 0
K51: 5.3 | M51: Sous-tache | P51: Mary | Q51: =IF(ISERROR(VLOOKUP(P51,Tools!$D$11:$J$57,7,FALSE)),"",VLOOKUP(P51,Tools!$D$11:$J$57,7,FALSE)) -> 5 | R51: 2 | S51: 2016-11-09 | T51: 5 | U51: j | V51: =IF(U51=dur_type_d,T51,IF(U51=dur_type_w,IF(Work_D_Only_Bool,T51*5,T51*7),IF(U51=dur_type_m,IF(Work_D_Only_Bool,NETWORKDAYS.INTL(S51,DATE(YEAR(S51),MONTH(S51)+T51,DAY(S51)-1),WE_Days,Holiday_Days),DATE(YEAR(S51),MONTH(S51)+T51,DAY(S51))-S51),"ERROR"))) -> 5 | W51: =WORKDAY.INTL(S51,IF(V51>0,IF(OR(WEEKDAY(S51,2)>=6,COUNTIF(Holiday_Days,S51)>0),V51,V51-1),IF(OR(WEEKDAY(S51,2)>=6,COUNTIF(Holiday_Days,S51)>0),V51,V51+1)),HB$7,Holiday_Days) -> 2016-11-15 | X51: =IF(V51>0,S51+V51-1,S51+V51+1) -> 2016-11-13 | Y51: =IF(S51<>"",IF($GE$7,W51,X51),"") -> 2016-11-15 | Z51: =IF(T51>0,S51,Y51) -> 2016-11-09 | AA51: =IF(T51>0,Y51,S51) -> 2016-11-15 | AB51: 0 | AC51: 2016-11-09 | AD51: =IF(AND(AB51<1,AC51<$DC$7),0,1) -> 0 | AE51: 100 | AF51: 0 | AG51: 0 | AH51: 0

Sheet Everest Example
AP7: Start Date (Fusion) | AV7: =IF(CR7="Weekly",CN7*1,BG7*1) -> 2016-10-31 | AX7: 8 | BA7: Start Date (Daily) | BG7: =DATE(BZ7,BS7,BN7) -> 2016-11-01 | BI7: 8 | BK7: Day | BM7: 26 | BN7: 1 | BO7: 26 | BP7: Month | BR7: 10 | BS7: 11 | BT7: 10 | BU7: Year | BW7: 7 | BX7: 7 | BY7: 7 | BZ7: =BX7+2009 -> 2016 | CC7: Start Date (Weekly) | CE7: 7 | CI7: =BG7 -> 2016-11-01 | CK7: 8 | CM7: =WEEKDAY(CI7,2) -> 2 | CN7: =CI7-CM7+1 -> 2016-10-31 | CP7: 8 | CR7: Weekly | CW7: Red Bookmark | DC7: =DATE(DV7,DO7,DJ7) -> 2017-03-17 | DE7: 8 | DG7: Day | DI7: 7 | DJ7: 17 | DK7: 7 | DL7: Month | DN7: 11 | DO7: 3 | DP7: 11 | DQ7: Year | DS7: 7 | DT7: 8 | DU7: 7 | DV7: =DT7+2009 -> 2017 | DY7: First Day Today | EA7: 7 | EE7: =TODAY() -> 2017-06-06 | EG7: 8 | EI7: =DAY(EE7) -> 6 | EK7: =MONTH(EE7) -> 6 | EM7: =YEAR(EE7) -> 2017 | EP7: First Day Lowest | EV7: 2016-11-01 | EX7: 8 | EZ7: =DAY(EV7) -> 1 | FB7: =MONTH(EV7) -> 11 | FD7: =YEAR(EV7) -> 2016 | FG7: Options Add Tasks | FM7: Below | FP7: FALSE | FS7: 1 | FT7: TRUE | FX7: Work Days Only | GC7: 1 | GD7: 2 | GE7: =IF(GD7=1,1,0) -> 0 | GG7: Weeks Name | GK7: 1 | GL7: 2 | GM7: =OFFSET(HideValues!B51,GL7-1,0) -> W | GP7: First day week | GS7: 1 | GT7: 1 | GU7: 1 | GV7: =OFFSET(HideValues!$J$45,GU7-1,0) -> 21 | GX7: WE days | GZ7: 1 | HA7: 1 | HB7: =OFFSET(HideValues!F45,HA7-1,0) -> 1 | HD7: Budget | HG7: TRUE | HI7: Comment | HL7: FALSE | HV7: Leader's List | IA7: =IF(Tools!D11<>"",Tools!D11,"") -> Gibs | IB7: =IF(Tools!D12<>"",Tools!D12,"") -> Sara | IC7: =IF(Tools!D13<>"",Tools!D13,"") -> Mary | ID7: =IF(Tools!D14<>"",Tools!D14,"") -> Jade | IE7: =IF(Tools!D15<>"",Tools!D15,"") -> Reda | IF7: =IF(Tools!D16<>"",Tools!D16,"") -> Mike | IG7: =IF(Tools!D17<>"",Tools!D17,"") -> Rony | IH7: =IF(Tools!D18<>"",Tools!D18,"") -> Leo | II7: =IF(Tools!D19<>"",Tools!D19,"") ->  | IJ7: =IF(Tools!D20<>"",Tools!D20,"") ->  | IK7: =IF(Tools!D21<>"",Tools!D21,"") ->  | IL7: =IF(Tools!D22<>"",Tools!D22,"") ->  | IM7: =IF(Tools!D23<>"",Tools!D23,"") ->  | IN7: =IF(Tools!D24<>"",Tools!D24,"") ->  | IO7: =IF(Tools!D25<>"",Tools!D25,"") ->  | IP7: =IF(Tools!D26<>"",Tools!D26,"") ->  | IQ7: =IF(Tools!D27<>"",Tools!D27,"") ->  | IR7: =IF(Tools!D28<>"",Tools!D28,"") ->  | IS7: =IF(Tools!D29<>"",Tools!D29,"") ->  | IT7: =IF(Tools!D30<>"",Tools!D30,"") ->  | IU7: =IF(Tools!D31<>"",Tools!D31,"") ->  | IV7: =IF(Tools!D32<>"",Tools!D32,"") ->  | IW7: =IF(Tools!D33<>"",Tools!D33,"") ->  | IX7: =IF(Tools!D34<>"",Tools!D34,"") ->  | IY7: =IF(Tools!D35<>"",Tools!D35,"") ->  | IZ7: =IF(Tools!D36<>"",Tools!D36,"") ->  | JA7: =IF(Tools!D37<>"",Tools!D37,"") ->  | JB7: =IF(Tools!D38<>"",Tools!D38,"") ->  | JC7: =IF(Tools!D39<>"",Tools!D39,"") ->  | JD7: =IF(Tools!D40<>"",Tools!D40,"") ->  | JE7: =IF(Tools!D41<>"",Tools!D41,"") ->  | JF7: =IF(Tools!D42<>"",Tools!D42,"") ->  | JG7: =IF(Tools!D43<>"",Tools!D43,"") ->  | JH7: =IF(Tools!D44<>"",Tools!D44,"") ->  | JI7: =IF(Tools!D45<>"",Tools!D45,"") ->  | JJ7: =IF(Tools!D46<>"",Tools!D46,"") ->  | JK7: =IF(Tools!D47<>"",Tools!D47,"") ->  | JL7: =IF(Tools!D48<>"",Tools!D48,"") ->  | JM7: =IF(Tools!D49<>"",Tools!D49,"") ->  | JN7: =IF(Tools!D50<>"",Tools!D50,"") ->  | JO7: =IF(Tools!D51<>"",Tools!D51,"") ->  | JP7: =IF(Tools!D52<>"",Tools!D52,"") ->  | JQ7: =IF(Tools!D53<>"",Tools!D53,"") ->  | JR7: =IF(Tools!D54<>"",Tools!D54,"") ->  | JS7: =IF(Tools!D55<>"",Tools!D55,"") ->  | JT7: =IF(Tools!D56<>"",Tools!D56,"") ->  | JU7: =IF(Tools!D57<>"",Tools!D57,"") ->  | JW7: Drop List Start Date | KE7: =IF(HideValues!A83<>"",HideValues!A83,"") ->  | KF7: =IF(HideValues!B83<>"",HideValues!B83,"") ->  | KG7: =IF(HideValues!C83<>"",HideValues!C83,"") ->  | KH7: =IF(HideValues!D83<>"",HideValues!D83,"") ->  | KI7: =IF(HideValues!E83<>"",HideValues!E83,"") ->  | KJ7: =IF(HideValues!F83<>"",HideValues!F83,"") ->  | KK7: =IF(HideValues!G83<>"",HideValues!G83,"") ->  | KL7: =IF(HideValues!H83<>"",HideValues!H83,"") ->  | KM7: =IF(HideValues!I83<>"",HideValues!I83,"") ->  | KN7: =IF(HideValues!J83<>"",HideValues!J83,"") ->  | KP7: CF Gantt Engine 1 | KY7: CF Budget | LF7: CF Round F | LM7: CF Flags | LT7: CF Type | LW7: 1 | LX7: 1 | LY7: 1 | LZ7: CF Gantt Engine 6 | MM7: CF Gantt Engine 2 | MV7: CF Gantt Engine 3 | NE7: CF Gantt Engine 4 | NN7: CF Gantt Engine 5 | NW7: CF Start | OD7: CF Duration | OL7: CF Dur. Type | PE7: Target Cell Date Picker User Form | PP7: Start_Date | PW7: Filter | QA7: FALSE | QB7: FALSE | QC7: FALSE | QD7: FALSE | QE7: FALSE | QF7: FALSE | QG7: FALSE | QH7: FALSE | QI7: FALSE | QJ7: FALSE | QK7: FALSE | QL7: FALSE | QM7: FALSE | QN7: FALSE | QO7: FALSE | QP7: FALSE | QQ7: FALSE | QR7: FALSE | QS7: FALSE | RH7: Task Trans. | RL7: Tache | RM7: Sous-tache | RN7: Jalon
Y8: ¶¶¶ Please Hide these rows. Do not delete. ¶¶¶ | AI8: Week-End Flag | AJ8: =IF(Work_D_Only_Bool,NETWORKDAYS.INTL(AJ9,AJ9,WE_Days,Tools!$B$10:$B$55),1) -> 1 | AK8: =IF(Work_D_Only_Bool,NETWORKDAYS.INTL(AK9,AK9,WE_Days,Tools!$B$10:$B$55),1) -> 1 | AL8: =IF(Work_D_Only_Bool,NETWORKDAYS.INTL(AL9,AL9,WE_Days,Tools!$B$10:$B$55),1) -> 1 | AM8: =IF(Work_D_Only_Bool,NETWORKDAYS.INTL(AM9,AM9,WE_Days,Tools!$B$10:$B$55),1) -> 1 | AN8: =IF(Work_D_Only_Bool,NETWORKDAYS.INTL(AN9,AN9,WE_Days,Tools!$B$10:$B$55),1) -> 1 | AO8: =IF(Work_D_Only_Bool,NETWORKDAYS.INTL(AO9,AO9,WE_Days,Tools!$B$10:$B$55),1) -> 1 | AP8: =IF(Work_D_Only_Bool,NETWORKDAYS.INTL(AP9,AP9,WE_Days,Tools!$B$10:$B$55),1) -> 1 | AQ8: =IF(Work_D_Only_Bool,NETWORKDAYS.INTL(AQ9,AQ9,WE_Days,Tools!$B$10:$B$55),1) -> 1 | AR8: =IF(Work_D_Only_Bool,NETWORKDAYS.INTL(AR9,AR9,WE_Days,Tools!$B$10:$B$55),1) -> 1 | AS8: =IF(Work_D_Only_Bool,NETWORKDAYS.INTL(AS9,AS9,WE_Days,Tools!$B$10:$B$55),1) -> 1 | AT8: =IF(Work_D_Only_Bool,NETWORKDAYS.INTL(AT9,AT9,WE_Days,Tools!$B$10:$B$55),1) -> 1 | AU8: =IF(Work_D_Only_Bool,NETWORKDAYS.INTL(AU9,AU9,WE_Days,Tools!$B$10:$B$55),1) -> 1 | AV8: =IF(Work_D_Only_Bool,NETWORKDAYS.INTL(AV9,AV9,WE_Days,Tools!$B$10:$B$55),1) -> 1 | AW8: =IF(Work_D_Only_Bool,NETWORKDAYS.INTL(AW9,AW9,WE_Days,Tools!$B$10:$B$55),1) -> 1 | AX8: =IF(Work_D_Only_Bool,NETWORKDAYS.INTL(AX9,AX9,WE_Days,Tools!$B$10:$B$55),1) -> 1 | AY8: =IF(Work_D_Only_Bool,NETWORKDAYS.INTL(AY9,AY9,WE_Days,Tools!$B$10:$B$55),1) -> 1 | AZ8: =IF(Work_D_Only_Bool,NETWORKDAYS.INTL(AZ9,AZ9,WE_Days,Tools!$B$10:$B$55),1) -> 1 | BA8: =IF(Work_D_Only_Bool,NETWORKDAYS.INTL(BA9,BA9,WE_Days,Tools!$B$10:$B$55),1) -> 1 | BB8: =IF(Work_D_Only_Bool,NETWORKDAYS.INTL(BB9,BB9,WE_Days,Tools!$B$10:$B$55),1) -> 1 | BC8: =IF(Work_D_Only_Bool,NETWORKDAYS.INTL(BC9,BC9,WE_Days,Tools!$B$10:$B$55),1) -> 1 | BD8: =IF(Work_D_Only_Bool,NETWORKDAYS.INTL(BD9,BD9,WE_Days,Tools!$B$10:$B$55),1) -> 1 | BE8: =IF(Work_D_Only_Bool,NETWORKDAYS.INTL(BE9,BE9,WE_Days,Tools!$B$10:$B$55),1) -> 1 | BF8: =IF(Work_D_Only_Bool,NETWORKDAYS.INTL(BF9,BF9,WE_Days,Tools!$B$10:$B$55),1) -> 1 | BG8: =IF(Work_D_Only_Bool,NETWORKDAYS.INTL(BG9,BG9,WE_Days,Tools!$B$10:$B$55),1) -> 1 | BH8: =IF(Work_D_Only_Bool,NETWORKDAYS.INTL(BH9,BH9,WE_Days,Tools!$B$10:$B$55),1) -> 1 | BI8: =IF(Work_D_Only_Bool,NETWORKDAYS.INTL(BI9,BI9,WE_Days,Tools!$B$10:$B$55),1) -> 1 | BJ8: =IF(Work_D_Only_Bool,NETWORKDAYS.INTL(BJ9,BJ9,WE_Days,Tools!$B$10:$B$55),1) -> 1 | BK8: =IF(Work_D_Only_Bool,NETWORKDAYS.INTL(BK9,BK9,WE_Days,Tools!$B$10:$B$55),1) -> 1 | BL8: =IF(Work_D_Only_Bool,NETWORKDAYS.INTL(BL9,BL9,WE_Days,Tools!$B$10:$B$55),1) -> 1 | BM8: =IF(Work_D_Only_Bool,NETWORKDAYS.INTL(BM9,BM9,WE_Days,Tools!$B$10:$B$55),1) -> 1 | BN8: =IF(Work_D_Only_Bool,NETWORKDAYS.INTL(BN9,BN9,WE_Days,Tools!$B$10:$B$55),1) -> 1 | BO8: =IF(Work_D_Only_Bool,NETWORKDAYS.INTL(BO9,BO9,WE_Days,Tools!$B$10:$B$55),1) -> 1 | BP8: =IF(Work_D_Only_Bool,NETWORKDAYS.INTL(BP9,BP9,WE_Days,Tools!$B$10:$B$55),1) -> 1 | BQ8: =IF(Work_D_Only_Bool,NETWORKDAYS.INTL(BQ9,BQ9,WE_Days,Tools!$B$10:$B$55),1) -> 1 | BR8: =IF(Work_D_Only_Bool,NETWORKDAYS.INTL(BR9,BR9,WE_Days,Tools!$B$10:$B$55),1) -> 1 | BS8: =IF(Work_D_Only_Bool,NETWORKDAYS.INTL(BS9,BS9,WE_Days,Tools!$B$10:$B$55),1) -> 1 | BT8: =IF(Work_D_Only_Bool,NETWORKDAYS.INTL(BT9,BT9,WE_Days,Tools!$B$10:$B$55),1) -> 1 | BU8: =IF(Work_D_Only_Bool,NETWORKDAYS.INTL(BU9,BU9,WE_Days,Tools!$B$10:$B$55),1) -> 1 | BV8: =IF(Work_D_Only_Bool,NETWORKDAYS.INTL(BV9,BV9,WE_Days,Tools!$B$10:$B$55),1) -> 1 | BW8: =IF(Work_D_Only_Bool,NETWORKDAYS.INTL(BW9,BW9,WE_Days,Tools!$B$10:$B$55),1) -> 1 | BX8: =IF(Work_D_Only_Bool,NETWORKDAYS.INTL(BX9,BX9,WE_Days,Tools!$B$10:$B$55),1) -> 1 | BY8: =IF(Work_D_Only_Bool,NETWORKDAYS.INTL(BY9,BY9,WE_Days,Tools!$B$10:$B$55),1) -> 1 | BZ8: =IF(Work_D_Only_Bool,NETWORKDAYS.INTL(BZ9,BZ9,WE_Days,Tools!$B$10:$B$55),1) -> 1 | CA8: =IF(Work_D_Only_Bool,NETWORKDAYS.INTL(CA9,CA9,WE_Days,Tools!$B$10:$B$55),1) -> 1 | CB8: =IF(Work_D_Only_Bool,NETWORKDAYS.INTL(CB9,CB9,WE_Days,Tools!$B$10:$B$55),1) -> 1 | CC8: =IF(Work_D_Only_Bool,NETWORKDAYS.INTL(CC9,CC9,WE_Days,Tools!$B$10:$B$55),1) -> 1 | CD8: =IF(Work_D_Only_Bool,NETWORKDAYS.INTL(CD9,CD9,WE_Days,Tools!$B$10:$B$55),1) -> 1 | CE8: =IF(Work_D_Only_Bool,NETWORKDAYS.INTL(CE9,CE9,WE_Days,Tools!$B$10:$B$55),1) -> 1 | CF8: =IF(Work_D_Only_Bool,NETWORKDAYS.INTL(CF9,CF9,WE_Days,Tools!$B$10:$B$55),1) -> 1 | CG8: =IF(Work_D_Only_Bool,NETWORKDAYS.INTL(CG9,CG9,WE_Days,Tools!$B$10:$B$55),1) -> 1 | CH8: =IF(Work_D_Only_Bool,NETWORKDAYS.INTL(CH9,CH9,WE_Days,Tools!$B$10:$B$55),1) -> 1 | CI8: =IF(Work_D_Only_Bool,NETWORKDAYS.INTL(CI9,CI9,WE_Days,Tools!$B$10:$B$55),1) -> 1 | CJ8: =IF(Work_D_Only_Bool,NETWORKDAYS.INTL(CJ9,CJ9,WE_Days,Tools!$B$10:$B$55),1) -> 1 | CK8: =IF(Work_D_Only_Bool,NETWORKDAYS.INTL(CK9,CK9,WE_Days,Tools!$B$10:$B$55),1) -> 1 | CL8: =IF(Work_D_Only_Bool,NETWORKDAYS.INTL(CL9,CL9,WE_Days,Tools!$B$10:$B$55),1) -> 1 | CM8: =IF(Work_D_Only_Bool,NETWORKDAYS.INTL(CM9,CM9,WE_Days,Tools!$B$10:$B$55),1) -> 1 | CN8: =IF(Work_D_Only_Bool,NETWORKDAYS.INTL(CN9,CN9,WE_Days,Tools!$B$10:$B$55),1) -> 1 | CO8: =IF(Work_D_Only_Bool,NETWORKDAYS.INTL(CO9,CO9,WE_Days,Tools!$B$10:$B$55),1) -> 1 | CP8: =IF(Work_D_Only_Bool,NETWORKDAYS.INTL(CP9,CP9,WE_Days,Tools!$B$10:$B$55),1) -> 1 | CQ8: =IF(Work_D_Only_Bool,NETWORKDAYS.INTL(CQ9,CQ9,WE_Days,Tools!$B$10:$B$55),1) -> 1 | CR8: =IF(Work_D_Only_Bool,NETWORKDAYS.INTL(CR9,CR9,WE_Days,Tools!$B$10:$B$55),1) -> 1 | CS8: =IF(Work_D_Only_Bool,NETWORKDAYS.INTL(CS9,CS9,WE_Days,Tools!$B$10:$B$55),1) -> 1 | CT8: =IF(Work_D_Only_Bool,NETWORKDAYS.INTL(CT9,CT9,WE_Days,Tools!$B$10:$B$55),1) -> 1 | CU8: =IF(Work_D_Only_Bool,NETWORKDAYS.INTL(CU9,CU9,WE_Days,Tools!$B$10:$B$55),1) -> 1 | CV8: =IF(Work_D_Only_Bool,NETWORKDAYS.INTL(CV9,CV9,WE_Days,Tools!$B$10:$B$55),1) -> 1 | CW8: =IF(Work_D_Only_Bool,NETWORKDAYS.INTL(CW9,CW9,WE_Days,Tools!$B$10:$B$55),1) -> 1 | CX8: =IF(Work_D_Only_Bool,NETWORKDAYS.INTL(CX9,CX9,WE_Days,Tools!$B$10:$B$55),1) -> 1 | CY8: =IF(Work_D_Only_Bool,NETWORKDAYS.INTL(CY9,CY9,WE_Days,Tools!$B$10:$B$55),1) -> 1 | CZ8: =IF(Work_D_Only_Bool,NETWORKDAYS.INTL(CZ9,CZ9,WE_Days,Tools!$B$10:$B$55),1) -> 1 | DA8: =IF(Work_D_Only_Bool,NETWORKDAYS.INTL(DA9,DA9,WE_Days,Tools!$B$10:$B$55),1) -> 1 | DB8: =IF(Work_D_Only_Bool,NETWORKDAYS.INTL(DB9,DB9,WE_Days,Tools!$B$10:$B$55),1) -> 1 | DC8: =IF(Work_D_Only_Bool,NETWORKDAYS.INTL(DC9,DC9,WE_Days,Tools!$B$10:$B$55),1) -> 1 | DD8: =IF(Work_D_Only_Bool,NETWORKDAYS.INTL(DD9,DD9,WE_Days,Tools!$B$10:$B$55),1) -> 1 | DE8: =IF(Work_D_Only_Bool,NETWORKDAYS.INTL(DE9,DE9,WE_Days,Tools!$B$10:$B$55),1) -> 1 | DF8: =IF(Work_D_Only_Bool,NETWORKDAYS.INTL(DF9,DF9,WE_Days,Tools!$B$10:$B$55),1) -> 1 | DG8: =IF(Work_D_Only_Bool,NETWORKDAYS.INTL(DG9,DG9,WE_Days,Tools!$B$10:$B$55),1) -> 1 | DH8: =IF(Work_D_Only_Bool,NETWORKDAYS.INTL(DH9,DH9,WE_Days,Tools!$B$10:$B$55),1) -> 1 | DI8: =IF(Work_D_Only_Bool,NETWORKDAYS.INTL(DI9,DI9,WE_Days,Tools!$B$10:$B$55),1) -> 1 | DJ8: =IF(Work_D_Only_Bool,NETWORKDAYS.INTL(DJ9,DJ9,WE_Days,Tools!$B$10:$B$55),1) -> 1 | DK8: =IF(Work_D_Only_Bool,NETWORKDAYS.INTL(DK9,DK9,WE_Days,Tools!$B$10:$B$55),1) -> 1 | DL8: =IF(Work_D_Only_Bool,NETWORKDAYS.INTL(DL9,DL9,WE_Days,Tools!$B$10:$B$55),1) -> 1 | DM8: =IF(Work_D_Only_Bool,NETWORKDAYS.INTL(DM9,DM9,WE_Days,Tools!$B$10:$B$55),1) -> 1 | DN8: =IF(Work_D_Only_Bool,NETWORKDAYS.INTL(DN9,DN9,WE_Days,Tools!$B$10:$B$55),1) -> 1 | DO8: =IF(Work_D_Only_Bool,NETWORKDAYS.INTL(DO9,DO9,WE_Days,Tools!$B$10:$B$55),1) -> 1 | DP8: =IF(Work_D_Only_Bool,NETWORKDAYS.INTL(DP9,DP9,WE_Days,Tools!$B$10:$B$55),1) -> 1 | DQ8: =IF(Work_D_Only_Bool,NETWORKDAYS.INTL(DQ9,DQ9,WE_Days,Tools!$B$10:$B$55),1) -> 1 | DR8: =IF(Work_D_Only_Bool,NETWORKDAYS.INTL(DR9,DR9,WE_Days,Tools!$B$10:$B$55),1) -> 1 | DS8: =IF(Work_D_Only_Bool,NETWORKDAYS.INTL(DS9,DS9,WE_Days,Tools!$B$10:$B$55),1) -> 1 | DT8: =IF(Work_D_Only_Bool,NETWORKDAYS.INTL(DT9,DT9,WE_Days,Tools!$B$10:$B$55),1) -> 1 | DU8: =IF(Work_D_Only_Bool,NETWORKDAYS.INTL(DU9,DU9,WE_Days,Tools!$B$10:$B$55),1) -> 1 | DV8: =IF(Work_D_Only_Bool,NETWORKDAYS.INTL(DV9,DV9,WE_Days,Tools!$B$10:$B$55),1) -> 1 | DW8: =IF(Work_D_Only_Bool,NETWORKDAYS.INTL(DW9,DW9,WE_Days,Tools!$B$10:$B$55),1) -> 1 | DX8: =IF(Work_D_Only_Bool,NETWORKDAYS.INTL(DX9,DX9,WE_Days,Tools!$B$10:$B$55),1) -> 1 | DY8: =IF(Work_D_Only_Bool,NETWORKDAYS.INTL(DY9,DY9,WE_Days,Tools!$B$10:$B$55),1) -> 1 | DZ8: =IF(Work_D_Only_Bool,NETWORKDAYS.INTL(DZ9,DZ9,WE_Days,Tools!$B$10:$B$55),1) -> 1 | EA8: =IF(Work_D_Only_Bool,NETWORKDAYS.INTL(EA9,EA9,WE_Days,Tools!$B$10:$B$55),1) -> 1 | EB8: =IF(Work_D_Only_Bool,NETWORKDAYS.INTL(EB9,EB9,WE_Days,Tools!$B$10:$B$55),1) -> 1 | EC8: =IF(Work_D_Only_Bool,NETWORKDAYS.INTL(EC9,EC9,WE_Days,Tools!$B$10:$B$55),1) -> 1 | ED8: =IF(Work_D_Only_Bool,NETWORKDAYS.INTL(ED9,ED9,WE_Days,Tools!$B$10:$B$55),1) -> 1 | EE8: =IF(Work_D_Only_Bool,NETWORKDAYS.INTL(EE9,EE9,WE_Days,Tools!$B$10:$B$55),1) -> 1 | EF8: =IF(Work_D_Only_Bool,NETWORKDAYS.INTL(EF9,EF9,WE_Days,Tools!$B$10:$B$55),1) -> 1 | EG8: =IF(Work_D_Only_Bool,NETWORKDAYS.INTL(EG9,EG9,WE_Days,Tools!$B$10:$B$55),1) -> 1 | EH8: =IF(Work_D_Only_Bool,NETWORKDAYS.INTL(EH9,EH9,WE_Days,Tools!$B$10:$B$55),1) -> 1 | EI8: =IF(Work_D_Only_Bool,NETWORKDAYS.INTL(EI9,EI9,WE_Days,Tools!$B$10:$B$55),1) -> 1 | EJ8: =IF(Work_D_Only_Bool,NETWORKDAYS.INTL(EJ9,EJ9,WE_Days,Tools!$B$10:$B$55),1) -> 1 | EK8: =IF(Work_D_Only_Bool,NETWORKDAYS.INTL(EK9,EK9,WE_Days,Tools!$B$10:$B$55),1) -> 1 | EL8: =IF(Work_D_Only_Bool,NETWORKDAYS.INTL(EL9,EL9,WE_Days,Tools!$B$10:$B$55),1) -> 1 | EM8: =IF(Work_D_Only_Bool,NETWORKDAYS.INTL(EM9,EM9,WE_Days,Tools!$B$10:$B$55),1) -> 1 | EN8: =IF(Work_D_Only_Bool,NETWORKDAYS.INTL(EN9,EN9,WE_Days,Tools!$B$10:$B$55),1) -> 1 | EO8: =IF(Work_D_Only_Bool,NETWORKDAYS.INTL(EO9,EO9,WE_Days,Tools!$B$10:$B$55),1) -> 1 | EP8: =IF(Work_D_Only_Bool,NETWORKDAYS.INTL(EP9,EP9,WE_Days,Tools!$B$10:$B$55),1) -> 1 | EQ8: =IF(Work_D_Only_Bool,NETWORKDAYS.INTL(EQ9,EQ9,WE_Days,Tools!$B$10:$B$55),1) -> 1 | ER8: =IF(Work_D_Only_Bool,NETWORKDAYS.INTL(ER9,ER9,WE_Days,Tools!$B$10:$B$55),1) -> 1 | ES8: =IF(Work_D_Only_Bool,NETWORKDAYS.INTL(ES9,ES9,WE_Days,Tools!$B$10:$B$55),1) -> 1 | ET8: =IF(Work_D_Only_Bool,NETWORKDAYS.INTL(ET9,ET9,WE_Days,Tools!$B$10:$B$55),1) -> 1 | EU8: =IF(Work_D_Only_Bool,NETWORKDAYS.INTL(EU9,EU9,WE_Days,Tools!$B$10:$B$55),1) -> 1 | EV8: =IF(Work_D_Only_Bool,NETWORKDAYS.INTL(EV9,EV9,WE_Days,Tools!$B$10:$B$55),1) -> 1 | EW8: =IF(Work_D_Only_Bool,NETWORKDAYS.INTL(EW9,EW9,WE_Days,Tools!$B$10:$B$55),1) -> 1 | EX8: =IF(Work_D_Only_Bool,NETWORKDAYS.INTL(EX9,EX9,WE_Days,Tools!$B$10:$B$55),1) -> 1 | EY8: =IF(Work_D_Only_Bool,NETWORKDAYS.INTL(EY9,EY9,WE_Days,Tools!$B$10:$B$55),1) -> 1 | EZ8: =IF(Work_D_Only_Bool,NETWORKDAYS.INTL(EZ9,EZ9,WE_Days,Tools!$B$10:$B$55),1) -> 1 | FA8: =IF(Work_D_Only_Bool,NETWORKDAYS.INTL(FA9,FA9,WE_Days,Tools!$B$10:$B$55),1) -> 1 | FB8: =IF(Work_D_Only_Bool,NETWORKDAYS.INTL(FB9,FB9,WE_Days,Tools!$B$10:$B$55),1) -> 1 | FC8: =IF(Work_D_Only_Bool,NETWORKDAYS.INTL(FC9,FC9,WE_Days,Tools!$B$10:$B$55),1) -> 1 | FD8: =IF(Work_D_Only_Bool,NETWORKDAYS.INTL(FD9,FD9,WE_Days,Tools!$B$10:$B$55),1) -> 1 | FE8: =IF(Work_D_Only_Bool,NETWORKDAYS.INTL(FE9,FE9,WE_Days,Tools!$B$10:$B$55),1) -> 1 | FF8: =IF(Work_D_Only_Bool,NETWORKDAYS.INTL(FF9,FF9,WE_Days,Tools!$B$10:$B$55),1) -> 1 | FG8: =IF(Work_D_Only_Bool,NETWORKDAYS.INTL(FG9,FG9,WE_Days,Tools!$B$10:$B$55),1) -> 1 | FH8: =IF(Work_D_Only_Bool,NETWORKDAYS.INTL(FH9,FH9,WE_Days,Tools!$B$10:$B$55),1) -> 1 | FI8: =IF(Work_D_Only_Bool,NETWORKDAYS.INTL(FI9,FI9,WE_Days,Tools!$B$10:$B$55),1) -> 1 | FJ8: =IF(Work_D_Only_Bool,NETWORKDAYS.INTL(FJ9,FJ9,WE_Days,Tools!$B$10:$B$55),1) -> 1 | FK8: =IF(Work_D_Only_Bool,NETWORKDAYS.INTL(FK9,FK9,WE_Days,Tools!$B$10:$B$55),1) -> 1 | FL8: =IF(Work_D_Only_Bool,NETWORKDAYS.INTL(FL9,FL9,WE_Days,Tools!$B$10:$B$55),1) -> 1 | FM8: =IF(Work_D_Only_Bool,NETWORKDAYS.INTL(FM9,FM9,WE_Days,Tools!$B$10:$B$55),1) -> 1 | FN8: =IF(Work_D_Only_Bool,NETWORKDAYS.INTL(FN9,FN9,WE_Days,Tools!$B$10:$B$55),1) -> 1 | FO8: =IF(Work_D_Only_Bool,NETWORKDAYS.INTL(FO9,FO9,WE_Days,Tools!$B$10:$B$55),1) -> 1 | FP8: =IF(Work_D_Only_Bool,NETWORKDAYS.INTL(FP9,FP9,WE_Days,Tools!$B$10:$B$55),1) -> 1 | FQ8: =IF(Work_D_Only_Bool,NETWORKDAYS.INTL(FQ9,FQ9,WE_Days,Tools!$B$10:$B$55),1) -> 1 | FR8: =IF(Work_D_Only_Bool,NETWORKDAYS.INTL(FR9,FR9,WE_Days,Tools!$B$10:$B$55),1) -> 1 | FS8: =IF(Work_D_Only_Bool,NETWORKDAYS.INTL(FS9,FS9,WE_Days,Tools!$B$10:$B$55),1) -> 1 | FT8: =IF(Work_D_Only_Bool,NETWORKDAYS.INTL(FT9,FT9,WE_Days,Tools!$B$10:$B$55),1) -> 1 | FU8: =IF(Work_D_Only_Bool,NETWORKDAYS.INTL(FU9,FU9,WE_Days,Tools!$B$10:$B$55),1) -> 1 | FV8: =IF(Work_D_Only_Bool,NETWORKDAYS.INTL(FV9,FV9,WE_Days,Tools!$B$10:$B$55),1) -> 1 | FW8: =IF(Work_D_Only_Bool,NETWORKDAYS.INTL(FW9,FW9,WE_Days,Tools!$B$10:$B$55),1) -> 1 | FX8: =IF(Work_D_Only_Bool,NETWORKDAYS.INTL(FX9,FX9,WE_Days,Tools!$B$10:$B$55),1) -> 1 | FY8: =IF(Work_D_Only_Bool,NETWORKDAYS.INTL(FY9,FY9,WE_Days,Tools!$B$10:$B$55),1) -> 1 | FZ8: =IF(Work_D_Only_Bool,NETWORKDAYS.INTL(FZ9,FZ9,WE_Days,Tools!$B$10:$B$55),1) -> 1 | GA8: =IF(Work_D_Only_Bool,NETWORKDAYS.INTL(GA9,GA9,WE_Days,Tools!$B$10:$B$55),1) -> 1 | GB8: =IF(Work_D_Only_Bool,NETWORKDAYS.INTL(GB9,GB9,WE_Days,Tools!$B$10:$B$55),1) -> 1 | GC8: =IF(Work_D_Only_Bool,NETWORKDAYS.INTL(GC9,GC9,WE_Days,Tools!$B$10:$B$55),1) -> 1 | GD8: =IF(Work_D_Only_Bool,NETWORKDAYS.INTL(GD9,GD9,WE_Days,Tools!$B$10:$B$55),1) -> 1 | GE8: =IF(Work_D_Only_Bool,NETWORKDAYS.INTL(GE9,GE9,WE_Days,Tools!$B$10:$B$55),1) -> 1 | GF8: =IF(Work_D_Only_Bool,NETWORKDAYS.INTL(GF9,GF9,WE_Days,Tools!$B$10:$B$55),1) -> 1 | GG8: =IF(Work_D_Only_Bool,NETWORKDAYS.INTL(GG9,GG9,WE_Days,Tools!$B$10:$B$55),1) -> 1 | GH8: =IF(Work_D_Only_Bool,NETWORKDAYS.INTL(GH9,GH9,WE_Days,Tools!$B$10:$B$55),1) -> 1 | GI8: =IF(Work_D_Only_Bool,NETWORKDAYS.INTL(GI9,GI9,WE_Days,Tools!$B$10:$B$55),1) -> 1 | GJ8: =IF(Work_D_Only_Bool,NETWORKDAYS.INTL(GJ9,GJ9,WE_Days,Tools!$B$10:$B$55),1) -> 1 | GK8: =IF(Work_D_Only_Bool,NETWORKDAYS.INTL(GK9,GK9,WE_Days,Tools!$B$10:$B$55),1) -> 1 | GL8: =IF(Work_D_Only_Bool,NETWORKDAYS.INTL(GL9,GL9,WE_Days,Tools!$B$10:$B$55),1) -> 1 | GM8: =IF(Work_D_Only_Bool,NETWORKDAYS.INTL(GM9,GM9,WE_Days,Tools!$B$10:$B$55),1) -> 1 | GN8: =IF(Work_D_Only_Bool,NETWORKDAYS.INTL(GN9,GN9,WE_Days,Tools!$B$10:$B$55),1) -> 1 | GO8: =IF(Work_D_Only_Bool,NETWORKDAYS.INTL(GO9,GO9,WE_Days,Tools!$B$10:$B$55),1) -> 1 | GP8: =IF(Work_D_Only_Bool,NETWORKDAYS.INTL(GP9,GP9,WE_Days,Tools!$B$10:$B$55),1) -> 1 | GQ8: =IF(Work_D_Only_Bool,NETWORKDAYS.INTL(GQ9,GQ9,WE_Days,Tools!$B$10:$B$55),1) -> 1 | GR8: =IF(Work_D_Only_Bool,NETWORKDAYS.INTL(GR9,GR9,WE_Days,Tools!$B$10:$B$55),1) -> 1 | GS8: =IF(Work_D_Only_Bool,NETWORKDAYS.INTL(GS9,GS9,WE_Days,Tools!$B$10:$B$55),1) -> 1 | GT8: =IF(Work_D_Only_Bool,NETWORKDAYS.INTL(GT9,GT9,WE_Days,Tools!$B$10:$B$55),1) -> 1 | GU8: =IF(Work_D_Only_Bool,NETWORKDAYS.INTL(GU9,GU9,WE_Days,Tools!$B$10:$B$55),1) -> 1 | GV8: =IF(Work_D_Only_Bool,NETWORKDAYS.INTL(GV9,GV9,WE_Days,Tools!$B$10:$B$55),1) -> 1 | GW8: =IF(Work_D_Only_Bool,NETWORKDAYS.INTL(GW9,GW9,WE_Days,Tools!$B$10:$B$55),1) -> 1 | GX8: =IF(Work_D_Only_Bool,NETWORKDAYS.INTL(GX9,GX9,WE_Days,Tools!$B$10:$B$55),1) -> 1 | GY8: =IF(Work_D_Only_Bool,NETWORKDAYS.INTL(GY9,GY9,WE_Days,Tools!$B$10:$B$55),1) -> 1 | GZ8: =IF(Work_D_Only_Bool,NETWORKDAYS.INTL(GZ9,GZ9,WE_Days,Tools!$B$10:$B$55),1) -> 1 | HA8: =IF(Work_D_Only_Bool,NETWORKDAYS.INTL(HA9,HA9,WE_Days,Tools!$B$10:$B$55),1) -> 1 | HB8: =IF(Work_D_Only_Bool,NETWORKDAYS.INTL(HB9,HB9,WE_Days,Tools!$B$10:$B$55),1) -> 1 | HC8: =IF(Work_D_Only_Bool,NETWORKDAYS.INTL(HC9,HC9,WE_Days,Tools!$B$10:$B$55),1) -> 1 | HD8: =IF(Work_D_Only_Bool,NETWORKDAYS.INTL(HD9,HD9,WE_Days,Tools!$B$10:$B$55),1) -> 1 | HE8: =IF(Work_D_Only_Bool,NETWORKDAYS.INTL(HE9,HE9,WE_Days,Tools!$B$10:$B$55),1) -> 1 | HF8: =IF(Work_D_Only_Bool,NETWORKDAYS.INTL(HF9,HF9,WE_Days,Tools!$B$10:$B$55),1) -> 1 | HG8: =IF(Work_D_Only_Bool,NETWORKDAYS.INTL(HG9,HG9,WE_Days,Tools!$B$10:$B$55),1) -> 1 | HH8: =IF(Work_D_Only_Bool,NETWORKDAYS.INTL(HH9,HH9,WE_Days,Tools!$B$10:$B$55),1) -> 1 | HI8: =IF(Work_D_Only_Bool,NETWORKDAYS.INTL(HI9,HI9,WE_Days,Tools!$B$10:$B$55),1) -> 1 | HJ8: =IF(Work_D_Only_Bool,NETWORKDAYS.INTL(HJ9,HJ9,WE_Days,Tools!$B$10:$B$55),1) -> 1 | HK8: =IF(Work_D_Only_Bool,NETWORKDAYS.INTL(HK9,HK9,WE_Days,Tools!$B$10:$B$55),1) -> 1 | HL8: =IF(Work_D_Only_Bool,NETWORKDAYS.INTL(HL9,HL9,WE_Days,Tools!$B$10:$B$55),1) -> 1 | HM8: =IF(Work_D_Only_Bool,NETWORKDAYS.INTL(HM9,HM9,WE_Days,Tools!$B$10:$B$55),1) -> 1 | HN8: =IF(Work_D_Only_Bool,NETWORKDAYS.INTL(HN9,HN9,WE_Days,Tools!$B$10:$B$55),1) -> 1 | HO8: =IF(Work_D_Only_Bool,NETWORKDAYS.INTL(HO9,HO9,WE_Days,Tools!$B$10:$B$55),1) -> 1 | HP8: =IF(Work_D_Only_Bool,NETWORKDAYS.INTL(HP9,HP9,WE_Days,Tools!$B$10:$B$55),1) -> 1 | HQ8: =IF(Work_D_Only_Bool,NETWORKDAYS.INTL(HQ9,HQ9,WE_Days,Tools!$B$10:$B$55),1) -> 1 | HR8: =IF(Work_D_Only_Bool,NETWORKDAYS.INTL(HR9,HR9,WE_Days,Tools!$B$10:$B$55),1) -> 1 | HS8: =IF(Work_D_Only_Bool,NETWORKDAYS.INTL(HS9,HS9,WE_Days,Tools!$B$10:$B$55),1) -> 1 | HT8: =IF(Work_D_Only_Bool,NETWORKDAYS.INTL(HT9,HT9,WE_Days,Tools!$B$10:$B$55),1) -> 1 | HU8: =IF(Work_D_Only_Bool,NETWORKDAYS.INTL(HU9,HU9,WE_Days,Tools!$B$10:$B$55),1) -> 1 | HV8: =IF(Work_D_Only_Bool,NETWORKDAYS.INTL(HV9,HV9,WE_Days,Tools!$B$10:$B$55),1) -> 1 | HW8: =IF(Work_D_Only_Bool,NETWORKDAYS.INTL(HW9,HW9,WE_Days,Tools!$B$10:$B$55),1) -> 1 | HX8: =IF(Work_D_Only_Bool,NETWORKDAYS.INTL(HX9,HX9,WE_Days,Tools!$B$10:$B$55),1) -> 1 | HY8: =IF(Work_D_Only_Bool,NETWORKDAYS.INTL(HY9,HY9,WE_Days,Tools!$B$10:$B$55),1) -> 1 | HZ8: =IF(Work_D_Only_Bool,NETWORKDAYS.INTL(HZ9,HZ9,WE_Days,Tools!$B$10:$B$55),1) -> 1 | IA8: =IF(Work_D_Only_Bool,NETWORKDAYS.INTL(IA9,IA9,WE_Days,Tools!$B$10:$B$55),1) -> 1 | IB8: =IF(Work_D_Only_Bool,NETWORKDAYS.INTL(IB9,IB9,WE_Days,Tools!$B$10:$B$55),1) -> 1 | IC8: =IF(Work_D_Only_Bool,NETWORKDAYS.INTL(IC9,IC9,WE_Days,Tools!$B$10:$B$55),1) -> 1 | ID8: =IF(Work_D_Only_Bool,NETWORKDAYS.INTL(ID9,ID9,WE_Days,Tools!$B$10:$B$55),1) -> 1 | IE8: =IF(Work_D_Only_Bool,NETWORKDAYS.INTL(IE9,IE9,WE_Days,Tools!$B$10:$B$55),1) -> 1 | IF8: =IF(Work_D_Only_Bool,NETWORKDAYS.INTL(IF9,IF9,WE_Days,Tools!$B$10:$B$55),1) -> 1 | IG8: =IF(Work_D_Only_Bool,NETWORKDAYS.INTL(IG9,IG9,WE_Days,Tools!$B$10:$B$55),1) -> 1 | IH8: =IF(Work_D_Only_Bool,NETWORKDAYS.INTL(IH9,IH9,WE_Days,Tools!$B$10:$B$55),1) -> 1 | II8: =IF(Work_D_Only_Bool,NETWORKDAYS.INTL(II9,II9,WE_Days,Tools!$B$10:$B$55),1) -> 1 | IJ8: =IF(Work_D_Only_Bool,NETWORKDAYS.INTL(IJ9,IJ9,WE_Days,Tools!$B$10:$B$55),1) -> 1 | IK8: =IF(Work_D_Only_Bool,NETWORKDAYS.INTL(IK9,IK9,WE_Days,Tools!$B$10:$B$55),1) -> 1 | IL8: =IF(Work_D_Only_Bool,NETWORKDAYS.INTL(IL9,IL9,WE_Days,Tools!$B$10:$B$55),1) -> 1 | IM8: =IF(Work_D_Only_Bool,NETWORKDAYS.INTL(IM9,IM9,WE_Days,Tools!$B$10:$B$55),1) -> 1 | IN8: =IF(Work_D_Only_Bool,NETWORKDAYS.INTL(IN9,IN9,WE_Days,Tools!$B$10:$B$55),1) -> 1 | IO8: =IF(Work_D_Only_Bool,NETWORKDAYS.INTL(IO9,IO9,WE_Days,Tools!$B$10:$B$55),1) -> 1 | IP8: =IF(Work_D_Only_Bool,NETWORKDAYS.INTL(IP9,IP9,WE_Days,Tools!$B$10:$B$55),1) -> 1 | IQ8: =IF(Work_D_Only_Bool,NETWORKDAYS.INTL(IQ9,IQ9,WE_Days,Tools!$B$10:$B$55),1) -> 1 | IR8: =IF(Work_D_Only_Bool,NETWORKDAYS.INTL(IR9,IR9,WE_Days,Tools!$B$10:$B$55),1) -> 1 | IS8: =IF(Work_D_Only_Bool,NETWORKDAYS.INTL(IS9,IS9,WE_Days,Tools!$B$10:$B$55),1) -> 1 | IT8: =IF(Work_D_Only_Bool,NETWORKDAYS.INTL(IT9,IT9,WE_Days,Tools!$B$10:$B$55),1) -> 1 | IU8: =IF(Work_D_Only_Bool,NETWORKDAYS.INTL(IU9,IU9,WE_Days,Tools!$B$10:$B$55),1) -> 1 | IV8: =IF(Work_D_Only_Bool,NETWORKDAYS.INTL(IV9,IV9,WE_Days,Tools!$B$10:$B$55),1) -> 1 | IW8: =IF(Work_D_Only_Bool,NETWORKDAYS.INTL(IW9,IW9,WE_Days,Tools!$B$10:$B$55),1) -> 1 | IX8: =IF(Work_D_Only_Bool,NETWORKDAYS.INTL(IX9,IX9,WE_Days,Tools!$B$10:$B$55),1) -> 1 | IY8: =IF(Work_D_Only_Bool,NETWORKDAYS.INTL(IY9,IY9,WE_Days,Tools!$B$10:$B$55),1) -> 1 | IZ8: =IF(Work_D_Only_Bool,NETWORKDAYS.INTL(IZ9,IZ9,WE_Days,Tools!$B$10:$B$55),1) -> 1 | JA8: =IF(Work_D_Only_Bool,NETWORKDAYS.INTL(JA9,JA9,WE_Days,Tools!$B$10:$B$55),1) -> 1 | JB8: =IF(Work_D_Only_Bool,NETWORKDAYS.INTL(JB9,JB9,WE_Days,Tools!$B$10:$B$55),1) -> 1 | JC8: =IF(Work_D_Only_Bool,NETWORKDAYS.INTL(JC9,JC9,WE_Days,Tools!$B$10:$B$55),1) -> 1 | JD8: =IF(Work_D_Only_Bool,NETWORKDAYS.INTL(JD9,JD9,WE_Days,Tools!$B$10:$B$55),1) -> 1 | JE8: =IF(Work_D_Only_Bool,NETWORKDAYS.INTL(JE9,JE9,WE_Days,Tools!$B$10:$B$55),1) -> 1 | JF8: =IF(Work_D_Only_Bool,NETWORKDAYS.INTL(JF9,JF9,WE_Days,Tools!$B$10:$B$55),1) -> 1 | JG8: =IF(Work_D_Only_Bool,NETWORKDAYS.INTL(JG9,JG9,WE_Days,Tools!$B$10:$B$55),1) -> 1 | JH8: =IF(Work_D_Only_Bool,NETWORKDAYS.INTL(JH9,JH9,WE_Days,Tools!$B$10:$B$55),1) -> 1 | JI8: =IF(Work_D_Only_Bool,NETWORKDAYS.INTL(JI9,JI9,WE_Days,Tools!$B$10:$B$55),1) -> 1 | JJ8: =IF(Work_D_Only_Bool,NETWORKDAYS.INTL(JJ9,JJ9,WE_Days,Tools!$B$10:$B$55),1) -> 1 | JK8: =IF(Work_D_Only_Bool,NETWORKDAYS.INTL(JK9,JK9,WE_Days,Tools!$B$10:$B$55),1) -> 1 | JL8: =IF(Work_D_Only_Bool,NETWORKDAYS.INTL(JL9,JL9,WE_Days,Tools!$B$10:$B$55),1) -> 1 | JM8: =IF(Work_D_Only_Bool,NETWORKDAYS.INTL(JM9,JM9,WE_Days,Tools!$B$10:$B$55),1) -> 1 | JN8: =IF(Work_D_Only_Bool,NETWORKDAYS.INTL(JN9,JN9,WE_Days,Tools!$B$10:$B$55),1) -> 1 | JO8: =IF(Work_D_Only_Bool,NETWORKDAYS.INTL(JO9,JO9,WE_Days,Tools!$B$10:$B$55),1) -> 1 | JP8: =IF(Work_D_Only_Bool,NETWORKDAYS.INTL(JP9,JP9,WE_Days,Tools!$B$10:$B$55),1) -> 1 | JQ8: =IF(Work_D_Only_Bool,NETWORKDAYS.INTL(JQ9,JQ9,WE_Days,Tools!$B$10:$B$55),1) -> 1 | JR8: =IF(Work_D_Only_Bool,NETWORKDAYS.INTL(JR9,JR9,WE_Days,Tools!$B$10:$B$55),1) -> 1 | JS8: =IF(Work_D_Only_Bool,NETWORKDAYS.INTL(JS9,JS9,WE_Days,Tools!$B$10:$B$55),1) -> 1 | JT8: =IF(Work_D_Only_Bool,NETWORKDAYS.INTL(JT9,JT9,WE_Days,Tools!$B$10:$B$55),1) -> 1 | JU8: =IF(Work_D_Only_Bool,NETWORKDAYS.INTL(JU9,JU9,WE_Days,Tools!$B$10:$B$55),1) -> 1 | JV8: =IF(Work_D_Only_Bool,NETWORKDAYS.INTL(JV9,JV9,WE_Days,Tools!$B$10:$B$55),1) -> 1 | JW8: =IF(Work_D_Only_Bool,NETWORKDAYS.INTL(JW9,JW9,WE_Days,Tools!$B$10:$B$55),1) -> 1 | JX8: =IF(Work_D_Only_Bool,NETWORKDAYS.INTL(JX9,JX9,WE_Days,Tools!$B$10:$B$55),1) -> 1 | JY8: =IF(Work_D_Only_Bool,NETWORKDAYS.INTL(JY9,JY9,WE_Days,Tools!$B$10:$B$55),1) -> 1 | JZ8: =IF(Work_D_Only_Bool,NETWORKDAYS.INTL(JZ9,JZ9,WE_Days,Tools!$B$10:$B$55),1) -> 1 | KA8: =IF(Work_D_Only_Bool,NETWORKDAYS.INTL(KA9,KA9,WE_Days,Tools!$B$10:$B$55),1) -> 1 | KB8: =IF(Work_D_Only_Bool,NETWORKDAYS.INTL(KB9,KB9,WE_Days,Tools!$B$10:$B$55),1) -> 1 | KC8: =IF(Work_D_Only_Bool,NETWORKDAYS.INTL(KC9,KC9,WE_Days,Tools!$B$10:$B$55),1) -> 1 | KD8: =IF(Work_D_Only_Bool,NETWORKDAYS.INTL(KD9,KD9,WE_Days,Tools!$B$10:$B$55),1) -> 1 | KE8: =IF(Work_D_Only_Bool,NETWORKDAYS.INTL(KE9,KE9,WE_Days,Tools!$B$10:$B$55),1) -> 1 | KF8: =IF(Work_D_Only_Bool,NETWORKDAYS.INTL(KF9,KF9,WE_Days,Tools!$B$10:$B$55),1) -> 1 | KG8: =IF(Work_D_Only_Bool,NETWORKDAYS.INTL(KG9,KG9,WE_Days,Tools!$B$10:$B$55),1) -> 1 | KH8: =IF(Work_D_Only_Bool,NETWORKDAYS.INTL(KH9,KH9,WE_Days,Tools!$B$10:$B$55),1) -> 1 | KI8: =IF(Work_D_Only_Bool,NETWORKDAYS.INTL(KI9,KI9,WE_Days,Tools!$B$10:$B$55),1) -> 1 | KJ8: =IF(Work_D_Only_Bool,NETWORKDAYS.INTL(KJ9,KJ9,WE_Days,Tools!$B$10:$B$55),1) -> 1 | KK8: =IF(Work_D_Only_Bool,NETWORKDAYS.INTL(KK9,KK9,WE_Days,Tools!$B$10:$B$55),1) -> 1 | KL8: =IF(Work_D_Only_Bool,NETWORKDAYS.INTL(KL9,KL9,WE_Days,Tools!$B$10:$B$55),1) -> 1 | KM8: =IF(Work_D_Only_Bool,NETWORKDAYS.INTL(KM9,KM9,WE_Days,Tools!$B$10:$B$55),1) -> 1 | KN8: =IF(Work_D_Only_Bool,NETWORKDAYS.INTL(KN9,KN9,WE_Days,Tools!$B$10:$B$55),1) -> 1 | KO8: =IF(Work_D_Only_Bool,NETWORKDAYS.INTL(KO9,KO9,WE_Days,Tools!$B$10:$B$55),1) -> 1 | KP8: =IF(Work_D_Only_Bool,NETWORKDAYS.INTL(KP9,KP9,WE_Days,Tools!$B$10:$B$55),1) -> 1 | KQ8: =IF(Work_D_Only_Bool,NETWORKDAYS.INTL(KQ9,KQ9,WE_Days,Tools!$B$10:$B$55),1) -> 1 | KR8: =IF(Work_D_Only_Bool,NETWORKDAYS.INTL(KR9,KR9,WE_Days,Tools!$B$10:$B$55),1) -> 1 | KS8: =IF(Work_D_Only_Bool,NETWORKDAYS.INTL(KS9,KS9,WE_Days,Tools!$B$10:$B$55),1) -> 1 | KT8: =IF(Work_D_Only_Bool,NETWORKDAYS.INTL(KT9,KT9,WE_Days,Tools!$B$10:$B$55),1) -> 1 | KU8: =IF(Work_D_Only_Bool,NETWORKDAYS.INTL(KU9,KU9,WE_Days,Tools!$B$10:$B$55),1) -> 1 | KV8: =IF(Work_D_Only_Bool,NETWORKDAYS.INTL(KV9,KV9,WE_Days,Tools!$B$10:$B$55),1) -> 1 | KW8: =IF(Work_D_Only_Bool,NETWORKDAYS.INTL(KW9,KW9,WE_Days,Tools!$B$10:$B$55),1) -> 1 | KX8: =IF(Work_D_Only_Bool,NETWORKDAYS.INTL(KX9,KX9,WE_Days,Tools!$B$10:$B$55),1) -> 1 | KY8: =IF(Work_D_Only_Bool,NETWORKDAYS.INTL(KY9,KY9,WE_Days,Tools!$B$10:$B$55),1) -> 1 | KZ8: =IF(Work_D_Only_Bool,NETWORKDAYS.INTL(KZ9,KZ9,WE_Days,Tools!$B$10:$B$55),1) -> 1 | LA8: =IF(Work_D_Only_Bool,NETWORKDAYS.INTL(LA9,LA9,WE_Days,Tools!$B$10:$B$55),1) -> 1 | LB8: =IF(Work_D_Only_Bool,NETWORKDAYS.INTL(LB9,LB9,WE_Days,Tools!$B$10:$B$55),1) -> 1 | LC8: =IF(Work_D_Only_Bool,NETWORKDAYS.INTL(LC9,LC9,WE_Days,Tools!$B$10:$B$55),1) -> 1 | LD8: =IF(Work_D_Only_Bool,NETWORKDAYS.INTL(LD9,LD9,WE_Days,Tools!$B$10:$B$55),1) -> 1 | LE8: =IF(Work_D_Only_Bool,NETWORKDAYS.INTL(LE9,LE9,WE_Days,Tools!$B$10:$B$55),1) -> 1 | LF8: =IF(Work_D_Only_Bool,NETWORKDAYS.INTL(LF9,LF9,WE_Days,Tools!$B$10:$B$55),1) -> 1 | LG8: =IF(Work_D_Only_Bool,NETWORKDAYS.INTL(LG9,LG9,WE_Days,Tools!$B$10:$B$55),1) -> 1 | LH8: =IF(Work_D_Only_Bool,NETWORKDAYS.INTL(LH9,LH9,WE_Days,Tools!$B$10:$B$55),1) -> 1 | LI8: =IF(Work_D_Only_Bool,NETWORKDAYS.INTL(LI9,LI9,WE_Days,Tools!$B$10:$B$55),1) -> 1 | LJ8: =IF(Work_D_Only_Bool,NETWORKDAYS.INTL(LJ9,LJ9,WE_Days,Tools!$B$10:$B$55),1) -> 1 | LK8: =IF(Work_D_Only_Bool,NETWORKDAYS.INTL(LK9,LK9,WE_Days,Tools!$B$10:$B$55),1) -> 1 | LL8: =IF(Work_D_Only_Bool,NETWORKDAYS.INTL(LL9,LL9,WE_Days,Tools!$B$10:$B$55),1) -> 1 | LM8: =IF(Work_D_Only_Bool,NETWORKDAYS.INTL(LM9,LM9,WE_Days,Tools!$B$10:$B$55),1) -> 1 | LN8: =IF(Work_D_Only_Bool,NETWORKDAYS.INTL(LN9,LN9,WE_Days,Tools!$B$10:$B$55),1) -> 1 | LO8: =IF(Work_D_Only_Bool,NETWORKDAYS.INTL(LO9,LO9,WE_Days,Tools!$B$10:$B$55),1) -> 1 | LP8: =IF(Work_D_Only_Bool,NETWORKDAYS.INTL(LP9,LP9,WE_Days,Tools!$B$10:$B$55),1) -> 1 | LQ8: =IF(Work_D_Only_Bool,NETWORKDAYS.INTL(LQ9,LQ9,WE_Days,Tools!$B$10:$B$55),1) -> 1 | LR8: =IF(Work_D_Only_Bool,NETWORKDAYS.INTL(LR9,LR9,WE_Days,Tools!$B$10:$B$55),1) -> 1 | LS8: =IF(Work_D_Only_Bool,NETWORKDAYS.INTL(LS9,LS9,WE_Days,Tools!$B$10:$B$55),1) -> 1 | LT8: =IF(Work_D_Only_Bool,NETWORKDAYS.INTL(LT9,LT9,WE_Days,Tools!$B$10:$B$55),1) -> 1 | LU8: =IF(Work_D_Only_Bool,NETWORKDAYS.INTL(LU9,LU9,WE_Days,Tools!$B$10:$B$55),1) -> 1 | LV8: =IF(Work_D_Only_Bool,NETWORKDAYS.INTL(LV9,LV9,WE_Days,Tools!$B$10:$B$55),1) -> 1 | LW8: =IF(Work_D_Only_Bool,NETWORKDAYS.INTL(LW9,LW9,WE_Days,Tools!$B$10:$B$55),1) -> 1 | LX8: =IF(Work_D_Only_Bool,NETWORKDAYS.INTL(LX9,LX9,WE_Days,Tools!$B$10:$B$55),1) -> 1 | LY8: =IF(Work_D_Only_Bool,NETWORKDAYS.INTL(LY9,LY9,WE_Days,Tools!$B$10:$B$55),1) -> 1 | LZ8: =IF(Work_D_Only_Bool,NETWORKDAYS.INTL(LZ9,LZ9,WE_Days,Tools!$B$10:$B$55),1) -> 1 | MA8: =IF(Work_D_Only_Bool,NETWORKDAYS.INTL(MA9,MA9,WE_Days,Tools!$B$10:$B$55),1) -> 1 | MB8: =IF(Work_D_Only_Bool,NETWORKDAYS.INTL(MB9,MB9,WE_Days,Tools!$B$10:$B$55),1) -> 1 | MC8: =IF(Work_D_Only_Bool,NETWORKDAYS.INTL(MC9,MC9,WE_Days,Tools!$B$10:$B$55),1) -> 1 | MD8: =IF(Work_D_Only_Bool,NETWORKDAYS.INTL(MD9,MD9,WE_Days,Tools!$B$10:$B$55),1) -> 1 | ME8: =IF(Work_D_Only_Bool,NETWORKDAYS.INTL(ME9,ME9,WE_Days,Tools!$B$10:$B$55),1) -> 1 | MF8: =IF(Work_D_Only_Bool,NETWORKDAYS.INTL(MF9,MF9,WE_Days,Tools!$B$10:$B$55),1) -> 1 | MG8: =IF(Work_D_Only_Bool,NETWORKDAYS.INTL(MG9,MG9,WE_Days,Tools!$B$10:$B$55),1) -> 1 | MH8: =IF(Work_D_Only_Bool,NETWORKDAYS.INTL(MH9,MH9,WE_Days,Tools!$B$10:$B$55),1) -> 1 | MI8: =IF(Work_D_Only_Bool,NETWORKDAYS.INTL(MI9,MI9,WE_Days,Tools!$B$10:$B$55),1) -> 1 | MJ8: =IF(Work_D_Only_Bool,NETWORKDAYS.INTL(MJ9,MJ9,WE_Days,Tools!$B$10:$B$55),1) -> 1 | MK8: =IF(Work_D_Only_Bool,NETWORKDAYS.INTL(MK9,MK9,WE_Days,Tools!$B$10:$B$55),1) -> 1 | ML8: =IF(Work_D_Only_Bool,NETWORKDAYS.INTL(ML9,ML9,WE_Days,Tools!$B$10:$B$55),1) -> 1 | MM8: =IF(Work_D_Only_Bool,NETWORKDAYS.INTL(MM9,MM9,WE_Days,Tools!$B$10:$B$55),1) -> 1 | MN8: =IF(Work_D_Only_Bool,NETWORKDAYS.INTL(MN9,MN9,WE_Days,Tools!$B$10:$B$55),1) -> 1 | MO8: =IF(Work_D_Only_Bool,NETWORKDAYS.INTL(MO9,MO9,WE_Days,Tools!$B$10:$B$55),1) -> 1 | MP8: =IF(Work_D_Only_Bool,NETWORKDAYS.INTL(MP9,MP9,WE_Days,Tools!$B$10:$B$55),1) -> 1 | MQ8: =IF(Work_D_Only_Bool,NETWORKDAYS.INTL(MQ9,MQ9,WE_Days,Tools!$B$10:$B$55),1) -> 1 | MR8: =IF(Work_D_Only_Bool,NETWORKDAYS.INTL(MR9,MR9,WE_Days,Tools!$B$10:$B$55),1) -> 1 | MS8: =IF(Work_D_Only_Bool,NETWORKDAYS.INTL(MS9,MS9,WE_Days,Tools!$B$10:$B$55),1) -> 1 | MT8: =IF(Work_D_Only_Bool,NETWORKDAYS.INTL(MT9,MT9,WE_Days,Tools!$B$10:$B$55),1) -> 1 | MU8: =IF(Work_D_Only_Bool,NETWORKDAYS.INTL(MU9,MU9,WE_Days,Tools!$B$10:$B$55),1) -> 1 | MV8: =IF(Work_D_Only_Bool,NETWORKDAYS.INTL(MV9,MV9,WE_Days,Tools!$B$10:$B$55),1) -> 1 | MW8: =IF(Work_D_Only_Bool,NETWORKDAYS.INTL(MW9,MW9,WE_Days,Tools!$B$10:$B$55),1) -> 1 | MX8: =IF(Work_D_Only_Bool,NETWORKDAYS.INTL(MX9,MX9,WE_Days,Tools!$B$10:$B$55),1) -> 1 | MY8: =IF(Work_D_Only_Bool,NETWORKDAYS.INTL(MY9,MY9,WE_Days,Tools!$B$10:$B$55),1) -> 1 | MZ8: =IF(Work_D_Only_Bool,NETWORKDAYS.INTL(MZ9,MZ9,WE_Days,Tools!$B$10:$B$55),1) -> 1 | NA8: =IF(Work_D_Only_Bool,NETWORKDAYS.INTL(NA9,NA9,WE_Days,Tools!$B$10:$B$55),1) -> 1 | NB8: =IF(Work_D_Only_Bool,NETWORKDAYS.INTL(NB9,NB9,WE_Days,Tools!$B$10:$B$55),1) -> 1 | NC8: =IF(Work_D_Only_Bool,NETWORKDAYS.INTL(NC9,NC9,WE_Days,Tools!$B$10:$B$55),1) -> 1 | ND8: =IF(Work_D_Only_Bool,NETWORKDAYS.INTL(ND9,ND9,WE_Days,Tools!$B$10:$B$55),1) -> 1 | NE8: =IF(Work_D_Only_Bool,NETWORKDAYS.INTL(NE9,NE9,WE_Days,Tools!$B$10:$B$55),1) -> 1 | NF8: =IF(Work_D_Only_Bool,NETWORKDAYS.INTL(NF9,NF9,WE_Days,Tools!$B$10:$B$55),1) -> 1 | NG8: =IF(Work_D_Only_Bool,NETWORKDAYS.INTL(NG9,NG9,WE_Days,Tools!$B$10:$B$55),1) -> 1 | NH8: =IF(Work_D_Only_Bool,NETWORKDAYS.INTL(NH9,NH9,WE_Days,Tools!$B$10:$B$55),1) -> 1 | NI8: =IF(Work_D_Only_Bool,NETWORKDAYS.INTL(NI9,NI9,WE_Days,Tools!$B$10:$B$55),1) -> 1 | NJ8: =IF(Work_D_Only_Bool,NETWORKDAYS.INTL(NJ9,NJ9,WE_Days,Tools!$B$10:$B$55),1) -> 1 | NK8: =IF(Work_D_Only_Bool,NETWORKDAYS.INTL(NK9,NK9,WE_Days,Tools!$B$10:$B$55),1) -> 1 | NL8: =IF(Work_D_Only_Bool,NETWORKDAYS.INTL(NL9,NL9,WE_Days,Tools!$B$10:$B$55),1) -> 1 | NM8: =IF(Work_D_Only_Bool,NETWORKDAYS.INTL(NM9,NM9,WE_Days,Tools!$B$10:$B$55),1) -> 1 | NN8: =IF(Work_D_Only_Bool,NETWORKDAYS.INTL(NN9,NN9,WE_Days,Tools!$B$10:$B$55),1) -> 1 | NO8: =IF(Work_D_Only_Bool,NETWORKDAYS.INTL(NO9,NO9,WE_Days,Tools!$B$10:$B$55),1) -> 1 | NP8: =IF(Work_D_Only_Bool,NETWORKDAYS.INTL(NP9,NP9,WE_Days,Tools!$B$10:$B$55),1) -> 1 | NQ8: =IF(Work_D_Only_Bool,NETWORKDAYS.INTL(NQ9,NQ9,WE_Days,Tools!$B$10:$B$55),1) -> 1 | NR8: =IF(Work_D_Only_Bool,NETWORKDAYS.INTL(NR9,NR9,WE_Days,Tools!$B$10:$B$55),1) -> 1 | NS8: =IF(Work_D_Only_Bool,NETWORKDAYS.INTL(NS9,NS9,WE_Days,Tools!$B$10:$B$55),1) -> 1 | NT8: =IF(Work_D_Only_Bool,NETWORKDAYS.INTL(NT9,NT9,WE_Days,Tools!$B$10:$B$55),1) -> 1 | NU8: =IF(Work_D_Only_Bool,NETWORKDAYS.INTL(NU9,NU9,WE_Days,Tools!$B$10:$B$55),1) -> 1 | NV8: =IF(Work_D_Only_Bool,NETWORKDAYS.INTL(NV9,NV9,WE_Days,Tools!$B$10:$B$55),1) -> 1 | NW8: =IF(Work_D_Only_Bool,NETWORKDAYS.INTL(NW9,NW9,WE_Days,Tools!$B$10:$B$55),1) -> 1 | NX8: =IF(Work_D_Only_Bool,NETWORKDAYS.INTL(NX9,NX9,WE_Days,Tools!$B$10:$B$55),1) -> 1 | NY8: =IF(Work_D_Only_Bool,NETWORKDAYS.INTL(NY9,NY9,WE_Days,Tools!$B$10:$B$55),1) -> 1 | NZ8: =IF(Work_D_Only_Bool,NETWORKDAYS.INTL(NZ9,NZ9,WE_Days,Tools!$B$10:$B$55),1) -> 1 | OA8: =IF(Work_D_Only_Bool,NETWORKDAYS.INTL(OA9,OA9,WE_Days,Tools!$B$10:$B$55),1) -> 1 | OB8: =IF(Work_D_Only_Bool,NETWORKDAYS.INTL(OB9,OB9,WE_Days,Tools!$B$10:$B$55),1) -> 1 | OC8: =IF(Work_D_Only_Bool,NETWORKDAYS.INTL(OC9,OC9,WE_Days,Tools!$B$10:$B$55),1) -> 1 | OD8: =IF(Work_D_Only_Bool,NETWORKDAYS.INTL(OD9,OD9,WE_Days,Tools!$B$10:$B$55),1) -> 1 | OE8: =IF(Work_D_Only_Bool,NETWORKDAYS.INTL(OE9,OE9,WE_Days,Tools!$B$10:$B$55),1) -> 1 | OF8: =IF(Work_D_Only_Bool,NETWORKDAYS.INTL(OF9,OF9,WE_Days,Tools!$B$10:$B$55),1) -> 1 | OG8: =IF(Work_D_Only_Bool,NETWORKDAYS.INTL(OG9,OG9,WE_Days,Tools!$B$10:$B$55),1) -> 1 | OH8: =IF(Work_D_Only_Bool,NETWORKDAYS.INTL(OH9,OH9,WE_Days,Tools!$B$10:$B$55),1) -> 1 | OI8: =IF(Work_D_Only_Bool,NETWORKDAYS.INTL(OI9,OI9,WE_Days,Tools!$B$10:$B$55),1) -> 1 | OJ8: =IF(Work_D_Only_Bool,NETWORKDAYS.INTL(OJ9,OJ9,WE_Days,Tools!$B$10:$B$55),1) -> 1 | OK8: =IF(Work_D_Only_Bool,NETWORKDAYS.INTL(OK9,OK9,WE_Days,Tools!$B$10:$B$55),1) -> 1 | OL8: =IF(Work_D_Only_Bool,NETWORKDAYS.INTL(OL9,OL9,WE_Days,Tools!$B$10:$B$55),1) -> 1 | OM8: =IF(Work_D_Only_Bool,NETWORKDAYS.INTL(OM9,OM9,WE_Days,Tools!$B$10:$B$55),1) -> 1 | ON8: =IF(Work_D_Only_Bool,NETWORKDAYS.INTL(ON9,ON9,WE_Days,Tools!$B$10:$B$55),1) -> 1 | OO8: =IF(Work_D_Only_Bool,NETWORKDAYS.INTL(OO9,OO9,WE_Days,Tools!$B$10:$B$55),1) -> 1 | OP8: =IF(Work_D_Only_Bool,NETWORKDAYS.INTL(OP9,OP9,WE_Days,Tools!$B$10:$B$55),1) -> 1 | OQ8: =IF(Work_D_Only_Bool,NETWORKDAYS.INTL(OQ9,OQ9,WE_Days,Tools!$B$10:$B$55),1) -> 1 | OR8: =IF(Work_D_Only_Bool,NETWORKDAYS.INTL(OR9,OR9,WE_Days,Tools!$B$10:$B$55),1) -> 1 | OS8: =IF(Work_D_Only_Bool,NETWORKDAYS.INTL(OS9,OS9,WE_Days,Tools!$B$10:$B$55),1) -> 1 | OT8: =IF(Work_D_Only_Bool,NETWORKDAYS.INTL(OT9,OT9,WE_Days,Tools!$B$10:$B$55),1) -> 1 | OU8: =IF(Work_D_Only_Bool,NETWORKDAYS.INTL(OU9,OU9,WE_Days,Tools!$B$10:$B$55),1) -> 1 | OV8: =IF(Work_D_Only_Bool,NETWORKDAYS.INTL(OV9,OV9,WE_Days,Tools!$B$10:$B$55),1) -> 1 | OW8: =IF(Work_D_Only_Bool,NETWORKDAYS.INTL(OW9,OW9,WE_Days,Tools!$B$10:$B$55),1) -> 1 | OX8: =IF(Work_D_Only_Bool,NETWORKDAYS.INTL(OX9,OX9,WE_Days,Tools!$B$10:$B$55),1) -> 1 | OY8: =IF(Work_D_Only_Bool,NETWORKDAYS.INTL(OY9,OY9,WE_Days,Tools!$B$10:$B$55),1) -> 1 | OZ8: =IF(Work_D_Only_Bool,NETWORKDAYS.INTL(OZ9,OZ9,WE_Days,Tools!$B$10:$B$55),1) -> 1 | PA8: =IF(Work_D_Only_Bool,NETWORKDAYS.INTL(PA9,PA9,WE_Days,Tools!$B$10:$B$55),1) -> 1 | PB8: =IF(Work_D_Only_Bool,NETWORKDAYS.INTL(PB9,PB9,WE_Days,Tools!$B$10:$B$55),1) -> 1 | PC8: =IF(Work_D_Only_Bool,NETWORKDAYS.INTL(PC9,PC9,WE_Days,Tools!$B$10:$B$55),1) -> 1 | PD8: =IF(Work_D_Only_Bool,NETWORKDAYS.INTL(PD9,PD9,WE_Days,Tools!$B$10:$B$55),1) -> 1 | PE8: =IF(Work_D_Only_Bool,NETWORKDAYS.INTL(PE9,PE9,WE_Days,Tools!$B$10:$B$55),1) -> 1 | PF8: =IF(Work_D_Only_Bool,NETWORKDAYS.INTL(PF9,PF9,WE_Days,Tools!$B$10:$B$55),1) -> 1 | PG8: =IF(Work_D_Only_Bool,NETWORKDAYS.INTL(PG9,PG9,WE_Days,Tools!$B$10:$B$55),1) -> 1 | PH8: =IF(Work_D_Only_Bool,NETWORKDAYS.INTL(PH9,PH9,WE_Days,Tools!$B$10:$B$55),1) -> 1 | PI8: =IF(Work_D_Only_Bool,NETWORKDAYS.INTL(PI9,PI9,WE_Days,Tools!$B$10:$B$55),1) -> 1 | PJ8: =IF(Work_D_Only_Bool,NETWORKDAYS.INTL(PJ9,PJ9,WE_Days,Tools!$B$10:$B$55),1) -> 1 | PK8: =IF(Work_D_Only_Bool,NETWORKDAYS.INTL(PK9,PK9,WE_Days,Tools!$B$10:$B$55),1) -> 1 | PL8: =IF(Work_D_Only_Bool,NETWORKDAYS.INTL(PL9,PL9,WE_Days,Tools!$B$10:$B$55),1) -> 1 | PM8: =IF(Work_D_Only_Bool,NETWORKDAYS.INTL(PM9,PM9,WE_Days,Tools!$B$10:$B$55),1) -> 1 | PN8: =IF(Work_D_Only_Bool,NETWORKDAYS.INTL(PN9,PN9,WE_Days,Tools!$B$10:$B$55),1) -> 1 | PO8: =IF(Work_D_Only_Bool,NETWORKDAYS.INTL(PO9,PO9,WE_Days,Tools!$B$10:$B$55),1) -> 1 | PP8: =IF(Work_D_Only_Bool,NETWORKDAYS.INTL(PP9,PP9,WE_Days,Tools!$B$10:$B$55),1) -> 1 | PQ8: =IF(Work_D_Only_Bool,NETWORKDAYS.INTL(PQ9,PQ9,WE_Days,Tools!$B$10:$B$55),1) -> 1 | PR8: =IF(Work_D_Only_Bool,NETWORKDAYS.INTL(PR9,PR9,WE_Days,Tools!$B$10:$B$55),1) -> 1 | PS8: =IF(Work_D_Only_Bool,NETWORKDAYS.INTL(PS9,PS9,WE_Days,Tools!$B$10:$B$55),1) -> 1 | PT8: =IF(Work_D_Only_Bool,NETWORKDAYS.INTL(PT9,PT9,WE_Days,Tools!$B$10:$B$55),1) -> 1 | PU8: =IF(Work_D_Only_Bool,NETWORKDAYS.INTL(PU9,PU9,WE_Days,Tools!$B$10:$B$55),1) -> 1 | PV8: =IF(Work_D_Only_Bool,NETWORKDAYS.INTL(PV9,PV9,WE_Days,Tools!$B$10:$B$55),1) -> 1 | PW8: =IF(Work_D_Only_Bool,NETWORKDAYS.INTL(PW9,PW9,WE_Days,Tools!$B$10:$B$55),1) -> 1 | PX8: =IF(Work_D_Only_Bool,NETWORKDAYS.INTL(PX9,PX9,WE_Days,Tools!$B$10:$B$55),1) -> 1 | PY8: =IF(Work_D_Only_Bool,NETWORKDAYS.INTL(PY9,PY9,WE_Days,Tools!$B$10:$B$55),1) -> 1 | PZ8: =IF(Work_D_Only_Bool,NETWORKDAYS.INTL(PZ9,PZ9,WE_Days,Tools!$B$10:$B$55),1) -> 1 | QA8: =IF(Work_D_Only_Bool,NETWORKDAYS.INTL(QA9,QA9,WE_Days,Tools!$B$10:$B$55),1) -> 1 | QB8: =IF(Work_D_Only_Bool,NETWORKDAYS.INTL(QB9,QB9,WE_Days,Tools!$B$10:$B$55),1) -> 1 | QC8: =IF(Work_D_Only_Bool,NETWORKDAYS.INTL(QC9,QC9,WE_Days,Tools!$B$10:$B$55),1) -> 1 | QD8: =IF(Work_D_Only_Bool,NETWORKDAYS.INTL(QD9,QD9,WE_Days,Tools!$B$10:$B$55),1) -> 1 | QE8: =IF(Work_D_Only_Bool,NETWORKDAYS.INTL(QE9,QE9,WE_Days,Tools!$B$10:$B$55),1) -> 1 | QF8: =IF(Work_D_Only_Bool,NETWORKDAYS.INTL(QF9,QF9,WE_Days,Tools!$B$10:$B$55),1) -> 1 | QG8: =IF(Work_D_Only_Bool,NETWORKDAYS.INTL(QG9,QG9,WE_Days,Tools!$B$10:$B$55),1) -> 1 | QH8: =IF(Work_D_Only_Bool,NETWORKDAYS.INTL(QH9,QH9,WE_Days,Tools!$B$10:$B$55),1) -> 1 | QI8: =IF(Work_D_Only_Bool,NETWORKDAYS.INTL(QI9,QI9,WE_Days,Tools!$B$10:$B$55),1) -> 1 | QJ8: =IF(Work_D_Only_Bool,NETWORKDAYS.INTL(QJ9,QJ9,WE_Days,Tools!$B$10:$B$55),1) -> 1 | QK8: =IF(Work_D_Only_Bool,NETWORKDAYS.INTL(QK9,QK9,WE_Days,Tools!$B$10:$B$55),1) -> 1 | QL8: =IF(Work_D_Only_Bool,NETWORKDAYS.INTL(QL9,QL9,WE_Days,Tools!$B$10:$B$55),1) -> 1 | QM8: =IF(Work_D_Only_Bool,NETWORKDAYS.INTL(QM9,QM9,WE_Days,Tools!$B$10:$B$55),1) -> 1 | QN8: =IF(Work_D_Only_Bool,NETWORKDAYS.INTL(QN9,QN9,WE_Days,Tools!$B$10:$B$55),1) -> 1 | QO8: =IF(Work_D_Only_Bool,NETWORKDAYS.INTL(QO9,QO9,WE_Days,Tools!$B$10:$B$55),1) -> 1 | QP8: =IF(Work_D_Only_Bool,NETWORKDAYS.INTL(QP9,QP9,WE_Days,Tools!$B$10:$B$55),1) -> 1 | QQ8: =IF(Work_D_Only_Bool,NETWORKDAYS.INTL(QQ9,QQ9,WE_Days,Tools!$B$10:$B$55),1) -> 1 | QR8: =IF(Work_D_Only_Bool,NETWORKDAYS.INTL(QR9,QR9,WE_Days,Tools!$B$10:$B$55),1) -> 1 | QS8: =IF(Work_D_Only_Bool,NETWORKDAYS.INTL(QS9,QS9,WE_Days,Tools!$B$10:$B$55),1) -> 1 | QT8: =IF(Work_D_Only_Bool,NETWORKDAYS.INTL(QT9,QT9,WE_Days,Tools!$B$10:$B$55),1) -> 1 | QU8: =IF(Work_D_Only_Bool,NETWORKDAYS.INTL(QU9,QU9,WE_Days,Tools!$B$10:$B$55),1) -> 1 | QV8: =IF(Work_D_Only_Bool,NETWORKDAYS.INTL(QV9,QV9,WE_Days,Tools!$B$10:$B$55),1) -> 1 | QW8: =IF(Work_D_Only_Bool,NETWORKDAYS.INTL(QW9,QW9,WE_Days,Tools!$B$10:$B$55),1) -> 1 | QX8: =IF(Work_D_Only_Bool,NETWORKDAYS.INTL(QX9,QX9,WE_Days,Tools!$B$10:$B$55),1) -> 1 | QY8: =IF(Work_D_Only_Bool,NETWORKDAYS.INTL(QY9,QY9,WE_Days,Tools!$B$10:$B$55),1) -> 1 | QZ8: =IF(Work_D_Only_Bool,NETWORKDAYS.INTL(QZ9,QZ9,WE_Days,Tools!$B$10:$B$55),1) -> 1 | RA8: =IF(Work_D_Only_Bool,NETWORKDAYS.INTL(RA9,RA9,WE_Days,Tools!$B$10:$B$55),1) -> 1 | RB8: =IF(Work_D_Only_Bool,NETWORKDAYS.INTL(RB9,RB9,WE_Days,Tools!$B$10:$B$55),1) -> 1 | RC8: =IF(Work_D_Only_Bool,NETWORKDAYS.INTL(RC9,RC9,WE_Days,Tools!$B$10:$B$55),1) -> 1 | RD8: =IF(Work_D_Only_Bool,NETWORKDAYS.INTL(RD9,RD9,WE_Days,Tools!$B$10:$B$55),1) -> 1 | RE8: =IF(Work_D_Only_Bool,NETWORKDAYS.INTL(RE9,RE9,WE_Days,Tools!$B$10:$B$55),1) -> 1 | RF8: =IF(Work_D_Only_Bool,NETWORKDAYS.INTL(RF9,RF9,WE_Days,Tools!$B$10:$B$55),1) -> 1 | RG8: =IF(Work_D_Only_Bool,NETWORKDAYS.INTL(RG9,RG9,WE_Days,Tools!$B$10:$B$55),1) -> 1 | RH8: =IF(Work_D_Only_Bool,NETWORKDAYS.INTL(RH9,RH9,WE_Days,Tools!$B$10:$B$55),1) -> 1 | RI8: =IF(Work_D_Only_Bool,NETWORKDAYS.INTL(RI9,RI9,WE_Days,Tools!$B$10:$B$55),1) -> 1 | RJ8: =IF(Work_D_Only_Bool,NETWORKDAYS.INTL(RJ9,RJ9,WE_Days,Tools!$B$10:$B$55),1) -> 1 | RK8: =IF(Work_D_Only_Bool,NETWORKDAYS.INTL(RK9,RK9,WE_Days,Tools!$B$10:$B$55),1) -> 1 | RL8: =IF(Work_D_Only_Bool,NETWORKDAYS.INTL(RL9,RL9,WE_Days,Tools!$B$10:$B$55),1) -> 1 | RM8: =IF(Work_D_Only_Bool,NETWORKDAYS.INTL(RM9,RM9,WE_Days,Tools!$B$10:$B$55),1) -> 1 | RN8: =IF(Work_D_Only_Bool,NETWORKDAYS.INTL(RN9,RN9,WE_Days,Tools!$B$10:$B$55),1) -> 1 | RO8: =IF(Work_D_Only_Bool,NETWORKDAYS.INTL(RO9,RO9,WE_Days,Tools!$B$10:$B$55),1) -> 1 | RP8: =IF(Work_D_Only_Bool,NETWORKDAYS.INTL(RP9,RP9,WE_Days,Tools!$B$10:$B$55),1) -> 1 | RQ8: =IF(Work_D_Only_Bool,NETWORKDAYS.INTL(RQ9,RQ9,WE_Days,Tools!$B$10:$B$55),1) -> 1 | RR8: =IF(Work_D_Only_Bool,NETWORKDAYS.INTL(RR9,RR9,WE_Days,Tools!$B$10:$B$55),1) -> 1 | RS8: =IF(Work_D_Only_Bool,NETWORKDAYS.INTL(RS9,RS9,WE_Days,Tools!$B$10:$B$55),1) -> 1 | RT8: =IF(Work_D_Only_Bool,NETWORKDAYS.INTL(RT9,RT9,WE_Days,Tools!$B$10:$B$55),1) -> 1 | RU8: =IF(Work_D_Only_Bool,NETWORKDAYS.INTL(RU9,RU9,WE_Days,Tools!$B$10:$B$55),1) -> 1 | RV8: =IF(Work_D_Only_Bool,NETWORKDAYS.INTL(RV9,RV9,WE_Days,Tools!$B$10:$B$55),1) -> 1 | RW8: =IF(Work_D_Only_Bool,NETWORKDAYS.INTL(RW9,RW9,WE_Days,Tools!$B$10:$B$55),1) -> 1 | RX8: =IF(Work_D_Only_Bool,NETWORKDAYS.INTL(RX9,RX9,WE_Days,Tools!$B$10:$B$55),1) -> 1 | RY8: =IF(Work_D_Only_Bool,NETWORKDAYS.INTL(RY9,RY9,WE_Days,Tools!$B$10:$B$55),1) -> 1 | RZ8: =IF(Work_D_Only_Bool,NETWORKDAYS.INTL(RZ9,RZ9,WE_Days,Tools!$B$10:$B$55),1) -> 1 | SA8: =IF(Work_D_Only_Bool,NETWORKDAYS.INTL(SA9,SA9,WE_Days,Tools!$B$10:$B$55),1) -> 1 | SB8: =IF(Work_D_Only_Bool,NETWORKDAYS.INTL(SB9,SB9,WE_Days,Tools!$B$10:$B$55),1) -> 1 | SC8: =IF(Work_D_Only_Bool,NETWORKDAYS.INTL(SC9,SC9,WE_Days,Tools!$B$10:$B$55),1) -> 1 | SD8: =IF(Work_D_Only_Bool,NETWORKDAYS.INTL(SD9,SD9,WE_Days,Tools!$B$10:$B$55),1) -> 1 | SE8: =IF(Work_D_Only_Bool,NETWORKDAYS.INTL(SE9,SE9,WE_Days,Tools!$B$10:$B$55),1) -> 1 | SF8: =IF(Work_D_Only_Bool,NETWORKDAYS.INTL(SF9,SF9,WE_Days,Tools!$B$10:$B$55),1) -> 1 | SG8: =IF(Work_D_Only_Bool,NETWORKDAYS.INTL(SG9,SG9,WE_Days,Tools!$B$10:$B$55),1) -> 1 | SH8: =IF(Work_D_Only_Bool,NETWORKDAYS.INTL(SH9,SH9,WE_Days,Tools!$B$10:$B$55),1) -> 1 | SI8: =IF(Work_D_Only_Bool,NETWORKDAYS.INTL(SI9,SI9,WE_Days,Tools!$B$10:$B$55),1) -> 1 | SJ8: =IF(Work_D_Only_Bool,NETWORKDAYS.INTL(SJ9,SJ9,WE_Days,Tools!$B$10:$B$55),1) -> 1 | SK8: =IF(Work_D_Only_Bool,NETWORKDAYS.INTL(SK9,SK9,WE_Days,Tools!$B$10:$B$55),1) -> 1 | SL8: =IF(Work_D_Only_Bool,NETWORKDAYS.INTL(SL9,SL9,WE_Days,Tools!$B$10:$B$55),1) -> 1 | SM8: =IF(Work_D_Only_Bool,NETWORKDAYS.INTL(SM9,SM9,WE_Days,Tools!$B$10:$B$55),1) -> 1 | SN8: =IF(Work_D_Only_Bool,NETWORKDAYS.INTL(SN9,SN9,WE_Days,Tools!$B$10:$B$55),1) -> 1 | SO8: =IF(Work_D_Only_Bool,NETWORKDAYS.INTL(SO9,SO9,WE_Days,Tools!$B$10:$B$55),1) -> 1 | SP8: =IF(Work_D_Only_Bool,NETWORKDAYS.INTL(SP9,SP9,WE_Days,Tools!$B$10:$B$55),1) -> 1 | SQ8: =IF(Work_D_Only_Bool,NETWORKDAYS.INTL(SQ9,SQ9,WE_Days,Tools!$B$10:$B$55),1) -> 1 | SR8: =IF(Work_D_Only_Bool,NETWORKDAYS.INTL(SR9,SR9,WE_Days,Tools!$B$10:$B$55),1) -> 1 | SS8: =IF(Work_D_Only_Bool,NETWORKDAYS.INTL(SS9,SS9,WE_Days,Tools!$B$10:$B$55),1) -> 1 | ST8: =IF(Work_D_Only_Bool,NETWORKDAYS.INTL(ST9,ST9,WE_Days,Tools!$B$10:$B$55),1) -> 1 | SU8: =IF(Work_D_Only_Bool,NETWORKDAYS.INTL(SU9,SU9,WE_Days,Tools!$B$10:$B$55),1) -> 1 | SV8: =IF(Work_D_Only_Bool,NETWORKDAYS.INTL(SV9,SV9,WE_Days,Tools!$B$10:$B$55),1) -> 1 | SW8: =IF(Work_D_Only_Bool,NETWORKDAYS.INTL(SW9,SW9,WE_Days,Tools!$B$10:$B$55),1) -> 1 | SX8: =IF(Work_D_Only_Bool,NETWORKDAYS.INTL(SX9,SX9,WE_Days,Tools!$B$10:$B$55),1) -> 1 | SY8: =IF(Work_D_Only_Bool,NETWORKDAYS.INTL(SY9,SY9,WE_Days,Tools!$B$10:$B$55),1) -> 1 | SZ8: =IF(Work_D_Only_Bool,NETWORKDAYS.INTL(SZ9,SZ9,WE_Days,Tools!$B$10:$B$55),1) -> 1 | TA8: =IF(Work_D_Only_Bool,NETWORKDAYS.INTL(TA9,TA9,WE_Days,Tools!$B$10:$B$55),1) -> 1 | TB8: =IF(Work_D_Only_Bool,NETWORKDAYS.INTL(TB9,TB9,WE_Days,Tools!$B$10:$B$55),1) -> 1 | TC8: =IF(Work_D_Only_Bool,NETWORKDAYS.INTL(TC9,TC9,WE_Days,Tools!$B$10:$B$55),1) -> 1 | TD8: =IF(Work_D_Only_Bool,NETWORKDAYS.INTL(TD9,TD9,WE_Days,Tools!$B$10:$B$55),1) -> 1 | TE8: =IF(Work_D_Only_Bool,NETWORKDAYS.INTL(TE9,TE9,WE_Days,Tools!$B$10:$B$55),1) -> 1 | TF8: =IF(Work_D_Only_Bool,NETWORKDAYS.INTL(TF9,TF9,WE_Days,Tools!$B$10:$B$55),1) -> 1 | TG8: =IF(Work_D_Only_Bool,NETWORKDAYS.INTL(TG9,TG9,WE_Days,Tools!$B$10:$B$55),1) -> 1 | TH8: =IF(Work_D_Only_Bool,NETWORKDAYS.INTL(TH9,TH9,WE_Days,Tools!$B$10:$B$55),1) -> 1 | TI8: =IF(Work_D_Only_Bool,NETWORKDAYS.INTL(TI9,TI9,WE_Days,Tools!$B$10:$B$55),1) -> 1 | TJ8: =IF(Work_D_Only_Bool,NETWORKDAYS.INTL(TJ9,TJ9,WE_Days,Tools!$B$10:$B$55),1) -> 1 | TK8: =IF(Work_D_Only_Bool,NETWORKDAYS.INTL(TK9,TK9,WE_Days,Tools!$B$10:$B$55),1) -> 1 | TL8: =IF(Work_D_Only_Bool,NETWORKDAYS.INTL(TL9,TL9,WE_Days,Tools!$B$10:$B$55),1) -> 1 | TM8: =IF(Work_D_Only_Bool,NETWORKDAYS.INTL(TM9,TM9,WE_Days,Tools!$B$10:$B$55),1) -> 1 | TN8: =IF(Work_D_Only_Bool,NETWORKDAYS.INTL(TN9,TN9,WE_Days,Tools!$B$10:$B$55),1) -> 1 | TO8: =IF(Work_D_Only_Bool,NETWORKDAYS.INTL(TO9,TO9,WE_Days,Tools!$B$10:$B$55),1) -> 1 | TP8: =IF(Work_D_Only_Bool,NETWORKDAYS.INTL(TP9,TP9,WE_Days,Tools!$B$10:$B$55),1) -> 1 | TQ8: =IF(Work_D_Only_Bool,NETWORKDAYS.INTL(TQ9,TQ9,WE_Days,Tools!$B$10:$B$55),1) -> 1 | TR8: =IF(Work_D_Only_Bool,NETWORKDAYS.INTL(TR9,TR9,WE_Days,Tools!$B$10:$B$55),1) -> 1 | TS8: =IF(Work_D_Only_Bool,NETWORKDAYS.INTL(TS9,TS9,WE_Days,Tools!$B$10:$B$55),1) -> 1 | TT8: =IF(Work_D_Only_Bool,NETWORKDAYS.INTL(TT9,TT9,WE_Days,Tools!$B$10:$B$55),1) -> 1 | TU8: =IF(Work_D_Only_Bool,NETWORKDAYS.INTL(TU9,TU9,WE_Days,Tools!$B$10:$B$55),1) -> 1 | TV8: =IF(Work_D_Only_Bool,NETWORKDAYS.INTL(TV9,TV9,WE_Days,Tools!$B$10:$B$55),1) -> 1 | TW8: =IF(Work_D_Only_Bool,NETWORKDAYS.INTL(TW9,TW9,WE_Days,Tools!$B$10:$B$55),1) -> 1 | TX8: =IF(Work_D_Only_Bool,NETWORKDAYS.INTL(TX9,TX9,WE_Days,Tools!$B$10:$B$55),1) -> 1 | TY8: =IF(Work_D_Only_Bool,NETWORKDAYS.INTL(TY9,TY9,WE_Days,Tools!$B$10:$B$55),1) -> 1 | TZ8: =IF(Work_D_Only_Bool,NETWORKDAYS.INTL(TZ9,TZ9,WE_Days,Tools!$B$10:$B$55),1) -> 1 | UA8: =IF(Work_D_Only_Bool,NETWORKDAYS.INTL(UA9,UA9,WE_Days,Tools!$B$10:$B$55),1) -> 1 | UB8: =IF(Work_D_Only_Bool,NETWORKDAYS.INTL(UB9,UB9,WE_Days,Tools!$B$10:$B$55),1) -> 1 | UC8: =IF(Work_D_Only_Bool,NETWORKDAYS.INTL(UC9,UC9,WE_Days,Tools!$B$10:$B$55),1) -> 1 | UD8: =IF(Work_D_Only_Bool,NETWORKDAYS.INTL(UD9,UD9,WE_Days,Tools!$B$10:$B$55),1) -> 1 | UE8: =IF(Work_D_Only_Bool,NETWORKDAYS.INTL(UE9,UE9,WE_Days,Tools!$B$10:$B$55),1) -> 1 | UF8: =IF(Work_D_Only_Bool,NETWORKDAYS.INTL(UF9,UF9,WE_Days,Tools!$B$10:$B$55),1) -> 1 | UG8: =IF(Work_D_Only_Bool,NETWORKDAYS.INTL(UG9,UG9,WE_Days,Tools!$B$10:$B$55),1) -> 1 | UH8: =IF(Work_D_Only_Bool,NETWORKDAYS.INTL(UH9,UH9,WE_Days,Tools!$B$10:$B$55),1) -> 1 | UI8: =IF(Work_D_Only_Bool,NETWORKDAYS.INTL(UI9,UI9,WE_Days,Tools!$B$10:$B$55),1) -> 1 | UJ8: =IF(Work_D_Only_Bool,NETWORKDAYS.INTL(UJ9,UJ9,WE_Days,Tools!$B$10:$B$55),1) -> 1 | UK8: =IF(Work_D_Only_Bool,NETWORKDAYS.INTL(UK9,UK9,WE_Days,Tools!$B$10:$B$55),1) -> 1 | UL8: =IF(Work_D_Only_Bool,NETWORKDAYS.INTL(UL9,UL9,WE_Days,Tools!$B$10:$B$55),1) -> 1 | UM8: =IF(Work_D_Only_Bool,NETWORKDAYS.INTL(UM9,UM9,WE_Days,Tools!$B$10:$B$55),1) -> 1
Y9: ¶¶¶ Please Hide these rows. Do not delete. ¶¶¶ | AI9: Date | AJ9: =Start_Date_Fusion -> 2016-10-31 | AK9: =AJ9+1 -> 2016-11-01 | AL9: 2016-11-02 | AM9: 2016-11-03 | AN9: 2016-11-04 | AO9: 2016-11-05 | AP9: 2016-11-06 | AQ9: 2016-11-07 | AR9: 2016-11-08 | AS9: 2016-11-09 | AT9: =AS9+1 -> 2016-11-10 | AU9: 2016-11-11 | AV9: 2016-11-12 | AW9: 2016-11-13 | AX9: 2016-11-14 | AY9: 2016-11-15 | AZ9: 2016-11-16 | BA9: 2016-11-17 | BB9: 2016-11-18 | BC9: 2016-11-19 | BD9: 2016-11-20 | BE9: =BD9+1 -> 2016-11-21 | BF9: =BE9+1 -> 2016-11-22 | BG9: 2016-11-23 | BH9: 2016-11-24 | BI9: 2016-11-25 | BJ9: 2016-11-26 | BK9: 2016-11-27 | BL9: 2016-11-28 | BM9: 2016-11-29 | BN9: 2016-11-30 | BO9: 2016-12-01 | BP9: 2016-12-02 | BQ9: 2016-12-03 | BR9: 2016-12-04 | BS9: 2016-12-05 | BT9: 2016-12-06 | BU9: 2016-12-07 | BV9: 2016-12-08 | BW9: 2016-12-09 | BX9: 2016-12-10 | BY9: 2016-12-11 | BZ9: 2016-12-12 | CA9: 2016-12-13 | CB9: 2016-12-14 | CC9: 2016-12-15 | CD9: 2016-12-16 | CE9: 2016-12-17 | CF9: 2016-12-18 | CG9: 2016-12-19 | CH9: 2016-12-20 | CI9: 2016-12-21 | CJ9: 2016-12-22 | CK9: 2016-12-23 | CL9: 2016-12-24 | CM9: 2016-12-25 | CN9: 2016-12-26 | CO9: 2016-12-27 | CP9: 2016-12-28 | CQ9: 2016-12-29 | CR9: 2016-12-30 | CS9: 2016-12-31 | CT9: 2017-01-01 | CU9: 2017-01-02 | CV9: 2017-01-03 | CW9: =CV9+1 -> 2017-01-04 | CX9: 2017-01-05 | CY9: 2017-01-06 | CZ9: 2017-01-07 | DA9: 2017-01-08 | DB9: 2017-01-09 | DC9: 2017-01-10 | DD9: 2017-01-11 | DE9: 2017-01-12 | DF9: 2017-01-13 | DG9: 2017-01-14 | DH9: 2017-01-15 | DI9: 2017-01-16 | DJ9: 2017-01-17 | DK9: 2017-01-18 | DL9: 2017-01-19 | DM9: 2017-01-20 | DN9: 2017-01-21 | DO9: 2017-01-22 | DP9: 2017-01-23 | DQ9: 2017-01-24 | DR9: 2017-01-25 | DS9: 2017-01-26 | DT9: 2017-01-27 | DU9: 2017-01-28 | DV9: 2017-01-29 | DW9: 2017-01-30 | DX9: 2017-01-31 | DY9: 2017-02-01 | DZ9: 2017-02-02 | EA9: 2017-02-03 | EB9: 2017-02-04 | EC9: 2017-02-05 | ED9: 2017-02-06 | EE9: 2017-02-07 | EF9: 2017-02-08 | EG9: 2017-02-09 | EH9: 2017-02-10 | EI9: 2017-02-11 | EJ9: 2017-02-12 | EK9: 2017-02-13 | EL9: 2017-02-14 | EM9: 2017-02-15 | EN9: 2017-02-16 | EO9: 2017-02-17 | EP9: 2017-02-18 | EQ9: 2017-02-19 | ER9: 2017-02-20 | ES9: 2017-02-21 | ET9: 2017-02-22 | EU9: 2017-02-23 | EV9: 2017-02-24 | EW9: 2017-02-25 | EX9: 2017-02-26 | EY9: 2017-02-27 | EZ9: 2017-02-28 | FA9: 2017-03-01 | FB9: 2017-03-02 | FC9: 2017-03-03 | FD9: 2017-03-04 | FE9: 2017-03-05 | FF9: 2017-03-06 | FG9: 2017-03-07 | FH9: 2017-03-08 | FI9: =FH9+1 -> 2017-03-09 | FJ9: 2017-03-10 | FK9: 2017-03-11 | FL9: 2017-03-12 | FM9: 2017-03-13 | FN9: 2017-03-14 | FO9: 2017-03-15 | FP9: 2017-03-16 | FQ9: 2017-03-17 | FR9: 2017-03-18 | FS9: 2017-03-19 | FT9: 2017-03-20 | FU9: 2017-03-21 | FV9: 2017-03-22 | FW9: 2017-03-23 | FX9: 2017-03-24 | FY9: 2017-03-25 | FZ9: 2017-03-26 | GA9: 2017-03-27 | GB9: 2017-03-28 | GC9: 2017-03-29 | GD9: 2017-03-30 | GE9: 2017-03-31 | GF9: 2017-04-01 | GG9: 2017-04-02 | GH9: 2017-04-03 | GI9: 2017-04-04 | GJ9: 2017-04-05 | GK9: 2017-04-06 | GL9: 2017-04-07 | GM9: 2017-04-08 | GN9: 2017-04-09 | GO9: 2017-04-10 | GP9: 2017-04-11 | GQ9: 2017-04-12 | GR9: 2017-04-13 | GS9: 2017-04-14 | GT9: 2017-04-15 | GU9: 2017-04-16 | GV9: 2017-04-17 | GW9: 2017-04-18 | GX9: 2017-04-19 | GY9: 2017-04-20 | GZ9: 2017-04-21 | HA9: 2017-04-22 | HB9: 2017-04-23 | HC9: 2017-04-24 | HD9: 2017-04-25 | HE9: 2017-04-26 | HF9: 2017-04-27 | HG9: 2017-04-28 | HH9: 2017-04-29 | HI9: 2017-04-30 | HJ9: 2017-05-01 | HK9: 2017-05-02 | HL9: 2017-05-03 | HM9: 2017-05-04 | HN9: 2017-05-05 | HO9: 2017-05-06 | HP9: 2017-05-07 | HQ9: 2017-05-08 | HR9: 2017-05-09 | HS9: 2017-05-10 | HT9: 2017-05-11 | HU9: =HT9+1 -> 2017-05-12 | HV9: 2017-05-13 | HW9: 2017-05-14 | HX9: 2017-05-15 | HY9: 2017-05-16 | HZ9: 2017-05-17 | IA9: 2017-05-18 | IB9: 2017-05-19 | IC9: 2017-05-20 | ID9: 2017-05-21 | IE9: 2017-05-22 | IF9: 2017-05-23 | IG9: 2017-05-24 | IH9: 2017-05-25 | II9: 2017-05-26 | IJ9: 2017-05-27 | IK9: 2017-05-28 | IL9: 2017-05-29 | IM9: 2017-05-30 | IN9: 2017-05-31 | IO9: 2017-06-01 | IP9: 2017-06-02 | IQ9: 2017-06-03 | IR9: 2017-06-04 | IS9: 2017-06-05 | IT9: 2017-06-06 | IU9: 2017-06-07 | IV9: 2017-06-08 | IW9: 2017-06-09 | IX9: 2017-06-10 | IY9: 2017-06-11 | IZ9: 2017-06-12 | JA9: 2017-06-13 | JB9: 2017-06-14 | JC9: 2017-06-15 | JD9: 2017-06-16 | JE9: 2017-06-17 | JF9: 2017-06-18 | JG9: 2017-06-19 | JH9: 2017-06-20 | JI9: 2017-06-21 | JJ9: 2017-06-22 | JK9: 2017-06-23 | JL9: 2017-06-24 | JM9: 2017-06-25 | JN9: 2017-06-26 | JO9: 2017-06-27 | JP9: 2017-06-28 | JQ9: 2017-06-29 | JR9: 2017-06-30 | JS9: 2017-07-01 | JT9: 2017-07-02 | JU9: 2017-07-03 | JV9: 2017-07-04 | JW9: 2017-07-05 | JX9: 2017-07-06 | JY9: 2017-07-07 | JZ9: 2017-07-08 | KA9: 2017-07-09 | KB9: 2017-07-10 | KC9: 2017-07-11 | KD9: 2017-07-12 | KE9: 2017-07-13 | KF9: 2017-07-14 | KG9: =KF9+1 -> 2017-07-15 | KH9: 2017-07-16 | KI9: 2017-07-17 | KJ9: 2017-07-18 | KK9: 2017-07-19 | KL9: 2017-07-20 | KM9: 2017-07-21 | KN9: 2017-07-22 | KO9: 2017-07-23 | KP9: 2017-07-24 | KQ9: 2017-07-25 | KR9: 2017-07-26 | KS9: 2017-07-27 | KT9: 2017-07-28 | KU9: 2017-07-29 | KV9: 2017-07-30 | KW9: 2017-07-31 | KX9: 2017-08-01 | KY9: 2017-08-02 | KZ9: 2017-08-03 | LA9: 2017-08-04 | LB9: 2017-08-05 | LC9: 2017-08-06 | LD9: 2017-08-07 | LE9: 2017-08-08 | LF9: 2017-08-09 | LG9: 2017-08-10 | LH9: 2017-08-11 | LI9: 2017-08-12 | LJ9: 2017-08-13 | LK9: 2017-08-14 | LL9: 2017-08-15 | LM9: 2017-08-16 | LN9: 2017-08-17 | LO9: 2017-08-18 | LP9: 2017-08-19 | LQ9: 2017-08-20 | LR9: 2017-08-21 | LS9: 2017-08-22 | LT9: 2017-08-23 | LU9: 2017-08-24 | LV9: 2017-08-25 | LW9: 2017-08-26 | LX9: 2017-08-27 | LY9: 2017-08-28 | LZ9: 2017-08-29 | MA9: 2017-08-30 | MB9: 2017-08-31 | MC9: 2017-09-01 | MD9: 2017-09-02 | ME9: 2017-09-03 | MF9: 2017-09-04 | MG9: 2017-09-05 | MH9: 2017-09-06 | MI9: 2017-09-07 | MJ9: 2017-09-08 | MK9: 2017-09-09 | ML9: 2017-09-10 | MM9: 2017-09-11 | MN9: 2017-09-12 | MO9: 2017-09-13 | MP9: 2017-09-14 | MQ9: 2017-09-15 | MR9: 2017-09-16 | MS9: =MR9+1 -> 2017-09-17 | MT9: 2017-09-18 | MU9: 2017-09-19 | MV9: 2017-09-20 | MW9: 2017-09-21 | MX9: 2017-09-22 | MY9: 2017-09-23 | MZ9: 2017-09-24 | NA9: 2017-09-25 | NB9: 2017-09-26 | NC9: 2017-09-27 | ND9: 2017-09-28 | NE9: 2017-09-29 | NF9: 2017-09-30 | NG9: 2017-10-01 | NH9: 2017-10-02 | NI9: 2017-10-03 | NJ9: 2017-10-04 | NK9: 2017-10-05 | NL9: 2017-10-06 | NM9: 2017-10-07 | NN9: 2017-10-08 | NO9: 2017-10-09 | NP9: 2017-10-10 | NQ9: 2017-10-11 | NR9: 2017-10-12 | NS9: 2017-10-13 | NT9: 2017-10-14 | NU9: 2017-10-15 | NV9: 2017-10-16 | NW9: 2017-10-17 | NX9: 2017-10-18 | NY9: 2017-10-19 | NZ9: 2017-10-20 | OA9: 2017-10-21 | OB9: 2017-10-22 | OC9: 2017-10-23 | OD9: 2017-10-24 | OE9: 2017-10-25 | OF9: 2017-10-26 | OG9: 2017-10-27 | OH9: 2017-10-28 | OI9: 2017-10-29 | OJ9: 2017-10-30 | OK9: 2017-10-31 | OL9: 2017-11-01 | OM9: 2017-11-02 | ON9: 2017-11-03 | OO9: 2017-11-04 | OP9: 2017-11-05 | OQ9: 2017-11-06 | OR9: 2017-11-07 | OS9: 2017-11-08 | OT9: 2017-11-09 | OU9: 2017-11-10 | OV9: 2017-11-11 | OW9: 2017-11-12 | OX9: 2017-11-13 | OY9: 2017-11-14 | OZ9: 2017-11-15 | PA9: 2017-11-16 | PB9: 2017-11-17 | PC9: 2017-11-18 | PD9: 2017-11-19 | PE9: =PD9+1 -> 2017-11-20 | PF9: 2017-11-21 | PG9: 2017-11-22 | PH9: 2017-11-23 | PI9: 2017-11-24 | PJ9: 2017-11-25 | PK9: 2017-11-26 | PL9: 2017-11-27 | PM9: 2017-11-28 | PN9: 2017-11-29 | PO9: 2017-11-30 | PP9: 2017-12-01 | PQ9: 2017-12-02 | PR9: 2017-12-03 | PS9: 2017-12-04 | PT9: 2017-12-05 | PU9: 2017-12-06 | PV9: 2017-12-07 | PW9: 2017-12-08 | PX9: 2017-12-09 | PY9: 2017-12-10 | PZ9: 2017-12-11 | QA9: 2017-12-12 | QB9: 2017-12-13 | QC9: 2017-12-14 | QD9: 2017-12-15 | QE9: 2017-12-16 | QF9: 2017-12-17 | QG9: 2017-12-18 | QH9: 2017-12-19 | QI9: 2017-12-20 | QJ9: 2017-12-21 | QK9: 2017-12-22 | QL9: 2017-12-23 | QM9: 2017-12-24 | QN9: 2017-12-25 | QO9: 2017-12-26 | QP9: 2017-12-27 | QQ9: 2017-12-28 | QR9: 2017-12-29 | QS9: 2017-12-30 | QT9: 2017-12-31 | QU9: 2018-01-01 | QV9: 2018-01-02 | QW9: 2018-01-03 | QX9: 2018-01-04 | QY9: 2018-01-05 | QZ9: 2018-01-06 | RA9: 2018-01-07 | RB9: 2018-01-08 | RC9: 2018-01-09 | RD9: 2018-01-10 | RE9: 2018-01-11 | RF9: 2018-01-12 | RG9: 2018-01-13 | RH9: 2018-01-14 | RI9: 2018-01-15 | RJ9: 2018-01-16 | RK9: 2018-01-17 | RL9: 2018-01-18 | RM9: 2018-01-19 | RN9: 2018-01-20 | RO9: 2018-01-21 | RP9: 2018-01-22 | RQ9: =RP9+1 -> 2018-01-23 | RR9: 2018-01-24 | RS9: 2018-01-25 | RT9: 2018-01-26 | RU9: 2018-01-27 | RV9: 2018-01-28 | RW9: 2018-01-29 | RX9: 2018-01-30 | RY9: 2018-01-31 | RZ9: 2018-02-01 | SA9: 2018-02-02 | SB9: 2018-02-03 | SC9: 2018-02-04 | SD9: 2018-02-05 | SE9: 2018-02-06 | SF9: 2018-02-07 | SG9: 2018-02-08 | SH9: 2018-02-09 | SI9: 2018-02-10 | SJ9: 2018-02-11 | SK9: 2018-02-12 | SL9: 2018-02-13 | SM9: 2018-02-14 | SN9: 2018-02-15 | SO9: 2018-02-16 | SP9: 2018-02-17 | SQ9: 2018-02-18 | SR9: 2018-02-19 | SS9: 2018-02-20 | ST9: 2018-02-21 | SU9: 2018-02-22 | SV9: 2018-02-23 | SW9: 2018-02-24 | SX9: 2018-02-25 | SY9: 2018-02-26 | SZ9: 2018-02-27 | TA9: 2018-02-28 | TB9: 2018-03-01 | TC9: 2018-03-02 | TD9: 2018-03-03 | TE9: 2018-03-04 | TF9: 2018-03-05 | TG9: 2018-03-06 | TH9: 2018-03-07 | TI9: 2018-03-08 | TJ9: 2018-03-09 | TK9: 2018-03-10 | TL9: 2018-03-11 | TM9: 2018-03-12 | TN9: 2018-03-13 | TO9: 2018-03-14 | TP9: 2018-03-15 | TQ9: 2018-03-16 | TR9: 2018-03-17 | TS9: 2018-03-18 | TT9: 2018-03-19 | TU9: 2018-03-20 | TV9: 2018-03-21 | TW9: 2018-03-22 | TX9: 2018-03-23 | TY9: 2018-03-24 | TZ9: 2018-03-25 | UA9: 2018-03-26 | UB9: 2018-03-27 | UC9: =UB9+1 -> 2018-03-28 | UD9: 2018-03-29 | UE9: 2018-03-30 | UF9: 2018-03-31 | UG9: 2018-04-01 | UH9: 2018-04-02 | UI9: 2018-04-03 | UJ9: 2018-04-04 | UK9: 2018-04-05 | UL9: 2018-04-06 | UM9: 2018-04-07
AJ10: =IF(DAY(AJ18)=1,AJ18,IF(AJ9=Red_Bookmark,"TODAY","")) ->  | AK10: 2016-11-01 | BO10: 2016-12-01 | CT10: 2017-01-01 | CV10: =IF(DAY(CV18)=1,CV18,IF(CV9=Red_Bookmark,"TODAY","")) ->  | DY10: 2017-02-01 | FA10: 2017-03-01 | FH10: =IF(DAY(FH18)=1,FH18,IF(FH9=Red_Bookmark,"TODAY","")) ->  | FQ10: TODAY | GF10: 2017-04-01 | HJ10: 2017-05-01 | HT10: =IF(DAY(HT18)=1,HT18,IF(HT9=Red_Bookmark,"TODAY","")) ->  | IO10: 2017-06-01 | JS10: 2017-07-01 | KF10: =IF(DAY(KF18)=1,KF18,IF(KF9=Red_Bookmark,"TODAY","")) ->  | KX10: 2017-08-01 | MC10: 2017-09-01 | MR10: =IF(DAY(MR18)=1,MR18,IF(MR9=Red_Bookmark,"TODAY","")) ->  | NG10: 2017-10-01 | OL10: 2017-11-01 | PD10: =IF(DAY(PD18)=1,PD18,IF(PD9=Red_Bookmark,"TODAY","")) ->  | PP10: 2017-12-01 | QU10: 2018-01-01 | RP10: =IF(DAY(RP18)=1,RP18,IF(RP9=Red_Bookmark,"TODAY","")) ->  | RZ10: 2018-02-01 | TB10: 2018-03-01 | UB10: =IF(DAY(UB18)=1,UB18,IF(UB9=Red_Bookmark,"TODAY","")) ->  | UG10: 2018-04-01
P14: =IF($AG$14="%",P15,"") ->  | Q14: =IF($AG$14="%",Q15,"") ->  | R14: =IF($AG$14="%",R15,"") ->  | S14: =IF($AG$14="%",S15,"") ->  | T14: =IF($AG$14="%",T15,"") ->  | V14: =IF($AG$14="%",V15,"") ->  | W14: =IF($AG$14="%",W15,"") ->  | X14: =IF($AG$14="%",X15,"") ->  | Y14: =IF($AG$14="%",Y15,"") ->  | AB14: =IF($AG$14="%",AB15,"") ->  | AE14: =IF($AG$14="%",AE15,"") ->  | AF14: =IF($AG$14="%",AF15,"") ->  | AI14: =IF($AG$14="%",AI15,"") ->  | AJ14: 11-2016 | BO14: 12-2016 | EZ14: 3-2017 | IN14: 6-2017 | MB14: 9-2017 | PO14: 12-2017 | TA14: 3-2018
P15: Resp. | Q15: Couleurs | R15: Niv. Taches | S15: Début | T15: Durée | V15: Recal. Dur. | W15: Jours ouvrés | X15: Normal | Y15: Échéance | AB15: Statut | AE15: Estim. | AF15: Réel | AG15: % | AI15: Commentaires | AJ15: =AJ16 -> W44 | AQ15: =AQ16 -> W45 | AX15: =AX16 -> W46 | BE15: =BE16 -> W47 | BL15: =BL16 -> W48 | BS15: =BS16 -> W49 | BZ15: =BZ16 -> W50 | CG15: =CG16 -> W51 | CN15: =CN16 -> W52 | CU15: =CU16 -> W1 | DB15: =DB16 -> W2 | DI15: =DI16 -> W3 | DP15: =DP16 -> W4 | DW15: =DW16 -> W5 | ED15: =ED16 -> W6 | EK15: =EK16 -> W7 | ER15: =ER16 -> W8 | EY15: =EY16 -> W9 | FF15: =FF16 -> W10 | FM15: =FM16 -> W11 | FT15: =FT16 -> W12 | GA15: =GA16 -> W13 | GH15: =GH16 -> W14 | GO15: =GO16 -> W15 | GV15: =GV16 -> W16 | HC15: =HC16 -> W17 | HJ15: =HJ16 -> W18 | HQ15: =HQ16 -> W19 | HX15: =HX16 -> W20 | IE15: =IE16 -> W21 | IL15: =IL16 -> W22 | IS15: =IS16 -> W23 | IZ15: =IZ16 -> W24 | JG15: =JG16 -> W25 | JN15: =JN16 -> W26 | JU15: =JU16 -> W27 | KB15: =KB16 -> W28 | KI15: =KI16 -> W29 | KP15: =KP16 -> W30 | KW15: =KW16 -> W31 | LD15: =LD16 -> W32 | LK15: =LK16 -> W33 | LR15: =LR16 -> W34 | LY15: =LY16 -> W35 | MF15: =MF16 -> W36 | MM15: =MM16 -> W37 | MT15: =MT16 -> W38 | NA15: =NA16 -> W39 | NH15: =NH16 -> W40 | NO15: =NO16 -> W41 | NV15: =NV16 -> W42 | OC15: =OC16 -> W43 | OJ15: =OJ16 -> W44 | OQ15: =OQ16 -> W45 | OX15: =OX16 -> W46 | PE15: =PE16 -> W47 | PL15: =PL16 -> W48 | PS15: =PS16 -> W49 | PZ15: =PZ16 -> W50 | QG15: =QG16 -> W51 | QN15: =QN16 -> W52 | QU15: =QU16 -> W1 | RB15: =RB16 -> W2 | RI15: =RI16 -> W3 | RP15: =RP16 -> W4 | RW15: =RW16 -> W5 | SD15: =SD16 -> W6 | SK15: =SK16 -> W7 | SR15: =SR16 -> W8 | SY15: =SY16 -> W9 | TF15: =TF16 -> W10 | TM15: =TM16 -> W11 | TT15: =TT16 -> W12 | UA15: =UA16 -> W13 | UH15: =UH16 -> W14
AJ16: =Week_Name&WEEKNUM(AJ9,First_Day_Week2) -> W44 | AK16: W44 | AL16: W44 | AM16: W44 | AN16: W44 | AO16: W44 | AP16: W44 | AQ16: W45 | AR16: W45 | AS16: W45 | AT16: W45 | AU16: W45 | AV16: W45 | AW16: W45 | AX16: W46 | AY16: W46 | AZ16: W46 | BA16: W46 | BB16: W46 | BC16: W46 | BD16: W46 | BE16: W47 | BF16: W47 | BG16: W47 | BH16: W47 | BI16: W47 | BJ16: W47 | BK16: W47 | BL16: W48 | BM16: W48 | BN16: W48 | BO16: W48 | BP16: W48 | BQ16: W48 | BR16: W48 | BS16: W49 | BT16: W49 | BU16: W49 | BV16: W49 | BW16: W49 | BX16: W49 | BY16: W49 | BZ16: W50 | CA16: W50 | CB16: W50 | CC16: W50 | CD16: W50 | CE16: W50 | CF16: W50 | CG16: W51 | CH16: W51 | CI16: W51 | CJ16: W51 | CK16: W51 | CL16: W51 | CM16: W51 | CN16: W52 | CO16: W52 | CP16: W52 | CQ16: W52 | CR16: W52 | CS16: W52 | CT16: W52 | CU16: W1 | CV16: =Week_Name&WEEKNUM(CV9,First_Day_Week2) -> W1 | CW16: W1 | CX16: W1 | CY16: W1 | CZ16: W1 | DA16: W1 | DB16: W2 | DC16: W2 | DD16: W2 | DE16: W2 | DF16: W2 | DG16: W2 | DH16: W2 | DI16: W3 | DJ16: W3 | DK16: W3 | DL16: W3 | DM16: W3 | DN16: W3 | DO16: W3 | DP16: W4 | DQ16: W4 | DR16: W4 | DS16: W4 | DT16: W4 | DU16: W4 | DV16: W4 | DW16: W5 | DX16: W5 | DY16: W5 | DZ16: W5 | EA16: W5 | EB16: W5 | EC16: W5 | ED16: W6 | EE16: W6 | EF16: W6 | EG16: W6 | EH16: W6 | EI16: W6 | EJ16: W6 | EK16: W7 | EL16: W7 | EM16: W7 | EN16: W7 | EO16: W7 | EP16: W7 | EQ16: W7 | ER16: W8 | ES16: W8 | ET16: W8 | EU16: W8 | EV16: W8 | EW16: W8 | EX16: W8 | EY16: W9 | EZ16: W9 | FA16: W9 | FB16: W9 | FC16: W9 | FD16: W9 | FE16: W9 | FF16: W10 | FG16: W10 | FH16: =Week_Name&WEEKNUM(FH9,First_Day_Week2) -> W10 | FI16: W10 | FJ16: W10 | FK16: W10 | FL16: W10 | FM16: W11 | FN16: W11 | FO16: W11 | FP16: W11 | FQ16: W11 | FR16: W11 | FS16: W11 | FT16: W12 | FU16: W12 | FV16: W12 | FW16: W12 | FX16: W12 | FY16: W12 | FZ16: W12 | GA16: W13 | GB16: W13 | GC16: W13 | GD16: W13 | GE16: W13 | GF16: W13 | GG16: W13 | GH16: W14 | GI16: W14 | GJ16: W14 | GK16: W14 | GL16: W14 | GM16: W14 | GN16: W14 | GO16: W15 | GP16: W15 | GQ16: W15 | GR16: W15 | GS16: W15 | GT16: W15 | GU16: W15 | GV16: W16 | GW16: W16 | GX16: W16 | GY16: W16 | GZ16: W16 | HA16: W16 | HB16: W16 | HC16: W17 | HD16: W17 | HE16: W17 | HF16: W17 | HG16: W17 | HH16: W17 | HI16: W17 | HJ16: W18 | HK16: W18 | HL16: W18 | HM16: W18 | HN16: W18 | HO16: W18 | HP16: W18 | HQ16: W19 | HR16: W19 | HS16: W19 | HT16: =Week_Name&WEEKNUM(HT9,First_Day_Week2) -> W19 | HU16: W19 | HV16: W19 | HW16: W19 | HX16: W20 | HY16: W20 | HZ16: W20 | IA16: W20 | IB16: W20 | IC16: W20 | ID16: W20 | IE16: W21 | IF16: W21 | IG16: W21 | IH16: W21 | II16: W21 | IJ16: W21 | IK16: W21 | IL16: W22 | IM16: W22 | IN16: W22 | IO16: W22 | IP16: W22 | IQ16: W22 | IR16: W22 | IS16: W23 | IT16: W23 | IU16: W23 | IV16: W23 | IW16: W23 | IX16: W23 | IY16: W23 | IZ16: W24 | JA16: W24 | JB16: W24 | JC16: W24 | JD16: W24 | JE16: W24 | JF16: W24 | JG16: W25 | JH16: W25 | JI16: W25 | JJ16: W25 | JK16: W25 | JL16: W25 | JM16: W25 | JN16: W26 | JO16: W26 | JP16: W26 | JQ16: W26 | JR16: W26 | JS16: W26 | JT16: W26 | JU16: W27 | JV16: W27 | JW16: W27 | JX16: W27 | JY16: W27 | JZ16: W27 | KA16: W27 | KB16: W28 | KC16: W28 | KD16: W28 | KE16: W28 | KF16: =Week_Name&WEEKNUM(KF9,First_Day_Week2) -> W28 | KG16: W28 | KH16: W28 | KI16: W29 | KJ16: W29 | KK16: W29 | KL16: W29 | KM16: W29 | KN16: W29 | KO16: W29 | KP16: W30 | KQ16: W30 | KR16: W30 | KS16: W30 | KT16: W30 | KU16: W30 | KV16: W30 | KW16: W31 | KX16: W31 | KY16: W31 | KZ16: W31 | LA16: W31 | LB16: W31 | LC16: W31 | LD16: W32 | LE16: W32 | LF16: W32 | LG16: W32 | LH16: W32 | LI16: W32 | LJ16: W32 | LK16: W33 | LL16: W33 | LM16: W33 | LN16: W33 | LO16: W33 | LP16: W33 | LQ16: W33 | LR16: W34 | LS16: W34 | LT16: W34 | LU16: W34 | LV16: W34 | LW16: W34 | LX16: W34 | LY16: W35 | LZ16: W35 | MA16: W35 | MB16: W35 | MC16: W35 | MD16: W35 | ME16: W35 | MF16: W36 | MG16: W36 | MH16: W36 | MI16: W36 | MJ16: W36 | MK16: W36 | ML16: W36 | MM16: W37 | MN16: W37 | MO16: W37 | MP16: W37 | MQ16: W37 | MR16: =Week_Name&WEEKNUM(MR9,First_Day_Week2) -> W37 | MS16: W37 | MT16: W38 | MU16: W38 | MV16: W38 | MW16: W38 | MX16: W38 | MY16: W38 | MZ16: W38 | NA16: W39 | NB16: W39 | NC16: W39 | ND16: W39 | NE16: W39 | NF16: W39 | NG16: W39 | NH16: W40 | NI16: W40 | NJ16: W40 | NK16: W40 | NL16: W40 | NM16: W40 | NN16: W40 | NO16: W41 | NP16: W41 | NQ16: W41 | NR16: W41 | NS16: W41 | NT16: W41 | NU16: W41 | NV16: W42 | NW16: W42 | NX16: W42 | NY16: W42 | NZ16: W42 | OA16: W42 | OB16: W42 | OC16: W43 | OD16: W43 | OE16: W43 | OF16: W43 | OG16: W43 | OH16: W43 | OI16: W43 | OJ16: W44 | OK16: W44 | OL16: W44 | OM16: W44 | ON16: W44 | OO16: W44 | OP16: W44 | OQ16: W45 | OR16: W45 | OS16: W45 | OT16: W45 | OU16: W45 | OV16: W45 | OW16: W45 | OX16: W46 | OY16: W46 | OZ16: W46 | PA16: W46 | PB16: W46 | PC16: W46 | PD16: =Week_Name&WEEKNUM(PD9,First_Day_Week2) -> W46 | PE16: W47 | PF16: W47 | PG16: W47 | PH16: W47 | PI16: W47 | PJ16: W47 | PK16: W47 | PL16: W48 | PM16: W48 | PN16: W48 | PO16: W48 | PP16: W48 | PQ16: W48 | PR16: W48 | PS16: W49 | PT16: W49 | PU16: W49 | PV16: W49 | PW16: W49 | PX16: W49 | PY16: W49 | PZ16: W50 | QA16: W50 | QB16: W50 | QC16: W50 | QD16: W50 | QE16: W50 | QF16: W50 | QG16: W51 | QH16: W51 | QI16: W51 | QJ16: W51 | QK16: W51 | QL16: W51 | QM16: W51 | QN16: W52 | QO16: W52 | QP16: W52 | QQ16: W52 | QR16: W52 | QS16: W52 | QT16: W52 | QU16: W1 | QV16: W1 | QW16: W1 | QX16: W1 | QY16: W1 | QZ16: W1 | RA16: W1 | RB16: W2 | RC16: W2 | RD16: W2 | RE16: W2 | RF16: W2 | RG16: W2 | RH16: W2 | RI16: W3 | RJ16: W3 | RK16: W3 | RL16: W3 | RM16: W3 | RN16: W3 | RO16: W3 | RP16: =Week_Name&WEEKNUM(RP9,First_Day_Week2) -> W4 | RQ16: W4 | RR16: W4 | RS16: W4 | RT16: W4 | RU16: W4 | RV16: W4 | RW16: W5 | RX16: W5 | RY16: W5 | RZ16: W5 | SA16: W5 | SB16: W5 | SC16: W5 | SD16: W6 | SE16: W6 | SF16: W6 | SG16: W6 | SH16: W6 | SI16: W6 | SJ16: W6 | SK16: W7 | SL16: W7 | SM16: W7 | SN16: W7 | SO16: W7 | SP16: W7 | SQ16: W7 | SR16: W8 | SS16: W8 | ST16: W8 | SU16: W8 | SV16: W8 | SW16: W8 | SX16: W8 | SY16: W9 | SZ16: W9 | TA16: W9 | TB16: W9 | TC16: W9 | TD16: W9 | TE16: W9 | TF16: W10 | TG16: W10 | TH16: W10 | TI16: W10 | TJ16: W10 | TK16: W10 | TL16: W10 | TM16: W11 | TN16: W11 | TO16: W11 | TP16: W11 | TQ16: W11 | TR16: W11 | TS16: W11 | TT16: W12 | TU16: W12 | TV16: W12 | TW16: W12 | TX16: W12 | TY16: W12 | TZ16: W12 | UA16: W13 | UB16: =Week_Name&WEEKNUM(UB9,First_Day_Week2) -> W13 | UC16: W13 | UD16: W13 | UE16: W13 | UF16: W13 | UG16: W13 | UH16: W14 | UI16: W14 | UJ16: W14 | UK16: W14 | UL16: W14 | UM16: W14
Q17: Planning | AE17: Budget | AI17: Commentaires | AJ17: =IF(TEXT(AJ9,"ddd")="ddd",UPPER(LEFT(TEXT(AJ9,"jjj"),1)),UPPER(LEFT(TEXT(AJ9,"ddd"),1))) -> L | AK17: M | AL17: M | AM17: J | AN17: V | AO17: S | AP17: D | AQ17: L | AR17: M | AS17: M | AT17: J | AU17: V | AV17: S | AW17: D | AX17: L | AY17: M | AZ17: M | BA17: J | BB17: V | BC17: S | BD17: D | BE17: L | BF17: M | BG17: M | BH17: J | BI17: V | BJ17: S | BK17: D | BL17: L | BM17: M | BN17: M | BO17: J | BP17: V | BQ17: S | BR17: D | BS17: L | BT17: M | BU17: M | BV17: J | BW17: V | BX17: S | BY17: D | BZ17: L | CA17: M | CB17: M | CC17: J | CD17: V | CE17: S | CF17: D | CG17: L | CH17: M | CI17: M | CJ17: J | CK17: V | CL17: S | CM17: D | CN17: L | CO17: M | CP17: M | CQ17: J | CR17: V | CS17: S | CT17: D | CU17: L | CV17: =IF(TEXT(CV9,"ddd")="ddd",UPPER(LEFT(TEXT(CV9,"jjj"),1)),UPPER(LEFT(TEXT(CV9,"ddd"),1))) -> M | CW17: M | CX17: J | CY17: V | CZ17: S | DA17: D | DB17: L | DC17: M | DD17: M | DE17: J | DF17: V | DG17: S | DH17: D | DI17: L | DJ17: M | DK17: M | DL17: J | DM17: V | DN17: S | DO17: D | DP17: L | DQ17: M | DR17: M | DS17: J | DT17: V | DU17: S | DV17: D | DW17: L | DX17: M | DY17: M | DZ17: J | EA17: V | EB17: S | EC17: D | ED17: L | EE17: M | EF17: M | EG17: J | EH17: V | EI17: S | EJ17: D | EK17: L | EL17: M | EM17: M | EN17: J | EO17: V | EP17: S | EQ17: D | ER17: L | ES17: M | ET17: M | EU17: J | EV17: V | EW17: S | EX17: D | EY17: L | EZ17: M | FA17: M | FB17: J | FC17: V | FD17: S | FE17: D | FF17: L | FG17: M | FH17: =IF(TEXT(FH9,"ddd")="ddd",UPPER(LEFT(TEXT(FH9,"jjj"),1)),UPPER(LEFT(TEXT(FH9,"ddd"),1))) -> M | FI17: J | FJ17: V | FK17: S | FL17: D | FM17: L | FN17: M | FO17: M | FP17: J | FQ17: V | FR17: S | FS17: D | FT17: L | FU17: M | FV17: M | FW17: J | FX17: V | FY17: S | FZ17: D | GA17: L | GB17: M | GC17: M | GD17: J | GE17: V | GF17: S | GG17: D | GH17: L | GI17: M | GJ17: M | GK17: J | GL17: V | GM17: S | GN17: D | GO17: L | GP17: M | GQ17: M | GR17: J | GS17: V | GT17: S | GU17: D | GV17: L | GW17: M | GX17: M | GY17: J | GZ17: V | HA17: S | HB17: D | HC17: L | HD17: M | HE17: M | HF17: J | HG17: V | HH17: S | HI17: D | HJ17: L | HK17: M | HL17: M | HM17: J | HN17: V | HO17: S | HP17: D | HQ17: L | HR17: M | HS17: M | HT17: =IF(TEXT(HT9,"ddd")="ddd",UPPER(LEFT(TEXT(HT9,"jjj"),1)),UPPER(LEFT(TEXT(HT9,"ddd"),1))) -> J | HU17: V | HV17: S | HW17: D | HX17: L | HY17: M | HZ17: M | IA17: J | IB17: V | IC17: S | ID17: D | IE17: L | IF17: M | IG17: M | IH17: J | II17: V | IJ17: S | IK17: D | IL17: L | IM17: M | IN17: M | IO17: J | IP17: V | IQ17: S | IR17: D | IS17: L | IT17: M | IU17: M | IV17: J | IW17: V | IX17: S | IY17: D | IZ17: L | JA17: M | JB17: M | JC17: J | JD17: V | JE17: S | JF17: D | JG17: L | JH17: M | JI17: M | JJ17: J | JK17: V | JL17: S | JM17: D | JN17: L | JO17: M | JP17: M | JQ17: J | JR17: V | JS17: S | JT17: D | JU17: L | JV17: M | JW17: M | JX17: J | JY17: V | JZ17: S | KA17: D | KB17: L | KC17: M | KD17: M | KE17: J | KF17: =IF(TEXT(KF9,"ddd")="ddd",UPPER(LEFT(TEXT(KF9,"jjj"),1)),UPPER(LEFT(TEXT(KF9,"ddd"),1))) -> V | KG17: S | KH17: D | KI17: L | KJ17: M | KK17: M | KL17: J | KM17: V | KN17: S | KO17: D | KP17: L | KQ17: M | KR17: M | KS17: J | KT17: V | KU17: S | KV17: D | KW17: L | KX17: M | KY17: M | KZ17: J | LA17: V | LB17: S | LC17: D | LD17: L | LE17: M | LF17: M | LG17: J | LH17: V | LI17: S | LJ17: D | LK17: L | LL17: M | LM17: M | LN17: J | LO17: V | LP17: S | LQ17: D | LR17: L | LS17: M | LT17: M | LU17: J | LV17: V | LW17: S | LX17: D | LY17: L | LZ17: M | MA17: M | MB17: J | MC17: V | MD17: S | ME17: D | MF17: L | MG17: M | MH17: M | MI17: J | MJ17: V | MK17: S | ML17: D | MM17: L | MN17: M | MO17: M | MP17: J | MQ17: V | MR17: =IF(TEXT(MR9,"ddd")="ddd",UPPER(LEFT(TEXT(MR9,"jjj"),1)),UPPER(LEFT(TEXT(MR9,"ddd"),1))) -> S | MS17: D | MT17: L | MU17: M | MV17: M | MW17: J | MX17: V | MY17: S | MZ17: D | NA17: L | NB17: M | NC17: M | ND17: J | NE17: V | NF17: S | NG17: D | NH17: L | NI17: M | NJ17: M | NK17: J | NL17: V | NM17: S | NN17: D | NO17: L | NP17: M | NQ17: M | NR17: J | NS17: V | NT17: S | NU17: D | NV17: L | NW17: M | NX17: M | NY17: J | NZ17: V | OA17: S | OB17: D | OC17: L | OD17: M | OE17: M | OF17: J | OG17: V | OH17: S | OI17: D | OJ17: L | OK17: M | OL17: M | OM17: J | ON17: V | OO17: S | OP17: D | OQ17: L | OR17: M | OS17: M | OT17: J | OU17: V | OV17: S | OW17: D | OX17: L | OY17: M | OZ17: M | PA17: J | PB17: V | PC17: S | PD17: =IF(TEXT(PD9,"ddd")="ddd",UPPER(LEFT(TEXT(PD9,"jjj"),1)),UPPER(LEFT(TEXT(PD9,"ddd"),1))) -> D | PE17: L | PF17: M | PG17: M | PH17: J | PI17: V | PJ17: S | PK17: D | PL17: L | PM17: M | PN17: M | PO17: J | PP17: V | PQ17: S | PR17: D | PS17: L | PT17: M | PU17: M | PV17: J | PW17: V | PX17: S | PY17: D | PZ17: L | QA17: M | QB17: M | QC17: J | QD17: V | QE17: S | QF17: D | QG17: L | QH17: M | QI17: M | QJ17: J | QK17: V | QL17: S | QM17: D | QN17: L | QO17: M | QP17: M | QQ17: J | QR17: V | QS17: S | QT17: D | QU17: L | QV17: M | QW17: M | QX17: J | QY17: V | QZ17: S | RA17: D | RB17: L | RC17: M | RD17: M | RE17: J | RF17: V | RG17: S | RH17: D | RI17: L | RJ17: M | RK17: M | RL17: J | RM17: V | RN17: S | RO17: D | RP17: =IF(TEXT(RP9,"ddd")="ddd",UPPER(LEFT(TEXT(RP9,"jjj"),1)),UPPER(LEFT(TEXT(RP9,"ddd"),1))) -> L | RQ17: M | RR17: M | RS17: J | RT17: V | RU17: S | RV17: D | RW17: L | RX17: M | RY17: M | RZ17: J | SA17: V | SB17: S | SC17: D | SD17: L | SE17: M | SF17: M | SG17: J | SH17: V | SI17: S | SJ17: D | SK17: L | SL17: M | SM17: M | SN17: J | SO17: V | SP17: S | SQ17: D | SR17: L | SS17: M | ST17: M | SU17: J | SV17: V | SW17: S | SX17: D | SY17: L | SZ17: M | TA17: M | TB17: J | TC17: V | TD17: S | TE17: D | TF17: L | TG17: M | TH17: M | TI17: J | TJ17: V | TK17: S | TL17: D | TM17: L | TN17: M | TO17: M | TP17: J | TQ17: V | TR17: S | TS17: D | TT17: L | TU17: M | TV17: M | TW17: J | TX17: V | TY17: S | TZ17: D | UA17: L | UB17: =IF(TEXT(UB9,"ddd")="ddd",UPPER(LEFT(TEXT(UB9,"jjj"),1)),UPPER(LEFT(TEXT(UB9,"ddd"),1))) -> M | UC17: M | UD17: J | UE17: V | UF17: S | UG17: D | UH17: L | UI17: M | UJ17: M | UK17: J | UL17: V | UM17: S
